Workbook

Sheet _ws_disp (hidden)
A1: Mode ID → | B1: 2 | C1: 3 | D1: 4 | E1: 5 | F1: 6 | G1: 7 | H1: 8 | I1: 9 | AH1: _ws_disp
A2: Mode Name → | B2: PROC | C2: ADMIN | D2: BOTH | E2: VOC | F2: HVY | G2: SYS | H2: PROTECT | I2: 出荷 | J2: LinkText | K2: ① | L2: ② | M2: ③ | N2: ④ | O2: ⑤ | P2: ⑥ | Q2: ⑦ | R2: ⑧ | S2: ⑨ | T2: ⑩ | U2: ⑪ | V2: ⑫ | W2: ⑬ | X2: ⑭ | Y2: ⑮ | Z2: ⑯ | AA2: ⑰ | AB2: ⑱ | AC2: ⑲ | AD2: ⑳ | AE2: ㉑ | AF2: ㉒ | AH2: 処理中
A3: _ws_disp | B3: 0 | C3: 1 | D3: 0 | E3: 0 | F3: 0 | G3: 1 | H3: 1 | I3: 0 | K3: 1 | L3: 2 | M3: 3 | N3: 4 | O3: 5 | P3: 6 | Q3: 7 | R3: 8 | S3: 9 | T3: 10 | U3: 11 | V3: 12 | W3: 13 | X3: 14 | Y3: 15 | Z3: 16 | AA3: 17 | AB3: 18 | AC3: 19 | AD3: 20 | AE3: 21 | AF3: 22 | AH3: 目次
A4: 目次 | B4: 0 | C4: 1 | D4: 1 | E4: 1 | F4: 1 | G4: 0 | H4: 1 | I4: 1 | AH4: 基本データ入力_共通
A5: 処理中 | B5: 1 | C5: 0 | D5: 0 | E5: 0 | F5: 0 | G5: 0 | H5: 1 | I5: 0 | AH5: 評価結果 (VOC)
A6: 基本データ入力_共通 | B6: 0 | C6: 1 | D6: 1 | E6: 1 | F6: 1 | G6: 0 | H6: 1 | I6: 1 | AH6: 評価結果 (重金属)
A7: 基本データ入力_①掘削・場外搬出（セメント） | B7: 0 | C7: 1 | D7: 0 | E7: 0 | F7: 1 | G7: 0 | H7: 1 | I7: 1 | AH7: 評価結果 (重金属、VOC)
A8: 基本データ入力_②掘削・場外搬出（埋立） | B8: 0 | C8: 1 | D8: 1 | E8: 1 | F8: 1 | G8: 0 | H8: 1 | I8: 1 | AH8: 統合化結果（重み付けを変更したい場合）
A9: 基本データ入力_③掘削除去・場外搬出（洗浄プラント） | B9: 0 | C9: 1 | D9: 0 | E9: 0 | F9: 1 | G9: 0 | H9: 1 | I9: 1 | AH9: 原単位リスト(multi)
A10: 基本データ入力_④掘削除去・オンサイト生石灰混合処理 | B10: 0 | C10: 1 | D10: 0 | E10: 1 | F10: 0 | G10: 0 | H10: 1 | I10: 1 | AH10: 原単位リスト(multi)org
A11: 基本データ入力_⑤掘削除去・オンサイト不溶化処理 | B11: 0 | C11: 1 | D11: 0 | E11: 0 | F11: 1 | G11: 0 | H11: 1 | I11: 1 | AH11: 環境負荷①掘削除去(ｾﾒﾝﾄ)
A12: 基本データ入力_⑥位置封じ込め(鋼矢板＋コンクリート舗装) | B12: 0 | C12: 1 | D12: 1 | E12: 1 | F12: 1 | G12: 0 | H12: 1 | I12: 1 | AH12: 環境負荷②掘削除去(埋立)
A13: 基本データ入力_⑦位置封じ込め(鋼矢板+アスファルト舗装) | B13: 0 | C13: 1 | D13: 1 | E13: 1 | F13: 1 | G13: 0 | H13: 1 | I13: 1 | AH13: 環境負荷③掘削除去(洗浄)
A14: 基本データ入力_⑧位置封じ込め(柱列壁+コンクリート舗装) | B14: 0 | C14: 1 | D14: 1 | E14: 1 | F14: 1 | G14: 0 | H14: 1 | I14: 1 | AH14: 環境負荷④掘削除去(石灰)
A15: 基本データ入力_⑨位置封じ込め(柱列壁+アスファルト舗装) | B15: 0 | C15: 1 | D15: 1 | E15: 1 | F15: 1 | G15: 0 | H15: 1 | I15: 1 | AH15: 環境負荷⑤掘削除去(不溶化)
... 18 more rows

Sheet 処理中 (hidden)
B3: 現在処理中です
B4: しばらくお待ちください

Sheet 目次
A2: １．土壌汚染対策における環境負荷定量評価ツールの概要
B3: 本ソフトは、土壌汚染サイトに関する基本的な情報から、土壌汚染措置の対策に伴う様々な環境負荷を、定量的に評価することができる計算ソフトです。 土壌汚染サイトに関して、比較的把握が容易なパラメータを入力することで、工法の主要な工程の活動量を推定し、複数の工法の環境負荷評価を算定することができます。
A4: ２．データの入力方法
A5: （１）基本データ欄 | C5: （※クリックすると、基本データ入力用のシートに移動します。以下のリンクも同様です。）
A6: 敷地範囲、土壌汚染対策範囲、土壌等の運搬距離のほか、対象物質の種類（（重金属のみ、VOCのみ、重金属+VOC。V11のセルで選択。）を選択します。選択に応じて、関連工法の入力シートへのリンクのみが（２）に表示されます。
A8: （２）各工法の詳細データ入力
A9: 基本データを基に各工法詳細データが自動計算されます。初期値が入直されていますので、各シートの値を変更しなくても計算できますが、実態に応じ、数値を変更することもできます。なお、「基本データ入力_共通」シートのV11セルで評価対象（重金属のみ、VOCのみ、重金属+VOC）を選択することにより、入力対象となるシートへのリンクのみが表示されます。
A11: ■各工法の詳細データ欄
A12: ① 掘削・場外搬出（セメント） データ欄へ
A13: ② 掘削・場外搬出（埋立） データ欄へ
A14: ③ 掘削・場外搬出（洗浄） データ欄へ
A15: ④ 掘削・オンサイト（生石灰混合） データ欄へ
... 14 more rows

Sheet 基本データ入力_共通
AV1: 運搬距離 | BB1: 仮囲い
Q2: サイト名 | V2: 作成日 | AA2: ■鋼材寸法性能表 | AV2: 陸上 | AY2: 海上
Q3: 作成者 | V3: 備考欄 | AC3: 寸 法 | AF3: 鋼矢板1枚当たり | AJ3: 壁幅1m当たり
AC4: 有効幅 | AD4: 有効高さ | AE4: 厚さ | AF4: 断面積 | AG4: 断面二次 | AH4: 断面係数 | AI4: 単位 | AJ4: 断面積 | AK4: 断面二次 | AL4: 断面係数 | AM4: 単位 | AV4: 東京都 | AW4: =AV4&"("&AX4&"km)" -> 東京都(20km) | AX4: 20 | AY4: 青森県 | AZ4: =AY4&"("&BA4&"km)" -> 青森県(700km) | BA4: 700 | BB4: 有り
P5: ■共通 | AC5: W | AD5: H | AE5: t | AF5: x10-4 | AG5: モーメント | AH5: x10-6 | AI5: 質量 | AJ5: x10-4 | AK5: モーメント | AL5: x10-6 | AM5: 質量 | AV5: 神奈川県 | AW5: =AV5&"("&AX5&"km)" -> 神奈川県(30km) | AX5: 30 | AY5: 愛知県 | AZ5: =AY5&"("&BA5&"km)" -> 愛知県(340km) | BA5: 340 | BB5: 無し
Q6: 項目 | S6: 記号 | T6: 単位 | U6: 数値 | X6: 備考 | AB6: 鋼矢板種類 | AC6: (mm) | AD6: (mm) | AE6: (mm) | AF6: (m2) | AG6: x10-8 | AH6: (m3) | AI6: (kg/m) | AJ6: (m2/m) | AK6: x10-8 | AL6: (m3/m) | AM6: (kg/m2) | AV6: 千葉県 | AW6: 千葉県(80km) | AX6: 80 | AY6: 山口県 | AZ6: 山口県(840km) | BA6: 840
U7: 自動計算 | V7: 手入力値 | W7: 確定値 | AB7: Ⅰ型 | AC7: 400 | AD7: 85 | AE7: 8 | AF7: 45.21 | AG7: 598 | AH7: 88 | AI7: 35.5 | AJ7: 113 | AK7: 4500 | AL7: 529 | AM7: 88.8 | AV7: 栃木県 | AW7: 栃木県(90km) | AX7: 90 | AY7: 福岡県 | AZ7: 福岡県(900km) | BA7: 900
Q8: 調査関係 | R8: 対象物質 | W8: =IF(V8="",U8,V8) -> 0 | X8: 重金属、VOC、重金属＋VOCのいずれかを選択。 選択に応じて、表示されるシートが変化します。 | AB8: Ⅱ型 | AC8: 400 | AD8: 100 | AE8: 10.5 | AF8: 61.18 | AG8: 1240 | AH8: 152 | AI8: 48 | AJ8: 153 | AK8: 8740 | AL8: 874 | AM8: 120 | AV8: 茨城県 | AW8: 茨城県(120km) | AX8: 120 | AY8: 大分県 | AZ8: 大分県(790km) | BA8: 790
Q9: 土壌対策範囲 | R9: 対策範囲長 | S9: Xs | T9: m | W9: 0 | X9: 入力値 | AB9: Ⅲ型 | AC9: 400 | AD9: 125 | AE9: 13 | AF9: 76.42 | AG9: 2220 | AH9: 223 | AI9: 60 | AJ9: 191 | AK9: 16800 | AL9: 1340 | AM9: 150 | AV9: 埼玉県 | AW9: 埼玉県(120km) | AX9: 120
R10: 対策範囲幅 | S10: Ys | T10: m | W10: 0 | X10: 入力値 | AB10: Ⅳ型 | AC10: 400 | AD10: 170 | AE10: 15.5 | AF10: 96.99 | AG10: 4670 | AH10: 362 | AI10: 76.1 | AJ10: 242.5 | AK10: 38600 | AL10: 2270 | AM10: 190 | AV10: 愛知県 | AW10: 愛知県(350km) | AX10: 350
R11: 対策範囲深さ | S11: Zs | T11: m | W11: 0 | X11: 入力値 | AB11: Ⅴ型 | AC11: 500 | AD11: 200 | AE11: 24.3 | AF11: 133.8 | AG11: 7960 | AH11: 520 | AI11: 105 | AJ11: 267.6 | AK11: 63000 | AL11: 3150 | AM11: 210 | AV11: 秋田県 | AW11: 秋田県(670km) | AX11: 670
R12: 対策範囲面積 | S12: As | T12: m2 | U12: =W9*W10 -> 0 | W12: 0 | X12: 計算値
R13: 対策範囲体積 | S13: Vs | T13: m3 | U13: =W11*W12 -> 0 | W13: 0 | X13: 計算値 | AC13: 寸 法 | AI13: 断面積 | AJ13: 単位質量 | AK13: 断面二次ﾓｰﾒﾝﾄ | AM13: 断面二次半径 | AO13: 断 面 係 数 | AQ13: 曲げ応力のための | AS13: 鋼種
R14: 土壌の湿潤密度 | T14: t/m3 | U14: 1.8 | W14: 1.8 | X14: 粘土主体1.6、砂主体1.8、礫主体2.0 | AC14: mm | AI14: cm2 | AJ14: kg/m | AK14: cm4 | AM14: cm | AO14: cm3 | AQ14: 断面性能
R15: 対策土壌質量 | S15: Ws | T15: t | U15: =W13*W14 -> 0 | W15: 0 | X15: 計算値 | AB15: H型鋼 | AC15: H | AE15: B | AF15: t1 | AG15: t2 | AH15: r | AK15: Ix | AL15: Iy | AM15: ix | AN15: iy | AO15: Zx | AP15: Zy | AQ15: ib | AR15: η
Q16: 地下水対策範囲 | R16: 対策範囲長 | S16: Xg | T16: m | W16: 0 | X16: 入力値 | AB16: 150*150 | AD16: 150 | AE16: 150 | AF16: 7 | AG16: 10 | AH16: 8 | AI16: 39.65 | AJ16: 31.1 | AK16: 1620 | AL16: 563 | AM16: 6.4 | AN16: 3.77 | AO16: 216 | AP16: 75.1 | AQ16: 4.15 | AR16: 4.15 | AS16: SN400
R17: 対策範囲幅 | S17: Yg | T17: m | W17: 0 | X17: 入力値 | AB17: 200*200 | AD17: 200 | AE17: 200 | AF17: 8 | AG17: 12 | AH17: 13 | AI17: 63.53 | AJ17: 49.9 | AK17: 4720 | AL17: 1600 | AM17: 8.62 | AN17: 5.02 | AO17: 472 | AP17: 160 | AQ17: 5.5 | AR17: 4.59 | AS17: SN400
R18: 対策範囲深さ | S18: Zg | T18: m | W18: 0 | X18: 入力値 | AB18: 250*250 | AD18: 250 | AE18: 250 | AF18: 9 | AG18: 14 | AH18: 13 | AI18: 91.43 | AJ18: 71.8 | AK18: 10700 | AL18: 3650 | AM18: 10.8 | AN18: 6.32 | AO18: 860 | AP18: 292 | AQ18: 6.91 | AR18: 4.93 | AS18: SN400
R19: 地下水面深さ | S19: DWL | T19: m | W19: 0 | X19: 入力値 | AB19: 300*300 | AD19: 300 | AE19: 300 | AF19: 10 | AG19: 15 | AH19: 13 | AI19: 118.4 | AJ19: 93 | AK19: 20200 | AL19: 6750 | AM19: 13.1 | AN19: 7.55 | AO19: 1350 | AP19: 450 | AQ19: 8.28 | AR19: 5.52 | AS19: SN400
R20: 対策範囲面積 | S20: Ag | T20: m2 | U20: =W16*W17 -> 0 | W20: 0 | X20: 計算値 | AB20: 350*350 | AD20: 350 | AE20: 350 | AF20: 12 | AG20: 19 | AH20: 13 | AI20: 171.9 | AJ20: 135 | AK20: 39800 | AL20: 13600 | AM20: 15.2 | AN20: 8.89 | AO20: 2280 | AP20: 776 | AQ20: 9.71 | AR20: 5.11 | AS20: SN400
R21: 対策範囲体積 | S21: Vg | T21: m3 | U21: =(W18-W19)*W20 -> 0 | W21: 0 | X21: 計算値 | AB21: 400*400 | AD21: 400 | AE21: 400 | AF21: 13 | AG21: 21 | AH21: 22 | AI21: 218.7 | AJ21: 172 | AK21: 66600 | AL21: 22400 | AM21: 17.5 | AN21: 10.1 | AO21: 3330 | AP21: 1120 | AQ21: 11 | AR21: 5.25 | AS21: SN400
Q22: 運搬距離（自動車） | R22: 資材・機材運搬距離（片道） | U22: 20 | W22: =IF(V22="",U22,IF(ISERROR(MATCH(V22,$AW$4:$AW$11,0)),V22,INDEX($AX$4:$AX$11,MATCH(V22,$AW$4:$AW$11,0)))) -> 20 | X22: 資機材の運搬距離を入力
R23: 資材運搬距離（片道） | S23: DT-i | T23: km | W23: =W22 -> 20 | X23: 入力値
R24: 機材運搬距離（片道） | S24: DT-E | T24: km | W24: =W22 -> 20 | X24: 入力値
R25: 土壌運搬距離（セメント、片道） | T25: km | U25: 20 | W25: =IF(V25="",U25,IF(ISERROR(MATCH(V25,$AW$4:$AW$11,0)),V25,INDEX($AX$4:$AX$11,MATCH(V25,$AW$4:$AW$11,0)))) -> 20 | X25: 運搬先の選択または距離を入力
R26: 土壌運搬距離（埋立、片道） | T26: km | U26: 20 | W26: =IF(V26="",U26,IF(ISERROR(MATCH(V26,$AW$4:$AW$11,0)),V26,INDEX($AX$4:$AX$11,MATCH(V26,$AW$4:$AW$11,0)))) -> 20 | X26: 運搬先の選択または距離を入力
R27: 土壌運搬距離（洗浄、片道） | T27: km | U27: 20 | W27: =IF(V27="",U27,IF(ISERROR(MATCH(V27,$AW$4:$AW$11,0)),V27,INDEX($AX$4:$AX$11,MATCH(V27,$AW$4:$AW$11,0)))) -> 20 | X27: 運搬先の選択または距離を入力
Q28: 運搬距離（船） | R28: 土壌運搬距離（セメント、片道） | T28: km | U28: 0 | W28: =IF(V28="",U28,IF(ISERROR(MATCH(V28,$AZ$4:$AZ$8,0)),V28,INDEX($BA$4:$BA$8,MATCH(V28,$AZ$4:$AZ$8,0)))) -> 0 | X28: 運搬先の選択または距離を入力
R29: 土壌運搬距離（埋立、片道） | T29: km | U29: 0 | W29: =IF(V29="",U29,IF(ISERROR(MATCH(V29,$AZ$4:$AZ$8,0)),V29,INDEX($BA$4:$BA$8,MATCH(V29,$AZ$4:$AZ$8,0)))) -> 0 | X29: 運搬先の選択または距離を入力
R30: 土壌運搬距離（洗浄、片道） | T30: km | U30: 0 | W30: =IF(V30="",U30,IF(ISERROR(MATCH(V30,$AZ$4:$AZ$8,0)),V30,INDEX($BA$4:$BA$8,MATCH(V30,$AZ$4:$AZ$8,0)))) -> 0 | X30: 運搬先の選択または距離を入力
Q31: 仮囲い | V31: 有り | W31: =IF(V31="",U31,V31) -> 有り | X31: 仮囲いの有無を選択
X33: 目次に戻る >>

Sheet 評価結果 (VOC)
E2: サイト名 | F2: =IF(基本データ入力_共通!R2=0,"",基本データ入力_共通!R2) ->  | M2: 作成日 | N2: =IF(基本データ入力_共通!W2=0,"",基本データ入力_共通!W2) -> 
E3: 作成者 | F3: =IF(基本データ入力_共通!R3=0,"",基本データ入力_共通!R3) ->  | M3: 備考欄 | N3: =IF(基本データ入力_共通!W3=0,"",基本データ入力_共通!W3) -> 
B5: 表１ 統合化結果（無次元、VOC）
B6: 工法 | E6: 地球温暖化 | F6: 酸性化 | G6: 都市域大気汚染 | H6: 光化学オキシダント | I6: 有害化学物質（大気） | J6: 有害化学物質（水域） | K6: 生態毒性（大気） | L6: 生態毒性（水圏） | M6: 富栄養化 | N6: 資源消費 | P6: 廃棄物 | Q6: 合計 （指数表示） | R6: 合計 （実数表示）
B7: 2 | C7: 掘削除去埋立 | D7: ②掘削除去（埋立） | E7: ='環境負荷②掘削除去(埋立)'!$IS$90 -> 2518.689371 | F7: ='環境負荷②掘削除去(埋立)'!$IT$90 -> 5.874871664 | G7: ='環境負荷②掘削除去(埋立)'!$IU$90 -> 435.507058 | H7: ='環境負荷②掘削除去(埋立)'!$IV$90 -> 0.007469744184 | I7: ='環境負荷②掘削除去(埋立)'!$IW$90 -> 2.837244091 | J7: ='環境負荷②掘削除去(埋立)'!$IX$90 -> 1.801389005 | K7: ='環境負荷②掘削除去(埋立)'!$IY$90 -> 80.44888059 | L7: ='環境負荷②掘削除去(埋立)'!$IZ$90 -> 39.66606246 | M7: ='環境負荷②掘削除去(埋立)'!$JA$90 -> 1.643563067 | N7: ='環境負荷②掘削除去(埋立)'!$JB$90 -> 1028.954692 | P7: ='環境負荷②掘削除去(埋立)'!$JC$90 -> 65.98795648 | Q7: =SUM(E7:P7) -> 4181.418558 | R7: =Q7 -> 4181.418558
B8: 4 | C8: 掘削除去生石灰 | D8: ④掘削除去（生石灰） | E8: ='環境負荷④掘削除去(石灰)'!$IS$133 -> 12403.92738 | F8: ='環境負荷④掘削除去(石灰)'!$IT$133 -> 30.71712264 | G8: ='環境負荷④掘削除去(石灰)'!$IU$133 -> 2161.037421 | H8: ='環境負荷④掘削除去(石灰)'!$IV$133 -> 0.05253575811 | I8: ='環境負荷④掘削除去(石灰)'!$IW$133 -> 16.98389665 | J8: ='環境負荷④掘削除去(石灰)'!$IX$133 -> 12.71703193 | K8: ='環境負荷④掘削除去(石灰)'!$IY$133 -> 526.8762184 | L8: ='環境負荷④掘削除去(石灰)'!$IZ$133 -> 280.1503361 | M8: ='環境負荷④掘削除去(石灰)'!$JA$133 -> 11.55816653 | N8: ='環境負荷④掘削除去(石灰)'!$JB$133 -> 5592.186392 | P8: ='環境負荷④掘削除去(石灰)'!$JC$133 -> 392.6980619 | Q8: 21428.90456 | R8: =Q8 -> 21428.90456
B9: 6 | C9: 原位置封じ込め（鋼矢板＋コンクリート） | D9: ⑥原位置封じ込め（鋼矢板＋コンクリート） | E9: ='環境負荷⑥封じ込め(鋼矢板+コンクリート)'!$IS$59 -> 10188.50751 | F9: ='環境負荷⑥封じ込め(鋼矢板+コンクリート)'!$IT$59 -> 25.12089887 | G9: ='環境負荷⑥封じ込め(鋼矢板+コンクリート)'!$IU$59 -> 1779.838112 | H9: ='環境負荷⑥封じ込め(鋼矢板+コンクリート)'!$IV$59 -> 0.04211063869 | I9: ='環境負荷⑥封じ込め(鋼矢板+コンクリート)'!$IW$59 -> 13.78475755 | J9: ='環境負荷⑥封じ込め(鋼矢板+コンクリート)'!$IX$59 -> 10.19740066 | K9: ='環境負荷⑥封じ込め(鋼矢板+コンクリート)'!$IY$59 -> 424.5677912 | L9: ='環境負荷⑥封じ込め(鋼矢板+コンクリート)'!$IZ$59 -> 224.6634029 | M9: ='環境負荷⑥封じ込め(鋼矢板+コンクリート)'!$JA$59 -> 9.263720313 | N9: ='環境負荷⑥封じ込め(鋼矢板+コンクリート)'!$JB$59 -> 4084.642306 | P9: ='環境負荷⑥封じ込め(鋼矢板+コンクリート)'!$JC$59 -> 352.0623578 | Q9: 17112.69037 | R9: 17112.69037
B10: 7 | C10: 原位置封じ込め（鋼矢板＋アスファルト） | D10: ⑦原位置封じ込め（鋼矢板＋アスファルト） | E10: ='環境負荷⑦封じ込め(鋼矢板+アスファルト)'!$IS$52 -> 9116.698541 | F10: ='環境負荷⑦封じ込め(鋼矢板+アスファルト)'!$IT$52 -> 22.10261512 | G10: ='環境負荷⑦封じ込め(鋼矢板+アスファルト)'!$IU$52 -> 1540.685994 | H10: ='環境負荷⑦封じ込め(鋼矢板+アスファルト)'!$IV$52 -> 0.03774024971 | I10: ='環境負荷⑦封じ込め(鋼矢板+アスファルト)'!$IW$52 -> 12.35823587 | J10: ='環境負荷⑦封じ込め(鋼矢板+アスファルト)'!$IX$52 -> 9.142756127 | K10: ='環境負荷⑦封じ込め(鋼矢板+アスファルト)'!$IY$52 -> 380.5673742 | L10: ='環境負荷⑦封じ込め(鋼矢板+アスファルト)'!$IZ$52 -> 201.4455815 | M10: ='環境負荷⑦封じ込め(鋼矢板+アスファルト)'!$JA$52 -> 8.30147174 | N10: ='環境負荷⑦封じ込め(鋼矢板+アスファルト)'!$JB$52 -> 4244.083746 | P10: ='環境負荷⑦封じ込め(鋼矢板+アスファルト)'!$JC$52 -> 285.5270473 | Q10: 15820.9511 | R10: 15820.9511
B11: 8 | C11: 原位置封じ込め（柱列壁＋コンクリート） | D11: ⑧原位置封じ込め（柱列壁＋コンクリート） | E11: ='環境負荷⑧封じ込め(柱列壁+コンクリート)'!$IS$91 -> 38175.75434 | F11: ='環境負荷⑧封じ込め(柱列壁+コンクリート)'!$IT$91 -> 95.23164194 | G11: ='環境負荷⑧封じ込め(柱列壁+コンクリート)'!$IU$91 -> 6727.775092 | H11: ='環境負荷⑧封じ込め(柱列壁+コンクリート)'!$IV$91 -> 0.2220257332 | I11: ='環境負荷⑧封じ込め(柱列壁+コンクリート)'!$IW$91 -> 71.29808712 | J11: ='環境負荷⑧封じ込め(柱列壁+コンクリート)'!$IX$91 -> 53.92972281 | K11: ='環境負荷⑧封じ込め(柱列壁+コンクリート)'!$IY$91 -> 2220.562815 | L11: ='環境負荷⑧封じ込め(柱列壁+コンクリート)'!$IZ$91 -> 1188.805315 | M11: ='環境負荷⑧封じ込め(柱列壁+コンクリート)'!$JA$91 -> 48.81791423 | N11: ='環境負荷⑧封じ込め(柱列壁+コンクリート)'!$JB$91 -> 15251.77695 | P11: ='環境負荷⑧封じ込め(柱列壁+コンクリート)'!$JC$91 -> 1513.17252 | Q11: 65347.34643 | R11: 65347.34643
B12: 9 | C12: 原位置封じ込め（柱列壁＋アスファルト） | D12: ⑨原位置封じ込め（柱列壁＋アスファルト） | E12: ='環境負荷⑨封じ込め(柱列壁+アスファルト)'!$IS$84 -> 37103.94538 | F12: ='環境負荷⑨封じ込め(柱列壁+アスファルト)'!$IT$84 -> 92.21335819 | G12: ='環境負荷⑨封じ込め(柱列壁+アスファルト)'!$IU$84 -> 6488.622973 | H12: ='環境負荷⑨封じ込め(柱列壁+アスファルト)'!$IV$84 -> 0.2176553442 | I12: ='環境負荷⑨封じ込め(柱列壁+アスファルト)'!$IW$84 -> 69.87156544 | J12: ='環境負荷⑨封じ込め(柱列壁+アスファルト)'!$IX$84 -> 52.87507828 | K12: ='環境負荷⑨封じ込め(柱列壁+アスファルト)'!$IY$84 -> 2176.562398 | L12: ='環境負荷⑨封じ込め(柱列壁+アスファルト)'!$IZ$84 -> 1165.587493 | M12: ='環境負荷⑨封じ込め(柱列壁+アスファルト)'!$JA$84 -> 47.85566566 | N12: ='環境負荷⑨封じ込め(柱列壁+アスファルト)'!$JB$84 -> 15411.21839 | P12: ='環境負荷⑨封じ込め(柱列壁+アスファルト)'!$JC$84 -> 1446.63721 | Q12: 64055.60717 | R12: 64055.60717
B13: 10 | C13: 鉄粉混合 | D13: ⑩鉄粉混合 | E13: =環境負荷⑩鉄粉混合!$IS$32 -> 144403.588 | F13: =環境負荷⑩鉄粉混合!$IT$32 -> 355.3758054 | G13: =環境負荷⑩鉄粉混合!$IU$32 -> 24907.43094 | H13: =環境負荷⑩鉄粉混合!$IV$32 -> 0.9950601796 | I13: =環境負荷⑩鉄粉混合!$IW$32 -> 322.4502468 | J13: =環境負荷⑩鉄粉混合!$IX$32 -> 242.2885971 | K13: =環境負荷⑩鉄粉混合!$IY$32 -> 9990.461016 | L13: =環境負荷⑩鉄粉混合!$IZ$32 -> 5343.331497 | M13: =環境負荷⑩鉄粉混合!$JA$32 -> 218.6959404 | N13: =環境負荷⑩鉄粉混合!$JB$32 -> 56884.54296 | P13: =環境負荷⑩鉄粉混合!$JC$32 -> 6333.497811 | Q13: 249002.6579 | R13: 249002.6579
B14: 11 | C14: 揚水 | D14: ⑪揚水 | E14: =環境負荷⑪揚水!$IS$49 -> 4972.90715 | F14: =環境負荷⑪揚水!$IT$49 -> 10.35267695 | G14: =環境負荷⑪揚水!$IU$49 -> 817.740548 | H14: =環境負荷⑪揚水!$IV$49 -> 0.008212110155 | I14: =環境負荷⑪揚水!$IW$49 -> 5.29469055 | J14: =環境負荷⑪揚水!$IX$49 -> 1.978410856 | K14: =環境負荷⑪揚水!$IY$49 -> 116.9610258 | L14: =環境負荷⑪揚水!$IZ$49 -> 43.59452514 | M14: =環境負荷⑪揚水!$JA$49 -> 1.803827402 | N14: =環境負荷⑪揚水!$JB$49 -> 1991.199862 | P14: =環境負荷⑪揚水!$JC$49 -> 115.7583435 | Q14: 8077.599272 | R14: 8077.599272
B15: 12 | C15: 嫌気バイオ | D15: ⑫嫌気バイオ | E15: =環境負荷⑫嫌気バイオ!$IS$81 -> 5423.912916 | F15: =環境負荷⑫嫌気バイオ!$IT$81 -> 11.16736531 | G15: =環境負荷⑫嫌気バイオ!$IU$81 -> 917.8487875 | H15: =環境負荷⑫嫌気バイオ!$IV$81 -> 0.009578072362 | I15: =環境負荷⑫嫌気バイオ!$IW$81 -> 5.753493213 | J15: =環境負荷⑫嫌気バイオ!$IX$81 -> 2.307257988 | K15: =環境負荷⑫嫌気バイオ!$IY$81 -> 130.8993407 | L15: =環境負荷⑫嫌気バイオ!$IZ$81 -> 50.84419302 | M15: =環境負荷⑫嫌気バイオ!$JA$81 -> 2.103518219 | N15: =環境負荷⑫嫌気バイオ!$JB$81 -> 2182.754846 | P15: =環境負荷⑫嫌気バイオ!$JC$81 -> 138.6922244 | Q15: 8866.29352 | R15: 8866.29352
... 11 more rows

Sheet 評価結果 (重金属)
E2: サイト名 | F2: =IF(基本データ入力_共通!R2=0,"",基本データ入力_共通!R2) ->  | M2: 作成日 | N2: =IF(基本データ入力_共通!W2=0,"",基本データ入力_共通!W2) -> 
E3: 作成者 | F3: =IF(基本データ入力_共通!R3=0,"",基本データ入力_共通!R3) ->  | M3: 備考欄 | N3: =IF(基本データ入力_共通!W3=0,"",基本データ入力_共通!W3) -> 
B5: 表１ 統合化結果（無次元、重金属）
B6: 工法 | E6: 地球温暖化 | F6: 酸性化 | G6: 都市域大気汚染 | H6: 光化学オキシダント | I6: 有害化学物質 | J6: 有害化学物質 | K6: 水生生態毒性、陸生生態毒性 | L6: 水生生態毒性、陸生生態毒性 | M6: 富栄養化 | N6: 資源消費 | P6: 廃棄物 | Q6: 合計 （指数表示） | R6: 合計 （実数表示）
B7: 1 | C7: 掘削除去セメント | D7: ①掘削除去（セメント） | E7: ='環境負荷①掘削除去(ｾﾒﾝﾄ)'!IS$90 -> 2518.689371 | F7: ='環境負荷①掘削除去(ｾﾒﾝﾄ)'!IT$90 -> 5.874871664 | G7: ='環境負荷①掘削除去(ｾﾒﾝﾄ)'!IU$90 -> 435.507058 | H7: ='環境負荷①掘削除去(ｾﾒﾝﾄ)'!IV$90 -> 0.007469744184 | I7: ='環境負荷①掘削除去(ｾﾒﾝﾄ)'!IW$90 -> 2.837244091 | J7: ='環境負荷①掘削除去(ｾﾒﾝﾄ)'!IX$90 -> 1.801389005 | K7: ='環境負荷①掘削除去(ｾﾒﾝﾄ)'!IY$90 -> 80.44888059 | L7: ='環境負荷①掘削除去(ｾﾒﾝﾄ)'!IZ$90 -> 39.66606246 | M7: ='環境負荷①掘削除去(ｾﾒﾝﾄ)'!JA$90 -> 1.643563067 | N7: ='環境負荷①掘削除去(ｾﾒﾝﾄ)'!JB$90 -> 1028.954692 | O7: ='環境負荷①掘削除去(ｾﾒﾝﾄ)'!JC$90 -> 65.98795648 | P7: ='環境負荷①掘削除去(ｾﾒﾝﾄ)'!JC$90 -> 65.98795648 | Q7: =SUM(E7:P7) -> 4247.406514 | R7: =Q7 -> 4247.406514
B8: 2 | C8: 掘削除去埋立 | D8: ②掘削除去（埋立） | E8: ='環境負荷②掘削除去(埋立)'!$IS$90 -> 2518.689371 | F8: ='環境負荷②掘削除去(埋立)'!$IT$90 -> 5.874871664 | G8: ='環境負荷②掘削除去(埋立)'!$IU$90 -> 435.507058 | H8: ='環境負荷②掘削除去(埋立)'!$IV$90 -> 0.007469744184 | I8: ='環境負荷②掘削除去(埋立)'!$IW$90 -> 2.837244091 | J8: ='環境負荷②掘削除去(埋立)'!$IX$90 -> 1.801389005 | K8: ='環境負荷②掘削除去(埋立)'!$IY$90 -> 80.44888059 | L8: ='環境負荷②掘削除去(埋立)'!$IZ$90 -> 39.66606246 | M8: ='環境負荷②掘削除去(埋立)'!$JA$90 -> 1.643563067 | N8: ='環境負荷②掘削除去(埋立)'!$JB$90 -> 1028.954692 | P8: ='環境負荷②掘削除去(埋立)'!$JC$90 -> 65.98795648 | Q8: 4181.418558 | R8: =Q8 -> 4181.418558
B9: 3 | C9: 掘削除去洗浄 | D9: ③掘削除去（洗浄） | E9: ='環境負荷③掘削除去(洗浄)'!$IS$108 -> 2790.474823 | F9: ='環境負荷③掘削除去(洗浄)'!$IT$108 -> 6.5578992 | G9: ='環境負荷③掘削除去(洗浄)'!$IU$108 -> 480.8488242 | H9: ='環境負荷③掘削除去(洗浄)'!$IV$108 -> 0.007489366733 | I9: ='環境負荷③掘削除去(洗浄)'!$IW$108 -> 4.839934842 | J9: ='環境負荷③掘削除去(洗浄)'!$IX$108 -> 1.806135657 | K9: ='環境負荷③掘削除去(洗浄)'!$IY$108 -> 106.7335513 | L9: ='環境負荷③掘削除去(洗浄)'!$IZ$108 -> 39.77056754 | M9: ='環境負荷③掘削除去(洗浄)'!$JA$108 -> 1.647880599 | N9: ='環境負荷③掘削除去(洗浄)'!$JB$108 -> 1094.307862 | O9: ='環境負荷③掘削除去(洗浄)'!$IS$108 -> 2790.474823 | P9: ='環境負荷③掘削除去(洗浄)'!$JC$108 -> 79.98433235 | Q9: 7397.454124 | R9: 7397.454124
B10: 5 | C10: 掘削除去不溶化 | D10: ⑤掘削除去（不溶化） | E10: ='環境負荷⑤掘削除去(不溶化)'!$IS$127 -> 7543.005252 | F10: ='環境負荷⑤掘削除去(不溶化)'!$IT$127 -> 19.13877943 | G10: ='環境負荷⑤掘削除去(不溶化)'!$IU$127 -> 1393.668512 | H10: ='環境負荷⑤掘削除去(不溶化)'!$IV$127 -> 0.03157072112 | I10: ='環境負荷⑤掘削除去(不溶化)'!$IW$127 -> 10.07853231 | J10: ='環境負荷⑤掘削除去(不溶化)'!$IX$127 -> 7.615950381 | K10: ='環境負荷⑤掘削除去(不溶化)'!$IY$127 -> 314.9267688 | L10: ='環境負荷⑤掘削除去(不溶化)'!$IZ$127 -> 167.6678036 | M10: ='環境負荷⑤掘削除去(不溶化)'!$JA$127 -> 6.949908707 | N10: ='環境負荷⑤掘削除去(不溶化)'!$JB$127 -> 3663.939907 | O10: ='環境負荷⑤掘削除去(不溶化)'!$IS$127 -> 7543.005252 | P10: ='環境負荷⑤掘削除去(不溶化)'!$JC$127 -> 252.0261892 | Q10: 20922.05443 | R10: 20922.05443
B11: 6 | C11: 原位置封じ込め（鋼矢板＋コンクリート） | D11: ⑥原位置封じ込め（鋼矢板＋コンクリート） | E11: ='環境負荷⑥封じ込め(鋼矢板+コンクリート)'!$IS$59 -> 10188.50751 | F11: ='環境負荷⑥封じ込め(鋼矢板+コンクリート)'!$IT$59 -> 25.12089887 | G11: ='環境負荷⑥封じ込め(鋼矢板+コンクリート)'!$IU$59 -> 1779.838112 | H11: ='環境負荷⑥封じ込め(鋼矢板+コンクリート)'!$IV$59 -> 0.04211063869 | I11: ='環境負荷⑥封じ込め(鋼矢板+コンクリート)'!$IW$59 -> 13.78475755 | J11: ='環境負荷⑥封じ込め(鋼矢板+コンクリート)'!$IX$59 -> 10.19740066 | K11: ='環境負荷⑥封じ込め(鋼矢板+コンクリート)'!$IY$59 -> 424.5677912 | L11: ='環境負荷⑥封じ込め(鋼矢板+コンクリート)'!$IZ$59 -> 224.6634029 | M11: ='環境負荷⑥封じ込め(鋼矢板+コンクリート)'!$JA$59 -> 9.263720313 | N11: ='環境負荷⑥封じ込め(鋼矢板+コンクリート)'!$JB$59 -> 4084.642306 | O11: ='環境負荷⑥封じ込め(鋼矢板+コンクリート)'!$IS$59 -> 10188.50751 | P11: ='環境負荷⑥封じ込め(鋼矢板+コンクリート)'!$JC$59 -> 352.0623578 | Q11: 27301.19787 | R11: 27301.19787
B12: 7 | C12: 原位置封じ込め（鋼矢板＋アスファルト） | D12: ⑦原位置封じ込め（鋼矢板＋アスファルト） | E12: ='環境負荷⑦封じ込め(鋼矢板+アスファルト)'!$IS$52 -> 9116.698541 | F12: ='環境負荷⑦封じ込め(鋼矢板+アスファルト)'!$IT$52 -> 22.10261512 | G12: ='環境負荷⑦封じ込め(鋼矢板+アスファルト)'!$IU$52 -> 1540.685994 | H12: ='環境負荷⑦封じ込め(鋼矢板+アスファルト)'!$IV$52 -> 0.03774024971 | I12: ='環境負荷⑦封じ込め(鋼矢板+アスファルト)'!$IW$52 -> 12.35823587 | J12: ='環境負荷⑦封じ込め(鋼矢板+アスファルト)'!$IX$52 -> 9.142756127 | K12: ='環境負荷⑦封じ込め(鋼矢板+アスファルト)'!$IY$52 -> 380.5673742 | L12: ='環境負荷⑦封じ込め(鋼矢板+アスファルト)'!$IZ$52 -> 201.4455815 | M12: ='環境負荷⑦封じ込め(鋼矢板+アスファルト)'!$JA$52 -> 8.30147174 | N12: ='環境負荷⑦封じ込め(鋼矢板+アスファルト)'!$JB$52 -> 4244.083746 | O12: ='環境負荷⑦封じ込め(鋼矢板+アスファルト)'!$IS$52 -> 9116.698541 | P12: ='環境負荷⑦封じ込め(鋼矢板+アスファルト)'!$JC$52 -> 285.5270473 | Q12: 24937.64964 | R12: 24937.64964
B13: 8 | C13: 原位置封じ込め（柱列壁＋コンクリート） | D13: ⑧原位置封じ込め（柱列壁＋コンクリート） | E13: ='環境負荷⑧封じ込め(柱列壁+コンクリート)'!$IS$91 -> 38175.75434 | F13: ='環境負荷⑧封じ込め(柱列壁+コンクリート)'!$IT$91 -> 95.23164194 | G13: ='環境負荷⑧封じ込め(柱列壁+コンクリート)'!$IU$91 -> 6727.775092 | H13: ='環境負荷⑧封じ込め(柱列壁+コンクリート)'!$IV$91 -> 0.2220257332 | I13: ='環境負荷⑧封じ込め(柱列壁+コンクリート)'!$IW$91 -> 71.29808712 | J13: ='環境負荷⑧封じ込め(柱列壁+コンクリート)'!$IX$91 -> 53.92972281 | K13: ='環境負荷⑧封じ込め(柱列壁+コンクリート)'!$IY$91 -> 2220.562815 | L13: ='環境負荷⑧封じ込め(柱列壁+コンクリート)'!$IZ$91 -> 1188.805315 | M13: ='環境負荷⑧封じ込め(柱列壁+コンクリート)'!$JA$91 -> 48.81791423 | N13: ='環境負荷⑧封じ込め(柱列壁+コンクリート)'!$JB$91 -> 15251.77695 | O13: ='環境負荷⑧封じ込め(柱列壁+コンクリート)'!$IS$91 -> 38175.75434 | P13: ='環境負荷⑧封じ込め(柱列壁+コンクリート)'!$JC$91 -> 1513.17252 | Q13: 103523.1008 | R13: 103523.1008
B14: 9 | C14: 原位置封じ込め（柱列壁＋アスファルト） | D14: ⑨原位置封じ込め（柱列壁＋アスファルト） | E14: ='環境負荷⑨封じ込め(柱列壁+アスファルト)'!$IS$84 -> 37103.94538 | F14: ='環境負荷⑨封じ込め(柱列壁+アスファルト)'!$IT$84 -> 92.21335819 | G14: ='環境負荷⑨封じ込め(柱列壁+アスファルト)'!$IU$84 -> 6488.622973 | H14: ='環境負荷⑨封じ込め(柱列壁+アスファルト)'!$IV$84 -> 0.2176553442 | I14: ='環境負荷⑨封じ込め(柱列壁+アスファルト)'!$IW$84 -> 69.87156544 | J14: ='環境負荷⑨封じ込め(柱列壁+アスファルト)'!$IX$84 -> 52.87507828 | K14: ='環境負荷⑨封じ込め(柱列壁+アスファルト)'!$IY$84 -> 2176.562398 | L14: ='環境負荷⑨封じ込め(柱列壁+アスファルト)'!$IZ$84 -> 1165.587493 | M14: ='環境負荷⑨封じ込め(柱列壁+アスファルト)'!$JA$84 -> 47.85566566 | N14: ='環境負荷⑨封じ込め(柱列壁+アスファルト)'!$JB$84 -> 15411.21839 | O14: ='環境負荷⑨封じ込め(柱列壁+アスファルト)'!$IS$84 -> 37103.94538 | P14: ='環境負荷⑨封じ込め(柱列壁+アスファルト)'!$JC$84 -> 1446.63721 | Q14: 101159.5525 | R14: 101159.5525
B15: 14 | C15: 舗装（コンクリート） | D15: ⑭舗装（コンクリート） | E15: ='環境負荷⑭舗装(コンクリート)'!$IS$46 -> 5581.026609 | F15: ='環境負荷⑭舗装(コンクリート)'!$IT$46 -> 14.16958274 | G15: ='環境負荷⑭舗装(コンクリート)'!$IU$46 -> 1058.786115 | H15: ='環境負荷⑭舗装(コンクリート)'!$IV$46 -> 0.0216164286 | I15: ='環境負荷⑭舗装(コンクリート)'!$IW$46 -> 7.220814928 | J15: ='環境負荷⑭舗装(コンクリート)'!$IX$46 -> 5.214756241 | K15: ='環境負荷⑭舗装(コンクリート)'!$IY$46 -> 219.8194721 | L15: ='環境負荷⑭舗装(コンクリート)'!$IZ$46 -> 114.8092045 | M15: ='環境負荷⑭舗装(コンクリート)'!$JA$46 -> 4.758274321 | N15: ='環境負荷⑭舗装(コンクリート)'!$JB$46 -> 2242.797603 | O15: ='環境負荷⑭舗装(コンクリート)'!$IS$46 -> 5581.026609 | P15: ='環境負荷⑭舗装(コンクリート)'!$JC$46 -> 220.0422174 | Q15: 15049.69287 | R15: 15049.69287
... 14 more rows

Sheet 評価結果 (重金属、VOC)
E2: サイト名 | F2: =IF(基本データ入力_共通!R2=0,"",基本データ入力_共通!R2) ->  | M2: 作成日 | N2: =IF(基本データ入力_共通!W2=0,"",基本データ入力_共通!W2) -> 
E3: 作成者 | F3: =IF(基本データ入力_共通!R3=0,"",基本データ入力_共通!R3) ->  | M3: 備考欄 | N3: =IF(基本データ入力_共通!W3=0,"",基本データ入力_共通!W3) -> 
B5: 表１ 統合化結果（無次元、重金属+VOC）
B6: 工法 | E6: 地球温暖化 | F6: 酸性化 | G6: 都市域大気汚染 | H6: 光化学オキシダント | I6: 有害化学物質 | J6: 有害化学物質 | K6: 水生生態毒性、陸生生態毒性 | L6: 水生生態毒性、陸生生態毒性 | M6: 富栄養化 | N6: 資源消費 | P6: 廃棄物 | Q6: 合計 （指数表示） | R6: 合計 （実数表示）
B7: 2 | C7: 掘削除去埋立 | D7: ②掘削除去（埋立） | E7: ='環境負荷②掘削除去(埋立)'!$IS$90 -> 2518.689371 | F7: ='環境負荷②掘削除去(埋立)'!$IT$90 -> 5.874871664 | G7: ='環境負荷②掘削除去(埋立)'!$IU$90 -> 435.507058 | H7: ='環境負荷②掘削除去(埋立)'!$IV$90 -> 0.007469744184 | I7: ='環境負荷②掘削除去(埋立)'!$IW$90 -> 2.837244091 | J7: ='環境負荷②掘削除去(埋立)'!$IX$90 -> 1.801389005 | K7: ='環境負荷②掘削除去(埋立)'!$IY$90 -> 80.44888059 | L7: ='環境負荷②掘削除去(埋立)'!$IZ$90 -> 39.66606246 | M7: ='環境負荷②掘削除去(埋立)'!$JA$90 -> 1.643563067 | N7: ='環境負荷②掘削除去(埋立)'!$JB$90 -> 1028.954692 | O7: ='環境負荷②掘削除去(埋立)'!$IS$90 -> 2518.689371 | P7: ='環境負荷②掘削除去(埋立)'!$JC$90 -> 65.98795648 | Q7: =SUM(E7:P7) -> 6700.107929 | R7: =Q7 -> 6700.107929
B8: 6 | C8: 原位置封じ込め（鋼矢板＋コンクリート） | D8: ⑥原位置封じ込め（鋼矢板＋コンクリート） | E8: ='環境負荷⑥封じ込め(鋼矢板+コンクリート)'!$IS$59 -> 10188.50751 | F8: ='環境負荷⑥封じ込め(鋼矢板+コンクリート)'!$IT$59 -> 25.12089887 | G8: ='環境負荷⑥封じ込め(鋼矢板+コンクリート)'!$IU$59 -> 1779.838112 | H8: ='環境負荷⑥封じ込め(鋼矢板+コンクリート)'!$IV$59 -> 0.04211063869 | I8: ='環境負荷⑥封じ込め(鋼矢板+コンクリート)'!$IW$59 -> 13.78475755 | J8: ='環境負荷⑥封じ込め(鋼矢板+コンクリート)'!$IX$59 -> 10.19740066 | K8: ='環境負荷⑥封じ込め(鋼矢板+コンクリート)'!$IY$59 -> 424.5677912 | L8: ='環境負荷⑥封じ込め(鋼矢板+コンクリート)'!$IZ$59 -> 224.6634029 | M8: ='環境負荷⑥封じ込め(鋼矢板+コンクリート)'!$JA$59 -> 9.263720313 | N8: ='環境負荷⑥封じ込め(鋼矢板+コンクリート)'!$JB$59 -> 4084.642306 | O8: ='環境負荷⑥封じ込め(鋼矢板+コンクリート)'!$IS$59 -> 10188.50751 | P8: ='環境負荷⑥封じ込め(鋼矢板+コンクリート)'!$JC$59 -> 352.0623578 | Q8: 27301.19787 | R8: =Q8 -> 27301.19787
B9: 7 | C9: 原位置封じ込め（鋼矢板＋アスファルト） | D9: ⑦原位置封じ込め（鋼矢板＋アスファルト） | E9: ='環境負荷⑦封じ込め(鋼矢板+アスファルト)'!$IS$52 -> 9116.698541 | F9: ='環境負荷⑦封じ込め(鋼矢板+アスファルト)'!$IT$52 -> 22.10261512 | G9: ='環境負荷⑦封じ込め(鋼矢板+アスファルト)'!$IU$52 -> 1540.685994 | H9: ='環境負荷⑦封じ込め(鋼矢板+アスファルト)'!$IV$52 -> 0.03774024971 | I9: ='環境負荷⑦封じ込め(鋼矢板+アスファルト)'!$IW$52 -> 12.35823587 | J9: ='環境負荷⑦封じ込め(鋼矢板+アスファルト)'!$IX$52 -> 9.142756127 | K9: ='環境負荷⑦封じ込め(鋼矢板+アスファルト)'!$IY$52 -> 380.5673742 | L9: ='環境負荷⑦封じ込め(鋼矢板+アスファルト)'!$IZ$52 -> 201.4455815 | M9: ='環境負荷⑦封じ込め(鋼矢板+アスファルト)'!$JA$52 -> 8.30147174 | N9: ='環境負荷⑦封じ込め(鋼矢板+アスファルト)'!$JB$52 -> 4244.083746 | O9: ='環境負荷⑦封じ込め(鋼矢板+アスファルト)'!$IS$52 -> 9116.698541 | P9: ='環境負荷⑦封じ込め(鋼矢板+アスファルト)'!$JC$52 -> 285.5270473 | Q9: 24937.64964 | R9: 24937.64964
B10: 8 | C10: 原位置封じ込め（柱列壁＋コンクリート） | D10: ⑧原位置封じ込め（柱列壁＋コンクリート） | E10: ='環境負荷⑧封じ込め(柱列壁+コンクリート)'!$IS$91 -> 38175.75434 | F10: ='環境負荷⑧封じ込め(柱列壁+コンクリート)'!$IT$91 -> 95.23164194 | G10: ='環境負荷⑧封じ込め(柱列壁+コンクリート)'!$IU$91 -> 6727.775092 | H10: ='環境負荷⑧封じ込め(柱列壁+コンクリート)'!$IV$91 -> 0.2220257332 | I10: ='環境負荷⑧封じ込め(柱列壁+コンクリート)'!$IW$91 -> 71.29808712 | J10: ='環境負荷⑧封じ込め(柱列壁+コンクリート)'!$IX$91 -> 53.92972281 | K10: ='環境負荷⑧封じ込め(柱列壁+コンクリート)'!$IY$91 -> 2220.562815 | L10: ='環境負荷⑧封じ込め(柱列壁+コンクリート)'!$IZ$91 -> 1188.805315 | M10: ='環境負荷⑧封じ込め(柱列壁+コンクリート)'!$JA$91 -> 48.81791423 | N10: ='環境負荷⑧封じ込め(柱列壁+コンクリート)'!$JB$91 -> 15251.77695 | O10: ='環境負荷⑧封じ込め(柱列壁+コンクリート)'!$IS$91 -> 38175.75434 | P10: ='環境負荷⑧封じ込め(柱列壁+コンクリート)'!$JC$91 -> 1513.17252 | Q10: 103523.1008 | R10: 103523.1008
B11: 9 | C11: 原位置封じ込め（柱列壁＋アスファルト） | D11: ⑨原位置封じ込め（柱列壁＋アスファルト） | E11: ='環境負荷⑨封じ込め(柱列壁+アスファルト)'!$IS$84 -> 37103.94538 | F11: ='環境負荷⑨封じ込め(柱列壁+アスファルト)'!$IT$84 -> 92.21335819 | G11: ='環境負荷⑨封じ込め(柱列壁+アスファルト)'!$IU$84 -> 6488.622973 | H11: ='環境負荷⑨封じ込め(柱列壁+アスファルト)'!$IV$84 -> 0.2176553442 | I11: ='環境負荷⑨封じ込め(柱列壁+アスファルト)'!$IW$84 -> 69.87156544 | J11: ='環境負荷⑨封じ込め(柱列壁+アスファルト)'!$IX$84 -> 52.87507828 | K11: ='環境負荷⑨封じ込め(柱列壁+アスファルト)'!$IY$84 -> 2176.562398 | L11: ='環境負荷⑨封じ込め(柱列壁+アスファルト)'!$IZ$84 -> 1165.587493 | M11: ='環境負荷⑨封じ込め(柱列壁+アスファルト)'!$JA$84 -> 47.85566566 | N11: ='環境負荷⑨封じ込め(柱列壁+アスファルト)'!$JB$84 -> 15411.21839 | O11: ='環境負荷⑨封じ込め(柱列壁+アスファルト)'!$IS$84 -> 37103.94538 | P11: ='環境負荷⑨封じ込め(柱列壁+アスファルト)'!$JC$84 -> 1446.63721 | Q11: 101159.5525 | R11: 101159.5525
B12: 19 | C12: 土壌入換え（区域外_埋立） | D12: ⑲土壌入換え（区域外_埋立） | E12: ='環境負荷⑲土壌入換え(区域外_埋立)'!$IS$90 -> 2519.440196 | F12: ='環境負荷⑲土壌入換え(区域外_埋立)'!$IT$90 -> 5.876912525 | G12: ='環境負荷⑲土壌入換え(区域外_埋立)'!$IU$90 -> 435.6620065 | H12: ='環境負荷⑲土壌入換え(区域外_埋立)'!$IV$90 -> 0.007469746804 | I12: ='環境負荷⑲土壌入換え(区域外_埋立)'!$IW$90 -> 2.837511392 | J12: ='環境負荷⑲土壌入換え(区域外_埋立)'!$IX$90 -> 1.801389638 | K12: ='環境負荷⑲土壌入換え(区域外_埋立)'!$IY$90 -> 80.45238788 | L12: ='環境負荷⑲土壌入換え(区域外_埋立)'!$IZ$90 -> 39.66607641 | M12: ='環境負荷⑲土壌入換え(区域外_埋立)'!$JA$90 -> 1.643571622 | N12: ='環境負荷⑲土壌入換え(区域外_埋立)'!$JB$90 -> 1029.251575 | O12: ='環境負荷⑲土壌入換え(区域外_埋立)'!$IS$90 -> 2519.440196 | P12: ='環境負荷⑲土壌入換え(区域外_埋立)'!$JC$90 -> 68.60422028 | Q12: 6704.683512 | R12: 6704.683512
B13: 21 | C13: 遮水工封じ込め（遮水工+コンクリート） | D13: ㉑遮水工封じ込め(遮水工＋コンクリート） | E13: ='環境負荷㉑遮水工封じ込め(コンクリート)'!$IS$67 -> 7081.485214 | F13: ='環境負荷㉑遮水工封じ込め(コンクリート)'!$IT$67 -> 17.96757278 | G13: ='環境負荷㉑遮水工封じ込め(コンクリート)'!$IU$67 -> 1320.636246 | H13: ='環境負荷㉑遮水工封じ込め(コンクリート)'!$IV$67 -> 0.02732586806 | I13: ='環境負荷㉑遮水工封じ込め(コンクリート)'!$IW$67 -> 8.928482211 | J13: ='環境負荷㉑遮水工封じ込め(コンクリート)'!$IX$67 -> 6.592162203 | K13: ='環境負荷㉑遮水工封じ込め(コンクリート)'!$IY$67 -> 275.2652149 | L13: ='環境負荷㉑遮水工封じ込め(コンクリート)'!$IZ$67 -> 145.1312551 | M13: ='環境負荷㉑遮水工封じ込め(コンクリート)'!$JA$67 -> 6.015328716 | N13: ='環境負荷㉑遮水工封じ込め(コンクリート)'!$JB$67 -> 2863.007304 | O13: ='環境負荷㉑遮水工封じ込め(コンクリート)'!$IS$67 -> 7081.485214 | P13: ='環境負荷㉑遮水工封じ込め(コンクリート)'!$JC$67 -> 259.3109922 | Q13: 19065.85231 | R13: 19065.85231
B14: 22 | C14: 遮水工封じ込め（遮水工+アスファルト） | D14: ㉒遮水工封じ込め（遮水工＋アスファルト） | E14: ='環境負荷㉒遮水工封じ込め(アスファルト)'!$IS$60 -> 6009.676246 | F14: ='環境負荷㉒遮水工封じ込め(アスファルト)'!$IT$60 -> 14.94928903 | G14: ='環境負荷㉒遮水工封じ込め(アスファルト)'!$IU$60 -> 1081.484127 | H14: ='環境負荷㉒遮水工封じ込め(アスファルト)'!$IV$60 -> 0.02295547908 | I14: ='環境負荷㉒遮水工封じ込め(アスファルト)'!$IW$60 -> 7.501960526 | J14: ='環境負荷㉒遮水工封じ込め(アスファルト)'!$IX$60 -> 5.537517671 | K14: ='環境負荷㉒遮水工封じ込め(アスファルト)'!$IY$60 -> 231.2647979 | L14: ='環境負荷㉒遮水工封じ込め(アスファルト)'!$IZ$60 -> 121.9134337 | M14: ='環境負荷㉒遮水工封じ込め(アスファルト)'!$JA$60 -> 5.053080143 | N14: ='環境負荷㉒遮水工封じ込め(アスファルト)'!$JB$60 -> 3022.448744 | O14: ='環境負荷㉒遮水工封じ込め(アスファルト)'!$IS$60 -> 6009.676246 | P14: ='環境負荷㉒遮水工封じ込め(アスファルト)'!$JC$60 -> 192.7756818 | Q14: 16702.30408 | R14: 16702.30408
... 11 more rows

Sheet 統合化結果（重み付けを変更したい場合） (hidden)
D2: サイト名 | F2: =IF(基本データ入力_共通!R2=0,"",基本データ入力_共通!R2) ->  | K2: 作成日 | L2: =IF(基本データ入力_共通!W2=0,"",基本データ入力_共通!W2) -> 
D3: 作成者 | F3: =IF(基本データ入力_共通!R3=0,"",基本データ入力_共通!R3) ->  | J3: 備考欄 | K3: =IF(基本データ入力_共通!W3=0,"",基本データ入力_共通!W3) -> 
C5: ■統合化結果（無次元）
E6: 項目間の | F6: 項目間の | G6: 項目間の | H6: 掘削・場外搬出 | J6: 掘削・ｵﾝｻｲﾄ | L6: 原位置封じ込め | P6: 鉄粉混合 | Q6: 揚水 | R6: 嫌気 ﾊﾞｲｵ | S6: ﾌｪﾝﾄﾝ | T6: 舗装 | V6: 盛土 | W6: 土壌入換え | Z6: 遮水工封じ込め
E7: 重み付け | F7: 重み付け | G7: 重み付け | L7: 鋼矢板 | N7: 柱列壁 | W7: 区域内 | X7: 区域外
E8: 設定 | F8: 設定 | G8: 係数 | H8: ｾﾒﾝﾄ | I8: 洗浄 | J8: 生石灰 混合 | K8: 不溶化 | L8: ｺﾝｸﾘｰﾄ | M8: ｱｽﾌｧﾙﾄ | N8: ｺﾝｸﾘｰﾄ | O8: ｱｽﾌｧﾙﾄ | T8: ｺﾝｸﾘｰﾄ | U8: ｱｽﾌｧﾙﾄ | X8: ｾﾒﾝﾄ | Y8: 洗浄 | Z8: ｺﾝｸﾘｰﾄ | AA8: ｱｽﾌｧﾙﾄ
D9: 地球温暖化 | E9: 1 | F9: 1 | G9: =F9*E$20/F$20 -> 1 | H9: =(H26*$F70+H47*$F72*10^6)*$G9 -> 908.000047 | I9: =(I26*$F70+I47*$F72*10^6)*$G9 -> 1005.979996 | J9: 4471.661627 | K9: 2719.28732 | L9: 3672.9971 | M9: 3286.600509 | N9: 13762.44559 | O9: 13376.049 | P9: 52057.58617 | Q9: 1792.757565 | R9: 1955.34735 | S9: 69410.7426 | T9: 2011.988258 | U9: 1625.591667 | V9: 1012.631549 | W9: 908.000047 | X9: 911.8203989 | Y9: 1105.394283 | Z9: 2552.911098 | AA9: 2166.514507
D10: 光化学オキシダント | E10: 1 | F10: 1 | G10: =F10*E$20/F$20 -> 1 | H10: =(H27*$F70+H37*$F71*10^3+H48*$F72*10^6)*$G10 -> 0.00268378015 | I10: =(I27*$F70+I37*$F71*10^3+I48*$F72*10^6)*$G10 -> 0.002690830272 | J10: 0.01887540206 | K10: 0.01134294195 | L10: 0.01512979474 | M10: 0.01355957186 | N10: 0.07977090526 | O10: 0.07820068239 | P10: 0.3575119432 | Q10: 0.002950502411 | R10: 0.00344127454 | S10: 0.007866738317 | T10: 0.007766496491 | U10: 0.006196273616 | V10: 0.002987491947 | W10: 0.00268378015 | X10: 0.002683796119 | Y10: 0.003001443738 | Z10: 0.009817822471 | AA10: 0.008247599595
D11: 資源消費 | E11: 1 | F11: 1 | G11: 1 | H11: =(H38*$F71*10^3+H49*$F72*10^6+H59*$F73*10^-6)*$G11 -> 369.6716388 | I11: =(I38*$F71*10^3+I49*$F72*10^6+I59*$F73*10^-6)*$G11 -> 393.1447173 | J11: 2009.100895 | K11: 1316.325602 | L11: 1467.472366 | M11: 1524.785135 | N11: 5479.411013 | O11: 5536.723781 | P11: 20436.70108 | Q11: 715.3963378 | R11: 784.2163272 | S11: 52716.58473 | T11: 805.7417417 | U11: 863.0545105 | V11: 412.4833782 | W11: 369.6716388 | X11: 370.3410453 | Y11: 434.2571805 | Z11: 1028.560322 | AA11: 1085.873091
D12: 酸性化 | E12: 1 | F12: 1 | G12: 1 | H12: =(H39*$F71*10^3+H50*$F72*10^6)*$G12 -> 18.52520599 | I12: =(I39*$F71*10^3+I50*$F72*10^6)*$G12 -> 20.67988094 | J12: 96.85294337 | K12: 60.34508382 | L12: 79.20798656 | M12: 69.69142024 | N12: 300.2208774 | O12: 290.7043111 | P12: 1120.201886 | Q12: 32.64742421 | R12: 35.21473281 | S12: 1802.117956 | T12: 44.67760179 | U12: 35.16103547 | V12: 20.7520916 | W12: 18.52520599 | X12: 18.74738947 | Y12: 22.84961152 | Z12: 56.65373513 | AA12: 47.13716881
D13: 廃棄物 | E13: 1 | F13: 1 | G13: 1 | H13: =(H40*$F71*10^3+H51*$F72*10^6+H60*$F73*10^-6)*$G13 -> 23.70376641 | I13: =(I40*$F71*10^3+I51*$F72*10^6+I60*$F73*10^-6)*$G13 -> 28.73143314 | J13: 141.0624598 | K13: 90.5312185 | L13: 126.4655671 | M13: 102.5651816 | N13: 543.5520656 | O13: 519.6516801 | P13: 2275.078221 | Q13: 41.58196005 | R13: 49.82012089 | S13: 2426.936292 | T13: 79.04214433 | U13: 55.14175885 | V13: 25.79853211 | W13: 23.70376641 | X13: 23.70728738 | Y13: 31.10078901 | Z13: 93.14801976 | AA13: 69.24763427
D14: 富栄養化 | E14: 1 | F14: 1 | G14: 1 | H14: =(H52*$F72*10^6)*$G14 -> 1.021214915 | I14: =(I52*$F72*10^6)*$G14 -> 1.077623953 | J14: 6.508185036 | K14: 3.922340113 | L14: 5.243496692 | M14: 4.690336909 | N14: 24.81470278 | O14: 24.261543 | P14: 105.8940031 | Q14: 1.362170405 | R14: 1.493929948 | S14: 42.51805788 | T14: 2.740721604 | U14: 2.187561821 | V14: 1.145079514 | W14: 1.021214915 | X14: 1.024622219 | Y14: 1.200449095 | Z14: 3.488439306 | AA14: 2.935279523
D15: 生態毒性（大気） | E15: 1 | F15: 1 | G15: 1 | H15: =(H61*$F73*10^-6)*$G15 -> 28.86302296 | I15: =(I61*$F73*10^-6)*$G15 -> 38.29329779 | J15: 189.029857 | K15: 112.9877568 | L15: 152.3241817 | M15: 136.5379454 | N15: 796.6817567 | O15: 780.8955203 | P15: 3584.32465 | Q15: 41.96265688 | R15: 46.96337162 | S15: 13615.71374 | T15: 78.86566506 | U15: 63.07942868 | V15: 31.82804444 | W15: 28.86302296 | X15: 28.88443016 | Y15: 41.3648169 | Z15: 98.75819477 | AA15: 82.97195839
... 16 more rows

Sheet 原単位リスト(multi)
A1: 種類 | B1: 名称 | C1: 土壌・地下水汚染 | D1: 単位 | E1: 備考
C2: 対策での使用例
A8: ｴﾈﾙｷﾞｰ | B8: ガソリン | C8: 燃料（ガソリン） | D8: ［-/L］ | E8: ガソリンの燃焼（単位：MJ）をLに換算
A9: ｴﾈﾙｷﾞｰ | B9: ジェット燃料油 | C9: 燃料 | D9: ［-/L］ | E9: ジェット燃料油の燃焼（単位：MJ）をLに換算
A10: ｴﾈﾙｷﾞｰ | B10: 灯油 | C10: 燃料 | D10: ［-/L］ | E10: 灯油の燃焼（単位：MJ）をLに換算
A11: ｴﾈﾙｷﾞｰ | B11: 軽油 | C11: 燃料 | D11: ［-/L］ | E11: 軽油の燃焼（単位：MJ）をLに換算
A12: ｴﾈﾙｷﾞｰ | B12: Ａ重油 | C12: 燃料 | D12: ［-/L］ | E12: A重油の燃焼（単位：MJ）をLに換算
A13: ｴﾈﾙｷﾞｰ | B13: Ｂ重油 | C13: 燃料 | D13: ［-/L］ | E13: B重油の燃焼（単位：MJ）をLに換算
A14: ｴﾈﾙｷﾞｰ | B14: Ｃ重油 | C14: 燃料 | D14: ［-/L］ | E14: C重油の燃焼（単位：MJ）をLに換算
A15: ｴﾈﾙｷﾞｰ | B15: ナフサ | C15: 燃料 | D15: ［-/L］ | E15: ナフサの燃焼（単位：MJ）をLに換算
... 18 more rows

Sheet 原単位リスト(multi)org (hidden)
A1: 種類 | B1: 名称 | C1: 土壌・地下水汚染 | D1: 単位 | E1: CO2排出量 | G1: 入力フロー | H1: 入力フロー | I1: 入力フロー | J1: 入力フロー | K1: 入力フロー | L1: 入力フロー | M1: 入力フロー | N1: 入力フロー | O1: 入力フロー | P1: 入力フロー | Q1: 入力フロー | R1: 入力フロー | S1: 入力フロー | T1: 入力フロー | U1: 入力フロー | V1: 入力フロー | W1: 入力フロー | X1: 入力フロー | Y1: 入力フロー | Z1: 入力フロー | AA1: 入力フロー | AB1: 入力フロー | AC1: 入力フロー | AD1: 入力フロー | AE1: 入力フロー | AF1: 入力フロー | AG1: 入力フロー | AH1: 入力フロー | AI1: 入力フロー | AJ1: 入力フロー | AK1: 入力フロー | AL1: 入力フロー | AM1: 入力フロー | AN1: 入力フロー | AO1: 入力フロー | AP1: 入力フロー | AQ1: 入力フロー | AR1: 入力フロー | AS1: 入力フロー | AT1: 入力フロー | AU1: 入力フロー | AV1: 入力フロー | AW1: 入力フロー | AX1: 入力フロー | AY1: 入力フロー | AZ1: 入力フロー | BA1: 入力フロー | BB1: 入力フロー | BC1: 入力フロー | BD1: 入力フロー | BE1: 入力フロー | BF1: 入力フロー | BG1: 入力フロー | BH1: 入力フロー | BI1: 入力フロー | BJ1: 入力フロー | BK1: 入力フロー | BL1: 入力フロー | BM1: 入力フロー | BN1: 入力フロー | BO1: 入力フロー | BP1: 入力フロー | BQ1: 入力フロー | BR1: 入力フロー | BS1: 入力フロー | BT1: 入力フロー | BU1: 入力フロー | BV1: 入力フロー | BW1: 入力フロー | BX1: 入力フロー | BY1: 入力フロー | BZ1: 入力フロー | CA1: 入力フロー | CB1: 入力フロー | CC1: 入力フロー | CD1: 入力フロー | CE1: 入力フロー | CF1: 入力フロー | CG1: 入力フロー | CH1: 入力フロー | CI1: 入力フロー | CJ1: 入力フロー | CK1: 入力フロー | CL1: 入力フロー | CM1: 入力フロー | CN1: 入力フロー | CO1: 出力フロー | CP1: 出力フロー | CQ1: 出力フロー | CR1: 出力フロー | CS1: 出力フロー | CT1: 出力フロー | CU1: 出力フロー | CV1: 出力フロー | CW1: 出力フロー | CX1: 出力フロー | CY1: 出力フロー | CZ1: 出力フロー | DA1: 出力フロー | DB1: 出力フロー | DC1: 出力フロー | DD1: 出力フロー | DE1: 出力フロー | DF1: 出力フロー | DG1: 出力フロー | DH1: 出力フロー | DI1: 出力フロー | DJ1: 出力フロー | DK1: 出力フロー | DL1: 出力フロー | DM1: 出力フロー | DN1: 出力フロー | DO1: 出力フロー | DP1: 出力フロー | DQ1: 出力フロー | DR1: 出力フロー | DS1: 出力フロー | DT1: 出力フロー | DU1: 出力フロー | DV1: 出力フロー | DW1: 出力フロー | DX1: 出力フロー | DY1: 出力フロー | DZ1: 出力フロー | EA1: 出力フロー | EB1: 出力フロー | EC1: 出力フロー | ED1: 出力フロー | EE1: 出力フロー | EF1: 出力フロー | EG1: 出力フロー | EH1: 出力フロー | EI1: 出力フロー | EJ1: 出力フロー | EK1: 出力フロー | EL1: 出力フロー | EM1: 出力フロー | EN1: 出力フロー | EO1: 出力フロー | EP1: 出力フロー | EQ1: 出力フロー | ER1: 出力フロー | ES1: 出力フロー | ET1: 出力フロー | EU1: 出力フロー | EV1: 出力フロー | EW1: 出力フロー | EX1: 出力フロー | EY1: 出力フロー | EZ1: 出力フロー | FA1: 出力フロー | FB1: 出力フロー | FC1: 出力フロー | FD1: 出力フロー | FE1: 出力フロー | FF1: 出力フロー | FG1: 出力フロー | FH1: 出力フロー | FI1: 出力フロー | FJ1: 出力フロー | FK1: 出力フロー | FL1: 出力フロー | FM1: 出力フロー | FN1: 出力フロー | FO1: 出力フロー | FP1: 出力フロー | FQ1: 出力フロー | FR1: 出力フロー | FS1: 出力フロー | FT1: 出力フロー | FU1: 出力フロー | FV1: 出力フロー | FW1: 出力フロー | FX1: 出力フロー | FY1: 出力フロー | FZ1: 出力フロー | GA1: 出力フロー | GB1: 出力フロー | GC1: 出力フロー | GD1: 出力フロー | GE1: 出力フロー | GF1: 出力フロー | GG1: 出力フロー | GH1: 出力フロー | GI1: 出力フロー | GJ1: 出力フロー | GK1: 出力フロー | GL1: 出力フロー | GM1: 出力フロー | GN1: 出力フロー | GO1: 出力フロー | GP1: 出力フロー | GQ1: 出力フロー | GR1: 出力フロー | GS1: 出力フロー | GT1: 備考
C2: 対策での使用例 | E2: ［kg-CO2］ | G2: 基本フロー | H2: 基本フロー | I2: 基本フロー | J2: 基本フロー | K2: 基本フロー | L2: 基本フロー | M2: 基本フロー | N2: 基本フロー | O2: 基本フロー | P2: 基本フロー | Q2: 基本フロー | R2: 基本フロー | S2: 基本フロー | T2: 基本フロー | U2: 基本フロー | V2: 基本フロー | W2: 基本フロー | X2: 基本フロー | Y2: 基本フロー | Z2: 基本フロー | AA2: 基本フロー | AB2: 基本フロー | AC2: 基本フロー | AD2: 基本フロー | AE2: 基本フロー | AF2: 基本フロー | AG2: 基本フロー | AH2: 基本フロー | AI2: 基本フロー | AJ2: 基本フロー | AK2: 基本フロー | AL2: 基本フロー | AM2: 基本フロー | AN2: 基本フロー | AO2: 基本フロー | AP2: 基本フロー | AQ2: 基本フロー | AR2: 基本フロー | AS2: 基本フロー | AT2: 基本フロー | AU2: 基本フロー | AV2: 基本フロー | AW2: 基本フロー | AX2: 基本フロー | AY2: 基本フロー | AZ2: 基本フロー | BA2: 基本フロー | BB2: 基本フロー | BC2: 基本フロー | BD2: 基本フロー | BE2: 基本フロー | BF2: 基本フロー | BG2: 基本フロー | BH2: 基本フロー | BI2: 中間フロー | BJ2: 中間フロー | BK2: 中間フロー | BL2: 中間フロー | BM2: 中間フロー | BN2: 中間フロー | BO2: 中間フロー | BP2: 中間フロー | BQ2: 中間フロー | BR2: 中間フロー | BS2: 中間フロー | BT2: 中間フロー | BU2: 中間フロー | BV2: 中間フロー | BW2: 中間フロー | BX2: 中間フロー | BY2: 中間フロー | BZ2: 中間フロー | CA2: 中間フロー | CB2: 中間フロー | CC2: 中間フロー | CD2: 中間フロー | CE2: 中間フロー | CF2: 中間フロー | CG2: 中間フロー | CH2: 中間フロー | CI2: 中間フロー | CJ2: 中間フロー | CK2: 中間フロー | CL2: 中間フロー | CM2: 中間フロー | CN2: 中間フロー | CO2: 基本フロー | CP2: 基本フロー | CQ2: 基本フロー | CR2: 基本フロー | CS2: 基本フロー | CT2: 基本フロー | CU2: 基本フロー | CV2: 基本フロー | CW2: 基本フロー | CX2: 基本フロー | CY2: 基本フロー | CZ2: 基本フロー | DA2: 基本フロー | DB2: 基本フロー | DC2: 基本フロー | DD2: 基本フロー | DE2: 基本フロー | DF2: 基本フロー | DG2: 基本フロー | DH2: 基本フロー | DI2: 基本フロー | DJ2: 基本フロー | DK2: 基本フロー | DL2: 基本フロー | DM2: 基本フロー | DN2: 基本フロー | DO2: 基本フロー | DP2: 基本フロー | DQ2: 基本フロー | DR2: 基本フロー | DS2: 基本フロー | DT2: 基本フロー | DU2: 基本フロー | DV2: 基本フロー | DW2: 基本フロー | DX2: 基本フロー | DY2: 基本フロー | DZ2: 基本フロー | EA2: 基本フロー | EB2: 基本フロー | EC2: 基本フロー | ED2: 基本フロー | EE2: 基本フロー | EF2: 基本フロー | EG2: 基本フロー | EH2: 基本フロー | EI2: 基本フロー | EJ2: 基本フロー | EK2: 基本フロー | EL2: 基本フロー | EM2: 基本フロー | EN2: 基本フロー | EO2: 基本フロー | EP2: 基本フロー | EQ2: 基本フロー | ER2: 基本フロー | ES2: 基本フロー | ET2: 基本フロー | EU2: 基本フロー | EV2: 基本フロー | EW2: 基本フロー | EX2: 基本フロー | EY2: 基本フロー | EZ2: 基本フロー | FA2: 基本フロー | FB2: 基本フロー | FC2: 基本フロー | FD2: 基本フロー | FE2: 基本フロー | FF2: 基本フロー | FG2: 基本フロー | FH2: 基本フロー | FI2: 基本フロー | FJ2: 中間フロー | FK2: 中間フロー | FL2: 中間フロー | FM2: 中間フロー | FN2: 中間フロー | FO2: 中間フロー | FP2: 中間フロー | FQ2: 中間フロー | FR2: 中間フロー | FS2: 中間フロー | FT2: 中間フロー | FU2: 中間フロー | FV2: 中間フロー | FW2: 中間フロー | FX2: 中間フロー | FY2: 中間フロー | FZ2: 中間フロー | GA2: 中間フロー | GB2: 中間フロー | GC2: 中間フロー | GD2: 中間フロー | GE2: 中間フロー | GF2: 中間フロー | GG2: 中間フロー | GH2: 中間フロー | GI2: 中間フロー | GJ2: 中間フロー | GK2: 中間フロー | GL2: 中間フロー | GM2: 中間フロー | GN2: 中間フロー | GO2: 中間フロー | GP2: 中間フロー | GQ2: 中間フロー | GR2: 中間フロー | GS2: 中間フロー
E3: 旧 | F3: 新 | G3: 一般炭, 25.7MJ/kg | H3: 原油, 44.7MJ/kg | I3: 原料炭, 29.0MJ/kg | J3: 天然ガス, 54.6MJ/kg | K3: 天然ガス液, 46.5MJ/kg | L3: ウラン,U3O8 | M3: アンチモン | N3: クロム | O3: コバルト | P3: タングステン | Q3: チタン | R3: ニッケル | S3: バナジウム | T3: バリウム | U3: ビスマス | V3: ホウ素 | W3: マンガン | X3: モリブデン | Y3: リチウム | Z3: リン | AA3: 亜鉛 | AB3: 鉛 | AC3: 金 | AD3: 銀 | AE3: 砂 | AF3: 大理石 | AG3: 鉄 | AH3: 銅 | AI3: 白金 | AJ3: 硫黄 | AK3: カオリン | AL3: ケイ砂 | AM3: タルク | AN3: ドロマイト | AO3: ベントナイト | AP3: ボーキサイト | AQ3: 塩化ナトリウム | AR3: 珪石 | AS3: 珪藻岩 | AT3: 蛍石 | AU3: 黒鉛鉱 | AV3: 蛇紋岩 | AW3: 石灰石 | AX3: 長石 | AY3: 粘土 | AZ3: 一次エネルギー(地熱) | BA3: フィールドラテックス | BB3: 一次エネルギー(水力) | BC3: かん水 | BD3: 海水 | BE3: 地下水 | BF3: 地表水 | BG3: 一次エネルギー(太陽光) | BH3: 空気 | BI3: アルミニウムくず | BJ3: オフガス | BK3: ガラスくず・陶磁器くず, 再生利用品 | BL3: コークス炉ガス | BM3: ばいじん, 再生利用品 | BN3: パルプ黒液(用水分を除く) | BO3: 一廃（特定せず） | BP3: 汚泥, 再生利用品 | BQ3: 古紙 | BR3: 鉱さい（スラグ), 再生利用品 | BS3: 鋼くず | BT3: 高炉ガス | BU3: 使用済みガラスびん | BV3: 使用済ゴム, 再生利用品 | BW3: 使用済みペットボトル | BX3: 繊維くず, 再生利用品 | BY3: 銑くず | BZ3: 転炉ガス(LDG) | CA3: 電気炉ガス(EFG) | CB3: 動植物性残さ, 再生利用品 | CC3: 銅くず | CD3: 二酸化硫黄,再生利用品 | CE3: 熱エネルギー | CF3: 廃アルカリ, 再生利用品 | CG3: 廃タイヤ | CH3: 廃プラスチック類, 再生利用品 | CI3: 廃酸, 再生利用品 | CJ3: 廃油,再生利用品 | CK3: 非鉄金属くず,再生利用品 | CL3: 木くず, 再生利用品 | CM3: その他の使用済み製品 | CN3: その他の地中からの鉱物資源 | CO3: 2,3,7,8-テトラクロロジベンゾジオキシン | CP3: CH4(発生源不特定） | CQ3: CH4（化石資源由来） | CR3: CO | CS3: CO | CT3: CO2(化石資源由来） | CU3: CO2(化石資源由来） | CV3: CO2(生物由来） | CW3: N2O | CX3: N2O | CY3: NH3 | CZ3: NO2 | DA3: NOx | DB3: NOx | DC3: PM10 | DD3: PM10 | DE3: SF6 | DF3: SO2 | DG3: SO2 | DH3: SOx | DI3: SOx | DJ3: カドミウム | DK3: クロム | DL3: コバルト | DM3: ニッケル | DN3: パーフルオロメタン | DO3: ばいじん(> PM10） | DP3: バナジウム | DQ3: ヒ素 | DR3: フッ化水素 | DS3: 亜鉛 | DT3: 鉛 | DU3: 塩化水素 | DV3: 塩素 | DW3: 揮発性有機化合物 | DX3: 水銀 | DY3: 水蒸気 | DZ3: 炭化水素 | EA3: 炭化水素 | EB3: 銅 | EC3: 非メタン炭化水素 | ED3: 硫化水素 | EE3: 硫酸 | EF3: acid (as H+) | EG3: BOD | EH3: C6 アルキルベンゼン | EI3: COD | EJ3: アンモニウムイオン | EK3: カドミウム | EL3: クロム | EM3: コバルト | EN3: ニッケル | EO3: ニッケル化合物 | EP3: ヒ素 | EQ3: フェノール | ER3: フッ化水素 | ES3: ホウ素 | ET3: マンガン | EU3: 亜鉛 | EV3: 鉛 | EW3: 処理済水 | EX3: 水銀 | EY3: 全リン | EZ3: 全窒素 | FA3: 炭化水素 | FB3: 銅 | FC3: 浮遊物質(SS) | FD3: 硫酸 | FE3: 汚泥(埋立) | FF3: 金属くず(埋立) | FG3: 鉱さい(埋立) | FH3: 低レベル放射性廃棄物 | FI3: 土砂(埋立) | FJ3: アルミニウムくず | FK3: ガラスくず・陶磁器くず, 再生利用品 | FL3: がれき類, 再生利用品 | FM3: コークス炉ガス | FN3: スラグ、ドロス等 | FO3: にがり | FP3: ばいじん, 再生利用品 | FQ3: 汚泥, 再生利用品 | FR3: 金属くず, 再生利用品 | FS3: 鉱さい（スラグ), 再生利用品 | FT3: 鋼くず | FU3: 高炉ガス | FV3: 産廃(特定せず) | FW3: 使用済ゴム, 再生利用品 | FX3: 紙くず, 再生利用品 | FY3: 蒸気 | FZ3: 水素 | GA3: 繊維くず, 再生利用品 | GB3: 銑くず | GC3: 粗製コールタール | GD3: 転炉ガス(LDG) | GE3: 電気炉ガス(EFG) | GF3: 動植物性残さ, 再生利用品 | GG3: 銅くず | GH3: 二酸化硫黄,再生利用品 | GI3: 燃え殻, 再生利用品 | GJ3: 廃アルカリ, 再生利用品 | GK3: 廃プラスチック類, 再生利用品 | GL3: 廃酸, 再生利用品 | GM3: 廃油,再生利用品 | GN3: 非鉄金属くず,再生利用品 | GO3: 木くず, 再生利用品 | GP3: 硫化ナトリウム（副製品） | GQ3: 硫酸,100%換算,副生品 | GR3: その他の産業廃棄物 | GS3: その他の土壌排出物
G4: 資源 | H4: 資源 | I4: 資源 | J4: 資源 | K4: 資源 | L4: 資源 | M4: 資源 | N4: 資源 | O4: 資源 | P4: 資源 | Q4: 資源 | R4: 資源 | S4: 資源 | T4: 資源 | U4: 資源 | V4: 資源 | W4: 資源 | X4: 資源 | Y4: 資源 | Z4: 資源 | AA4: 資源 | AB4: 資源 | AC4: 資源 | AD4: 資源 | AE4: 資源 | AF4: 資源 | AG4: 資源 | AH4: 資源 | AI4: 資源 | AJ4: 資源 | AK4: 資源 | AL4: 資源 | AM4: 資源 | AN4: 資源 | AO4: 資源 | AP4: 資源 | AQ4: 資源 | AR4: 資源 | AS4: 資源 | AT4: 資源 | AU4: 資源 | AV4: 資源 | AW4: 資源 | AX4: 資源 | AY4: 資源 | AZ4: 資源 | BA4: 資源 | BB4: 資源 | BC4: 資源 | BD4: 資源 | BE4: 資源 | BF4: 資源 | BG4: 資源 | BH4: 資源 | BI4: - | BJ4: - | BK4: - | BL4: - | BM4: - | BN4: - | BO4: - | BP4: - | BQ4: - | BR4: - | BS4: - | BT4: - | BU4: - | BV4: - | BW4: - | BX4: - | BY4: - | BZ4: - | CA4: - | CB4: - | CC4: - | CD4: - | CE4: - | CF4: - | CG4: - | CH4: - | CI4: - | CJ4: - | CK4: - | CL4: - | CM4: - | CN4: - | CO4: 排出物 | CP4: 排出物 | CQ4: 排出物 | CR4: 排出物 | CS4: 排出物 | CT4: 排出物 | CU4: 排出物 | CV4: 排出物 | CW4: 排出物 | CX4: 排出物 | CY4: 排出物 | CZ4: 排出物 | DA4: 排出物 | DB4: 排出物 | DC4: 排出物 | DD4: 排出物 | DE4: 排出物 | DF4: 排出物 | DG4: 排出物 | DH4: 排出物 | DI4: 排出物 | DJ4: 排出物 | DK4: 排出物 | DL4: 排出物 | DM4: 排出物 | DN4: 排出物 | DO4: 排出物 | DP4: 排出物 | DQ4: 排出物 | DR4: 排出物 | DS4: 排出物 | DT4: 排出物 | DU4: 排出物 | DV4: 排出物 | DW4: 排出物 | DX4: 排出物 | DY4: 排出物 | DZ4: 排出物 | EA4: 排出物 | EB4: 排出物 | EC4: 排出物 | ED4: 排出物 | EE4: 排出物 | EF4: 排出物 | EG4: 排出物 | EH4: 排出物 | EI4: 排出物 | EJ4: 排出物 | EK4: 排出物 | EL4: 排出物 | EM4: 排出物 | EN4: 排出物 | EO4: 排出物 | EP4: 排出物 | EQ4: 排出物 | ER4: 排出物 | ES4: 排出物 | ET4: 排出物 | EU4: 排出物 | EV4: 排出物 | EW4: 排出物 | EX4: 排出物 | EY4: 排出物 | EZ4: 排出物 | FA4: 排出物 | FB4: 排出物 | FC4: 排出物 | FD4: 排出物 | FE4: 排出物 | FF4: 排出物 | FG4: 排出物 | FH4: 排出物 | FI4: 排出物 | FJ4: - | FK4: - | FL4: - | FM4: - | FN4: - | FO4: - | FP4: - | FQ4: - | FR4: - | FS4: - | FT4: - | FU4: - | FV4: - | FW4: - | FX4: - | FY4: - | FZ4: - | GA4: - | GB4: - | GC4: - | GD4: - | GE4: - | GF4: - | GG4: - | GH4: - | GI4: - | GJ4: - | GK4: - | GL4: - | GM4: - | GN4: - | GO4: - | GP4: - | GQ4: - | GR4: - | GS4: -
G5: 陸域 | H5: 陸域 | I5: 陸域 | J5: 陸域 | K5: 陸域 | L5: 陸域 | M5: 陸域 | N5: 陸域 | O5: 陸域 | P5: 陸域 | Q5: 陸域 | R5: 陸域 | S5: 陸域 | T5: 陸域 | U5: 陸域 | V5: 陸域 | W5: 陸域 | X5: 陸域 | Y5: 陸域 | Z5: 陸域 | AA5: 陸域 | AB5: 陸域 | AC5: 陸域 | AD5: 陸域 | AE5: 陸域 | AF5: 陸域 | AG5: 陸域 | AH5: 陸域 | AI5: 陸域 | AJ5: 陸域 | AK5: 陸域 | AL5: 陸域 | AM5: 陸域 | AN5: 陸域 | AO5: 陸域 | AP5: 陸域 | AQ5: 陸域 | AR5: 陸域 | AS5: 陸域 | AT5: 陸域 | AU5: 陸域 | AV5: 陸域 | AW5: 陸域 | AX5: 陸域 | AY5: 陸域 | AZ5: 陸域 | BA5: 陸域 | BB5: 水圏 | BC5: 水圏 | BD5: 水圏 | BE5: 水圏 | BF5: 水圏 | BG5: 大気 | BH5: 大気 | BI5: - | BJ5: - | BK5: - | BL5: - | BM5: - | BN5: - | BO5: - | BP5: - | BQ5: - | BR5: - | BS5: - | BT5: - | BU5: - | BV5: - | BW5: - | BX5: - | BY5: - | BZ5: - | CA5: - | CB5: - | CC5: - | CD5: - | CE5: - | CF5: - | CG5: - | CH5: - | CI5: - | CJ5: - | CK5: - | CL5: - | CM5: - | CN5: - | CO5: 大気 | CP5: 大気 | CQ5: 大気 | CR5: 大気 | CS5: 大気 | CT5: 大気 | CU5: 大気 | CV5: 大気 | CW5: 大気 | CX5: 大気 | CY5: 大気 | CZ5: 大気 | DA5: 大気 | DB5: 大気 | DC5: 大気 | DD5: 大気 | DE5: 大気 | DF5: 大気 | DG5: 大気 | DH5: 大気 | DI5: 大気 | DJ5: 大気 | DK5: 大気 | DL5: 大気 | DM5: 大気 | DN5: 大気 | DO5: 大気 | DP5: 大気 | DQ5: 大気 | DR5: 大気 | DS5: 大気 | DT5: 大気 | DU5: 大気 | DV5: 大気 | DW5: 大気 | DX5: 大気 | DY5: 大気 | DZ5: 大気 | EA5: 大気 | EB5: 大気 | EC5: 大気 | ED5: 大気 | EE5: 大気 | EF5: 水圏 | EG5: 水圏 | EH5: 水圏 | EI5: 水圏 | EJ5: 水圏 | EK5: 水圏 | EL5: 水圏 | EM5: 水圏 | EN5: 水圏 | EO5: 水圏 | EP5: 水圏 | EQ5: 水圏 | ER5: 水圏 | ES5: 水圏 | ET5: 水圏 | EU5: 水圏 | EV5: 水圏 | EW5: 水圏 | EX5: 水圏 | EY5: 水圏 | EZ5: 水圏 | FA5: 水圏 | FB5: 水圏 | FC5: 水圏 | FD5: 水圏 | FE5: 陸域 | FF5: 陸域 | FG5: 陸域 | FH5: 陸域 | FI5: 陸域 | FJ5: - | FK5: - | FL5: - | FM5: - | FN5: - | FO5: - | FP5: - | FQ5: - | FR5: - | FS5: - | FT5: - | FU5: - | FV5: - | FW5: - | FX5: - | FY5: - | FZ5: - | GA5: - | GB5: - | GC5: - | GD5: - | GE5: - | GF5: - | GG5: - | GH5: - | GI5: - | GJ5: - | GK5: - | GL5: - | GM5: - | GN5: - | GO5: - | GP5: - | GQ5: - | GR5: - | GS5: -
G6: 非再生可能エネルギー | H6: 非再生可能エネルギー | I6: 非再生可能エネルギー | J6: 非再生可能エネルギー | K6: 非再生可能エネルギー | L6: 非再生可能エネルギー | M6: 非再生可能元素 | N6: 非再生可能元素 | O6: 非再生可能元素 | P6: 非再生可能元素 | Q6: 非再生可能元素 | R6: 非再生可能元素 | S6: 非再生可能元素 | T6: 非再生可能元素 | U6: 非再生可能元素 | V6: 非再生可能元素 | W6: 非再生可能元素 | X6: 非再生可能元素 | Y6: 非再生可能元素 | Z6: 非再生可能元素 | AA6: 非再生可能元素 | AB6: 非再生可能元素 | AC6: 非再生可能元素 | AD6: 非再生可能元素 | AE6: 非再生可能元素 | AF6: 非再生可能元素 | AG6: 非再生可能元素 | AH6: 非再生可能元素 | AI6: 非再生可能元素 | AJ6: 非再生可能元素 | AK6: 非再生材料 | AL6: 非再生材料 | AM6: 非再生材料 | AN6: 非再生材料 | AO6: 非再生材料 | AP6: 非再生材料 | AQ6: 非再生材料 | AR6: 非再生材料 | AS6: 非再生材料 | AT6: 非再生材料 | AU6: 非再生材料 | AV6: 非再生材料 | AW6: 非再生材料 | AX6: 非再生材料 | AY6: 非再生材料 | AZ6: 再生可能エネルギー | BA6: 再生可能材料 | BB6: 再生可能エネルギー | BC6: 再生可能材料 | BD6: 再生可能材料 | BE6: 再生可能材料 | BF6: 再生可能材料 | BG6: 再生可能エネルギー | BH6: 再生可能材料 | BI6: - | BJ6: - | BK6: - | BL6: - | BM6: - | BN6: - | BO6: - | BP6: - | BQ6: - | BR6: - | BS6: - | BT6: - | BU6: - | BV6: - | BW6: - | BX6: - | BY6: - | BZ6: - | CA6: - | CB6: - | CC6: - | CD6: - | CE6: - | CF6: - | CG6: - | CH6: - | CI6: - | CJ6: - | CK6: - | CL6: - | CM6: - | CN6: - | CO6: 不特定 | CP6: 不特定 | CQ6: 都市域（地表付近） | CR6: 不特定 | CS6: 都市域（地表付近） | CT6: 不特定 | CU6: 都市域（地表付近） | CV6: 不特定 | CW6: 不特定 | CX6: 都市域（地表付近） | CY6: 不特定 | CZ6: 都市域（地表付近） | DA6: 不特定 | DB6: 都市域（地表付近） | DC6: 不特定 | DD6: 都市域（地表付近） | DE6: 不特定 | DF6: 不特定 | DG6: 都市域（地表付近） | DH6: 不特定 | DI6: 都市域（地表付近） | DJ6: 不特定 | DK6: 不特定 | DL6: 不特定 | DM6: 不特定 | DN6: 不特定 | DO6: 不特定 | DP6: 不特定 | DQ6: 不特定 | DR6: 不特定 | DS6: 不特定 | DT6: 不特定 | DU6: 不特定 | DV6: 不特定 | DW6: 不特定 | DX6: 不特定 | DY6: 対流圏 | DZ6: 不特定 | EA6: 都市域（地表付近） | EB6: 不特定 | EC6: 不特定 | ED6: 不特定 | EE6: 不特定 | EF6: 不特定 | EG6: 不特定 | EH6: 不特定 | EI6: 不特定 | EJ6: 不特定 | EK6: 不特定 | EL6: 不特定 | EM6: 不特定 | EN6: 不特定 | EO6: 不特定 | EP6: 不特定 | EQ6: 不特定 | ER6: 不特定 | ES6: 不特定 | ET6: 不特定 | EU6: 不特定 | EV6: 不特定 | EW6: 不特定 | EX6: 不特定 | EY6: 不特定 | EZ6: 不特定 | FA6: 不特定 | FB6: 不特定 | FC6: 不特定 | FD6: 不特定 | FE6: 管理域内 | FF6: 管理域内 | FG6: 管理域内 | FH6: 管理域内 | FI6: 管理域内 | FJ6: - | FK6: - | FL6: - | FM6: - | FN6: - | FO6: - | FP6: - | FQ6: - | FR6: - | FS6: - | FT6: - | FU6: - | FV6: - | FW6: - | FX6: - | FY6: - | FZ6: - | GA6: - | GB6: - | GC6: - | GD6: - | GE6: - | GF6: - | GG6: - | GH6: - | GI6: - | GJ6: - | GK6: - | GL6: - | GM6: - | GN6: - | GO6: - | GP6: - | GQ6: - | GR6: - | GS6: -
G7: kg | H7: kg | I7: kg | J7: kg | K7: kg | L7: kg | M7: kg | N7: kg | O7: kg | P7: kg | Q7: kg | R7: kg | S7: kg | T7: kg | U7: kg | V7: kg | W7: kg | X7: kg | Y7: kg | Z7: kg | AA7: kg | AB7: kg | AC7: kg | AD7: kg | AE7: kg | AF7: kg | AG7: kg | AH7: kg | AI7: kg | AJ7: kg | AK7: kg | AL7: kg | AM7: kg | AN7: kg | AO7: kg | AP7: kg | AQ7: kg | AR7: kg | AS7: kg | AT7: kg | AU7: kg | AV7: kg | AW7: kg | AX7: kg | AY7: kg | AZ7: MJ | BA7: kg | BB7: MJ | BC7: kg | BD7: kg | BE7: kg | BF7: kg | BG7: MJ | BH7: kg | BI7: kg | BJ7: Nm3 | BK7: kg | BL7: Nm3 | BM7: kg | BN7: 絶乾kg | BO7: kg | BP7: kg | BQ7: kg | BR7: kg | BS7: kg | BT7: Nm3 | BU7: kg | BV7: kg | BW7: kg | BX7: kg | BY7: kg | BZ7: Nm3 | CA7: Nm3 | CB7: kg | CC7: kg | CD7: kg | CE7: MJ | CF7: kg | CG7: kg | CH7: kg | CI7: kg | CJ7: kg | CK7: kg | CL7: kg | CM7: kg | CN7: kg | CO7: kg | CP7: kg | CQ7: kg | CR7: kg | CS7: kg | CT7: kg | CU7: kg | CV7: kg | CW7: kg | CX7: kg | CY7: kg | CZ7: kg | DA7: kg | DB7: kg | DC7: kg | DD7: kg | DE7: kg | DF7: kg | DG7: kg | DH7: kg | DI7: kg | DJ7: kg | DK7: kg | DL7: kg | DM7: kg | DN7: kg | DO7: kg | DP7: kg | DQ7: kg | DR7: kg | DS7: kg | DT7: kg | DU7: kg | DV7: kg | DW7: kg | DX7: kg | DY7: kg | DZ7: kg | EA7: kg | EB7: kg | EC7: kg | ED7: kg | EE7: kg | EF7: kg | EG7: kg | EH7: kg | EI7: kg | EJ7: kg | EK7: kg | EL7: kg | EM7: kg | EN7: kg | EO7: kg | EP7: kg | EQ7: kg | ER7: kg | ES7: kg | ET7: kg | EU7: kg | EV7: kg | EW7: kg | EX7: kg | EY7: kg | EZ7: kg | FA7: kg | FB7: kg | FC7: kg | FD7: kg | FE7: kg | FF7: kg | FG7: kg | FH7: kg | FI7: kg | FJ7: kg | FK7: kg | FL7: kg | FM7: Nm3 | FN7: kg | FO7: L | FP7: kg | FQ7: kg | FR7: kg | FS7: kg | FT7: kg | FU7: Nm3 | FV7: kg | FW7: kg | FX7: kg | FY7: kg | FZ7: Nm3 | GA7: kg | GB7: kg | GC7: kg | GD7: Nm3 | GE7: Nm3 | GF7: kg | GG7: kg | GH7: kg | GI7: kg | GJ7: kg | GK7: kg | GL7: kg | GM7: kg | GN7: kg | GO7: kg | GP7: kg | GQ7: kg | GR7: kg | GS7: kg
A8: ｴﾈﾙｷﾞｰ | B8: ガソリン | C8: 燃料（ガソリン） | D8: ［-/L］ | E8: 2.88 | F8: =SUM(CT8:CU8) -> 2.719563209 | G8: 4.290405063e-05 | H8: 0.8753810329 | I8: 1.574301858e-07 | J8: 0.01349401592 | K8: 1.595061882e-15 | L8: 1.1867814e-09 | M8: 2.792223295e-17 | N8: 1.761142078e-09 | O8: 8.304009799e-12 | P8: 1.024161209e-12 | Q8: 1.079521274e-10 | R8: 6.055007145e-10 | S8: 4.498005308e-12 | T8: 1.473961739e-12 | U8: 1.66080196e-17 | V8: 2.16942256e-13 | W8: 7.95800939e-10 | X8: 6.643207839e-11 | Y8: 1.871862209e-16 | Z8: 2.228242629e-09 | AA8: 1.318261556e-11 | AB8: 5.778206818e-10 | AC8: 4.082804818e-14 | AD8: 4.982405879e-13 | AE8: 0 | AF8: 2.096762474e-06 | AG8: 7.023808288e-08 | AH8: 9.826411595e-11 | AI8: 1.211001429e-12 | AJ8: 3.349283952e-07 | AK8: 2.785303287e-10 | AL8: 5.882006941e-11 | AM8: 5.882006941e-11 | AN8: 7.266008574e-09 | AO8: 0 | AP8: 6.781608002e-06 | AQ8: 1.588141874e-11 | AR8: 3.460004083e-09 | AS8: 1.529321805e-13 | AT8: 1.089901286e-08 | AU8: 1.550081829e-13 | AV8: 1.349401592e-09 | AW8: 1.799202123e-06 | AX8: 3.494604124e-09 | AY8: 1.377081625e-09 | AZ8: 7.785009186e-05 | BA8: 3.287003879e-15 | BB8: 0.0002325122744 | BC8: 1.086441282e-07 | BD8: 22.49002654 | BE8: 0.04048204777 | BF8: 2.442762882 | BG8: 1.695402001e-07 | BH8: 1.685021988e-06 | BI8: 0 | BJ8: 0 | BK8: 0 | BL8: 0 | BM8: 0 | BN8: 0 | BO8: 0 | BP8: 0 | BQ8: 0 | BR8: 0 | BS8: 0 | BT8: 0 | BU8: 0 | BV8: 0 | BW8: 0 | BX8: 0 | BY8: 0 | BZ8: 0 | CA8: 0 | CB8: 0 | CC8: 0 | CD8: 0 | CE8: 0 | CF8: 0 | CG8: 0 | CH8: 0 | CI8: 0 | CJ8: 0 | CK8: 0 | CL8: 0 | CM8: 0 | CN8: 0 | CO8: 1.304421539e-19 | CP8: 0.003117463679 | CQ8: 2.619223091e-21 | CR8: 6.574007757e-06 | CS8: 2.823363332e-19 | CT8: 2.719563209 | CU8: 1.577761862e-16 | CV8: 4.117404859e-07 | CW8: 4.636405471e-05 | CX8: 2.619223091e-21 | CY8: 5.882006941e-13 | CZ8: 0.000199988236 | DA8: 0.0003875204573 | DB8: 9.757211514e-19 | DC8: 0 | DD8: 1.09336129e-20 | DE8: 6.331807472e-16 | DF8: 4.290405063e-06 | DG8: 9.999411799e-22 | DH8: 0.0003207423785 | DI8: 0 | DJ8: 2.927163454e-13 | DK8: 6.435607594e-12 | DL8: 5.224606165e-16 | DM8: 7.266008574e-12 | DN8: 1.823422152e-14 | DO8: 1.480881747e-07 | DP8: 2.591543058e-11 | DQ8: 3.667604328e-12 | DR8: 4.567205389e-15 | DS8: 9.099810738e-11 | DT8: 1.695402001e-11 | DU8: 1.242141466e-13 | DV8: 8.027209472e-15 | DW8: 1.813042139e-13 | DX8: 4.290405063e-12 | DY8: 7.439008778e-08 | DZ8: 7.300608615e-06 | EA8: 1.951442303e-20 | EB8: 2.280142691e-15 | EC8: 1.536241813e-08 | ED8: 3.024043568e-15 | EE8: 8.131009595e-17 | EF8: 6.954608206e-16 | EG8: 5.985807063e-11 | EH8: 6.920008166e-18 | EI8: 1.397841649e-10 | EJ8: 4.048204777e-18 | EK8: 1.813042139e-18 | EL8: 5.639806655e-17 | EM8: 7.404408737e-17 | EN8: 2.681503164e-14 | EO8: 1.563921845e-16 | EP8: 5.501406492e-16 | EQ8: 3.041343589e-17 | ER8: 1.221381441e-15 | ES8: 7.750409145e-16 | ET8: 1.633121927e-16 | EU8: 2.024102388e-16 | EV8: 1.806122131e-14 | EW8: 2.35626278 | EX8: 4.221204981e-18 | EY8: 2.989443528e-16 | EZ8: 1.418601674e-10 | FA8: 4.152004899e-15 | FB8: 4.809405675e-15 | FC8: 1.235221458e-10 | FD8: 1.380541629e-13 | FE8: 3.269703858e-06 | FF8: 2.041402409e-06 | FG8: 2.148662535e-10 | FH8: 2.107142486e-07 | FI8: 9.61881135e-07 | FJ8: 0 | FK8: 0 | FL8: 0 | FM8: 0 | FN8: 0 | FO8: 0 | FP8: 0 | FQ8: 0 | FR8: 0 | FS8: 0 | FT8: 0 | FU8: 0 | FV8: 0 | FW8: 0 | FX8: 0 | FY8: 0 | FZ8: 0 | GA8: 0 | GB8: 0 | GC8: 0 | GD8: 0 | GE8: 0 | GF8: 0 | GG8: 0 | GH8: 0 | GI8: 0 | GJ8: 0 | GK8: 0 | GL8: 0 | GM8: 0 | GN8: 0 | GO8: 0 | GP8: 0 | GQ8: 0 | GR8: 0 | GS8: 0 | GT8: ガソリンの燃焼（単位：MJ）をLに換算
A9: ｴﾈﾙｷﾞｰ | B9: ジェット燃料油 | C9: 燃料 | D9: ［-/L］ | E9: 2.55 | F9: =SUM(CT9:CU9) -> 0.2455277158 | G9: 1.390927775e-05 | H9: 0.8477686436 | I9: 5.101291838e-08 | J9: 0.01302847915 | K9: 5.17469172e-16 | L9: 3.853493834e-10 | M9: 9.064885496e-18 | N9: 5.72519084e-10 | O9: 2.69377569e-12 | P9: 3.32501468e-13 | Q9: 3.497504404e-11 | R9: 1.959776864e-10 | S9: 1.460657663e-12 | T9: 4.770992366e-13 | U9: 5.394891368e-18 | V9: 7.046388726e-14 | W9: 2.583675866e-10 | X9: 2.150616559e-11 | Y9: 6.055490311e-17 | Z9: 7.229888432e-10 | AA9: 4.257193188e-12 | AB9: 1.868027011e-10 | AC9: 1.321197886e-14 | AD9: 1.61846741e-13 | AE9: 0 | AF9: 6.789489137e-07 | AG9: 2.282736348e-08 | AH9: 3.189224897e-11 | AI9: 3.926893717e-13 | AJ9: 1.086318262e-07 | AK9: 9.028185555e-11 | AL9: 1.912066941e-11 | AM9: 1.901056958e-11 | AN9: 2.35613623e-09 | AO9: 0 | AP9: 2.194656489e-06 | AQ9: 5.137991779e-12 | AR9: 1.123018203e-09 | AS9: 4.954492073e-14 | AT9: 3.534204345e-09 | AU9: 5.027891955e-14 | AV9: 4.367293012e-10 | AW9: 5.835290664e-07 | AX9: 1.134028186e-09 | AY9: 4.477392836e-10 | AZ9: 2.52495596e-05 | BA9: 1.067968291e-15 | BB9: 7.523487962e-05 | BC9: 3.530534351e-08 | BD9: 7.303288315 | BE9: 0.01310187904 | BF9: 0.7927187317 | BG9: 5.504991192e-08 | BH9: 5.468291251e-07 | BI9: 0 | BJ9: 0 | BK9: 0 | BL9: 0 | BM9: 0 | BN9: 0 | BO9: 0 | BP9: 0 | BQ9: 0 | BR9: 0 | BS9: 0 | BT9: 0 | BU9: 0 | BV9: 0 | BW9: 0 | BX9: 0 | BY9: 0 | BZ9: 0 | CA9: 0 | CB9: 0 | CC9: 0 | CD9: 0 | CE9: 0 | CF9: 0 | CG9: 0 | CH9: 0 | CI9: 0 | CJ9: 0 | CK9: 0 | CL9: 0 | CM9: 0 | CN9: 0 | CO9: 4.220493247e-20 | CP9: 0.003020405167 | CQ9: 8.477686436e-22 | CR9: 6.349089841e-06 | CS9: 9.138285379e-20 | CT9: =0.177627715795655+0.0679 -> 0.2455277158 | CU9: 5.101291838e-17 | CV9: 1.332207868e-07 | CW9: 4.477392836e-05 | CX9: 8.477686436e-22 | CY9: 1.901056958e-13 | CZ9: 2.209336465e-13 | DA9: 0.0002179976512 | DB9: 3.167204932e-19 | DC9: 0 | DD9: 3.548884322e-21 | DE9: 2.058866706e-16 | DF9: 4.770992366e-07 | DG9: 3.244274809e-22 | DH9: 0.0001141368174 | DI9: 0 | DJ9: 9.505284792e-14 | DK9: 2.088226659e-12 | DL9: 1.691867293e-16 | DM9: 2.352466236e-12 | DN9: 5.908690546e-15 | DO9: 1.38725778e-07 | DP9: 8.404286553e-12 | DQ9: 1.185408103e-12 | DR9: 1.486347622e-15 | DS9: 2.947005285e-11 | DT9: 5.504991192e-12 | DU9: 4.036993541e-14 | DV9: 2.602025837e-15 | DW9: 5.871990605e-14 | DX9: 1.38725778e-12 | DY9: 2.407516148e-08 | DZ9: 7.083088667e-06 | EA9: 6.349089841e-21 | EB9: 7.376688197e-16 | EC9: 4.991192014e-09 | ED9: 9.798884322e-16 | EE9: 2.63138579e-17 | EF9: 2.257046389e-16 | EG9: 1.9377569e-11 | EH9: 2.242366412e-18 | EI9: 4.514092777e-11 | EJ9: 1.313857898e-18 | EK9: 5.871990605e-19 | EL9: 1.827657076e-17 | EM9: 2.40017616e-17 | EN9: 8.697886083e-15 | EO9: 5.064591897e-17 | EP9: 1.779947152e-16 | EQ9: 9.872284204e-18 | ER9: 3.963593658e-16 | ES9: 2.510275984e-16 | ET9: 5.284791544e-17 | EU9: 6.569289489e-17 | EV9: 5.871990605e-15 | EW9: 0.7633587786 | EX9: 1.372577804e-18 | EY9: 9.688784498e-17 | EZ9: 4.58749266e-11 | FA9: 1.350557839e-15 | FB9: 1.559747504e-15 | FC9: 4.0002936e-11 | FD9: 4.477392836e-14 | FE9: 1.060628303e-06 | FF9: 6.642689372e-07 | FG9: 6.972988843e-11 | FH9: 6.826189078e-08 | FI9: 3.123165003e-07 | FJ9: 0 | FK9: 0 | FL9: 0 | FM9: 0 | FN9: 0 | FO9: 0 | FP9: 0 | FQ9: 0 | FR9: 0 | FS9: 0 | FT9: 0 | FU9: 0 | FV9: 0 | FW9: 0 | FX9: 0 | FY9: 0 | FZ9: 0 | GA9: 0 | GB9: 0 | GC9: 0 | GD9: 0 | GE9: 0 | GF9: 0 | GG9: 0 | GH9: 0 | GI9: 0 | GJ9: 0 | GK9: 0 | GL9: 0 | GM9: 0 | GN9: 0 | GO9: 0 | GP9: 0 | GQ9: 0 | GR9: 0 | GS9: 0 | GT9: ジェット燃料油の燃焼（単位：MJ）をLに換算
A10: ｴﾈﾙｷﾞｰ | B10: 灯油 | C10: 燃料 | D10: ［-/L］ | E10: 2.64 | F10: =SUM(CT10:CU10) -> 2.671723464 | G10: 1.477349151e-05 | H10: 0.8489245119 | I10: 5.402246894e-08 | J10: 0.0130462425 | K10: 5.475746851e-16 | L10: 4.079247654e-10 | M10: 9.628494464e-18 | N10: 6.063746513e-10 | O10: 2.859148356e-12 | P10: 3.527997971e-13 | Q10: 3.711747866e-11 | R10: 2.080048804e-10 | S10: 1.54717411e-12 | T10: 5.071497084e-13 | U10: 5.732996704e-18 | V10: 7.46024571e-14 | W10: 2.741548424e-10 | X10: 2.285848686e-11 | Y10: 6.431246302e-17 | Z10: 7.680745584e-10 | AA10: 4.520247401e-12 | AB10: 1.984498859e-10 | AC10: 1.400174195e-14 | AD10: 1.716224013e-13 | AE10: 0 | AF10: 7.202995858e-07 | AG10: 2.421823607e-08 | AH10: 3.384673054e-11 | AI10: 4.152747612e-13 | AJ10: 1.153949336e-07 | AK10: 9.591744485e-11 | AL10: 2.032273831e-11 | AM10: 2.01757384e-11 | AN10: 2.502673561e-09 | AO10: 0 | AP10: 2.32994866e-06 | AQ10: 5.475746851e-12 | AR10: 1.194374313e-09 | AS10: 5.255246978e-14 | AT10: 3.748497845e-09 | AU10: 5.328746936e-14 | AV10: 4.630497337e-10 | AW10: 6.210746429e-07 | AX10: 1.201724309e-09 | AY10: 4.740747274e-10 | AZ10: 2.67907346e-05 | BA10: 1.131899349e-15 | BB10: 8.011495393e-05 | BC10: 3.748497845e-08 | BD10: 7.754245541 | BE10: 0.01389149201 | BF10: 0.8415745161 | BG10: 5.84324664e-08 | BH10: 5.806496661e-07 | BI10: 0 | BJ10: 0 | BK10: 0 | BL10: 0 | BM10: 0 | BN10: 0 | BO10: 0 | BP10: 0 | BQ10: 0 | BR10: 0 | BS10: 0 | BT10: 0 | BU10: 0 | BV10: 0 | BW10: 0 | BX10: 0 | BY10: 0 | BZ10: 0 | CA10: 0 | CB10: 0 | CC10: 0 | CD10: 0 | CE10: 0 | CF10: 0 | CG10: 0 | CH10: 0 | CI10: 0 | CJ10: 0 | CK10: 0 | CL10: 0 | CM10: 0 | CN10: 0 | CO10: 4.483497422e-20 | CP10: 0.003024523261 | CQ10: 9.003744823e-22 | CR10: 6.357746344e-06 | CS10: 9.701994421e-20 | CT10: 2.671723464 | CU10: 5.438996873e-17 | CV10: 1.414874186e-07 | CW10: 4.483497422e-05 | CX10: 9.003744823e-22 | CY10: 2.021248838e-13 | CZ10: 2.344648652e-13 | DA10: 0.0008305495224 | DB10: 3.362623066e-19 | DC10: 0 | DD10: 3.785247823e-21 | DE10: 2.182948745e-16 | DF10: 5.953496577e-07 | DG10: 3.44347302e-22 | DH10: 0.0001142924343 | DI10: 0 | DJ10: 1.006949421e-13 | DK10: 2.216023726e-12 | DL10: 1.797073967e-16 | DM10: 2.495323565e-12 | DN10: 6.284246387e-15 | DO10: 8.636245034e-05 | DP10: 8.930244865e-12 | DQ10: 1.256849277e-12 | DR10: 1.576574093e-15 | DS10: 3.127423202e-11 | DT10: 5.84324664e-12 | DU10: 4.299747528e-14 | DV10: 2.759923413e-15 | DW10: 6.247496408e-14 | DX10: 1.469999155e-12 | DY10: 2.554123531e-08 | DZ10: 7.092745922e-06 | EA10: 6.725246133e-21 | EB10: 7.864495478e-16 | EC10: 5.291996957e-09 | ED10: 1.040024402e-15 | EE10: 2.792998394e-17 | EF10: 2.392423624e-16 | EG10: 2.057998817e-11 | EH10: 2.381398631e-18 | EI10: 4.814247232e-11 | EJ10: 1.392824199e-18 | EK10: 6.247496408e-19 | EL10: 1.940398884e-17 | EM10: 2.546773536e-17 | EN10: 9.224244696e-15 | EO10: 5.365496915e-17 | EP10: 1.888948914e-16 | EQ10: 1.047374398e-17 | ER10: 4.189497591e-16 | ES10: 2.664373468e-16 | ET10: 5.622746767e-17 | EU10: 6.982495985e-17 | EV10: 6.210746429e-15 | EW10: 0.812174533 | EX10: 1.455299163e-18 | EY10: 1.028999408e-16 | EZ10: 4.88774719e-11 | FA10: 1.433249176e-15 | FB10: 1.657424047e-15 | FC10: 4.262997549e-11 | FD10: 4.740747274e-14 | FE10: 1.124549353e-06 | FF10: 7.019245964e-07 | FG10: 7.386745753e-11 | FH10: 7.276495816e-08 | FI10: 3.314848094e-07 | FJ10: 0 | FK10: 0 | FL10: 0 | FM10: 0 | FN10: 0 | FO10: 0 | FP10: 0 | FQ10: 0 | FR10: 0 | FS10: 0 | FT10: 0 | FU10: 0 | FV10: 0 | FW10: 0 | FX10: 0 | FY10: 0 | FZ10: 0 | GA10: 0 | GB10: 0 | GC10: 0 | GD10: 0 | GE10: 0 | GF10: 0 | GG10: 0 | GH10: 0 | GI10: 0 | GJ10: 0 | GK10: 0 | GL10: 0 | GM10: 0 | GN10: 0 | GO10: 0 | GP10: 0 | GQ10: 0 | GR10: 0 | GS10: 0 | GT10: 灯油の燃焼（単位：MJ）をLに換算
A11: ｴﾈﾙｷﾞｰ | B11: 軽油 | C11: 燃料 | D11: ［-/L］ | E11: 3 | F11: =SUM(CT11:CU11) -> 2.819598872 | G11: 1.47439941e-05 | H11: 0.8853996458 | I11: 5.395997842e-08 | J11: 0.01360399456 | K11: 5.471997811e-16 | L11: 4.065998374e-10 | M11: 9.613996154e-18 | N11: 6.041997583e-10 | O11: 2.853798858e-12 | P11: 3.526398589e-13 | Q11: 3.704998518e-11 | R11: 2.078599169e-10 | S11: 1.546599381e-12 | T11: 5.053997978e-13 | U11: 5.69999772e-18 | V11: 7.447997021e-14 | W11: 2.739798904e-10 | X11: 2.279999088e-11 | Y11: 6.421997431e-17 | Z11: 7.67599693e-10 | AA11: 4.521998191e-12 | AB11: 1.983599207e-10 | AC11: 1.398399441e-14 | AD11: 1.713799314e-13 | AE11: 0 | AF11: 7.219997112e-07 | AG11: 2.416799033e-08 | AH11: 3.378198649e-11 | AI11: 4.141998343e-13 | AJ11: 1.151399539e-07 | AK11: 9.57599617e-11 | AL11: 2.029199188e-11 | AM11: 2.017799193e-11 | AN11: 2.496599001e-09 | AO11: 0 | AP11: 2.329399068e-06 | AQ11: 5.471997811e-12 | AR11: 1.189399524e-09 | AS11: 5.243997902e-14 | AT11: 3.746798501e-09 | AU11: 5.319997872e-14 | AV11: 4.635998146e-10 | AW11: 6.193997522e-07 | AX11: 1.20079952e-09 | AY11: 4.7499981e-10 | AZ11: 2.67519893e-05 | BA11: 1.128599549e-15 | BB11: 7.979996808e-05 | BC11: 3.739198504e-08 | BD11: 7.751996899 | BE11: 0.01386999445 | BF11: 0.8397996641 | BG11: 5.813997674e-08 | BH11: 5.77599769e-07 | BI11: 0 | BJ11: 0 | BK11: 0 | BL11: 0 | BM11: 0 | BN11: 0 | BO11: 0 | BP11: 0 | BQ11: 0 | BR11: 0 | BS11: 0 | BT11: 0 | BU11: 0 | BV11: 0 | BW11: 0 | BX11: 0 | BY11: 0 | BZ11: 0 | CA11: 0 | CB11: 0 | CC11: 0 | CD11: 0 | CE11: 0 | CF11: 0 | CG11: 0 | CH11: 0 | CI11: 0 | CJ11: 0 | CK11: 0 | CL11: 0 | CM11: 0 | CN11: 0 | CO11: 4.483998206e-20 | CP11: 0.003157798737 | CQ11: 9.005996398e-22 | CR11: 6.611997355e-06 | CS11: 9.689996124e-20 | CT11: 2.819598872 | CU11: 5.433997826e-17 | CV11: 1.409799436e-07 | CW11: 4.67399813e-05 | CX11: 9.005996398e-22 | CY11: 2.017799193e-13 | CZ11: 2.340799064e-13 | DA11: 0.001003199599 | DB11: 3.355398658e-19 | DC11: 0 | DD11: 3.761998495e-21 | DE11: 2.181199128e-16 | DF11: 5.69999772e-05 | DG11: 3.438998624e-22 | DH11: 0.0001409799436 | DI11: 0 | DJ11: 1.006999597e-13 | DK11: 2.215399114e-12 | DL11: 1.793599283e-16 | DM11: 2.492799003e-12 | DN11: 6.269997492e-15 | DO11: 8.967996413e-05 | DP11: 8.929996428e-12 | DQ11: 1.257799497e-12 | DR11: 1.573199371e-15 | DS11: 3.123598751e-11 | DT11: 5.813997674e-12 | DU11: 4.293998282e-14 | DV11: 2.758798896e-15 | DW11: 6.231997507e-14 | DX11: 1.470599412e-12 | DY11: 2.553598979e-08 | DZ11: 7.409997036e-06 | EA11: 6.72599731e-21 | EB11: 7.827996869e-16 | EC11: 5.281997887e-09 | ED11: 1.041199584e-15 | EE11: 2.789198884e-17 | EF11: 2.390199044e-16 | EG11: 2.051999179e-11 | EH11: 2.37499905e-18 | EI11: 4.787998085e-11 | EJ11: 1.390799444e-18 | EK11: 6.231997507e-19 | EL11: 1.937999225e-17 | EM11: 2.545998982e-17 | EN11: 9.233996306e-15 | EO11: 5.357997857e-17 | EP11: 1.888599245e-16 | EQ11: 1.044999582e-17 | ER11: 4.179998328e-16 | ES11: 2.663798934e-16 | ET11: 5.62399775e-17 | EU11: 6.953997218e-17 | EV11: 6.193997522e-15 | EW11: 0.8093996762 | EX11: 1.455399418e-18 | EY11: 1.029799588e-16 | EZ11: 4.863998054e-11 | FA11: 1.428799428e-15 | FB11: 1.652999339e-15 | FC11: 4.255998298e-11 | FD11: 4.7499981e-14 | FE11: 1.12479955e-06 | FF11: 7.029997188e-07 | FG11: 7.371997051e-11 | FH11: 7.257997097e-08 | FI11: 3.309798676e-07 | FJ11: 0 | FK11: 0 | FL11: 0 | FM11: 0 | FN11: 0 | FO11: 0 | FP11: 0 | FQ11: 0 | FR11: 0 | FS11: 0 | FT11: 0 | FU11: 0 | FV11: 0 | FW11: 0 | FX11: 0 | FY11: 0 | FZ11: 0 | GA11: 0 | GB11: 0 | GC11: 0 | GD11: 0 | GE11: 0 | GF11: 0 | GG11: 0 | GH11: 0 | GI11: 0 | GJ11: 0 | GK11: 0 | GL11: 0 | GM11: 0 | GN11: 0 | GO11: 0 | GP11: 0 | GQ11: 0 | GR11: 0 | GS11: 0 | GT11: 軽油の燃焼（単位：MJ）をLに換算
A12: ｴﾈﾙｷﾞｰ | B12: Ａ重油 | C12: 燃料 | D12: ［-/L］ | E12: 2.88 | F12: 2.987143148 | G12: 1.362419155e-05 | H12: 0.9395994174 | I12: 5.011196893e-08 | J12: 0.01444634104 | K12: 5.050346869e-16 | L12: 3.766227665e-10 | M12: 8.847894514e-18 | N12: 5.598446529e-10 | O12: 2.630878369e-12 | P12: 3.249447985e-13 | Q12: 3.417792881e-11 | R12: 1.914433813e-10 | S12: 1.425059116e-12 | T12: 4.658847112e-13 | U12: 5.285246723e-18 | V12: 6.890395728e-14 | W12: 2.525173434e-10 | X12: 2.102353697e-11 | Y12: 5.950796311e-17 | Z12: 7.046995631e-10 | AA12: 4.189047403e-12 | AB12: 1.828303866e-10 | AC12: 1.291949199e-14 | AD12: 1.581659019e-13 | AE12: 0 | AF12: 6.655495874e-07 | AG12: 2.231548616e-08 | AH12: 3.116338068e-11 | AI12: 3.836697621e-13 | AJ12: 1.060964342e-07 | AK12: 8.847894514e-11 | AL12: 1.87136884e-11 | AM12: 1.859623847e-11 | AN12: 2.302018573e-09 | AO12: 0 | AP12: 2.14541867e-06 | AQ12: 5.050346869e-12 | AR12: 1.100114318e-09 | AS12: 4.85459699e-14 | AT12: 3.456942857e-09 | AU12: 4.932896942e-14 | AV12: 4.267347354e-10 | AW12: 5.715896456e-07 | AX12: 1.107944313e-09 | AY12: 4.384797281e-10 | AZ12: 2.470363468e-05 | BA12: 1.041389354e-15 | BB12: 7.360195437e-05 | BC12: 3.449112862e-08 | BD12: 7.125295582 | BE12: 0.01280204206 | BF12: 0.7751695194 | BG12: 5.363546675e-08 | BH12: 5.324396699e-07 | BI12: 0 | BJ12: 0 | BK12: 0 | BL12: 0 | BM12: 0 | BN12: 0 | BO12: 0 | BP12: 0 | BQ12: 0 | BR12: 0 | BS12: 0 | BT12: 0 | BU12: 0 | BV12: 0 | BW12: 0 | BX12: 0 | BY12: 0 | BZ12: 0 | CA12: 0 | CB12: 0 | CC12: 0 | CD12: 0 | CE12: 0 | CF12: 0 | CG12: 0 | CH12: 0 | CI12: 0 | CJ12: 0 | CK12: 0 | CL12: 0 | CM12: 0 | CN12: 0 | CO12: 4.149897427e-20 | CP12: 0.003343407927 | CQ12: 8.299794854e-22 | CR12: 7.007845655e-06 | CS12: 8.965344441e-20 | CT12: 2.987143148 | CU12: 5.011196893e-17 | CV12: 1.303694192e-07 | CW12: 4.972046917e-05 | CX12: 8.299794854e-22 | CY12: 1.859623847e-13 | CZ12: 2.16107866e-13 | DA12: 0.001100114318 | DB12: 3.09676308e-19 | DC12: 0 | DD12: 3.472602847e-21 | DE12: 2.012308752e-16 | DF12: 0.001299779194 | DG12: 3.171148034e-22 | DH12: 0.0002630878369 | DI12: 0 | DJ12: 9.278544247e-14 | DK12: 2.043628733e-12 | DL12: 1.656043973e-16 | DM12: 2.298103575e-12 | DN12: 5.794196408e-15 | DO12: 9.121944344e-05 | DP12: 8.221494903e-12 | DQ12: 1.158839282e-12 | DR12: 1.452464099e-15 | DS12: 2.881438214e-11 | DT12: 5.363546675e-12 | DU12: 3.954147548e-14 | DV12: 2.544748422e-15 | DW12: 5.755046432e-14 | DX12: 1.35458916e-12 | DY12: 2.352913541e-08 | DZ12: 7.829995145e-06 | EA12: 6.185696165e-21 | EB12: 7.242745509e-16 | EC12: 4.893746966e-09 | ED12: 9.591744053e-16 | EE12: 2.572153405e-17 | EF12: 2.204143633e-16 | EG12: 1.894858825e-11 | EH12: 2.192398641e-18 | EI12: 4.423947257e-11 | EJ12: 1.284119204e-18 | EK12: 5.755046432e-19 | EL12: 1.785238893e-17 | EM12: 2.348998544e-17 | EN12: 8.495544733e-15 | EO12: 4.972046917e-17 | EP12: 1.74217392e-16 | EQ12: 9.630894029e-18 | ER12: 3.868017602e-16 | ES12: 2.454703478e-16 | ET12: 5.167796796e-17 | EU12: 6.420596019e-17 | EV12: 5.715896456e-15 | EW12: 0.7477645364 | EX12: 1.342844167e-18 | EY12: 9.474294126e-17 | EZ12: 4.502247209e-11 | FA12: 1.319354182e-15 | FB12: 1.526849053e-15 | FC12: 3.914997573e-11 | FD12: 4.384797281e-14 | FE12: 1.037474357e-06 | FF12: 6.459745995e-07 | FG12: 6.812095777e-11 | FH12: 6.694645849e-08 | FI12: 3.053698107e-07 | FJ12: 0 | FK12: 0 | FL12: 0 | FM12: 0 | FN12: 0 | FO12: 0 | FP12: 0 | FQ12: 0 | FR12: 0 | FS12: 0 | FT12: 0 | FU12: 0 | FV12: 0 | FW12: 0 | FX12: 0 | FY12: 0 | FZ12: 0 | GA12: 0 | GB12: 0 | GC12: 0 | GD12: 0 | GE12: 0 | GF12: 0 | GG12: 0 | GH12: 0 | GI12: 0 | GJ12: 0 | GK12: 0 | GL12: 0 | GM12: 0 | GN12: 0 | GO12: 0 | GP12: 0 | GQ12: 0 | GR12: 0 | GS12: 0 | GT12: A重油の燃焼（単位：MJ）をLに換算
A13: ｴﾈﾙｷﾞｰ | B13: Ｂ重油 | C13: 燃料 | D13: ［-/L］ | E13: 3.04 | F13: 3.135036865 | G13: 1.357438643e-05 | H13: 0.9574790425 | I13: 4.969195031e-08 | J13: 0.01470558529 | K13: 5.04999495e-16 | L13: 3.757196243e-10 | M13: 8.847591152e-18 | N13: 5.575194425e-10 | O13: 2.625997374e-12 | P13: 3.24007676e-13 | Q13: 3.40975659e-11 | R13: 1.910918089e-10 | S13: 1.422078578e-12 | T13: 4.645995354e-13 | U13: 5.251994748e-18 | V13: 6.867993132e-14 | W13: 2.520957479e-10 | X13: 2.096757903e-11 | Y13: 5.898394102e-17 | Z13: 7.02959297e-10 | AA13: 4.161195839e-12 | AB13: 1.822038178e-10 | AC13: 1.284718715e-14 | AD13: 1.575598424e-13 | AE13: 0 | AF13: 6.625593374e-07 | AG13: 2.221997778e-08 | AH13: 3.106756893e-11 | AI13: 3.825876174e-13 | AJ13: 1.058478942e-07 | AK13: 8.807191193e-11 | AL13: 1.866478134e-11 | AM13: 1.854358146e-11 | AN13: 2.298757701e-09 | AO13: 0 | AP13: 2.141197859e-06 | AQ13: 5.00959499e-12 | AR13: 1.094838905e-09 | AS13: 4.847995152e-14 | AT13: 3.446116554e-09 | AU13: 4.888395112e-14 | AV13: 4.282395718e-10 | AW13: 5.696394304e-07 | AX13: 1.102918897e-09 | AY13: 4.363195637e-10 | AZ13: 2.46035754e-05 | BA13: 1.038278962e-15 | BB13: 7.352792647e-05 | BC13: 3.442076558e-08 | BD13: 7.11039289 | BE13: 0.01276638723 | BF13: 0.7716392284 | BG13: 5.373194627e-08 | BH13: 5.332794667e-07 | BI13: 0 | BJ13: 0 | BK13: 0 | BL13: 0 | BM13: 0 | BN13: 0 | BO13: 0 | BP13: 0 | BQ13: 0 | BR13: 0 | BS13: 0 | BT13: 0 | BU13: 0 | BV13: 0 | BW13: 0 | BX13: 0 | BY13: 0 | BZ13: 0 | CA13: 0 | CB13: 0 | CC13: 0 | CD13: 0 | CE13: 0 | CF13: 0 | CG13: 0 | CH13: 0 | CI13: 0 | CJ13: 0 | CK13: 0 | CL13: 0 | CM13: 0 | CN13: 0 | CO13: 4.120795879e-20 | CP13: 0.003405716594 | CQ13: 8.281991718e-22 | CR13: 7.150792849e-06 | CS13: 8.928391072e-20 | CT13: 3.135036865 | CU13: 4.969195031e-17 | CV13: 1.296838703e-07 | CW13: 5.130794869e-05 | CX13: 8.281991718e-22 | CY13: 1.854358146e-13 | CZ13: 2.153317847e-13 | DA13: 0.001543278457 | DB13: 3.086556913e-19 | DC13: 0 | DD13: 3.462276538e-21 | DE13: 2.007877992e-16 | DF13: 0.003034036966 | DG13: 3.159276841e-22 | DH13: 0.000244015756 | DI13: 0 | DJ13: 9.251590748e-14 | DK13: 2.036157964e-12 | DL13: 1.648318352e-16 | DM13: 2.290677709e-12 | DN13: 5.777194223e-15 | DO13: 0.0004363195637 | DP13: 8.201191799e-12 | DQ13: 1.155438845e-12 | DR13: 1.446318554e-15 | DS13: 2.872437128e-11 | DT13: 5.373194627e-12 | DU13: 3.930916069e-14 | DV13: 2.537117463e-15 | DW13: 5.736794263e-14 | DX13: 1.353398647e-12 | DY13: 2.347237653e-08 | DZ13: 7.958792041e-06 | EA13: 6.181193819e-21 | EB13: 7.191192809e-16 | EC13: 4.847995152e-09 | ED13: 9.574790425e-16 | EE13: 2.565397435e-17 | EF13: 2.197757802e-16 | EG13: 1.886678113e-11 | EH13: 2.185637814e-18 | EI13: 4.403595596e-11 | EJ13: 1.280678719e-18 | EK13: 5.736794263e-19 | EL13: 1.781638218e-17 | EM13: 2.339157661e-17 | EN13: 8.483991516e-15 | EO13: 4.928795071e-17 | EP13: 1.737198263e-16 | EQ13: 9.615190385e-18 | ER13: 3.858196142e-16 | ES13: 2.448237552e-16 | ET13: 5.171194829e-17 | EU13: 6.423593576e-17 | EV13: 5.696394304e-15 | EW13: 0.7433592566 | EX13: 1.337238663e-18 | EY13: 9.453590546e-17 | EZ13: 4.484395516e-11 | FA13: 1.317038683e-15 | FB13: 1.519038481e-15 | FC13: 3.902636097e-11 | FD13: 4.363195637e-14 | FE13: 1.034238966e-06 | FF13: 6.463993536e-07 | FG13: 6.787193213e-11 | FH13: 6.665993334e-08 | FI13: 3.046156954e-07 | FJ13: 0 | FK13: 0 | FL13: 0 | FM13: 0 | FN13: 0 | FO13: 0 | FP13: 0 | FQ13: 0 | FR13: 0 | FS13: 0 | FT13: 0 | FU13: 0 | FV13: 0 | FW13: 0 | FX13: 0 | FY13: 0 | FZ13: 0 | GA13: 0 | GB13: 0 | GC13: 0 | GD13: 0 | GE13: 0 | GF13: 0 | GG13: 0 | GH13: 0 | GI13: 0 | GJ13: 0 | GK13: 0 | GL13: 0 | GM13: 0 | GN13: 0 | GO13: 0 | GP13: 0 | GQ13: 0 | GR13: 0 | GS13: 0 | GT13: B重油の燃焼（単位：MJ）をLに換算
A14: ｴﾈﾙｷﾞｰ | B14: Ｃ重油 | C14: 燃料 | D14: ［-/L］ | E14: 3.04 | F14: 3.250025194 | G14: 1.158923713e-05 | H14: 0.9825657563 | I14: 4.240988948e-08 | J14: 0.01507440626 | K14: 4.324968927e-16 | L14: 3.208035204e-10 | M14: 7.558198126e-18 | N14: 4.744868823e-10 | O14: 2.242265444e-12 | P14: 2.771339313e-13 | Q14: 2.914105277e-11 | R14: 1.633410595e-10 | S14: 1.213510699e-12 | T14: 3.980651013e-13 | U14: 4.492928886e-18 | V14: 5.878598542e-14 | W14: 2.154086466e-10 | X14: 1.792972555e-11 | Y14: 5.03879875e-17 | Z14: 6.004568511e-10 | AA14: 3.556552118e-12 | AB14: 1.557828614e-10 | AC14: 1.100137727e-14 | AD14: 1.347878666e-13 | AE14: 0 | AF14: 5.668648594e-07 | AG14: 1.902146528e-08 | AH14: 2.653767342e-11 | AI14: 3.26682119e-13 | AJ14: 9.027847761e-08 | AK14: 7.516208136e-11 | AL14: 1.591420605e-11 | AM14: 1.583022607e-11 | AN14: 1.960932514e-09 | AO14: 0 | AP14: 1.830763546e-06 | AQ14: 4.282978938e-12 | AR14: 9.363767678e-10 | AS14: 4.131814975e-14 | AT14: 2.94349827e-09 | AU14: 4.186401962e-14 | AV14: 3.648930095e-10 | AW14: 4.870838792e-07 | AX14: 9.447747657e-10 | AY14: 3.720313077e-10 | AZ14: 2.103698478e-05 | BA14: 8.859887803e-16 | BB14: 6.298498438e-05 | BC14: 2.939299271e-08 | BD14: 6.08854849 | BE14: 0.01091739729 | BF14: 0.6592428365 | BG14: 4.576908865e-08 | BH14: 4.534918875e-07 | BI14: 0 | BJ14: 0 | BK14: 0 | BL14: 0 | BM14: 0 | BN14: 0 | BO14: 0 | BP14: 0 | BQ14: 0 | BR14: 0 | BS14: 0 | BT14: 0 | BU14: 0 | BV14: 0 | BW14: 0 | BX14: 0 | BY14: 0 | BZ14: 0 | CA14: 0 | CB14: 0 | CC14: 0 | CD14: 0 | CE14: 0 | CF14: 0 | CG14: 0 | CH14: 0 | CI14: 0 | CJ14: 0 | CK14: 0 | CL14: 0 | CM14: 0 | CN14: 0 | CO14: 3.527159125e-20 | CP14: 0.003497766133 | CQ14: 7.054318251e-22 | CR14: 7.348248178e-06 | CS14: 7.642178105e-20 | CT14: 3.250025194 | CU14: 4.240988948e-17 | CV14: 1.108535725e-07 | CW14: 5.248748698e-05 | CX14: 7.054318251e-22 | CY14: 1.583022607e-13 | CZ14: 1.839161544e-13 | DA14: 0.00181396755 | DB14: 2.636971346e-19 | DC14: 0 | DD14: 2.956095267e-21 | DE14: 1.713191575e-16 | DF14: 0.004618898855 | DG14: 2.69995633e-22 | DH14: 0.0002250663442 | DI14: 0 | DJ14: 7.894118042e-14 | DK14: 1.738385569e-12 | DL14: 1.41086365e-16 | DM14: 1.956733515e-12 | DN14: 4.912828782e-15 | DO14: 0.0004492928886 | DP14: 7.012328261e-12 | DQ14: 9.867647553e-13 | DR14: 1.238704693e-15 | DS14: 2.452215392e-11 | DT14: 4.576908865e-12 | DU14: 3.359199167e-14 | DV14: 2.166683463e-15 | DW14: 4.912828782e-14 | DX14: 1.154724714e-12 | DY14: 2.007121502e-08 | DZ14: 8.188047969e-06 | EA14: 5.290738688e-21 | EB14: 6.172528469e-16 | EC14: 4.15280997e-09 | ED14: 8.188047969e-16 | EE14: 2.191877456e-17 | EF14: 1.876952535e-16 | EG14: 1.6124156e-11 | EH14: 1.868554537e-18 | EI14: 3.774900064e-11 | EJ14: 1.091739729e-18 | EK14: 4.912828782e-19 | EL14: 1.520037623e-17 | EM14: 1.998723504e-17 | EN14: 7.264268198e-15 | EO14: 4.240988948e-17 | EP14: 1.482246632e-16 | EQ14: 8.230037959e-18 | ER14: 3.296214183e-16 | ES14: 2.091101481e-16 | ET14: 4.408948907e-17 | EU14: 5.458698646e-17 | EV14: 4.870838792e-15 | EW14: 0.6382478417 | EX14: 1.142127717e-18 | EY14: 8.062078001e-17 | EZ14: 3.833686049e-11 | FA14: 1.125331721e-15 | FB14: 1.297490678e-15 | FC14: 3.334005173e-11 | FD14: 3.732910074e-14 | FE14: 8.817897813e-07 | FF14: 5.500688636e-07 | FG14: 5.794618563e-11 | FH14: 5.710638584e-08 | FI14: 2.603379354e-07 | FJ14: 0 | FK14: 0 | FL14: 0 | FM14: 0 | FN14: 0 | FO14: 0 | FP14: 0 | FQ14: 0 | FR14: 0 | FS14: 0 | FT14: 0 | FU14: 0 | FV14: 0 | FW14: 0 | FX14: 0 | FY14: 0 | FZ14: 0 | GA14: 0 | GB14: 0 | GC14: 0 | GD14: 0 | GE14: 0 | GF14: 0 | GG14: 0 | GH14: 0 | GI14: 0 | GJ14: 0 | GK14: 0 | GL14: 0 | GM14: 0 | GN14: 0 | GO14: 0 | GP14: 0 | GQ14: 0 | GR14: 0 | GS14: 0 | GT14: C重油の燃焼（単位：MJ）をLに換算
A15: ｴﾈﾙｷﾞｰ | B15: ナフサ | C15: 燃料 | D15: ［-/L］ | E15: 2.31 | F15: 2.443166182 | G15: 1.154463141e-05 | H15: 0.8121513958 | I15: 4.228556854e-08 | J15: 0.01248431071 | K15: 4.295676804e-16 | L15: 3.194909623e-10 | M15: 7.517434407e-18 | N15: 4.731956479e-10 | O15: 2.23173834e-12 | P15: 2.758629948e-13 | Q15: 2.899581843e-11 | R15: 1.624302792e-10 | S15: 1.211515099e-12 | T15: 3.960077054e-13 | U15: 4.463476679e-18 | V15: 5.839435655e-14 | W15: 2.144482405e-10 | X15: 1.785390672e-11 | Y15: 5.033996255e-17 | Z15: 6.007235531e-10 | AA15: 3.557357353e-12 | AB15: 1.550470846e-10 | AC15: 1.094055186e-14 | AD15: 1.342399001e-13 | AE15: 0 | AF15: 5.638075805e-07 | AG15: 1.892782592e-08 | AH15: 2.644526032e-11 | AI15: 3.251961581e-13 | AJ15: 8.994073308e-08 | AK15: 7.483874432e-11 | AL15: 1.587386819e-11 | AM15: 1.577318826e-11 | AN15: 1.953190547e-09 | AO15: 0 | AP15: 1.822306644e-06 | AQ15: 4.262116829e-12 | AR15: 9.329673059e-10 | AS15: 4.127876929e-14 | AT15: 2.933141818e-09 | AU15: 4.161436904e-14 | AV15: 3.624477303e-10 | AW15: 4.832636405e-07 | AX15: 9.396793009e-10 | AY15: 3.691597253e-10 | AZ15: 2.094142442e-05 | BA15: 8.826273433e-16 | BB15: 6.242155356e-05 | BC15: 2.926429823e-08 | BD15: 6.040795506 | BE15: 0.01083987194 | BF15: 0.6577755106 | BG15: 4.564156604e-08 | BH15: 4.530596629e-07 | BI15: 0 | BJ15: 0 | BK15: 0 | BL15: 0 | BM15: 0 | BN15: 0 | BO15: 0 | BP15: 0 | BQ15: 0 | BR15: 0 | BS15: 0 | BT15: 0 | BU15: 0 | BV15: 0 | BW15: 0 | BX15: 0 | BY15: 0 | BZ15: 0 | CA15: 0 | CB15: 0 | CC15: 0 | CD15: 0 | CE15: 0 | CF15: 0 | CG15: 0 | CH15: 0 | CI15: 0 | CJ15: 0 | CK15: 0 | CL15: 0 | CM15: 0 | CN15: 0 | CO15: 3.523797378e-20 | CP15: 0.002892869848 | CQ15: 7.047594757e-22 | CR15: 6.074355481e-06 | CS15: 7.584554357e-20 | CT15: 2.443166182 | CU15: 4.228556854e-17 | CV15: 1.104123179e-07 | CW15: 4.295676804e-05 | CX15: 7.047594757e-22 | CY15: 1.577318826e-13 | CZ15: 1.832374637e-13 | DA15: 0.0007349634532 | DB15: 2.624390047e-19 | DC15: 0 | DD15: 2.94320981e-21 | DE15: 1.708202729e-16 | DF15: 1.443078926e-05 | DG15: 2.688154e-22 | DH15: 0.0001016867243 | DI15: 0 | DJ15: 7.886594132e-14 | DK15: 1.731694712e-12 | DL15: 1.402806956e-16 | DM15: 1.949834549e-12 | DN15: 4.899756355e-15 | DO15: 7.618114332e-05 | DP15: 6.980474807e-12 | DQ15: 9.833072684e-13 | DR15: 1.231651084e-15 | DS15: 2.443166182e-11 | DT15: 4.564156604e-12 | DU15: 3.345929511e-14 | DV15: 2.157906395e-15 | DW15: 4.86619638e-14 | DX15: 1.151107144e-12 | DY15: 1.996818514e-08 | DZ15: 6.779114956e-06 | EA15: 5.235356105e-21 | EB15: 6.141475431e-16 | EC15: 4.127876929e-09 | ED15: 8.121513958e-16 | EE15: 2.184754375e-17 | EF15: 1.869290609e-16 | EG15: 1.607522804e-11 | EH15: 1.859222617e-18 | EI15: 3.758717204e-11 | EJ15: 1.087343191e-18 | EK15: 4.86619638e-19 | EL15: 1.513554874e-17 | EM15: 1.990106519e-17 | EN15: 7.215394632e-15 | EO15: 4.194996879e-17 | EP15: 1.476638901e-16 | EQ15: 8.188633908e-18 | ER15: 3.282165558e-16 | ES15: 2.084074449e-16 | ET15: 4.396356729e-17 | EU15: 5.436715955e-17 | EV15: 4.86619638e-15 | EW15: 0.6342835281 | EX15: 1.137683154e-18 | EY15: 8.054394008e-17 | EZ15: 3.825837154e-11 | FA15: 1.117547169e-15 | FB15: 1.292059039e-15 | FC15: 3.319081531e-11 | FD15: 3.725157228e-14 | FE15: 8.792713458e-07 | FF15: 5.503835905e-07 | FG15: 5.772315705e-11 | FH15: 5.67163578e-08 | FI15: 2.590830072e-07 | FJ15: 0 | FK15: 0 | FL15: 0 | FM15: 0 | FN15: 0 | FO15: 0 | FP15: 0 | FQ15: 0 | FR15: 0 | FS15: 0 | FT15: 0 | FU15: 0 | FV15: 0 | FW15: 0 | FX15: 0 | FY15: 0 | FZ15: 0 | GA15: 0 | GB15: 0 | GC15: 0 | GD15: 0 | GE15: 0 | GF15: 0 | GG15: 0 | GH15: 0 | GI15: 0 | GJ15: 0 | GK15: 0 | GL15: 0 | GM15: 0 | GN15: 0 | GO15: 0 | GP15: 0 | GQ15: 0 | GR15: 0 | GS15: 0 | GT15: ナフサの燃焼（単位：MJ）をLに換算
... 18 more rows

Sheet 環境負荷①掘削除去(ｾﾒﾝﾄ)
A1: 評価結果に戻る
A2: モジュール | B2: 算出区分 | C2: 分類 | D2: 種目1 | E2: 種目3 | F2: 燃料種類/素材 | G2: 活動量 | H2: 活動量 | I2: a | J2: 代表的な8項目 | R2: 入力フロー | S2: 入力フロー | T2: 入力フロー | U2: 入力フロー | V2: 入力フロー | W2: 入力フロー | X2: 入力フロー | Y2: 入力フロー | Z2: 入力フロー | AA2: 入力フロー | AB2: 入力フロー | AC2: 入力フロー | AD2: 入力フロー | AE2: 入力フロー | AF2: 入力フロー | AG2: 入力フロー | AH2: 入力フロー | AI2: 入力フロー | AJ2: 入力フロー | AK2: 入力フロー | AL2: 入力フロー | AM2: 入力フロー | AN2: 入力フロー | AO2: 入力フロー | AP2: 入力フロー | AQ2: 入力フロー | AR2: 入力フロー | AS2: 入力フロー | AT2: 入力フロー | AU2: 入力フロー | AV2: 入力フロー | AW2: 入力フロー | AX2: 入力フロー | AY2: 入力フロー | AZ2: 入力フロー | BA2: 入力フロー | BB2: 入力フロー | BC2: 入力フロー | BD2: 入力フロー | BE2: 入力フロー | BF2: 入力フロー | BG2: 入力フロー | BH2: 入力フロー | BI2: 入力フロー | BJ2: 入力フロー | BK2: 入力フロー | BL2: 入力フロー | BM2: 入力フロー | BN2: 入力フロー | BO2: 入力フロー | BP2: 入力フロー | BQ2: 入力フロー | BR2: 入力フロー | BS2: 入力フロー | BT2: 入力フロー | BU2: 入力フロー | BV2: 入力フロー | BW2: 入力フロー | BX2: 入力フロー | BY2: 入力フロー | BZ2: 入力フロー | CA2: 入力フロー | CB2: 入力フロー | CC2: 入力フロー | CD2: 入力フロー | CE2: 入力フロー | CF2: 入力フロー | CG2: 入力フロー | CH2: 入力フロー | CI2: 入力フロー | CJ2: 入力フロー | CK2: 入力フロー | CL2: 入力フロー | CM2: 入力フロー | CN2: 入力フロー | CO2: 入力フロー | CP2: 入力フロー | CQ2: 入力フロー | CR2: 入力フロー | CS2: 入力フロー | CT2: 入力フロー | CU2: 入力フロー | CV2: 入力フロー | CW2: 入力フロー | CX2: 入力フロー | CY2: 入力フロー | CZ2: 出力フロー | DA2: 出力フロー | DB2: 出力フロー | DC2: 出力フロー | DD2: 出力フロー | DE2: 出力フロー | DF2: 出力フロー | DG2: 出力フロー | DH2: 出力フロー | DI2: 出力フロー | DJ2: 出力フロー | DK2: 出力フロー | DL2: 出力フロー | DM2: 出力フロー | DN2: 出力フロー | DO2: 出力フロー | DP2: 出力フロー | DQ2: 出力フロー | DR2: 出力フロー | DS2: 出力フロー | DT2: 出力フロー | DU2: 出力フロー | DV2: 出力フロー | DW2: 出力フロー | DX2: 出力フロー | DY2: 出力フロー | DZ2: 出力フロー | EA2: 出力フロー | EB2: 出力フロー | EC2: 出力フロー | ED2: 出力フロー | EE2: 出力フロー | EF2: 出力フロー | EG2: 出力フロー | EH2: 出力フロー | EI2: 出力フロー | EJ2: 出力フロー | EK2: 出力フロー | EL2: 出力フロー | EM2: 出力フロー | EN2: 出力フロー | EO2: 出力フロー | EP2: 出力フロー | EQ2: 出力フロー | ER2: 出力フロー | ES2: 出力フロー | ET2: 出力フロー | EU2: 出力フロー | EV2: 出力フロー | EW2: 出力フロー | EX2: 出力フロー | EY2: 出力フロー | EZ2: 出力フロー | FA2: 出力フロー | FB2: 出力フロー | FC2: 出力フロー | FD2: 出力フロー | FE2: 出力フロー | FF2: 出力フロー | FG2: 出力フロー | FH2: 出力フロー | FI2: 出力フロー | FJ2: 出力フロー | FK2: 出力フロー | FL2: 出力フロー | FM2: 出力フロー | FN2: 出力フロー | FO2: 出力フロー | FP2: 出力フロー | FQ2: 出力フロー | FR2: 出力フロー | FS2: 出力フロー | FT2: 出力フロー | FU2: 出力フロー | FV2: 出力フロー | FW2: 出力フロー | FX2: 出力フロー | FY2: 出力フロー | FZ2: 出力フロー | GA2: 出力フロー | GB2: 出力フロー | GC2: 出力フロー | GD2: 出力フロー | GE2: 出力フロー | GF2: 出力フロー | GG2: 出力フロー | GH2: 出力フロー | GI2: 出力フロー | GJ2: 出力フロー | GK2: 出力フロー | GL2: 出力フロー | GM2: 出力フロー | GN2: 出力フロー | GO2: 出力フロー | GP2: 出力フロー | GQ2: 出力フロー | GR2: 出力フロー | GS2: 出力フロー | GT2: 出力フロー | GU2: 出力フロー | GV2: 出力フロー | GW2: 出力フロー | GX2: 出力フロー | GY2: 出力フロー | GZ2: 出力フロー | HA2: 出力フロー | HB2: 出力フロー | HC2: 出力フロー | HD2: 出力フロー | HE2: 特性化 | HF2: 特性化 | HG2: 特性化 | HH2: 特性化 | HI2: 特性化 | HJ2: 特性化 | HK2: 特性化 | HL2: 特性化 | HM2: 特性化 | HN2: 特性化 | HO2: 特性化 | HP2: 特性化 | HQ2: 特性化 | HR2: 特性化 | HS2: 特性化 | HT2: 特性化 | HU2: 特性化 | HV2: 被害評価 | HW2: 被害評価 | HX2: 被害評価 | HY2: 被害評価 | HZ2: 被害評価 | IA2: 被害評価 | IB2: 被害評価 | IC2: 被害評価 | ID2: 被害評価 | IE2: 被害評価 | IF2: 被害評価 | IG2: 被害評価 | IH2: 被害評価 | II2: 被害評価 | IJ2: 被害評価 | IK2: 被害評価 | IL2: 被害評価 | IM2: 被害評価 | IN2: 被害評価 | IO2: 被害評価 | IP2: 被害評価 | IQ2: 被害評価 | IR2: 被害評価 | IS2: 統合化 | IT2: 統合化 | IU2: 統合化 | IV2: 統合化 | IW2: 統合化 | IX2: 統合化 | IY2: 統合化 | IZ2: 統合化 | JA2: 統合化 | JB2: 統合化 | JC2: 統合化 | JD2: 統合化
C3: 番号 | G3: 数値 | H3: 単位 | I3: b | J3: 大気 | N3: エネルギー | O3: マテリアル | Q3: 廃棄物 | R3: 基本フロー | S3: 基本フロー | T3: 基本フロー | U3: 基本フロー | V3: 基本フロー | W3: 基本フロー | X3: 基本フロー | Y3: 基本フロー | Z3: 基本フロー | AA3: 基本フロー | AB3: 基本フロー | AC3: 基本フロー | AD3: 基本フロー | AE3: 基本フロー | AF3: 基本フロー | AG3: 基本フロー | AH3: 基本フロー | AI3: 基本フロー | AJ3: 基本フロー | AK3: 基本フロー | AL3: 基本フロー | AM3: 基本フロー | AN3: 基本フロー | AO3: 基本フロー | AP3: 基本フロー | AQ3: 基本フロー | AR3: 基本フロー | AS3: 基本フロー | AT3: 基本フロー | AU3: 基本フロー | AV3: 基本フロー | AW3: 基本フロー | AX3: 基本フロー | AY3: 基本フロー | AZ3: 基本フロー | BA3: 基本フロー | BB3: 基本フロー | BC3: 基本フロー | BD3: 基本フロー | BE3: 基本フロー | BF3: 基本フロー | BG3: 基本フロー | BH3: 基本フロー | BI3: 基本フロー | BJ3: 基本フロー | BK3: 基本フロー | BL3: 基本フロー | BM3: 基本フロー | BN3: 基本フロー | BO3: 基本フロー | BP3: 基本フロー | BQ3: 基本フロー | BR3: 基本フロー | BS3: 基本フロー | BT3: 中間フロー | BU3: 中間フロー | BV3: 中間フロー | BW3: 中間フロー | BX3: 中間フロー | BY3: 中間フロー | BZ3: 中間フロー | CA3: 中間フロー | CB3: 中間フロー | CC3: 中間フロー | CD3: 中間フロー | CE3: 中間フロー | CF3: 中間フロー | CG3: 中間フロー | CH3: 中間フロー | CI3: 中間フロー | CJ3: 中間フロー | CK3: 中間フロー | CL3: 中間フロー | CM3: 中間フロー | CN3: 中間フロー | CO3: 中間フロー | CP3: 中間フロー | CQ3: 中間フロー | CR3: 中間フロー | CS3: 中間フロー | CT3: 中間フロー | CU3: 中間フロー | CV3: 中間フロー | CW3: 中間フロー | CX3: 中間フロー | CY3: 中間フロー | CZ3: 基本フロー | DA3: 基本フロー | DB3: 基本フロー | DC3: 基本フロー | DD3: 基本フロー | DE3: 基本フロー | DF3: 基本フロー | DG3: 基本フロー | DH3: 基本フロー | DI3: 基本フロー | DJ3: 基本フロー | DK3: 基本フロー | DL3: 基本フロー | DM3: 基本フロー | DN3: 基本フロー | DO3: 基本フロー | DP3: 基本フロー | DQ3: 基本フロー | DR3: 基本フロー | DS3: 基本フロー | DT3: 基本フロー | DU3: 基本フロー | DV3: 基本フロー | DW3: 基本フロー | DX3: 基本フロー | DY3: 基本フロー | DZ3: 基本フロー | EA3: 基本フロー | EB3: 基本フロー | EC3: 基本フロー | ED3: 基本フロー | EE3: 基本フロー | EF3: 基本フロー | EG3: 基本フロー | EH3: 基本フロー | EI3: 基本フロー | EJ3: 基本フロー | EK3: 基本フロー | EL3: 基本フロー | EM3: 基本フロー | EN3: 基本フロー | EO3: 基本フロー | EP3: 基本フロー | EQ3: 基本フロー | ER3: 基本フロー | ES3: 基本フロー | ET3: 基本フロー | EU3: 基本フロー | EV3: 基本フロー | EW3: 基本フロー | EX3: 基本フロー | EY3: 基本フロー | EZ3: 基本フロー | FA3: 基本フロー | FB3: 基本フロー | FC3: 基本フロー | FD3: 基本フロー | FE3: 基本フロー | FF3: 基本フロー | FG3: 基本フロー | FH3: 基本フロー | FI3: 基本フロー | FJ3: 基本フロー | FK3: 基本フロー | FL3: 基本フロー | FM3: 基本フロー | FN3: 基本フロー | FO3: 基本フロー | FP3: 基本フロー | FQ3: 基本フロー | FR3: 基本フロー | FS3: 基本フロー | FT3: 基本フロー | FU3: 中間フロー | FV3: 中間フロー | FW3: 中間フロー | FX3: 中間フロー | FY3: 中間フロー | FZ3: 中間フロー | GA3: 中間フロー | GB3: 中間フロー | GC3: 中間フロー | GD3: 中間フロー | GE3: 中間フロー | GF3: 中間フロー | GG3: 中間フロー | GH3: 中間フロー | GI3: 中間フロー | GJ3: 中間フロー | GK3: 中間フロー | GL3: 中間フロー | GM3: 中間フロー | GN3: 中間フロー | GO3: 中間フロー | GP3: 中間フロー | GQ3: 中間フロー | GR3: 中間フロー | GS3: 中間フロー | GT3: 中間フロー | GU3: 中間フロー | GV3: 中間フロー | GW3: 中間フロー | GX3: 中間フロー | GY3: 中間フロー | GZ3: 中間フロー | HA3: 中間フロー | HB3: 中間フロー | HC3: 中間フロー | HD3: 中間フロー | HE3: － | HF3: － | HG3: － | HH3: － | HI3: － | HJ3: － | HK3: － | HL3: － | HM3: － | HN3: － | HO3: － | HP3: － | HQ3: － | HR3: － | HS3: － | HT3: － | HU3: － | HV3: 人間健康 | HW3: 人間健康 | HX3: 人間健康 | HY3: 人間健康 | HZ3: 人間健康 | IA3: 人間健康 | IB3: 一次生産 | IC3: 一次生産 | ID3: 一次生産 | IE3: 一次生産 | IF3: 一次生産 | IG3: 社会資産 | IH3: 社会資産 | II3: 社会資産 | IJ3: 社会資産 | IK3: 社会資産 | IL3: 社会資産 | IM3: 社会資産 | IN3: 生物多様性 | IO3: 生物多様性 | IP3: 生物多様性 | IQ3: 生物多様性 | IR3: 生物多様性 | IS3: 経済換算 | IT3: 経済換算 | IU3: 経済換算 | IV3: 経済換算 | IW3: 経済換算 | IX3: 経済換算 | IY3: 経済換算 | IZ3: 経済換算 | JA3: 経済換算 | JB3: 経済換算 | JC3: 経済換算 | JD3: 経済換算
I4: c | J4: CO2 | K4: PM10 | L4: SOX | M4: NOX | N4: 原油, 44.7MJ/kg | O4: 鉄 | P4: 砂 | Q4: 廃棄物 | R4: 一般炭, 25.7MJ/kg | S4: 原油, 44.7MJ/kg | T4: 原料炭, 29.0MJ/kg | U4: 天然ガス, 54.6MJ/kg | V4: 天然ガス液, 46.5MJ/kg | W4: ウラン,U3O8 | X4: アンチモン | Y4: クロム | Z4: コバルト | AA4: タングステン | AB4: チタン | AC4: ニッケル | AD4: バナジウム | AE4: バリウム | AF4: ビスマス | AG4: ホウ素 | AH4: マンガン | AI4: モリブデン | AJ4: リチウム | AK4: リン | AL4: 亜鉛 | AM4: 鉛 | AN4: 金 | AO4: 銀 | AP4: 砂 | AQ4: 大理石 | AR4: 鉄 | AS4: 銅 | AT4: 白金 | AU4: 硫黄 | AV4: カオリン | AW4: ケイ砂 | AX4: タルク | AY4: ドロマイト | AZ4: ベントナイト | BA4: ボーキサイト | BB4: 塩化ナトリウム | BC4: 珪石 | BD4: 珪藻岩 | BE4: 蛍石 | BF4: 黒鉛鉱 | BG4: 蛇紋岩 | BH4: 石灰石 | BI4: 長石 | BJ4: 粘土 | BK4: 一次エネルギー(地熱) | BL4: フィールドラテックス | BM4: 一次エネルギー(水力) | BN4: かん水 | BO4: 海水 | BP4: 地下水 | BQ4: 地表水 | BR4: 一次エネルギー(太陽光) | BS4: 空気 | BT4: アルミニウムくず | BU4: オフガス | BV4: ガラスくず・陶磁器くず, 再生利用品 | BW4: コークス炉ガス | BX4: ばいじん, 再生利用品 | BY4: パルプ黒液(用水分を除く) | BZ4: 一廃（特定せず） | CA4: 汚泥, 再生利用品 | CB4: 古紙 | CC4: 鉱さい（スラグ), 再生利用品 | CD4: 鋼くず | CE4: 高炉ガス | CF4: 使用済みガラスびん | CG4: 使用済ゴム, 再生利用品 | CH4: 使用済みペットボトル | CI4: 繊維くず, 再生利用品 | CJ4: 銑くず | CK4: 転炉ガス(LDG) | CL4: 電気炉ガス(EFG) | CM4: 動植物性残さ, 再生利用品 | CN4: 銅くず | CO4: 二酸化硫黄,再生利用品 | CP4: 熱エネルギー | CQ4: 廃アルカリ, 再生利用品 | CR4: 廃タイヤ | CS4: 廃プラスチック類, 再生利用品 | CT4: 廃酸, 再生利用品 | CU4: 廃油,再生利用品 | CV4: 非鉄金属くず,再生利用品 | CW4: 木くず, 再生利用品 | CX4: その他の使用済み製品 | CY4: その他の地中からの鉱物資源 | CZ4: 2,3,7,8-テトラクロロジベンゾジオキシン | DA4: CH4(発生源不特定） | DB4: CH4（化石資源由来） | DC4: CO | DD4: CO | DE4: CO2(化石資源由来） | DF4: CO2(化石資源由来） | DG4: CO2(生物由来） | DH4: N2O | DI4: N2O | DJ4: NH3 | DK4: NO2 | DL4: NOx | DM4: NOx | DN4: PM10 | DO4: PM10 | DP4: SF6 | DQ4: SO2 | DR4: SO2 | DS4: SOx | DT4: SOx | DU4: カドミウム | DV4: クロム | DW4: コバルト | DX4: ニッケル | DY4: パーフルオロメタン | DZ4: ばいじん(> PM10） | EA4: バナジウム | EB4: ヒ素 | EC4: フッ化水素 | ED4: 亜鉛 | EE4: 鉛 | EF4: 塩化水素 | EG4: 塩素 | EH4: 揮発性有機化合物 | EI4: 水銀 | EJ4: 水蒸気 | EK4: 炭化水素 | EL4: 炭化水素 | EM4: 銅 | EN4: 非メタン炭化水素 | EO4: 硫化水素 | EP4: 硫酸 | EQ4: acid (as H+) | ER4: BOD | ES4: C6 アルキルベンゼン | ET4: COD | EU4: アンモニウムイオン | EV4: カドミウム | EW4: クロム | EX4: コバルト | EY4: ニッケル | EZ4: ニッケル化合物 | FA4: ヒ素 | FB4: フェノール | FC4: フッ化水素 | FD4: ホウ素 | FE4: マンガン | FF4: 亜鉛 | FG4: 鉛 | FH4: 処理済水 | FI4: 水銀 | FJ4: 全リン | FK4: 全窒素 | FL4: 炭化水素 | FM4: 銅 | FN4: 浮遊物質(SS) | FO4: 硫酸 | FP4: 汚泥(埋立) | FQ4: 金属くず(埋立) | FR4: 鉱さい(埋立) | FS4: 低レベル放射性廃棄物 | FT4: 土砂(埋立) | FU4: アルミニウムくず | FV4: ガラスくず・陶磁器くず, 再生利用品 | FW4: がれき類, 再生利用品 | FX4: コークス炉ガス | FY4: スラグ、ドロス等 | FZ4: にがり | GA4: ばいじん, 再生利用品 | GB4: 汚泥, 再生利用品 | GC4: 金属くず, 再生利用品 | GD4: 鉱さい（スラグ), 再生利用品 | GE4: 鋼くず | GF4: 高炉ガス | GG4: 産廃(特定せず) | GH4: 使用済ゴム, 再生利用品 | GI4: 紙くず, 再生利用品 | GJ4: 蒸気 | GK4: 水素 | GL4: 繊維くず, 再生利用品 | GM4: 銑くず | GN4: 粗製コールタール | GO4: 転炉ガス(LDG) | GP4: 電気炉ガス(EFG) | GQ4: 動植物性残さ, 再生利用品 | GR4: 銅くず | GS4: 二酸化硫黄,再生利用品 | GT4: 燃え殻, 再生利用品 | GU4: 廃アルカリ, 再生利用品 | GV4: 廃プラスチック類, 再生利用品 | GW4: 廃酸, 再生利用品 | GX4: 廃油,再生利用品 | GY4: 非鉄金属くず,再生利用品 | GZ4: 木くず, 再生利用品 | HA4: 硫化ナトリウム（副製品） | HB4: 硫酸,100%換算,副生品 | HC4: その他の産業廃棄物 | HD4: その他の土壌排出物 | HE4: 地球温暖化 | HF4: 酸性化 | HG4: 都市域大気汚染 | HH4: 光化学オキシダント | HI4: 有害化学物質 | HJ4: 有害化学物質 | HK4: 有害化学物質 | HL4: 有害化学物質 | HM4: 水生生態毒性、陸生生態毒性 | HN4: 水生生態毒性、陸生生態毒性 | HO4: 水生生態毒性、陸生生態毒性 | HP4: 水生生態毒性、陸生生態毒性 | HQ4: 富栄養化 | HR4: 資源消費 | HS4: 資源消費 | HT4: 資源消費 | HU4: 廃棄物 | HV4: 地球温暖化 | HW4: 都市域大気汚染 | HX4: 光化学オキシダント | HY4: 有害化学物質 | HZ4: 有害化学物質 | IA4: 合計 | IB4: 酸性化 | IC4: 光化学オキシダント | ID4: 資源消費 | IE4: 廃棄物 | IF4: 合計 | IG4: 地球温暖化 | IH4: 酸性化 | II4: 光化学オキシダント | IJ4: 富栄養化 | IK4: 資源消費 | IL4: 廃棄物 | IM4: 合計 | IN4: 水生生態毒性、陸生生態毒性 | IO4: 水生生態毒性、陸生生態毒性 | IP4: 資源消費 | IQ4: 廃棄物 | IR4: 合計 | IS4: 地球温暖化 | IT4: 酸性化 | IU4: 都市域大気汚染 | IV4: 光化学オキシダント | IW4: 有害化学物質 | IX4: 有害化学物質 | IY4: 水生生態毒性、陸生生態毒性 | IZ4: 水生生態毒性、陸生生態毒性 | JA4: 富栄養化 | JB4: 資源消費 | JC4: 廃棄物 | JD4: 合計
I5: d | J5: 排出物 | K5: 排出物 | L5: 排出物 | M5: 排出物 | N5: 資源 | O5: 資源 | P5: =AP5 -> 資源 | Q5: 排出物 | R5: 資源 | S5: 資源 | T5: 資源 | U5: 資源 | V5: 資源 | W5: 資源 | X5: 資源 | Y5: 資源 | Z5: 資源 | AA5: 資源 | AB5: 資源 | AC5: 資源 | AD5: 資源 | AE5: 資源 | AF5: 資源 | AG5: 資源 | AH5: 資源 | AI5: 資源 | AJ5: 資源 | AK5: 資源 | AL5: 資源 | AM5: 資源 | AN5: 資源 | AO5: 資源 | AP5: 資源 | AQ5: 資源 | AR5: 資源 | AS5: 資源 | AT5: 資源 | AU5: 資源 | AV5: 資源 | AW5: 資源 | AX5: 資源 | AY5: 資源 | AZ5: 資源 | BA5: 資源 | BB5: 資源 | BC5: 資源 | BD5: 資源 | BE5: 資源 | BF5: 資源 | BG5: 資源 | BH5: 資源 | BI5: 資源 | BJ5: 資源 | BK5: 資源 | BL5: 資源 | BM5: 資源 | BN5: 資源 | BO5: 資源 | BP5: 資源 | BQ5: 資源 | BR5: 資源 | BS5: 資源 | BT5: - | BU5: - | BV5: - | BW5: - | BX5: - | BY5: - | BZ5: - | CA5: - | CB5: - | CC5: - | CD5: - | CE5: - | CF5: - | CG5: - | CH5: - | CI5: - | CJ5: - | CK5: - | CL5: - | CM5: - | CN5: - | CO5: - | CP5: - | CQ5: - | CR5: - | CS5: - | CT5: - | CU5: - | CV5: - | CW5: - | CX5: - | CY5: - | CZ5: 排出物 | DA5: 排出物 | DB5: 排出物 | DC5: 排出物 | DD5: 排出物 | DE5: 排出物 | DF5: 排出物 | DG5: 排出物 | DH5: 排出物 | DI5: 排出物 | DJ5: 排出物 | DK5: 排出物 | DL5: 排出物 | DM5: 排出物 | DN5: 排出物 | DO5: 排出物 | DP5: 排出物 | DQ5: 排出物 | DR5: 排出物 | DS5: 排出物 | DT5: 排出物 | DU5: 排出物 | DV5: 排出物 | DW5: 排出物 | DX5: 排出物 | DY5: 排出物 | DZ5: 排出物 | EA5: 排出物 | EB5: 排出物 | EC5: 排出物 | ED5: 排出物 | EE5: 排出物 | EF5: 排出物 | EG5: 排出物 | EH5: 排出物 | EI5: 排出物 | EJ5: 排出物 | EK5: 排出物 | EL5: 排出物 | EM5: 排出物 | EN5: 排出物 | EO5: 排出物 | EP5: 排出物 | EQ5: 排出物 | ER5: 排出物 | ES5: 排出物 | ET5: 排出物 | EU5: 排出物 | EV5: 排出物 | EW5: 排出物 | EX5: 排出物 | EY5: 排出物 | EZ5: 排出物 | FA5: 排出物 | FB5: 排出物 | FC5: 排出物 | FD5: 排出物 | FE5: 排出物 | FF5: 排出物 | FG5: 排出物 | FH5: 排出物 | FI5: 排出物 | FJ5: 排出物 | FK5: 排出物 | FL5: 排出物 | FM5: 排出物 | FN5: 排出物 | FO5: 排出物 | FP5: 排出物 | FQ5: 排出物 | FR5: 排出物 | FS5: 排出物 | FT5: 排出物 | FU5: - | FV5: - | FW5: - | FX5: - | FY5: - | FZ5: - | GA5: - | GB5: - | GC5: - | GD5: - | GE5: - | GF5: - | GG5: - | GH5: - | GI5: - | GJ5: - | GK5: - | GL5: - | GM5: - | GN5: - | GO5: - | GP5: - | GQ5: - | GR5: - | GS5: - | GT5: - | GU5: - | GV5: - | GW5: - | GX5: - | GY5: - | GZ5: - | HA5: - | HB5: - | HC5: - | HD5: - | HE5: － | HF5: － | HG5: － | HH5: － | HI5: HTP cancer | HJ5: HTP cancer | HK5: HTP chronic disease | HL5: HTP chronic disease | HM5: 大気への排出 | HN5: 大気への排出 | HO5: 水相への排出 | HP5: 水相への排出 | HQ5: － | HR5: 1/R（可採埋蔵量ベース） | HS5: 1/R（可採埋蔵量ベース） | HT5: 発熱量 | HU5: 重量体積換算係数 | HV5: － | HW5: － | HX5: － | HY5: 大気排出 | HZ5: 水域排出 | IA5: － | IB5: － | IC5: － | ID5: － | IE5: － | IF5: － | IG5: － | IH5: － | II5: － | IJ5: － | IK5: － | IL5: － | IM5: － | IN5: 大気への排出 | IO5: 水相への排出 | IP5: － | IQ5: － | IR5: － | IS5: － | IT5: － | IU5: － | IV5: － | IW5: 大気排出 | IX5: 水域排出 | IY5: 大気への排出 | IZ5: 水相への排出 | JA5: － | JB5: － | JC5: － | JD5: －
I6: e | J6: 大気 | K6: 大気 | L6: 大気 | M6: 大気 | N6: 陸域 | O6: 陸域 | P6: 陸域 | Q6: 陸域 | R6: 陸域 | S6: 陸域 | T6: 陸域 | U6: 陸域 | V6: 陸域 | W6: 陸域 | X6: 陸域 | Y6: 陸域 | Z6: 陸域 | AA6: 陸域 | AB6: 陸域 | AC6: 陸域 | AD6: 陸域 | AE6: 陸域 | AF6: 陸域 | AG6: 陸域 | AH6: 陸域 | AI6: 陸域 | AJ6: 陸域 | AK6: 陸域 | AL6: 陸域 | AM6: 陸域 | AN6: 陸域 | AO6: 陸域 | AP6: 陸域 | AQ6: 陸域 | AR6: 陸域 | AS6: 陸域 | AT6: 陸域 | AU6: 陸域 | AV6: 陸域 | AW6: 陸域 | AX6: 陸域 | AY6: 陸域 | AZ6: 陸域 | BA6: 陸域 | BB6: 陸域 | BC6: 陸域 | BD6: 陸域 | BE6: 陸域 | BF6: 陸域 | BG6: 陸域 | BH6: 陸域 | BI6: 陸域 | BJ6: 陸域 | BK6: 陸域 | BL6: 陸域 | BM6: 水圏 | BN6: 水圏 | BO6: 水圏 | BP6: 水圏 | BQ6: 水圏 | BR6: 大気 | BS6: 大気 | BT6: - | BU6: - | BV6: - | BW6: - | BX6: - | BY6: - | BZ6: - | CA6: - | CB6: - | CC6: - | CD6: - | CE6: - | CF6: - | CG6: - | CH6: - | CI6: - | CJ6: - | CK6: - | CL6: - | CM6: - | CN6: - | CO6: - | CP6: - | CQ6: - | CR6: - | CS6: - | CT6: - | CU6: - | CV6: - | CW6: - | CX6: - | CY6: - | CZ6: 大気 | DA6: 大気 | DB6: 大気 | DC6: 大気 | DD6: 大気 | DE6: 大気 | DF6: 大気 | DG6: 大気 | DH6: 大気 | DI6: 大気 | DJ6: 大気 | DK6: 大気 | DL6: 大気 | DM6: 大気 | DN6: 大気 | DO6: 大気 | DP6: 大気 | DQ6: 大気 | DR6: 大気 | DS6: 大気 | DT6: 大気 | DU6: 大気 | DV6: 大気 | DW6: 大気 | DX6: 大気 | DY6: 大気 | DZ6: 大気 | EA6: 大気 | EB6: 大気 | EC6: 大気 | ED6: 大気 | EE6: 大気 | EF6: 大気 | EG6: 大気 | EH6: 大気 | EI6: 大気 | EJ6: 大気 | EK6: 大気 | EL6: 大気 | EM6: 大気 | EN6: 大気 | EO6: 大気 | EP6: 大気 | EQ6: 水圏 | ER6: 水圏 | ES6: 水圏 | ET6: 水圏 | EU6: 水圏 | EV6: 水圏 | EW6: 水圏 | EX6: 水圏 | EY6: 水圏 | EZ6: 水圏 | FA6: 水圏 | FB6: 水圏 | FC6: 水圏 | FD6: 水圏 | FE6: 水圏 | FF6: 水圏 | FG6: 水圏 | FH6: 水圏 | FI6: 水圏 | FJ6: 水圏 | FK6: 水圏 | FL6: 水圏 | FM6: 水圏 | FN6: 水圏 | FO6: 水圏 | FP6: 陸域 | FQ6: 陸域 | FR6: 陸域 | FS6: 陸域 | FT6: 陸域 | FU6: - | FV6: - | FW6: - | FX6: - | FY6: - | FZ6: - | GA6: - | GB6: - | GC6: - | GD6: - | GE6: - | GF6: - | GG6: - | GH6: - | GI6: - | GJ6: - | GK6: - | GL6: - | GM6: - | GN6: - | GO6: - | GP6: - | GQ6: - | GR6: - | GS6: - | GT6: - | GU6: - | GV6: - | GW6: - | GX6: - | GY6: - | GZ6: - | HA6: - | HB6: - | HC6: - | HD6: - | HE6: － | HF6: － | HG6: － | HH6: － | HI6: 大気排出 | HJ6: 水域排出 | HK6: 大気排出 | HL6: 水域排出 | HM6: AETP | HN6: TETP | HO6: AETP | HP6: TETP | HQ6: － | HR6: Sb equiv. | HS6: Sb正規化前 | HT6: － | HU6: － | HV6: － | HW6: － | HX6: － | HY6: － | HZ6: － | IA6: － | IB6: － | IC6: － | ID6: － | IE6: － | IF6: － | IG6: － | IH6: － | II6: － | IJ6: － | IK6: － | IL6: － | IM6: － | IN6: － | IO6: － | IP6: － | IQ6: － | IR6: － | IS6: － | IT6: － | IU6: － | IV6: － | IW6: － | IX6: － | IY6: － | IZ6: － | JA6: － | JB6: － | JC6: － | JD6: －
I7: f | J7: ― | K7: ― | L7: ― | M7: ― | N7: 非再生可能エネルギー | O7: 非再生可能元素 | P7: 非再生可能元素 | Q7: 管理域内 | R7: 非再生可能エネルギー | S7: 非再生可能エネルギー | T7: 非再生可能エネルギー | U7: 非再生可能エネルギー | V7: 非再生可能エネルギー | W7: 非再生可能エネルギー | X7: 非再生可能元素 | Y7: 非再生可能元素 | Z7: 非再生可能元素 | AA7: 非再生可能元素 | AB7: 非再生可能元素 | AC7: 非再生可能元素 | AD7: 非再生可能元素 | AE7: 非再生可能元素 | AF7: 非再生可能元素 | AG7: 非再生可能元素 | AH7: 非再生可能元素 | AI7: 非再生可能元素 | AJ7: 非再生可能元素 | AK7: 非再生可能元素 | AL7: 非再生可能元素 | AM7: 非再生可能元素 | AN7: 非再生可能元素 | AO7: 非再生可能元素 | AP7: 非再生可能元素 | AQ7: 非再生可能元素 | AR7: 非再生可能元素 | AS7: 非再生可能元素 | AT7: 非再生可能元素 | AU7: 非再生可能元素 | AV7: 非再生材料 | AW7: 非再生材料 | AX7: 非再生材料 | AY7: 非再生材料 | AZ7: 非再生材料 | BA7: 非再生材料 | BB7: 非再生材料 | BC7: 非再生材料 | BD7: 非再生材料 | BE7: 非再生材料 | BF7: 非再生材料 | BG7: 非再生材料 | BH7: 非再生材料 | BI7: 非再生材料 | BJ7: 非再生材料 | BK7: 再生可能エネルギー | BL7: 再生可能材料 | BM7: 再生可能エネルギー | BN7: 再生可能材料 | BO7: 再生可能材料 | BP7: 再生可能材料 | BQ7: 再生可能材料 | BR7: 再生可能エネルギー | BS7: 再生可能材料 | BT7: - | BU7: - | BV7: - | BW7: - | BX7: - | BY7: - | BZ7: - | CA7: - | CB7: - | CC7: - | CD7: - | CE7: - | CF7: - | CG7: - | CH7: - | CI7: - | CJ7: - | CK7: - | CL7: - | CM7: - | CN7: - | CO7: - | CP7: - | CQ7: - | CR7: - | CS7: - | CT7: - | CU7: - | CV7: - | CW7: - | CX7: - | CY7: - | CZ7: 不特定 | DA7: 不特定 | DB7: 都市域（地表付近） | DC7: 不特定 | DD7: 都市域（地表付近） | DE7: 不特定 | DF7: 都市域（地表付近） | DG7: 不特定 | DH7: 不特定 | DI7: 都市域（地表付近） | DJ7: 不特定 | DK7: 都市域（地表付近） | DL7: 不特定 | DM7: 都市域（地表付近） | DN7: 不特定 | DO7: 都市域（地表付近） | DP7: 不特定 | DQ7: 不特定 | DR7: 都市域（地表付近） | DS7: 不特定 | DT7: 都市域（地表付近） | DU7: 不特定 | DV7: 不特定 | DW7: 不特定 | DX7: 不特定 | DY7: 不特定 | DZ7: 不特定 | EA7: 不特定 | EB7: 不特定 | EC7: 不特定 | ED7: 不特定 | EE7: 不特定 | EF7: 不特定 | EG7: 不特定 | EH7: 不特定 | EI7: 不特定 | EJ7: 対流圏 | EK7: 不特定 | EL7: 都市域（地表付近） | EM7: 不特定 | EN7: 不特定 | EO7: 不特定 | EP7: 不特定 | EQ7: 不特定 | ER7: 不特定 | ES7: 不特定 | ET7: 不特定 | EU7: 不特定 | EV7: 不特定 | EW7: 不特定 | EX7: 不特定 | EY7: 不特定 | EZ7: 不特定 | FA7: 不特定 | FB7: 不特定 | FC7: 不特定 | FD7: 不特定 | FE7: 不特定 | FF7: 不特定 | FG7: 不特定 | FH7: 不特定 | FI7: 不特定 | FJ7: 不特定 | FK7: 不特定 | FL7: 不特定 | FM7: 不特定 | FN7: 不特定 | FO7: 不特定 | FP7: 管理域内 | FQ7: 管理域内 | FR7: 管理域内 | FS7: 管理域内 | FT7: 管理域内 | FU7: - | FV7: - | FW7: - | FX7: - | FY7: - | FZ7: - | GA7: - | GB7: - | GC7: - | GD7: - | GE7: - | GF7: - | GG7: - | GH7: - | GI7: - | GJ7: - | GK7: - | GL7: - | GM7: - | GN7: - | GO7: - | GP7: - | GQ7: - | GR7: - | GS7: - | GT7: - | GU7: - | GV7: - | GW7: - | GX7: - | GY7: - | GZ7: - | HA7: - | HB7: - | HC7: - | HD7: - | HE7: － | HF7: － | HG7: － | HH7: － | HI7: － | HJ7: － | HK7: － | HL7: － | HM7: － | HN7: － | HO7: － | HP7: － | HQ7: － | HR7: － | HS7: － | HT7: － | HV7: － | HW7: － | HX7: － | HY7: － | HZ7: － | IA7: － | IB7: － | IC7: － | ID7: － | IE7: － | IF7: － | IG7: － | IH7: － | II7: － | IJ7: － | IK7: － | IL7: － | IM7: － | IN7: － | IO7: － | IP7: － | IQ7: － | IR7: － | IS7: － | IT7: － | IU7: － | IV7: － | IW7: － | IX7: － | IY7: － | IZ7: － | JA7: － | JB7: － | JC7: － | JD7: －
I8: g | J8: kg | K8: kg | L8: kg | M8: kg | N8: kg | O8: kg | P8: kg | Q8: kg | R8: kg | S8: kg | T8: kg | U8: kg | V8: kg | W8: kg | X8: kg | Y8: kg | Z8: kg | AA8: kg | AB8: kg | AC8: kg | AD8: kg | AE8: kg | AF8: kg | AG8: kg | AH8: kg | AI8: kg | AJ8: kg | AK8: kg | AL8: kg | AM8: kg | AN8: kg | AO8: kg | AP8: kg | AQ8: kg | AR8: kg | AS8: kg | AT8: kg | AU8: kg | AV8: kg | AW8: kg | AX8: kg | AY8: kg | AZ8: kg | BA8: kg | BB8: kg | BC8: kg | BD8: kg | BE8: kg | BF8: kg | BG8: kg | BH8: kg | BI8: kg | BJ8: kg | BK8: MJ | BL8: kg | BM8: MJ | BN8: kg | BO8: kg | BP8: kg | BQ8: kg | BR8: MJ | BS8: kg | BT8: kg | BU8: Nm3 | BV8: kg | BW8: Nm3 | BX8: kg | BY8: 絶乾kg | BZ8: kg | CA8: kg | CB8: kg | CC8: kg | CD8: kg | CE8: Nm3 | CF8: kg | CG8: kg | CH8: kg | CI8: kg | CJ8: kg | CK8: Nm3 | CL8: Nm3 | CM8: kg | CN8: kg | CO8: kg | CP8: MJ | CQ8: kg | CR8: kg | CS8: kg | CT8: kg | CU8: kg | CV8: kg | CW8: kg | CX8: kg | CY8: kg | CZ8: kg | DA8: kg | DB8: kg | DC8: kg | DD8: kg | DE8: kg | DF8: kg | DG8: kg | DH8: kg | DI8: kg | DJ8: kg | DK8: kg | DL8: kg | DM8: kg | DN8: kg | DO8: kg | DP8: kg | DQ8: kg | DR8: kg | DS8: kg | DT8: kg | DU8: kg | DV8: kg | DW8: kg | DX8: kg | DY8: kg | DZ8: kg | EA8: kg | EB8: kg | EC8: kg | ED8: kg | EE8: kg | EF8: kg | EG8: kg | EH8: kg | EI8: kg | EJ8: kg | EK8: kg | EL8: kg | EM8: kg | EN8: kg | EO8: kg | EP8: kg | EQ8: kg | ER8: kg | ES8: kg | ET8: kg | EU8: kg | EV8: kg | EW8: kg | EX8: kg | EY8: kg | EZ8: kg | FA8: kg | FB8: kg | FC8: kg | FD8: kg | FE8: kg | FF8: kg | FG8: kg | FH8: kg | FI8: kg | FJ8: kg | FK8: kg | FL8: kg | FM8: kg | FN8: kg | FO8: kg | FP8: kg | FQ8: kg | FR8: kg | FS8: kg | FT8: kg | FU8: kg | FV8: kg | FW8: kg | FX8: Nm3 | FY8: kg | FZ8: L | GA8: kg | GB8: kg | GC8: kg | GD8: kg | GE8: kg | GF8: Nm3 | GG8: kg | GH8: kg | GI8: kg | GJ8: kg | GK8: Nm3 | GL8: kg | GM8: kg | GN8: kg | GO8: Nm3 | GP8: Nm3 | GQ8: kg | GR8: kg | GS8: kg | GT8: kg | GU8: kg | GV8: kg | GW8: kg | GX8: kg | GY8: kg | GZ8: kg | HA8: kg | HB8: kg | HC8: kg | HD8: kg | HE8: kg-CO2 eq | HF8: kg-SO2 eq | HG8: kg-SO2 eq | HH8: kg-ethylene eq | HI8: kg-benzene (air) eq | HJ8: kg-benzene (air) eq | HK8: kg-benzene (air) eq | HL8: kg-benzene (air) eq | HM8: kg-benzene (water, soil) eq | HN8: kg-benzene (water, soil) eq | HO8: kg-benzene (water, soil) eq | HP8: kg-benzene (water, soil) eq | HQ8: kg-phosphate eq | HR8: kg Sb eq | HS8: － | HT8: MJ | HU8: m3 | HV8: DALY | HW8: DALY | HX8: DALY | HY8: DALY | HZ8: DALY | IA8: DALY | IB8: kg-NPP | IC8: kg-NPP | ID8: kg-NPP | IE8: kg-NPP | IF8: kg-NPP | IG8: 円 | IH8: 円 | II8: 円 | IJ8: 円 | IK8: 円 | IL8: 円 | IM8: 円 | IN8: EINES | IO8: EINES | IP8: EINES | IQ8: EINES | IR8: EINES | IS8: 円 | IT8: 円 | IU8: 円 | IV8: 円 | IW8: 円 | IX8: 円 | IY8: 円 | IZ8: 円 | JA8: 円 | JB8: 円 | JC8: 円 | JD8: 円
A9: 仮設工事 | B9: エネルギー消費分 | C9: 3 | D9: 鋼矢板－建設機械・資材搬入・搬出 | E9: 機械搬入・搬出(油圧式圧入引抜機) | F9: =仮設工事①!O6 -> 軽油 | G9: =仮設工事①!P6 -> 0 | H9: L | J9: =DE9+DF9+DG9 -> 0 | K9: =DN9+DO9 -> 0 | L9: =DS9+DT9 -> 0 | M9: =DL9+DM9 -> 0 | N9: =S9 -> 0 | O9: =AR9 -> 0 | P9: =AP9 -> 0 | Q9: =FP9+FQ9+FR9+FT9 -> 0 | R9: =$G9*SUMIF('原単位リスト(multi)org'!$B$8:$B$75,$F9,'原単位リスト(multi)org'!G$8:G$75) -> 0 | S9: =$G9*SUMIF('原単位リスト(multi)org'!$B$8:$B$75,$F9,'原単位リスト(multi)org'!H$8:H$75) -> 0 | T9: =$G9*SUMIF('原単位リスト(multi)org'!$B$8:$B$75,$F9,'原単位リスト(multi)org'!I$8:I$75) -> 0 | U9: =$G9*SUMIF('原単位リスト(multi)org'!$B$8:$B$75,$F9,'原単位リスト(multi)org'!J$8:J$75) -> 0 | V9: =$G9*SUMIF('原単位リスト(multi)org'!$B$8:$B$75,$F9,'原単位リスト(multi)org'!K$8:K$75) -> 0 | W9: =$G9*SUMIF('原単位リスト(multi)org'!$B$8:$B$75,$F9,'原単位リスト(multi)org'!L$8:L$75) -> 0 | X9: =$G9*SUMIF('原単位リスト(multi)org'!$B$8:$B$75,$F9,'原単位リスト(multi)org'!M$8:M$75) -> 0 | Y9: =$G9*SUMIF('原単位リスト(multi)org'!$B$8:$B$75,$F9,'原単位リスト(multi)org'!N$8:N$75) -> 0 | Z9: =$G9*SUMIF('原単位リスト(multi)org'!$B$8:$B$75,$F9,'原単位リスト(multi)org'!O$8:O$75) -> 0 | AA9: =$G9*SUMIF('原単位リスト(multi)org'!$B$8:$B$75,$F9,'原単位リスト(multi)org'!P$8:P$75) -> 0 | AB9: =$G9*SUMIF('原単位リスト(multi)org'!$B$8:$B$75,$F9,'原単位リスト(multi)org'!Q$8:Q$75) -> 0 | AC9: =$G9*SUMIF('原単位リスト(multi)org'!$B$8:$B$75,$F9,'原単位リスト(multi)org'!R$8:R$75) -> 0 | AD9: =$G9*SUMIF('原単位リスト(multi)org'!$B$8:$B$75,$F9,'原単位リスト(multi)org'!S$8:S$75) -> 0 | AE9: =$G9*SUMIF('原単位リスト(multi)org'!$B$8:$B$75,$F9,'原単位リスト(multi)org'!T$8:T$75) -> 0 | AF9: =$G9*SUMIF('原単位リスト(multi)org'!$B$8:$B$75,$F9,'原単位リスト(multi)org'!U$8:U$75) -> 0 | AG9: =$G9*SUMIF('原単位リスト(multi)org'!$B$8:$B$75,$F9,'原単位リスト(multi)org'!V$8:V$75) -> 0 | AH9: =$G9*SUMIF('原単位リスト(multi)org'!$B$8:$B$75,$F9,'原単位リスト(multi)org'!W$8:W$75) -> 0 | AI9: =$G9*SUMIF('原単位リスト(multi)org'!$B$8:$B$75,$F9,'原単位リスト(multi)org'!X$8:X$75) -> 0 | AJ9: =$G9*SUMIF('原単位リスト(multi)org'!$B$8:$B$75,$F9,'原単位リスト(multi)org'!Y$8:Y$75) -> 0 | AK9: =$G9*SUMIF('原単位リスト(multi)org'!$B$8:$B$75,$F9,'原単位リスト(multi)org'!Z$8:Z$75) -> 0 | AL9: =$G9*SUMIF('原単位リスト(multi)org'!$B$8:$B$75,$F9,'原単位リスト(multi)org'!AA$8:AA$75) -> 0 | AM9: =$G9*SUMIF('原単位リスト(multi)org'!$B$8:$B$75,$F9,'原単位リスト(multi)org'!AB$8:AB$75) -> 0 | AN9: =$G9*SUMIF('原単位リスト(multi)org'!$B$8:$B$75,$F9,'原単位リスト(multi)org'!AC$8:AC$75) -> 0 | AO9: =$G9*SUMIF('原単位リスト(multi)org'!$B$8:$B$75,$F9,'原単位リスト(multi)org'!AD$8:AD$75) -> 0 | AP9: =$G9*SUMIF('原単位リスト(multi)org'!$B$8:$B$75,$F9,'原単位リスト(multi)org'!AE$8:AE$75) -> 0 | AQ9: =$G9*SUMIF('原単位リスト(multi)org'!$B$8:$B$75,$F9,'原単位リスト(multi)org'!AF$8:AF$75) -> 0 | AR9: =$G9*SUMIF('原単位リスト(multi)org'!$B$8:$B$75,$F9,'原単位リスト(multi)org'!AG$8:AG$75) -> 0 | AS9: =$G9*SUMIF('原単位リスト(multi)org'!$B$8:$B$75,$F9,'原単位リスト(multi)org'!AH$8:AH$75) -> 0 | AT9: =$G9*SUMIF('原単位リスト(multi)org'!$B$8:$B$75,$F9,'原単位リスト(multi)org'!AI$8:AI$75) -> 0 | AU9: =$G9*SUMIF('原単位リスト(multi)org'!$B$8:$B$75,$F9,'原単位リスト(multi)org'!AJ$8:AJ$75) -> 0 | AV9: =$G9*SUMIF('原単位リスト(multi)org'!$B$8:$B$75,$F9,'原単位リスト(multi)org'!AK$8:AK$75) -> 0 | AW9: =$G9*SUMIF('原単位リスト(multi)org'!$B$8:$B$75,$F9,'原単位リスト(multi)org'!AL$8:AL$75) -> 0 | AX9: =$G9*SUMIF('原単位リスト(multi)org'!$B$8:$B$75,$F9,'原単位リスト(multi)org'!AM$8:AM$75) -> 0 | AY9: =$G9*SUMIF('原単位リスト(multi)org'!$B$8:$B$75,$F9,'原単位リスト(multi)org'!AN$8:AN$75) -> 0 | AZ9: =$G9*SUMIF('原単位リスト(multi)org'!$B$8:$B$75,$F9,'原単位リスト(multi)org'!AO$8:AO$75) -> 0 | BA9: =$G9*SUMIF('原単位リスト(multi)org'!$B$8:$B$75,$F9,'原単位リスト(multi)org'!AP$8:AP$75) -> 0 | BB9: =$G9*SUMIF('原単位リスト(multi)org'!$B$8:$B$75,$F9,'原単位リスト(multi)org'!AQ$8:AQ$75) -> 0 | BC9: =$G9*SUMIF('原単位リスト(multi)org'!$B$8:$B$75,$F9,'原単位リスト(multi)org'!AR$8:AR$75) -> 0 | BD9: =$G9*SUMIF('原単位リスト(multi)org'!$B$8:$B$75,$F9,'原単位リスト(multi)org'!AS$8:AS$75) -> 0 | BE9: =$G9*SUMIF('原単位リスト(multi)org'!$B$8:$B$75,$F9,'原単位リスト(multi)org'!AT$8:AT$75) -> 0 | BF9: =$G9*SUMIF('原単位リスト(multi)org'!$B$8:$B$75,$F9,'原単位リスト(multi)org'!AU$8:AU$75) -> 0 | BG9: =$G9*SUMIF('原単位リスト(multi)org'!$B$8:$B$75,$F9,'原単位リスト(multi)org'!AV$8:AV$75) -> 0 | BH9: =$G9*SUMIF('原単位リスト(multi)org'!$B$8:$B$75,$F9,'原単位リスト(multi)org'!AW$8:AW$75) -> 0 | BI9: =$G9*SUMIF('原単位リスト(multi)org'!$B$8:$B$75,$F9,'原単位リスト(multi)org'!AX$8:AX$75) -> 0 | BJ9: =$G9*SUMIF('原単位リスト(multi)org'!$B$8:$B$75,$F9,'原単位リスト(multi)org'!AY$8:AY$75) -> 0 | BK9: =$G9*SUMIF('原単位リスト(multi)org'!$B$8:$B$75,$F9,'原単位リスト(multi)org'!AZ$8:AZ$75) -> 0 | BL9: =$G9*SUMIF('原単位リスト(multi)org'!$B$8:$B$75,$F9,'原単位リスト(multi)org'!BA$8:BA$75) -> 0 | BM9: =$G9*SUMIF('原単位リスト(multi)org'!$B$8:$B$75,$F9,'原単位リスト(multi)org'!BB$8:BB$75) -> 0 | BN9: =$G9*SUMIF('原単位リスト(multi)org'!$B$8:$B$75,$F9,'原単位リスト(multi)org'!BC$8:BC$75) -> 0 | BO9: =$G9*SUMIF('原単位リスト(multi)org'!$B$8:$B$75,$F9,'原単位リスト(multi)org'!BD$8:BD$75) -> 0 | BP9: =$G9*SUMIF('原単位リスト(multi)org'!$B$8:$B$75,$F9,'原単位リスト(multi)org'!BE$8:BE$75) -> 0 | BQ9: =$G9*SUMIF('原単位リスト(multi)org'!$B$8:$B$75,$F9,'原単位リスト(multi)org'!BF$8:BF$75) -> 0 | BR9: =$G9*SUMIF('原単位リスト(multi)org'!$B$8:$B$75,$F9,'原単位リスト(multi)org'!BG$8:BG$75) -> 0 | BS9: =$G9*SUMIF('原単位リスト(multi)org'!$B$8:$B$75,$F9,'原単位リスト(multi)org'!BH$8:BH$75) -> 0 | BT9: =$G9*SUMIF('原単位リスト(multi)org'!$B$8:$B$75,$F9,'原単位リスト(multi)org'!BI$8:BI$75) -> 0 | BU9: =$G9*SUMIF('原単位リスト(multi)org'!$B$8:$B$75,$F9,'原単位リスト(multi)org'!BJ$8:BJ$75) -> 0 | BV9: =$G9*SUMIF('原単位リスト(multi)org'!$B$8:$B$75,$F9,'原単位リスト(multi)org'!BK$8:BK$75) -> 0 | BW9: =$G9*SUMIF('原単位リスト(multi)org'!$B$8:$B$75,$F9,'原単位リスト(multi)org'!BL$8:BL$75) -> 0 | BX9: =$G9*SUMIF('原単位リスト(multi)org'!$B$8:$B$75,$F9,'原単位リスト(multi)org'!BM$8:BM$75) -> 0 | BY9: =$G9*SUMIF('原単位リスト(multi)org'!$B$8:$B$75,$F9,'原単位リスト(multi)org'!BN$8:BN$75) -> 0 | BZ9: =$G9*SUMIF('原単位リスト(multi)org'!$B$8:$B$75,$F9,'原単位リスト(multi)org'!BO$8:BO$75) -> 0 | CA9: =$G9*SUMIF('原単位リスト(multi)org'!$B$8:$B$75,$F9,'原単位リスト(multi)org'!BP$8:BP$75) -> 0 | CB9: =$G9*SUMIF('原単位リスト(multi)org'!$B$8:$B$75,$F9,'原単位リスト(multi)org'!BQ$8:BQ$75) -> 0 | CC9: =$G9*SUMIF('原単位リスト(multi)org'!$B$8:$B$75,$F9,'原単位リスト(multi)org'!BR$8:BR$75) -> 0 | CD9: =$G9*SUMIF('原単位リスト(multi)org'!$B$8:$B$75,$F9,'原単位リスト(multi)org'!BS$8:BS$75) -> 0 | CE9: =$G9*SUMIF('原単位リスト(multi)org'!$B$8:$B$75,$F9,'原単位リスト(multi)org'!BT$8:BT$75) -> 0 | CF9: =$G9*SUMIF('原単位リスト(multi)org'!$B$8:$B$75,$F9,'原単位リスト(multi)org'!BU$8:BU$75) -> 0 | CG9: =$G9*SUMIF('原単位リスト(multi)org'!$B$8:$B$75,$F9,'原単位リスト(multi)org'!BV$8:BV$75) -> 0 | CH9: =$G9*SUMIF('原単位リスト(multi)org'!$B$8:$B$75,$F9,'原単位リスト(multi)org'!BW$8:BW$75) -> 0 | CI9: =$G9*SUMIF('原単位リスト(multi)org'!$B$8:$B$75,$F9,'原単位リスト(multi)org'!BX$8:BX$75) -> 0 | CJ9: =$G9*SUMIF('原単位リスト(multi)org'!$B$8:$B$75,$F9,'原単位リスト(multi)org'!BY$8:BY$75) -> 0 | CK9: =$G9*SUMIF('原単位リスト(multi)org'!$B$8:$B$75,$F9,'原単位リスト(multi)org'!BZ$8:BZ$75) -> 0 | CL9: =$G9*SUMIF('原単位リスト(multi)org'!$B$8:$B$75,$F9,'原単位リスト(multi)org'!CA$8:CA$75) -> 0 | CM9: =$G9*SUMIF('原単位リスト(multi)org'!$B$8:$B$75,$F9,'原単位リスト(multi)org'!CB$8:CB$75) -> 0 | CN9: =$G9*SUMIF('原単位リスト(multi)org'!$B$8:$B$75,$F9,'原単位リスト(multi)org'!CC$8:CC$75) -> 0 | CO9: =$G9*SUMIF('原単位リスト(multi)org'!$B$8:$B$75,$F9,'原単位リスト(multi)org'!CD$8:CD$75) -> 0 | CP9: =$G9*SUMIF('原単位リスト(multi)org'!$B$8:$B$75,$F9,'原単位リスト(multi)org'!CE$8:CE$75) -> 0 | CQ9: =$G9*SUMIF('原単位リスト(multi)org'!$B$8:$B$75,$F9,'原単位リスト(multi)org'!CF$8:CF$75) -> 0 | CR9: =$G9*SUMIF('原単位リスト(multi)org'!$B$8:$B$75,$F9,'原単位リスト(multi)org'!CG$8:CG$75) -> 0 | CS9: =$G9*SUMIF('原単位リスト(multi)org'!$B$8:$B$75,$F9,'原単位リスト(multi)org'!CH$8:CH$75) -> 0 | CT9: =$G9*SUMIF('原単位リスト(multi)org'!$B$8:$B$75,$F9,'原単位リスト(multi)org'!CI$8:CI$75) -> 0 | CU9: =$G9*SUMIF('原単位リスト(multi)org'!$B$8:$B$75,$F9,'原単位リスト(multi)org'!CJ$8:CJ$75) -> 0 | CV9: =$G9*SUMIF('原単位リスト(multi)org'!$B$8:$B$75,$F9,'原単位リスト(multi)org'!CK$8:CK$75) -> 0 | CW9: =$G9*SUMIF('原単位リスト(multi)org'!$B$8:$B$75,$F9,'原単位リスト(multi)org'!CL$8:CL$75) -> 0 | CX9: =$G9*SUMIF('原単位リスト(multi)org'!$B$8:$B$75,$F9,'原単位リスト(multi)org'!CM$8:CM$75) -> 0 | CY9: =$G9*SUMIF('原単位リスト(multi)org'!$B$8:$B$75,$F9,'原単位リスト(multi)org'!CN$8:CN$75) -> 0 | CZ9: =$G9*SUMIF('原単位リスト(multi)org'!$B$8:$B$75,$F9,'原単位リスト(multi)org'!CO$8:CO$75) -> 0 | DA9: =$G9*SUMIF('原単位リスト(multi)org'!$B$8:$B$75,$F9,'原単位リスト(multi)org'!CP$8:CP$75) -> 0 | DB9: =$G9*SUMIF('原単位リスト(multi)org'!$B$8:$B$75,$F9,'原単位リスト(multi)org'!CQ$8:CQ$75) -> 0 | DC9: =$G9*SUMIF('原単位リスト(multi)org'!$B$8:$B$75,$F9,'原単位リスト(multi)org'!CR$8:CR$75) -> 0 | DD9: =$G9*SUMIF('原単位リスト(multi)org'!$B$8:$B$75,$F9,'原単位リスト(multi)org'!CS$8:CS$75) -> 0 | DE9: =$G9*SUMIF('原単位リスト(multi)org'!$B$8:$B$75,$F9,'原単位リスト(multi)org'!CT$8:CT$75) -> 0 | DF9: =$G9*SUMIF('原単位リスト(multi)org'!$B$8:$B$75,$F9,'原単位リスト(multi)org'!CU$8:CU$75) -> 0 | DG9: =$G9*SUMIF('原単位リスト(multi)org'!$B$8:$B$75,$F9,'原単位リスト(multi)org'!CV$8:CV$75) -> 0 | DH9: =$G9*SUMIF('原単位リスト(multi)org'!$B$8:$B$75,$F9,'原単位リスト(multi)org'!CW$8:CW$75) -> 0 | DI9: =$G9*SUMIF('原単位リスト(multi)org'!$B$8:$B$75,$F9,'原単位リスト(multi)org'!CX$8:CX$75) -> 0 | DJ9: =$G9*SUMIF('原単位リスト(multi)org'!$B$8:$B$75,$F9,'原単位リスト(multi)org'!CY$8:CY$75) -> 0 | DK9: =$G9*SUMIF('原単位リスト(multi)org'!$B$8:$B$75,$F9,'原単位リスト(multi)org'!CZ$8:CZ$75) -> 0 | DL9: =$G9*SUMIF('原単位リスト(multi)org'!$B$8:$B$75,$F9,'原単位リスト(multi)org'!DA$8:DA$75) -> 0 | DM9: =$G9*SUMIF('原単位リスト(multi)org'!$B$8:$B$75,$F9,'原単位リスト(multi)org'!DB$8:DB$75) -> 0 | DN9: =$G9*SUMIF('原単位リスト(multi)org'!$B$8:$B$75,$F9,'原単位リスト(multi)org'!DC$8:DC$75) -> 0 | DO9: =$G9*SUMIF('原単位リスト(multi)org'!$B$8:$B$75,$F9,'原単位リスト(multi)org'!DD$8:DD$75) -> 0 | DP9: =$G9*SUMIF('原単位リスト(multi)org'!$B$8:$B$75,$F9,'原単位リスト(multi)org'!DE$8:DE$75) -> 0 | DQ9: =$G9*SUMIF('原単位リスト(multi)org'!$B$8:$B$75,$F9,'原単位リスト(multi)org'!DF$8:DF$75) -> 0 | DR9: =$G9*SUMIF('原単位リスト(multi)org'!$B$8:$B$75,$F9,'原単位リスト(multi)org'!DG$8:DG$75) -> 0 | DS9: =$G9*SUMIF('原単位リスト(multi)org'!$B$8:$B$75,$F9,'原単位リスト(multi)org'!DH$8:DH$75) -> 0 | DT9: =$G9*SUMIF('原単位リスト(multi)org'!$B$8:$B$75,$F9,'原単位リスト(multi)org'!DI$8:DI$75) -> 0 | DU9: =$G9*SUMIF('原単位リスト(multi)org'!$B$8:$B$75,$F9,'原単位リスト(multi)org'!DJ$8:DJ$75) -> 0 | DV9: =$G9*SUMIF('原単位リスト(multi)org'!$B$8:$B$75,$F9,'原単位リスト(multi)org'!DK$8:DK$75) -> 0 | DW9: =$G9*SUMIF('原単位リスト(multi)org'!$B$8:$B$75,$F9,'原単位リスト(multi)org'!DL$8:DL$75) -> 0 | DX9: =$G9*SUMIF('原単位リスト(multi)org'!$B$8:$B$75,$F9,'原単位リスト(multi)org'!DM$8:DM$75) -> 0 | DY9: =$G9*SUMIF('原単位リスト(multi)org'!$B$8:$B$75,$F9,'原単位リスト(multi)org'!DN$8:DN$75) -> 0 | DZ9: =$G9*SUMIF('原単位リスト(multi)org'!$B$8:$B$75,$F9,'原単位リスト(multi)org'!DO$8:DO$75) -> 0 | EA9: =$G9*SUMIF('原単位リスト(multi)org'!$B$8:$B$75,$F9,'原単位リスト(multi)org'!DP$8:DP$75) -> 0 | EB9: =$G9*SUMIF('原単位リスト(multi)org'!$B$8:$B$75,$F9,'原単位リスト(multi)org'!DQ$8:DQ$75) -> 0 | EC9: =$G9*SUMIF('原単位リスト(multi)org'!$B$8:$B$75,$F9,'原単位リスト(multi)org'!DR$8:DR$75) -> 0 | ED9: =$G9*SUMIF('原単位リスト(multi)org'!$B$8:$B$75,$F9,'原単位リスト(multi)org'!DS$8:DS$75) -> 0 | EE9: =$G9*SUMIF('原単位リスト(multi)org'!$B$8:$B$75,$F9,'原単位リスト(multi)org'!DT$8:DT$75) -> 0 | EF9: =$G9*SUMIF('原単位リスト(multi)org'!$B$8:$B$75,$F9,'原単位リスト(multi)org'!DU$8:DU$75) -> 0 | EG9: =$G9*SUMIF('原単位リスト(multi)org'!$B$8:$B$75,$F9,'原単位リスト(multi)org'!DV$8:DV$75) -> 0 | EH9: =$G9*SUMIF('原単位リスト(multi)org'!$B$8:$B$75,$F9,'原単位リスト(multi)org'!DW$8:DW$75) -> 0 | EI9: =$G9*SUMIF('原単位リスト(multi)org'!$B$8:$B$75,$F9,'原単位リスト(multi)org'!DX$8:DX$75) -> 0 | EJ9: =$G9*SUMIF('原単位リスト(multi)org'!$B$8:$B$75,$F9,'原単位リスト(multi)org'!DY$8:DY$75) -> 0 | EK9: =$G9*SUMIF('原単位リスト(multi)org'!$B$8:$B$75,$F9,'原単位リスト(multi)org'!DZ$8:DZ$75) -> 0 | EL9: =$G9*SUMIF('原単位リスト(multi)org'!$B$8:$B$75,$F9,'原単位リスト(multi)org'!EA$8:EA$75) -> 0 | EM9: =$G9*SUMIF('原単位リスト(multi)org'!$B$8:$B$75,$F9,'原単位リスト(multi)org'!EB$8:EB$75) -> 0 | EN9: =$G9*SUMIF('原単位リスト(multi)org'!$B$8:$B$75,$F9,'原単位リスト(multi)org'!EC$8:EC$75) -> 0 | EO9: =$G9*SUMIF('原単位リスト(multi)org'!$B$8:$B$75,$F9,'原単位リスト(multi)org'!ED$8:ED$75) -> 0 | EP9: =$G9*SUMIF('原単位リスト(multi)org'!$B$8:$B$75,$F9,'原単位リスト(multi)org'!EE$8:EE$75) -> 0 | EQ9: =$G9*SUMIF('原単位リスト(multi)org'!$B$8:$B$75,$F9,'原単位リスト(multi)org'!EF$8:EF$75) -> 0 | ER9: =$G9*SUMIF('原単位リスト(multi)org'!$B$8:$B$75,$F9,'原単位リスト(multi)org'!EG$8:EG$75) -> 0 | ES9: =$G9*SUMIF('原単位リスト(multi)org'!$B$8:$B$75,$F9,'原単位リスト(multi)org'!EH$8:EH$75) -> 0 | ET9: =$G9*SUMIF('原単位リスト(multi)org'!$B$8:$B$75,$F9,'原単位リスト(multi)org'!EI$8:EI$75) -> 0 | EU9: =$G9*SUMIF('原単位リスト(multi)org'!$B$8:$B$75,$F9,'原単位リスト(multi)org'!EJ$8:EJ$75) -> 0 | EV9: =$G9*SUMIF('原単位リスト(multi)org'!$B$8:$B$75,$F9,'原単位リスト(multi)org'!EK$8:EK$75) -> 0 | EW9: =$G9*SUMIF('原単位リスト(multi)org'!$B$8:$B$75,$F9,'原単位リスト(multi)org'!EL$8:EL$75) -> 0 | EX9: =$G9*SUMIF('原単位リスト(multi)org'!$B$8:$B$75,$F9,'原単位リスト(multi)org'!EM$8:EM$75) -> 0 | EY9: =$G9*SUMIF('原単位リスト(multi)org'!$B$8:$B$75,$F9,'原単位リスト(multi)org'!EN$8:EN$75) -> 0 | EZ9: =$G9*SUMIF('原単位リスト(multi)org'!$B$8:$B$75,$F9,'原単位リスト(multi)org'!EO$8:EO$75) -> 0 | FA9: =$G9*SUMIF('原単位リスト(multi)org'!$B$8:$B$75,$F9,'原単位リスト(multi)org'!EP$8:EP$75) -> 0 | FB9: =$G9*SUMIF('原単位リスト(multi)org'!$B$8:$B$75,$F9,'原単位リスト(multi)org'!EQ$8:EQ$75) -> 0 | FC9: =$G9*SUMIF('原単位リスト(multi)org'!$B$8:$B$75,$F9,'原単位リスト(multi)org'!ER$8:ER$75) -> 0 | FD9: =$G9*SUMIF('原単位リスト(multi)org'!$B$8:$B$75,$F9,'原単位リスト(multi)org'!ES$8:ES$75) -> 0 | FE9: =$G9*SUMIF('原単位リスト(multi)org'!$B$8:$B$75,$F9,'原単位リスト(multi)org'!ET$8:ET$75) -> 0 | FF9: =$G9*SUMIF('原単位リスト(multi)org'!$B$8:$B$75,$F9,'原単位リスト(multi)org'!EU$8:EU$75) -> 0 | FG9: =$G9*SUMIF('原単位リスト(multi)org'!$B$8:$B$75,$F9,'原単位リスト(multi)org'!EV$8:EV$75) -> 0 | FH9: =$G9*SUMIF('原単位リスト(multi)org'!$B$8:$B$75,$F9,'原単位リスト(multi)org'!EW$8:EW$75) -> 0 | FI9: =$G9*SUMIF('原単位リスト(multi)org'!$B$8:$B$75,$F9,'原単位リスト(multi)org'!EX$8:EX$75) -> 0 | FJ9: =$G9*SUMIF('原単位リスト(multi)org'!$B$8:$B$75,$F9,'原単位リスト(multi)org'!EY$8:EY$75) -> 0 | FK9: =$G9*SUMIF('原単位リスト(multi)org'!$B$8:$B$75,$F9,'原単位リスト(multi)org'!EZ$8:EZ$75) -> 0 | FL9: =$G9*SUMIF('原単位リスト(multi)org'!$B$8:$B$75,$F9,'原単位リスト(multi)org'!FA$8:FA$75) -> 0 | FM9: =$G9*SUMIF('原単位リスト(multi)org'!$B$8:$B$75,$F9,'原単位リスト(multi)org'!FB$8:FB$75) -> 0 | FN9: =$G9*SUMIF('原単位リスト(multi)org'!$B$8:$B$75,$F9,'原単位リスト(multi)org'!FC$8:FC$75) -> 0 | FO9: =$G9*SUMIF('原単位リスト(multi)org'!$B$8:$B$75,$F9,'原単位リスト(multi)org'!FD$8:FD$75) -> 0 | FP9: =$G9*SUMIF('原単位リスト(multi)org'!$B$8:$B$75,$F9,'原単位リスト(multi)org'!FE$8:FE$75) -> 0 | FQ9: =$G9*SUMIF('原単位リスト(multi)org'!$B$8:$B$75,$F9,'原単位リスト(multi)org'!FF$8:FF$75) -> 0 | FR9: =$G9*SUMIF('原単位リスト(multi)org'!$B$8:$B$75,$F9,'原単位リスト(multi)org'!FG$8:FG$75) -> 0 | FS9: =$G9*SUMIF('原単位リスト(multi)org'!$B$8:$B$75,$F9,'原単位リスト(multi)org'!FH$8:FH$75) -> 0 | FT9: =$G9*SUMIF('原単位リスト(multi)org'!$B$8:$B$75,$F9,'原単位リスト(multi)org'!FI$8:FI$75) -> 0 | FU9: =$G9*SUMIF('原単位リスト(multi)org'!$B$8:$B$75,$F9,'原単位リスト(multi)org'!FJ$8:FJ$75) -> 0 | FV9: =$G9*SUMIF('原単位リスト(multi)org'!$B$8:$B$75,$F9,'原単位リスト(multi)org'!FK$8:FK$75) -> 0 | FW9: =$G9*SUMIF('原単位リスト(multi)org'!$B$8:$B$75,$F9,'原単位リスト(multi)org'!FL$8:FL$75) -> 0 | FX9: =$G9*SUMIF('原単位リスト(multi)org'!$B$8:$B$75,$F9,'原単位リスト(multi)org'!FM$8:FM$75) -> 0 | FY9: =$G9*SUMIF('原単位リスト(multi)org'!$B$8:$B$75,$F9,'原単位リスト(multi)org'!FN$8:FN$75) -> 0 | FZ9: =$G9*SUMIF('原単位リスト(multi)org'!$B$8:$B$75,$F9,'原単位リスト(multi)org'!FO$8:FO$75) -> 0 | GA9: =$G9*SUMIF('原単位リスト(multi)org'!$B$8:$B$75,$F9,'原単位リスト(multi)org'!FP$8:FP$75) -> 0 | GB9: =$G9*SUMIF('原単位リスト(multi)org'!$B$8:$B$75,$F9,'原単位リスト(multi)org'!FQ$8:FQ$75) -> 0 | GC9: =$G9*SUMIF('原単位リスト(multi)org'!$B$8:$B$75,$F9,'原単位リスト(multi)org'!FR$8:FR$75) -> 0 | GD9: =$G9*SUMIF('原単位リスト(multi)org'!$B$8:$B$75,$F9,'原単位リスト(multi)org'!FS$8:FS$75) -> 0 | GE9: =$G9*SUMIF('原単位リスト(multi)org'!$B$8:$B$75,$F9,'原単位リスト(multi)org'!FT$8:FT$75) -> 0 | GF9: =$G9*SUMIF('原単位リスト(multi)org'!$B$8:$B$75,$F9,'原単位リスト(multi)org'!FU$8:FU$75) -> 0 | GG9: =$G9*SUMIF('原単位リスト(multi)org'!$B$8:$B$75,$F9,'原単位リスト(multi)org'!FV$8:FV$75) -> 0 | GH9: =$G9*SUMIF('原単位リスト(multi)org'!$B$8:$B$75,$F9,'原単位リスト(multi)org'!FW$8:FW$75) -> 0 | GI9: =$G9*SUMIF('原単位リスト(multi)org'!$B$8:$B$75,$F9,'原単位リスト(multi)org'!FX$8:FX$75) -> 0 | GJ9: =$G9*SUMIF('原単位リスト(multi)org'!$B$8:$B$75,$F9,'原単位リスト(multi)org'!FY$8:FY$75) -> 0 | GK9: =$G9*SUMIF('原単位リスト(multi)org'!$B$8:$B$75,$F9,'原単位リスト(multi)org'!FZ$8:FZ$75) -> 0 | GL9: =$G9*SUMIF('原単位リスト(multi)org'!$B$8:$B$75,$F9,'原単位リスト(multi)org'!GA$8:GA$75) -> 0 | GM9: =$G9*SUMIF('原単位リスト(multi)org'!$B$8:$B$75,$F9,'原単位リスト(multi)org'!GB$8:GB$75) -> 0 | GN9: =$G9*SUMIF('原単位リスト(multi)org'!$B$8:$B$75,$F9,'原単位リスト(multi)org'!GC$8:GC$75) -> 0 | GO9: =$G9*SUMIF('原単位リスト(multi)org'!$B$8:$B$75,$F9,'原単位リスト(multi)org'!GD$8:GD$75) -> 0 | GP9: =$G9*SUMIF('原単位リスト(multi)org'!$B$8:$B$75,$F9,'原単位リスト(multi)org'!GE$8:GE$75) -> 0 | GQ9: =$G9*SUMIF('原単位リスト(multi)org'!$B$8:$B$75,$F9,'原単位リスト(multi)org'!GF$8:GF$75) -> 0 | GR9: =$G9*SUMIF('原単位リスト(multi)org'!$B$8:$B$75,$F9,'原単位リスト(multi)org'!GG$8:GG$75) -> 0 | GS9: =$G9*SUMIF('原単位リスト(multi)org'!$B$8:$B$75,$F9,'原単位リスト(multi)org'!GH$8:GH$75) -> 0 | GT9: =$G9*SUMIF('原単位リスト(multi)org'!$B$8:$B$75,$F9,'原単位リスト(multi)org'!GI$8:GI$75) -> 0 | GU9: =$G9*SUMIF('原単位リスト(multi)org'!$B$8:$B$75,$F9,'原単位リスト(multi)org'!GJ$8:GJ$75) -> 0 | GV9: =$G9*SUMIF('原単位リスト(multi)org'!$B$8:$B$75,$F9,'原単位リスト(multi)org'!GK$8:GK$75) -> 0 | GW9: =$G9*SUMIF('原単位リスト(multi)org'!$B$8:$B$75,$F9,'原単位リスト(multi)org'!GL$8:GL$75) -> 0 | GX9: =$G9*SUMIF('原単位リスト(multi)org'!$B$8:$B$75,$F9,'原単位リスト(multi)org'!GM$8:GM$75) -> 0 | GY9: =$G9*SUMIF('原単位リスト(multi)org'!$B$8:$B$75,$F9,'原単位リスト(multi)org'!GN$8:GN$75) -> 0 | GZ9: =$G9*SUMIF('原単位リスト(multi)org'!$B$8:$B$75,$F9,'原単位リスト(multi)org'!GO$8:GO$75) -> 0 | HA9: =$G9*SUMIF('原単位リスト(multi)org'!$B$8:$B$75,$F9,'原単位リスト(multi)org'!GP$8:GP$75) -> 0 | HB9: =$G9*SUMIF('原単位リスト(multi)org'!$B$8:$B$75,$F9,'原単位リスト(multi)org'!GQ$8:GQ$75) -> 0 | HC9: =$G9*SUMIF('原単位リスト(multi)org'!$B$8:$B$75,$F9,'原単位リスト(multi)org'!GR$8:GR$75) -> 0 | HD9: =$G9*SUMIF('原単位リスト(multi)org'!$B$8:$B$75,$F9,'原単位リスト(multi)org'!GS$8:GS$75) -> 0 | HE9: =MMULT($R9:$HD9,特性化係数リスト!H$5:H$199) -> 0 | HF9: =MMULT($R9:$HD9,特性化係数リスト!I$5:I$199) -> 0 | HG9: =MMULT($R9:$HD9,特性化係数リスト!J$5:J$199) -> 0 | HH9: =MMULT($R9:$HD9,特性化係数リスト!K$5:K$199) -> 0 | HI9: =MMULT($R9:$HD9,特性化係数リスト!L$5:L$199) -> 0 | HJ9: =MMULT($R9:$HD9,特性化係数リスト!M$5:M$199) -> 0 | HK9: =MMULT($R9:$HD9,特性化係数リスト!N$5:N$199) -> 0 | HL9: =MMULT($R9:$HD9,特性化係数リスト!O$5:O$199) -> 0 | HM9: =MMULT($R9:$HD9,特性化係数リスト!P$5:P$199) -> 0 | HN9: =MMULT($R9:$HD9,特性化係数リスト!Q$5:Q$199) -> 0 | HO9: =MMULT($R9:$HD9,特性化係数リスト!R$5:R$199) -> 0 | HP9: =MMULT($R9:$HD9,特性化係数リスト!S$5:S$199) -> 0 | HQ9: =MMULT($R9:$HD9,特性化係数リスト!T$5:T$199) -> 0 | HR9: =MMULT($R9:$HD9,特性化係数リスト!U$5:U$199) -> 0 | HS9: =MMULT($R9:$HD9,特性化係数リスト!V$5:V$199) -> 0 | HT9: =MMULT($R9:$HD9,特性化係数リスト!W$5:W$199) -> 0 | HU9: =MMULT($R9:$HD9,特性化係数リスト!X$5:X$199) -> 0 | HV9: =MMULT($R9:$HD9,'被害係数リスト(人間健康)'!H$4:H$198) -> 0 | HW9: =MMULT($R9:$HD9,'被害係数リスト(人間健康)'!I$4:I$198) -> 0 | HX9: =MMULT($R9:$HD9,'被害係数リスト(人間健康)'!J$4:J$198) -> 0 | HY9: =MMULT($R9:$HD9,'被害係数リスト(人間健康)'!K$4:K$198) -> 0 | HZ9: =MMULT($R9:$HD9,'被害係数リスト(人間健康)'!L$4:L$198) -> 0 | IA9: =SUM(HV9:HZ9) -> 0 | IB9: =MMULT($R9:$HD9,'被害係数リスト(一次生産)'!H$4:H$198) -> 0 | IC9: =MMULT($R9:$HD9,'被害係数リスト(一次生産)'!I$4:I$198) -> 0 | ID9: =MMULT($R9:$HD9,'被害係数リスト(一次生産)'!J$4:J$198) -> 0 | IE9: =MMULT($R9:$HD9,'被害係数リスト(一次生産)'!K$4:K$198) -> 0 | IF9: =SUM(IB9:IE9) -> 0 | IG9: =MMULT($R9:$HD9,'被害係数リスト(社会資産)'!H$4:H$198) -> 0 | IH9: =MMULT($R9:$HD9,'被害係数リスト(社会資産)'!I$4:I$198) -> 0 | II9: =MMULT($R9:$HD9,'被害係数リスト(社会資産)'!J$4:J$198) -> 0 | IJ9: =MMULT($R9:$HD9,'被害係数リスト(社会資産)'!K$4:K$198) -> 0 | IK9: =MMULT($R9:$HD9,'被害係数リスト(社会資産)'!L$4:L$198) -> 0 | IL9: =MMULT($R9:$HD9,'被害係数リスト(社会資産)'!M$4:M$198) -> 0 | IM9: =SUM(IG9:IL9) -> 0 | IN9: =MMULT($R9:$HD9,'被害係数リスト(生物多様性)'!H$4:H$198) -> 0 | IO9: =MMULT($R9:$HD9,'被害係数リスト(生物多様性)'!I$4:I$198) -> 0 | IP9: =MMULT($R9:$HD9,'被害係数リスト(生物多様性)'!J$4:J$198) -> 0 | IQ9: =MMULT($R9:$HD9,'被害係数リスト(生物多様性)'!K$4:K$198) -> 0 | IR9: =SUM(IN9:IQ9) -> 0 | IS9: =MMULT($R9:$HD9,'統合化係数リスト(無次元)'!H$4:H$198) -> 0 | IT9: =MMULT($R9:$HD9,'統合化係数リスト(無次元)'!I$4:I$198) -> 0 | IU9: =MMULT($R9:$HD9,'統合化係数リスト(無次元)'!J$4:J$198) -> 0 | IV9: =MMULT($R9:$HD9,'統合化係数リスト(無次元)'!K$4:K$198) -> 0 | IW9: =MMULT($R9:$HD9,'統合化係数リスト(無次元)'!L$4:L$198) -> 0 | IX9: =MMULT($R9:$HD9,'統合化係数リスト(無次元)'!M$4:M$198) -> 0 | IY9: =MMULT($R9:$HD9,'統合化係数リスト(無次元)'!N$4:N$198) -> 0 | IZ9: =MMULT($R9:$HD9,'統合化係数リスト(無次元)'!O$4:O$198) -> 0 | JA9: =MMULT($R9:$HD9,'統合化係数リスト(無次元)'!P$4:P$198) -> 0 | JB9: =MMULT($R9:$HD9,'統合化係数リスト(無次元)'!Q$4:Q$198) -> 0 | JC9: =MMULT($R9:$HD9,'統合化係数リスト(無次元)'!R$4:R$198) -> 0 | JD9: =SUM(IS9:JC9) -> 0
A10: 仮設工事 | B10: エネルギー消費分 | C10: 3 | D10: 鋼矢板－建設機械・資材搬入・搬出 | E10: 資材搬入・搬出（鋼矢板） | F10: =仮設工事①!O7 -> 軽油 | G10: =仮設工事①!P7 -> 0 | H10: L | J10: 0 | K10: 0 | L10: 0 | M10: 0 | N10: 0 | O10: 0 | P10: 0 | Q10: 0 | R10: =$G10*SUMIF('原単位リスト(multi)org'!$B$8:$B$75,$F10,'原単位リスト(multi)org'!G$8:G$75) -> 0 | S10: =$G10*SUMIF('原単位リスト(multi)org'!$B$8:$B$75,$F10,'原単位リスト(multi)org'!H$8:H$75) -> 0 | T10: =$G10*SUMIF('原単位リスト(multi)org'!$B$8:$B$75,$F10,'原単位リスト(multi)org'!I$8:I$75) -> 0 | U10: =$G10*SUMIF('原単位リスト(multi)org'!$B$8:$B$75,$F10,'原単位リスト(multi)org'!J$8:J$75) -> 0 | V10: =$G10*SUMIF('原単位リスト(multi)org'!$B$8:$B$75,$F10,'原単位リスト(multi)org'!K$8:K$75) -> 0 | W10: =$G10*SUMIF('原単位リスト(multi)org'!$B$8:$B$75,$F10,'原単位リスト(multi)org'!L$8:L$75) -> 0 | X10: =$G10*SUMIF('原単位リスト(multi)org'!$B$8:$B$75,$F10,'原単位リスト(multi)org'!M$8:M$75) -> 0 | Y10: =$G10*SUMIF('原単位リスト(multi)org'!$B$8:$B$75,$F10,'原単位リスト(multi)org'!N$8:N$75) -> 0 | Z10: =$G10*SUMIF('原単位リスト(multi)org'!$B$8:$B$75,$F10,'原単位リスト(multi)org'!O$8:O$75) -> 0 | AA10: =$G10*SUMIF('原単位リスト(multi)org'!$B$8:$B$75,$F10,'原単位リスト(multi)org'!P$8:P$75) -> 0 | AB10: =$G10*SUMIF('原単位リスト(multi)org'!$B$8:$B$75,$F10,'原単位リスト(multi)org'!Q$8:Q$75) -> 0 | AC10: =$G10*SUMIF('原単位リスト(multi)org'!$B$8:$B$75,$F10,'原単位リスト(multi)org'!R$8:R$75) -> 0 | AD10: =$G10*SUMIF('原単位リスト(multi)org'!$B$8:$B$75,$F10,'原単位リスト(multi)org'!S$8:S$75) -> 0 | AE10: =$G10*SUMIF('原単位リスト(multi)org'!$B$8:$B$75,$F10,'原単位リスト(multi)org'!T$8:T$75) -> 0 | AF10: =$G10*SUMIF('原単位リスト(multi)org'!$B$8:$B$75,$F10,'原単位リスト(multi)org'!U$8:U$75) -> 0 | AG10: =$G10*SUMIF('原単位リスト(multi)org'!$B$8:$B$75,$F10,'原単位リスト(multi)org'!V$8:V$75) -> 0 | AH10: =$G10*SUMIF('原単位リスト(multi)org'!$B$8:$B$75,$F10,'原単位リスト(multi)org'!W$8:W$75) -> 0 | AI10: =$G10*SUMIF('原単位リスト(multi)org'!$B$8:$B$75,$F10,'原単位リスト(multi)org'!X$8:X$75) -> 0 | AJ10: =$G10*SUMIF('原単位リスト(multi)org'!$B$8:$B$75,$F10,'原単位リスト(multi)org'!Y$8:Y$75) -> 0 | AK10: =$G10*SUMIF('原単位リスト(multi)org'!$B$8:$B$75,$F10,'原単位リスト(multi)org'!Z$8:Z$75) -> 0 | AL10: =$G10*SUMIF('原単位リスト(multi)org'!$B$8:$B$75,$F10,'原単位リスト(multi)org'!AA$8:AA$75) -> 0 | AM10: =$G10*SUMIF('原単位リスト(multi)org'!$B$8:$B$75,$F10,'原単位リスト(multi)org'!AB$8:AB$75) -> 0 | AN10: =$G10*SUMIF('原単位リスト(multi)org'!$B$8:$B$75,$F10,'原単位リスト(multi)org'!AC$8:AC$75) -> 0 | AO10: =$G10*SUMIF('原単位リスト(multi)org'!$B$8:$B$75,$F10,'原単位リスト(multi)org'!AD$8:AD$75) -> 0 | AP10: =$G10*SUMIF('原単位リスト(multi)org'!$B$8:$B$75,$F10,'原単位リスト(multi)org'!AE$8:AE$75) -> 0 | AQ10: =$G10*SUMIF('原単位リスト(multi)org'!$B$8:$B$75,$F10,'原単位リスト(multi)org'!AF$8:AF$75) -> 0 | AR10: =$G10*SUMIF('原単位リスト(multi)org'!$B$8:$B$75,$F10,'原単位リスト(multi)org'!AG$8:AG$75) -> 0 | AS10: =$G10*SUMIF('原単位リスト(multi)org'!$B$8:$B$75,$F10,'原単位リスト(multi)org'!AH$8:AH$75) -> 0 | AT10: =$G10*SUMIF('原単位リスト(multi)org'!$B$8:$B$75,$F10,'原単位リスト(multi)org'!AI$8:AI$75) -> 0 | AU10: =$G10*SUMIF('原単位リスト(multi)org'!$B$8:$B$75,$F10,'原単位リスト(multi)org'!AJ$8:AJ$75) -> 0 | AV10: =$G10*SUMIF('原単位リスト(multi)org'!$B$8:$B$75,$F10,'原単位リスト(multi)org'!AK$8:AK$75) -> 0 | AW10: =$G10*SUMIF('原単位リスト(multi)org'!$B$8:$B$75,$F10,'原単位リスト(multi)org'!AL$8:AL$75) -> 0 | AX10: =$G10*SUMIF('原単位リスト(multi)org'!$B$8:$B$75,$F10,'原単位リスト(multi)org'!AM$8:AM$75) -> 0 | AY10: =$G10*SUMIF('原単位リスト(multi)org'!$B$8:$B$75,$F10,'原単位リスト(multi)org'!AN$8:AN$75) -> 0 | AZ10: =$G10*SUMIF('原単位リスト(multi)org'!$B$8:$B$75,$F10,'原単位リスト(multi)org'!AO$8:AO$75) -> 0 | BA10: =$G10*SUMIF('原単位リスト(multi)org'!$B$8:$B$75,$F10,'原単位リスト(multi)org'!AP$8:AP$75) -> 0 | BB10: =$G10*SUMIF('原単位リスト(multi)org'!$B$8:$B$75,$F10,'原単位リスト(multi)org'!AQ$8:AQ$75) -> 0 | BC10: =$G10*SUMIF('原単位リスト(multi)org'!$B$8:$B$75,$F10,'原単位リスト(multi)org'!AR$8:AR$75) -> 0 | BD10: =$G10*SUMIF('原単位リスト(multi)org'!$B$8:$B$75,$F10,'原単位リスト(multi)org'!AS$8:AS$75) -> 0 | BE10: =$G10*SUMIF('原単位リスト(multi)org'!$B$8:$B$75,$F10,'原単位リスト(multi)org'!AT$8:AT$75) -> 0 | BF10: =$G10*SUMIF('原単位リスト(multi)org'!$B$8:$B$75,$F10,'原単位リスト(multi)org'!AU$8:AU$75) -> 0 | BG10: =$G10*SUMIF('原単位リスト(multi)org'!$B$8:$B$75,$F10,'原単位リスト(multi)org'!AV$8:AV$75) -> 0 | BH10: =$G10*SUMIF('原単位リスト(multi)org'!$B$8:$B$75,$F10,'原単位リスト(multi)org'!AW$8:AW$75) -> 0 | BI10: =$G10*SUMIF('原単位リスト(multi)org'!$B$8:$B$75,$F10,'原単位リスト(multi)org'!AX$8:AX$75) -> 0 | BJ10: =$G10*SUMIF('原単位リスト(multi)org'!$B$8:$B$75,$F10,'原単位リスト(multi)org'!AY$8:AY$75) -> 0 | BK10: =$G10*SUMIF('原単位リスト(multi)org'!$B$8:$B$75,$F10,'原単位リスト(multi)org'!AZ$8:AZ$75) -> 0 | BL10: =$G10*SUMIF('原単位リスト(multi)org'!$B$8:$B$75,$F10,'原単位リスト(multi)org'!BA$8:BA$75) -> 0 | BM10: =$G10*SUMIF('原単位リスト(multi)org'!$B$8:$B$75,$F10,'原単位リスト(multi)org'!BB$8:BB$75) -> 0 | BN10: =$G10*SUMIF('原単位リスト(multi)org'!$B$8:$B$75,$F10,'原単位リスト(multi)org'!BC$8:BC$75) -> 0 | BO10: =$G10*SUMIF('原単位リスト(multi)org'!$B$8:$B$75,$F10,'原単位リスト(multi)org'!BD$8:BD$75) -> 0 | BP10: =$G10*SUMIF('原単位リスト(multi)org'!$B$8:$B$75,$F10,'原単位リスト(multi)org'!BE$8:BE$75) -> 0 | BQ10: =$G10*SUMIF('原単位リスト(multi)org'!$B$8:$B$75,$F10,'原単位リスト(multi)org'!BF$8:BF$75) -> 0 | BR10: =$G10*SUMIF('原単位リスト(multi)org'!$B$8:$B$75,$F10,'原単位リスト(multi)org'!BG$8:BG$75) -> 0 | BS10: =$G10*SUMIF('原単位リスト(multi)org'!$B$8:$B$75,$F10,'原単位リスト(multi)org'!BH$8:BH$75) -> 0 | BT10: =$G10*SUMIF('原単位リスト(multi)org'!$B$8:$B$75,$F10,'原単位リスト(multi)org'!BI$8:BI$75) -> 0 | BU10: =$G10*SUMIF('原単位リスト(multi)org'!$B$8:$B$75,$F10,'原単位リスト(multi)org'!BJ$8:BJ$75) -> 0 | BV10: =$G10*SUMIF('原単位リスト(multi)org'!$B$8:$B$75,$F10,'原単位リスト(multi)org'!BK$8:BK$75) -> 0 | BW10: =$G10*SUMIF('原単位リスト(multi)org'!$B$8:$B$75,$F10,'原単位リスト(multi)org'!BL$8:BL$75) -> 0 | BX10: =$G10*SUMIF('原単位リスト(multi)org'!$B$8:$B$75,$F10,'原単位リスト(multi)org'!BM$8:BM$75) -> 0 | BY10: =$G10*SUMIF('原単位リスト(multi)org'!$B$8:$B$75,$F10,'原単位リスト(multi)org'!BN$8:BN$75) -> 0 | BZ10: =$G10*SUMIF('原単位リスト(multi)org'!$B$8:$B$75,$F10,'原単位リスト(multi)org'!BO$8:BO$75) -> 0 | CA10: =$G10*SUMIF('原単位リスト(multi)org'!$B$8:$B$75,$F10,'原単位リスト(multi)org'!BP$8:BP$75) -> 0 | CB10: =$G10*SUMIF('原単位リスト(multi)org'!$B$8:$B$75,$F10,'原単位リスト(multi)org'!BQ$8:BQ$75) -> 0 | CC10: =$G10*SUMIF('原単位リスト(multi)org'!$B$8:$B$75,$F10,'原単位リスト(multi)org'!BR$8:BR$75) -> 0 | CD10: =$G10*SUMIF('原単位リスト(multi)org'!$B$8:$B$75,$F10,'原単位リスト(multi)org'!BS$8:BS$75) -> 0 | CE10: =$G10*SUMIF('原単位リスト(multi)org'!$B$8:$B$75,$F10,'原単位リスト(multi)org'!BT$8:BT$75) -> 0 | CF10: =$G10*SUMIF('原単位リスト(multi)org'!$B$8:$B$75,$F10,'原単位リスト(multi)org'!BU$8:BU$75) -> 0 | CG10: =$G10*SUMIF('原単位リスト(multi)org'!$B$8:$B$75,$F10,'原単位リスト(multi)org'!BV$8:BV$75) -> 0 | CH10: =$G10*SUMIF('原単位リスト(multi)org'!$B$8:$B$75,$F10,'原単位リスト(multi)org'!BW$8:BW$75) -> 0 | CI10: =$G10*SUMIF('原単位リスト(multi)org'!$B$8:$B$75,$F10,'原単位リスト(multi)org'!BX$8:BX$75) -> 0 | CJ10: =$G10*SUMIF('原単位リスト(multi)org'!$B$8:$B$75,$F10,'原単位リスト(multi)org'!BY$8:BY$75) -> 0 | CK10: =$G10*SUMIF('原単位リスト(multi)org'!$B$8:$B$75,$F10,'原単位リスト(multi)org'!BZ$8:BZ$75) -> 0 | CL10: =$G10*SUMIF('原単位リスト(multi)org'!$B$8:$B$75,$F10,'原単位リスト(multi)org'!CA$8:CA$75) -> 0 | CM10: =$G10*SUMIF('原単位リスト(multi)org'!$B$8:$B$75,$F10,'原単位リスト(multi)org'!CB$8:CB$75) -> 0 | CN10: =$G10*SUMIF('原単位リスト(multi)org'!$B$8:$B$75,$F10,'原単位リスト(multi)org'!CC$8:CC$75) -> 0 | CO10: =$G10*SUMIF('原単位リスト(multi)org'!$B$8:$B$75,$F10,'原単位リスト(multi)org'!CD$8:CD$75) -> 0 | CP10: =$G10*SUMIF('原単位リスト(multi)org'!$B$8:$B$75,$F10,'原単位リスト(multi)org'!CE$8:CE$75) -> 0 | CQ10: =$G10*SUMIF('原単位リスト(multi)org'!$B$8:$B$75,$F10,'原単位リスト(multi)org'!CF$8:CF$75) -> 0 | CR10: =$G10*SUMIF('原単位リスト(multi)org'!$B$8:$B$75,$F10,'原単位リスト(multi)org'!CG$8:CG$75) -> 0 | CS10: =$G10*SUMIF('原単位リスト(multi)org'!$B$8:$B$75,$F10,'原単位リスト(multi)org'!CH$8:CH$75) -> 0 | CT10: =$G10*SUMIF('原単位リスト(multi)org'!$B$8:$B$75,$F10,'原単位リスト(multi)org'!CI$8:CI$75) -> 0 | CU10: =$G10*SUMIF('原単位リスト(multi)org'!$B$8:$B$75,$F10,'原単位リスト(multi)org'!CJ$8:CJ$75) -> 0 | CV10: =$G10*SUMIF('原単位リスト(multi)org'!$B$8:$B$75,$F10,'原単位リスト(multi)org'!CK$8:CK$75) -> 0 | CW10: =$G10*SUMIF('原単位リスト(multi)org'!$B$8:$B$75,$F10,'原単位リスト(multi)org'!CL$8:CL$75) -> 0 | CX10: =$G10*SUMIF('原単位リスト(multi)org'!$B$8:$B$75,$F10,'原単位リスト(multi)org'!CM$8:CM$75) -> 0 | CY10: =$G10*SUMIF('原単位リスト(multi)org'!$B$8:$B$75,$F10,'原単位リスト(multi)org'!CN$8:CN$75) -> 0 | CZ10: =$G10*SUMIF('原単位リスト(multi)org'!$B$8:$B$75,$F10,'原単位リスト(multi)org'!CO$8:CO$75) -> 0 | DA10: =$G10*SUMIF('原単位リスト(multi)org'!$B$8:$B$75,$F10,'原単位リスト(multi)org'!CP$8:CP$75) -> 0 | DB10: =$G10*SUMIF('原単位リスト(multi)org'!$B$8:$B$75,$F10,'原単位リスト(multi)org'!CQ$8:CQ$75) -> 0 | DC10: =$G10*SUMIF('原単位リスト(multi)org'!$B$8:$B$75,$F10,'原単位リスト(multi)org'!CR$8:CR$75) -> 0 | DD10: =$G10*SUMIF('原単位リスト(multi)org'!$B$8:$B$75,$F10,'原単位リスト(multi)org'!CS$8:CS$75) -> 0 | DE10: =$G10*SUMIF('原単位リスト(multi)org'!$B$8:$B$75,$F10,'原単位リスト(multi)org'!CT$8:CT$75) -> 0 | DF10: =$G10*SUMIF('原単位リスト(multi)org'!$B$8:$B$75,$F10,'原単位リスト(multi)org'!CU$8:CU$75) -> 0 | DG10: =$G10*SUMIF('原単位リスト(multi)org'!$B$8:$B$75,$F10,'原単位リスト(multi)org'!CV$8:CV$75) -> 0 | DH10: =$G10*SUMIF('原単位リスト(multi)org'!$B$8:$B$75,$F10,'原単位リスト(multi)org'!CW$8:CW$75) -> 0 | DI10: =$G10*SUMIF('原単位リスト(multi)org'!$B$8:$B$75,$F10,'原単位リスト(multi)org'!CX$8:CX$75) -> 0 | DJ10: =$G10*SUMIF('原単位リスト(multi)org'!$B$8:$B$75,$F10,'原単位リスト(multi)org'!CY$8:CY$75) -> 0 | DK10: =$G10*SUMIF('原単位リスト(multi)org'!$B$8:$B$75,$F10,'原単位リスト(multi)org'!CZ$8:CZ$75) -> 0 | DL10: =$G10*SUMIF('原単位リスト(multi)org'!$B$8:$B$75,$F10,'原単位リスト(multi)org'!DA$8:DA$75) -> 0 | DM10: =$G10*SUMIF('原単位リスト(multi)org'!$B$8:$B$75,$F10,'原単位リスト(multi)org'!DB$8:DB$75) -> 0 | DN10: =$G10*SUMIF('原単位リスト(multi)org'!$B$8:$B$75,$F10,'原単位リスト(multi)org'!DC$8:DC$75) -> 0 | DO10: =$G10*SUMIF('原単位リスト(multi)org'!$B$8:$B$75,$F10,'原単位リスト(multi)org'!DD$8:DD$75) -> 0 | DP10: =$G10*SUMIF('原単位リスト(multi)org'!$B$8:$B$75,$F10,'原単位リスト(multi)org'!DE$8:DE$75) -> 0 | DQ10: =$G10*SUMIF('原単位リスト(multi)org'!$B$8:$B$75,$F10,'原単位リスト(multi)org'!DF$8:DF$75) -> 0 | DR10: =$G10*SUMIF('原単位リスト(multi)org'!$B$8:$B$75,$F10,'原単位リスト(multi)org'!DG$8:DG$75) -> 0 | DS10: =$G10*SUMIF('原単位リスト(multi)org'!$B$8:$B$75,$F10,'原単位リスト(multi)org'!DH$8:DH$75) -> 0 | DT10: =$G10*SUMIF('原単位リスト(multi)org'!$B$8:$B$75,$F10,'原単位リスト(multi)org'!DI$8:DI$75) -> 0 | DU10: =$G10*SUMIF('原単位リスト(multi)org'!$B$8:$B$75,$F10,'原単位リスト(multi)org'!DJ$8:DJ$75) -> 0 | DV10: =$G10*SUMIF('原単位リスト(multi)org'!$B$8:$B$75,$F10,'原単位リスト(multi)org'!DK$8:DK$75) -> 0 | DW10: =$G10*SUMIF('原単位リスト(multi)org'!$B$8:$B$75,$F10,'原単位リスト(multi)org'!DL$8:DL$75) -> 0 | DX10: =$G10*SUMIF('原単位リスト(multi)org'!$B$8:$B$75,$F10,'原単位リスト(multi)org'!DM$8:DM$75) -> 0 | DY10: =$G10*SUMIF('原単位リスト(multi)org'!$B$8:$B$75,$F10,'原単位リスト(multi)org'!DN$8:DN$75) -> 0 | DZ10: =$G10*SUMIF('原単位リスト(multi)org'!$B$8:$B$75,$F10,'原単位リスト(multi)org'!DO$8:DO$75) -> 0 | EA10: =$G10*SUMIF('原単位リスト(multi)org'!$B$8:$B$75,$F10,'原単位リスト(multi)org'!DP$8:DP$75) -> 0 | EB10: =$G10*SUMIF('原単位リスト(multi)org'!$B$8:$B$75,$F10,'原単位リスト(multi)org'!DQ$8:DQ$75) -> 0 | EC10: =$G10*SUMIF('原単位リスト(multi)org'!$B$8:$B$75,$F10,'原単位リスト(multi)org'!DR$8:DR$75) -> 0 | ED10: =$G10*SUMIF('原単位リスト(multi)org'!$B$8:$B$75,$F10,'原単位リスト(multi)org'!DS$8:DS$75) -> 0 | EE10: =$G10*SUMIF('原単位リスト(multi)org'!$B$8:$B$75,$F10,'原単位リスト(multi)org'!DT$8:DT$75) -> 0 | EF10: =$G10*SUMIF('原単位リスト(multi)org'!$B$8:$B$75,$F10,'原単位リスト(multi)org'!DU$8:DU$75) -> 0 | EG10: =$G10*SUMIF('原単位リスト(multi)org'!$B$8:$B$75,$F10,'原単位リスト(multi)org'!DV$8:DV$75) -> 0 | EH10: =$G10*SUMIF('原単位リスト(multi)org'!$B$8:$B$75,$F10,'原単位リスト(multi)org'!DW$8:DW$75) -> 0 | EI10: =$G10*SUMIF('原単位リスト(multi)org'!$B$8:$B$75,$F10,'原単位リスト(multi)org'!DX$8:DX$75) -> 0 | EJ10: =$G10*SUMIF('原単位リスト(multi)org'!$B$8:$B$75,$F10,'原単位リスト(multi)org'!DY$8:DY$75) -> 0 | EK10: =$G10*SUMIF('原単位リスト(multi)org'!$B$8:$B$75,$F10,'原単位リスト(multi)org'!DZ$8:DZ$75) -> 0 | EL10: =$G10*SUMIF('原単位リスト(multi)org'!$B$8:$B$75,$F10,'原単位リスト(multi)org'!EA$8:EA$75) -> 0 | EM10: =$G10*SUMIF('原単位リスト(multi)org'!$B$8:$B$75,$F10,'原単位リスト(multi)org'!EB$8:EB$75) -> 0 | EN10: =$G10*SUMIF('原単位リスト(multi)org'!$B$8:$B$75,$F10,'原単位リスト(multi)org'!EC$8:EC$75) -> 0 | EO10: =$G10*SUMIF('原単位リスト(multi)org'!$B$8:$B$75,$F10,'原単位リスト(multi)org'!ED$8:ED$75) -> 0 | EP10: =$G10*SUMIF('原単位リスト(multi)org'!$B$8:$B$75,$F10,'原単位リスト(multi)org'!EE$8:EE$75) -> 0 | EQ10: =$G10*SUMIF('原単位リスト(multi)org'!$B$8:$B$75,$F10,'原単位リスト(multi)org'!EF$8:EF$75) -> 0 | ER10: =$G10*SUMIF('原単位リスト(multi)org'!$B$8:$B$75,$F10,'原単位リスト(multi)org'!EG$8:EG$75) -> 0 | ES10: =$G10*SUMIF('原単位リスト(multi)org'!$B$8:$B$75,$F10,'原単位リスト(multi)org'!EH$8:EH$75) -> 0 | ET10: =$G10*SUMIF('原単位リスト(multi)org'!$B$8:$B$75,$F10,'原単位リスト(multi)org'!EI$8:EI$75) -> 0 | EU10: =$G10*SUMIF('原単位リスト(multi)org'!$B$8:$B$75,$F10,'原単位リスト(multi)org'!EJ$8:EJ$75) -> 0 | EV10: =$G10*SUMIF('原単位リスト(multi)org'!$B$8:$B$75,$F10,'原単位リスト(multi)org'!EK$8:EK$75) -> 0 | EW10: =$G10*SUMIF('原単位リスト(multi)org'!$B$8:$B$75,$F10,'原単位リスト(multi)org'!EL$8:EL$75) -> 0 | EX10: =$G10*SUMIF('原単位リスト(multi)org'!$B$8:$B$75,$F10,'原単位リスト(multi)org'!EM$8:EM$75) -> 0 | EY10: =$G10*SUMIF('原単位リスト(multi)org'!$B$8:$B$75,$F10,'原単位リスト(multi)org'!EN$8:EN$75) -> 0 | EZ10: =$G10*SUMIF('原単位リスト(multi)org'!$B$8:$B$75,$F10,'原単位リスト(multi)org'!EO$8:EO$75) -> 0 | FA10: =$G10*SUMIF('原単位リスト(multi)org'!$B$8:$B$75,$F10,'原単位リスト(multi)org'!EP$8:EP$75) -> 0 | FB10: =$G10*SUMIF('原単位リスト(multi)org'!$B$8:$B$75,$F10,'原単位リスト(multi)org'!EQ$8:EQ$75) -> 0 | FC10: =$G10*SUMIF('原単位リスト(multi)org'!$B$8:$B$75,$F10,'原単位リスト(multi)org'!ER$8:ER$75) -> 0 | FD10: =$G10*SUMIF('原単位リスト(multi)org'!$B$8:$B$75,$F10,'原単位リスト(multi)org'!ES$8:ES$75) -> 0 | FE10: =$G10*SUMIF('原単位リスト(multi)org'!$B$8:$B$75,$F10,'原単位リスト(multi)org'!ET$8:ET$75) -> 0 | FF10: =$G10*SUMIF('原単位リスト(multi)org'!$B$8:$B$75,$F10,'原単位リスト(multi)org'!EU$8:EU$75) -> 0 | FG10: =$G10*SUMIF('原単位リスト(multi)org'!$B$8:$B$75,$F10,'原単位リスト(multi)org'!EV$8:EV$75) -> 0 | FH10: =$G10*SUMIF('原単位リスト(multi)org'!$B$8:$B$75,$F10,'原単位リスト(multi)org'!EW$8:EW$75) -> 0 | FI10: =$G10*SUMIF('原単位リスト(multi)org'!$B$8:$B$75,$F10,'原単位リスト(multi)org'!EX$8:EX$75) -> 0 | FJ10: =$G10*SUMIF('原単位リスト(multi)org'!$B$8:$B$75,$F10,'原単位リスト(multi)org'!EY$8:EY$75) -> 0 | FK10: =$G10*SUMIF('原単位リスト(multi)org'!$B$8:$B$75,$F10,'原単位リスト(multi)org'!EZ$8:EZ$75) -> 0 | FL10: =$G10*SUMIF('原単位リスト(multi)org'!$B$8:$B$75,$F10,'原単位リスト(multi)org'!FA$8:FA$75) -> 0 | FM10: =$G10*SUMIF('原単位リスト(multi)org'!$B$8:$B$75,$F10,'原単位リスト(multi)org'!FB$8:FB$75) -> 0 | FN10: =$G10*SUMIF('原単位リスト(multi)org'!$B$8:$B$75,$F10,'原単位リスト(multi)org'!FC$8:FC$75) -> 0 | FO10: =$G10*SUMIF('原単位リスト(multi)org'!$B$8:$B$75,$F10,'原単位リスト(multi)org'!FD$8:FD$75) -> 0 | FP10: =$G10*SUMIF('原単位リスト(multi)org'!$B$8:$B$75,$F10,'原単位リスト(multi)org'!FE$8:FE$75) -> 0 | FQ10: =$G10*SUMIF('原単位リスト(multi)org'!$B$8:$B$75,$F10,'原単位リスト(multi)org'!FF$8:FF$75) -> 0 | FR10: =$G10*SUMIF('原単位リスト(multi)org'!$B$8:$B$75,$F10,'原単位リスト(multi)org'!FG$8:FG$75) -> 0 | FS10: =$G10*SUMIF('原単位リスト(multi)org'!$B$8:$B$75,$F10,'原単位リスト(multi)org'!FH$8:FH$75) -> 0 | FT10: =$G10*SUMIF('原単位リスト(multi)org'!$B$8:$B$75,$F10,'原単位リスト(multi)org'!FI$8:FI$75) -> 0 | FU10: =$G10*SUMIF('原単位リスト(multi)org'!$B$8:$B$75,$F10,'原単位リスト(multi)org'!FJ$8:FJ$75) -> 0 | FV10: =$G10*SUMIF('原単位リスト(multi)org'!$B$8:$B$75,$F10,'原単位リスト(multi)org'!FK$8:FK$75) -> 0 | FW10: =$G10*SUMIF('原単位リスト(multi)org'!$B$8:$B$75,$F10,'原単位リスト(multi)org'!FL$8:FL$75) -> 0 | FX10: =$G10*SUMIF('原単位リスト(multi)org'!$B$8:$B$75,$F10,'原単位リスト(multi)org'!FM$8:FM$75) -> 0 | FY10: =$G10*SUMIF('原単位リスト(multi)org'!$B$8:$B$75,$F10,'原単位リスト(multi)org'!FN$8:FN$75) -> 0 | FZ10: =$G10*SUMIF('原単位リスト(multi)org'!$B$8:$B$75,$F10,'原単位リスト(multi)org'!FO$8:FO$75) -> 0 | GA10: =$G10*SUMIF('原単位リスト(multi)org'!$B$8:$B$75,$F10,'原単位リスト(multi)org'!FP$8:FP$75) -> 0 | GB10: =$G10*SUMIF('原単位リスト(multi)org'!$B$8:$B$75,$F10,'原単位リスト(multi)org'!FQ$8:FQ$75) -> 0 | GC10: =$G10*SUMIF('原単位リスト(multi)org'!$B$8:$B$75,$F10,'原単位リスト(multi)org'!FR$8:FR$75) -> 0 | GD10: =$G10*SUMIF('原単位リスト(multi)org'!$B$8:$B$75,$F10,'原単位リスト(multi)org'!FS$8:FS$75) -> 0 | GE10: =$G10*SUMIF('原単位リスト(multi)org'!$B$8:$B$75,$F10,'原単位リスト(multi)org'!FT$8:FT$75) -> 0 | GF10: =$G10*SUMIF('原単位リスト(multi)org'!$B$8:$B$75,$F10,'原単位リスト(multi)org'!FU$8:FU$75) -> 0 | GG10: =$G10*SUMIF('原単位リスト(multi)org'!$B$8:$B$75,$F10,'原単位リスト(multi)org'!FV$8:FV$75) -> 0 | GH10: =$G10*SUMIF('原単位リスト(multi)org'!$B$8:$B$75,$F10,'原単位リスト(multi)org'!FW$8:FW$75) -> 0 | GI10: =$G10*SUMIF('原単位リスト(multi)org'!$B$8:$B$75,$F10,'原単位リスト(multi)org'!FX$8:FX$75) -> 0 | GJ10: =$G10*SUMIF('原単位リスト(multi)org'!$B$8:$B$75,$F10,'原単位リスト(multi)org'!FY$8:FY$75) -> 0 | GK10: =$G10*SUMIF('原単位リスト(multi)org'!$B$8:$B$75,$F10,'原単位リスト(multi)org'!FZ$8:FZ$75) -> 0 | GL10: =$G10*SUMIF('原単位リスト(multi)org'!$B$8:$B$75,$F10,'原単位リスト(multi)org'!GA$8:GA$75) -> 0 | GM10: =$G10*SUMIF('原単位リスト(multi)org'!$B$8:$B$75,$F10,'原単位リスト(multi)org'!GB$8:GB$75) -> 0 | GN10: =$G10*SUMIF('原単位リスト(multi)org'!$B$8:$B$75,$F10,'原単位リスト(multi)org'!GC$8:GC$75) -> 0 | GO10: =$G10*SUMIF('原単位リスト(multi)org'!$B$8:$B$75,$F10,'原単位リスト(multi)org'!GD$8:GD$75) -> 0 | GP10: =$G10*SUMIF('原単位リスト(multi)org'!$B$8:$B$75,$F10,'原単位リスト(multi)org'!GE$8:GE$75) -> 0 | GQ10: =$G10*SUMIF('原単位リスト(multi)org'!$B$8:$B$75,$F10,'原単位リスト(multi)org'!GF$8:GF$75) -> 0 | GR10: =$G10*SUMIF('原単位リスト(multi)org'!$B$8:$B$75,$F10,'原単位リスト(multi)org'!GG$8:GG$75) -> 0 | GS10: =$G10*SUMIF('原単位リスト(multi)org'!$B$8:$B$75,$F10,'原単位リスト(multi)org'!GH$8:GH$75) -> 0 | GT10: =$G10*SUMIF('原単位リスト(multi)org'!$B$8:$B$75,$F10,'原単位リスト(multi)org'!GI$8:GI$75) -> 0 | GU10: =$G10*SUMIF('原単位リスト(multi)org'!$B$8:$B$75,$F10,'原単位リスト(multi)org'!GJ$8:GJ$75) -> 0 | GV10: =$G10*SUMIF('原単位リスト(multi)org'!$B$8:$B$75,$F10,'原単位リスト(multi)org'!GK$8:GK$75) -> 0 | GW10: =$G10*SUMIF('原単位リスト(multi)org'!$B$8:$B$75,$F10,'原単位リスト(multi)org'!GL$8:GL$75) -> 0 | GX10: =$G10*SUMIF('原単位リスト(multi)org'!$B$8:$B$75,$F10,'原単位リスト(multi)org'!GM$8:GM$75) -> 0 | GY10: =$G10*SUMIF('原単位リスト(multi)org'!$B$8:$B$75,$F10,'原単位リスト(multi)org'!GN$8:GN$75) -> 0 | GZ10: =$G10*SUMIF('原単位リスト(multi)org'!$B$8:$B$75,$F10,'原単位リスト(multi)org'!GO$8:GO$75) -> 0 | HA10: =$G10*SUMIF('原単位リスト(multi)org'!$B$8:$B$75,$F10,'原単位リスト(multi)org'!GP$8:GP$75) -> 0 | HB10: =$G10*SUMIF('原単位リスト(multi)org'!$B$8:$B$75,$F10,'原単位リスト(multi)org'!GQ$8:GQ$75) -> 0 | HC10: =$G10*SUMIF('原単位リスト(multi)org'!$B$8:$B$75,$F10,'原単位リスト(multi)org'!GR$8:GR$75) -> 0 | HD10: =$G10*SUMIF('原単位リスト(multi)org'!$B$8:$B$75,$F10,'原単位リスト(multi)org'!GS$8:GS$75) -> 0 | HE10: =MMULT($R10:$HD10,特性化係数リスト!H$5:H$199) -> 0 | HF10: =MMULT($R10:$HD10,特性化係数リスト!I$5:I$199) -> 0 | HG10: =MMULT($R10:$HD10,特性化係数リスト!J$5:J$199) -> 0 | HH10: =MMULT($R10:$HD10,特性化係数リスト!K$5:K$199) -> 0 | HI10: =MMULT($R10:$HD10,特性化係数リスト!L$5:L$199) -> 0 | HJ10: =MMULT($R10:$HD10,特性化係数リスト!M$5:M$199) -> 0 | HK10: =MMULT($R10:$HD10,特性化係数リスト!N$5:N$199) -> 0 | HL10: =MMULT($R10:$HD10,特性化係数リスト!O$5:O$199) -> 0 | HM10: =MMULT($R10:$HD10,特性化係数リスト!P$5:P$199) -> 0 | HN10: =MMULT($R10:$HD10,特性化係数リスト!Q$5:Q$199) -> 0 | HO10: =MMULT($R10:$HD10,特性化係数リスト!R$5:R$199) -> 0 | HP10: =MMULT($R10:$HD10,特性化係数リスト!S$5:S$199) -> 0 | HQ10: =MMULT($R10:$HD10,特性化係数リスト!T$5:T$199) -> 0 | HR10: =MMULT($R10:$HD10,特性化係数リスト!U$5:U$199) -> 0 | HS10: =MMULT($R10:$HD10,特性化係数リスト!V$5:V$199) -> 0 | HT10: =MMULT($R10:$HD10,特性化係数リスト!W$5:W$199) -> 0 | HU10: =MMULT($R10:$HD10,特性化係数リスト!X$5:X$199) -> 0 | HV10: =MMULT($R10:$HD10,'被害係数リスト(人間健康)'!H$4:H$198) -> 0 | HW10: =MMULT($R10:$HD10,'被害係数リスト(人間健康)'!I$4:I$198) -> 0 | HX10: =MMULT($R10:$HD10,'被害係数リスト(人間健康)'!J$4:J$198) -> 0 | HY10: =MMULT($R10:$HD10,'被害係数リスト(人間健康)'!K$4:K$198) -> 0 | HZ10: =MMULT($R10:$HD10,'被害係数リスト(人間健康)'!L$4:L$198) -> 0 | IA10: 0 | IB10: =MMULT($R10:$HD10,'被害係数リスト(一次生産)'!H$4:H$198) -> 0 | IC10: =MMULT($R10:$HD10,'被害係数リスト(一次生産)'!I$4:I$198) -> 0 | ID10: =MMULT($R10:$HD10,'被害係数リスト(一次生産)'!J$4:J$198) -> 0 | IE10: =MMULT($R10:$HD10,'被害係数リスト(一次生産)'!K$4:K$198) -> 0 | IF10: 0 | IG10: =MMULT($R10:$HD10,'被害係数リスト(社会資産)'!H$4:H$198) -> 0 | IH10: =MMULT($R10:$HD10,'被害係数リスト(社会資産)'!I$4:I$198) -> 0 | II10: =MMULT($R10:$HD10,'被害係数リスト(社会資産)'!J$4:J$198) -> 0 | IJ10: =MMULT($R10:$HD10,'被害係数リスト(社会資産)'!K$4:K$198) -> 0 | IK10: =MMULT($R10:$HD10,'被害係数リスト(社会資産)'!L$4:L$198) -> 0 | IL10: =MMULT($R10:$HD10,'被害係数リスト(社会資産)'!M$4:M$198) -> 0 | IM10: 0 | IN10: =MMULT($R10:$HD10,'被害係数リスト(生物多様性)'!H$4:H$198) -> 0 | IO10: =MMULT($R10:$HD10,'被害係数リスト(生物多様性)'!I$4:I$198) -> 0 | IP10: =MMULT($R10:$HD10,'被害係数リスト(生物多様性)'!J$4:J$198) -> 0 | IQ10: =MMULT($R10:$HD10,'被害係数リスト(生物多様性)'!K$4:K$198) -> 0 | IR10: 0 | IS10: =MMULT($R10:$HD10,'統合化係数リスト(無次元)'!H$4:H$198) -> 0 | IT10: =MMULT($R10:$HD10,'統合化係数リスト(無次元)'!I$4:I$198) -> 0 | IU10: =MMULT($R10:$HD10,'統合化係数リスト(無次元)'!J$4:J$198) -> 0 | IV10: =MMULT($R10:$HD10,'統合化係数リスト(無次元)'!K$4:K$198) -> 0 | IW10: =MMULT($R10:$HD10,'統合化係数リスト(無次元)'!L$4:L$198) -> 0 | IX10: =MMULT($R10:$HD10,'統合化係数リスト(無次元)'!M$4:M$198) -> 0 | IY10: =MMULT($R10:$HD10,'統合化係数リスト(無次元)'!N$4:N$198) -> 0 | IZ10: =MMULT($R10:$HD10,'統合化係数リスト(無次元)'!O$4:O$198) -> 0 | JA10: =MMULT($R10:$HD10,'統合化係数リスト(無次元)'!P$4:P$198) -> 0 | JB10: =MMULT($R10:$HD10,'統合化係数リスト(無次元)'!Q$4:Q$198) -> 0 | JC10: =MMULT($R10:$HD10,'統合化係数リスト(無次元)'!R$4:R$198) -> 0 | JD10: 0
A11: 仮設工事 | B11: エネルギー消費分 | C11: 5 | D11: 鋼矢板－鋼矢板圧入 | E11: 機械組立・解体 | F11: =仮設工事①!O8 -> 軽油 | G11: =仮設工事①!P8 -> 0 | H11: L | J11: 0 | K11: 0 | L11: 0 | M11: 0 | N11: 0 | O11: 0 | P11: 0 | Q11: 0 | R11: =$G11*SUMIF('原単位リスト(multi)org'!$B$8:$B$75,$F11,'原単位リスト(multi)org'!G$8:G$75) -> 0 | S11: =$G11*SUMIF('原単位リスト(multi)org'!$B$8:$B$75,$F11,'原単位リスト(multi)org'!H$8:H$75) -> 0 | T11: =$G11*SUMIF('原単位リスト(multi)org'!$B$8:$B$75,$F11,'原単位リスト(multi)org'!I$8:I$75) -> 0 | U11: =$G11*SUMIF('原単位リスト(multi)org'!$B$8:$B$75,$F11,'原単位リスト(multi)org'!J$8:J$75) -> 0 | V11: =$G11*SUMIF('原単位リスト(multi)org'!$B$8:$B$75,$F11,'原単位リスト(multi)org'!K$8:K$75) -> 0 | W11: =$G11*SUMIF('原単位リスト(multi)org'!$B$8:$B$75,$F11,'原単位リスト(multi)org'!L$8:L$75) -> 0 | X11: =$G11*SUMIF('原単位リスト(multi)org'!$B$8:$B$75,$F11,'原単位リスト(multi)org'!M$8:M$75) -> 0 | Y11: =$G11*SUMIF('原単位リスト(multi)org'!$B$8:$B$75,$F11,'原単位リスト(multi)org'!N$8:N$75) -> 0 | Z11: =$G11*SUMIF('原単位リスト(multi)org'!$B$8:$B$75,$F11,'原単位リスト(multi)org'!O$8:O$75) -> 0 | AA11: =$G11*SUMIF('原単位リスト(multi)org'!$B$8:$B$75,$F11,'原単位リスト(multi)org'!P$8:P$75) -> 0 | AB11: =$G11*SUMIF('原単位リスト(multi)org'!$B$8:$B$75,$F11,'原単位リスト(multi)org'!Q$8:Q$75) -> 0 | AC11: =$G11*SUMIF('原単位リスト(multi)org'!$B$8:$B$75,$F11,'原単位リスト(multi)org'!R$8:R$75) -> 0 | AD11: =$G11*SUMIF('原単位リスト(multi)org'!$B$8:$B$75,$F11,'原単位リスト(multi)org'!S$8:S$75) -> 0 | AE11: =$G11*SUMIF('原単位リスト(multi)org'!$B$8:$B$75,$F11,'原単位リスト(multi)org'!T$8:T$75) -> 0 | AF11: =$G11*SUMIF('原単位リスト(multi)org'!$B$8:$B$75,$F11,'原単位リスト(multi)org'!U$8:U$75) -> 0 | AG11: =$G11*SUMIF('原単位リスト(multi)org'!$B$8:$B$75,$F11,'原単位リスト(multi)org'!V$8:V$75) -> 0 | AH11: =$G11*SUMIF('原単位リスト(multi)org'!$B$8:$B$75,$F11,'原単位リスト(multi)org'!W$8:W$75) -> 0 | AI11: =$G11*SUMIF('原単位リスト(multi)org'!$B$8:$B$75,$F11,'原単位リスト(multi)org'!X$8:X$75) -> 0 | AJ11: =$G11*SUMIF('原単位リスト(multi)org'!$B$8:$B$75,$F11,'原単位リスト(multi)org'!Y$8:Y$75) -> 0 | AK11: =$G11*SUMIF('原単位リスト(multi)org'!$B$8:$B$75,$F11,'原単位リスト(multi)org'!Z$8:Z$75) -> 0 | AL11: =$G11*SUMIF('原単位リスト(multi)org'!$B$8:$B$75,$F11,'原単位リスト(multi)org'!AA$8:AA$75) -> 0 | AM11: =$G11*SUMIF('原単位リスト(multi)org'!$B$8:$B$75,$F11,'原単位リスト(multi)org'!AB$8:AB$75) -> 0 | AN11: =$G11*SUMIF('原単位リスト(multi)org'!$B$8:$B$75,$F11,'原単位リスト(multi)org'!AC$8:AC$75) -> 0 | AO11: =$G11*SUMIF('原単位リスト(multi)org'!$B$8:$B$75,$F11,'原単位リスト(multi)org'!AD$8:AD$75) -> 0 | AP11: =$G11*SUMIF('原単位リスト(multi)org'!$B$8:$B$75,$F11,'原単位リスト(multi)org'!AE$8:AE$75) -> 0 | AQ11: =$G11*SUMIF('原単位リスト(multi)org'!$B$8:$B$75,$F11,'原単位リスト(multi)org'!AF$8:AF$75) -> 0 | AR11: =$G11*SUMIF('原単位リスト(multi)org'!$B$8:$B$75,$F11,'原単位リスト(multi)org'!AG$8:AG$75) -> 0 | AS11: =$G11*SUMIF('原単位リスト(multi)org'!$B$8:$B$75,$F11,'原単位リスト(multi)org'!AH$8:AH$75) -> 0 | AT11: =$G11*SUMIF('原単位リスト(multi)org'!$B$8:$B$75,$F11,'原単位リスト(multi)org'!AI$8:AI$75) -> 0 | AU11: =$G11*SUMIF('原単位リスト(multi)org'!$B$8:$B$75,$F11,'原単位リスト(multi)org'!AJ$8:AJ$75) -> 0 | AV11: =$G11*SUMIF('原単位リスト(multi)org'!$B$8:$B$75,$F11,'原単位リスト(multi)org'!AK$8:AK$75) -> 0 | AW11: =$G11*SUMIF('原単位リスト(multi)org'!$B$8:$B$75,$F11,'原単位リスト(multi)org'!AL$8:AL$75) -> 0 | AX11: =$G11*SUMIF('原単位リスト(multi)org'!$B$8:$B$75,$F11,'原単位リスト(multi)org'!AM$8:AM$75) -> 0 | AY11: =$G11*SUMIF('原単位リスト(multi)org'!$B$8:$B$75,$F11,'原単位リスト(multi)org'!AN$8:AN$75) -> 0 | AZ11: =$G11*SUMIF('原単位リスト(multi)org'!$B$8:$B$75,$F11,'原単位リスト(multi)org'!AO$8:AO$75) -> 0 | BA11: =$G11*SUMIF('原単位リスト(multi)org'!$B$8:$B$75,$F11,'原単位リスト(multi)org'!AP$8:AP$75) -> 0 | BB11: =$G11*SUMIF('原単位リスト(multi)org'!$B$8:$B$75,$F11,'原単位リスト(multi)org'!AQ$8:AQ$75) -> 0 | BC11: =$G11*SUMIF('原単位リスト(multi)org'!$B$8:$B$75,$F11,'原単位リスト(multi)org'!AR$8:AR$75) -> 0 | BD11: =$G11*SUMIF('原単位リスト(multi)org'!$B$8:$B$75,$F11,'原単位リスト(multi)org'!AS$8:AS$75) -> 0 | BE11: =$G11*SUMIF('原単位リスト(multi)org'!$B$8:$B$75,$F11,'原単位リスト(multi)org'!AT$8:AT$75) -> 0 | BF11: =$G11*SUMIF('原単位リスト(multi)org'!$B$8:$B$75,$F11,'原単位リスト(multi)org'!AU$8:AU$75) -> 0 | BG11: =$G11*SUMIF('原単位リスト(multi)org'!$B$8:$B$75,$F11,'原単位リスト(multi)org'!AV$8:AV$75) -> 0 | BH11: =$G11*SUMIF('原単位リスト(multi)org'!$B$8:$B$75,$F11,'原単位リスト(multi)org'!AW$8:AW$75) -> 0 | BI11: =$G11*SUMIF('原単位リスト(multi)org'!$B$8:$B$75,$F11,'原単位リスト(multi)org'!AX$8:AX$75) -> 0 | BJ11: =$G11*SUMIF('原単位リスト(multi)org'!$B$8:$B$75,$F11,'原単位リスト(multi)org'!AY$8:AY$75) -> 0 | BK11: =$G11*SUMIF('原単位リスト(multi)org'!$B$8:$B$75,$F11,'原単位リスト(multi)org'!AZ$8:AZ$75) -> 0 | BL11: =$G11*SUMIF('原単位リスト(multi)org'!$B$8:$B$75,$F11,'原単位リスト(multi)org'!BA$8:BA$75) -> 0 | BM11: =$G11*SUMIF('原単位リスト(multi)org'!$B$8:$B$75,$F11,'原単位リスト(multi)org'!BB$8:BB$75) -> 0 | BN11: =$G11*SUMIF('原単位リスト(multi)org'!$B$8:$B$75,$F11,'原単位リスト(multi)org'!BC$8:BC$75) -> 0 | BO11: =$G11*SUMIF('原単位リスト(multi)org'!$B$8:$B$75,$F11,'原単位リスト(multi)org'!BD$8:BD$75) -> 0 | BP11: =$G11*SUMIF('原単位リスト(multi)org'!$B$8:$B$75,$F11,'原単位リスト(multi)org'!BE$8:BE$75) -> 0 | BQ11: =$G11*SUMIF('原単位リスト(multi)org'!$B$8:$B$75,$F11,'原単位リスト(multi)org'!BF$8:BF$75) -> 0 | BR11: =$G11*SUMIF('原単位リスト(multi)org'!$B$8:$B$75,$F11,'原単位リスト(multi)org'!BG$8:BG$75) -> 0 | BS11: =$G11*SUMIF('原単位リスト(multi)org'!$B$8:$B$75,$F11,'原単位リスト(multi)org'!BH$8:BH$75) -> 0 | BT11: =$G11*SUMIF('原単位リスト(multi)org'!$B$8:$B$75,$F11,'原単位リスト(multi)org'!BI$8:BI$75) -> 0 | BU11: =$G11*SUMIF('原単位リスト(multi)org'!$B$8:$B$75,$F11,'原単位リスト(multi)org'!BJ$8:BJ$75) -> 0 | BV11: =$G11*SUMIF('原単位リスト(multi)org'!$B$8:$B$75,$F11,'原単位リスト(multi)org'!BK$8:BK$75) -> 0 | BW11: =$G11*SUMIF('原単位リスト(multi)org'!$B$8:$B$75,$F11,'原単位リスト(multi)org'!BL$8:BL$75) -> 0 | BX11: =$G11*SUMIF('原単位リスト(multi)org'!$B$8:$B$75,$F11,'原単位リスト(multi)org'!BM$8:BM$75) -> 0 | BY11: =$G11*SUMIF('原単位リスト(multi)org'!$B$8:$B$75,$F11,'原単位リスト(multi)org'!BN$8:BN$75) -> 0 | BZ11: =$G11*SUMIF('原単位リスト(multi)org'!$B$8:$B$75,$F11,'原単位リスト(multi)org'!BO$8:BO$75) -> 0 | CA11: =$G11*SUMIF('原単位リスト(multi)org'!$B$8:$B$75,$F11,'原単位リスト(multi)org'!BP$8:BP$75) -> 0 | CB11: =$G11*SUMIF('原単位リスト(multi)org'!$B$8:$B$75,$F11,'原単位リスト(multi)org'!BQ$8:BQ$75) -> 0 | CC11: =$G11*SUMIF('原単位リスト(multi)org'!$B$8:$B$75,$F11,'原単位リスト(multi)org'!BR$8:BR$75) -> 0 | CD11: =$G11*SUMIF('原単位リスト(multi)org'!$B$8:$B$75,$F11,'原単位リスト(multi)org'!BS$8:BS$75) -> 0 | CE11: =$G11*SUMIF('原単位リスト(multi)org'!$B$8:$B$75,$F11,'原単位リスト(multi)org'!BT$8:BT$75) -> 0 | CF11: =$G11*SUMIF('原単位リスト(multi)org'!$B$8:$B$75,$F11,'原単位リスト(multi)org'!BU$8:BU$75) -> 0 | CG11: =$G11*SUMIF('原単位リスト(multi)org'!$B$8:$B$75,$F11,'原単位リスト(multi)org'!BV$8:BV$75) -> 0 | CH11: =$G11*SUMIF('原単位リスト(multi)org'!$B$8:$B$75,$F11,'原単位リスト(multi)org'!BW$8:BW$75) -> 0 | CI11: =$G11*SUMIF('原単位リスト(multi)org'!$B$8:$B$75,$F11,'原単位リスト(multi)org'!BX$8:BX$75) -> 0 | CJ11: =$G11*SUMIF('原単位リスト(multi)org'!$B$8:$B$75,$F11,'原単位リスト(multi)org'!BY$8:BY$75) -> 0 | CK11: =$G11*SUMIF('原単位リスト(multi)org'!$B$8:$B$75,$F11,'原単位リスト(multi)org'!BZ$8:BZ$75) -> 0 | CL11: =$G11*SUMIF('原単位リスト(multi)org'!$B$8:$B$75,$F11,'原単位リスト(multi)org'!CA$8:CA$75) -> 0 | CM11: =$G11*SUMIF('原単位リスト(multi)org'!$B$8:$B$75,$F11,'原単位リスト(multi)org'!CB$8:CB$75) -> 0 | CN11: =$G11*SUMIF('原単位リスト(multi)org'!$B$8:$B$75,$F11,'原単位リスト(multi)org'!CC$8:CC$75) -> 0 | CO11: =$G11*SUMIF('原単位リスト(multi)org'!$B$8:$B$75,$F11,'原単位リスト(multi)org'!CD$8:CD$75) -> 0 | CP11: =$G11*SUMIF('原単位リスト(multi)org'!$B$8:$B$75,$F11,'原単位リスト(multi)org'!CE$8:CE$75) -> 0 | CQ11: =$G11*SUMIF('原単位リスト(multi)org'!$B$8:$B$75,$F11,'原単位リスト(multi)org'!CF$8:CF$75) -> 0 | CR11: =$G11*SUMIF('原単位リスト(multi)org'!$B$8:$B$75,$F11,'原単位リスト(multi)org'!CG$8:CG$75) -> 0 | CS11: =$G11*SUMIF('原単位リスト(multi)org'!$B$8:$B$75,$F11,'原単位リスト(multi)org'!CH$8:CH$75) -> 0 | CT11: =$G11*SUMIF('原単位リスト(multi)org'!$B$8:$B$75,$F11,'原単位リスト(multi)org'!CI$8:CI$75) -> 0 | CU11: =$G11*SUMIF('原単位リスト(multi)org'!$B$8:$B$75,$F11,'原単位リスト(multi)org'!CJ$8:CJ$75) -> 0 | CV11: =$G11*SUMIF('原単位リスト(multi)org'!$B$8:$B$75,$F11,'原単位リスト(multi)org'!CK$8:CK$75) -> 0 | CW11: =$G11*SUMIF('原単位リスト(multi)org'!$B$8:$B$75,$F11,'原単位リスト(multi)org'!CL$8:CL$75) -> 0 | CX11: =$G11*SUMIF('原単位リスト(multi)org'!$B$8:$B$75,$F11,'原単位リスト(multi)org'!CM$8:CM$75) -> 0 | CY11: =$G11*SUMIF('原単位リスト(multi)org'!$B$8:$B$75,$F11,'原単位リスト(multi)org'!CN$8:CN$75) -> 0 | CZ11: =$G11*SUMIF('原単位リスト(multi)org'!$B$8:$B$75,$F11,'原単位リスト(multi)org'!CO$8:CO$75) -> 0 | DA11: =$G11*SUMIF('原単位リスト(multi)org'!$B$8:$B$75,$F11,'原単位リスト(multi)org'!CP$8:CP$75) -> 0 | DB11: =$G11*SUMIF('原単位リスト(multi)org'!$B$8:$B$75,$F11,'原単位リスト(multi)org'!CQ$8:CQ$75) -> 0 | DC11: =$G11*SUMIF('原単位リスト(multi)org'!$B$8:$B$75,$F11,'原単位リスト(multi)org'!CR$8:CR$75) -> 0 | DD11: =$G11*SUMIF('原単位リスト(multi)org'!$B$8:$B$75,$F11,'原単位リスト(multi)org'!CS$8:CS$75) -> 0 | DE11: =$G11*SUMIF('原単位リスト(multi)org'!$B$8:$B$75,$F11,'原単位リスト(multi)org'!CT$8:CT$75) -> 0 | DF11: =$G11*SUMIF('原単位リスト(multi)org'!$B$8:$B$75,$F11,'原単位リスト(multi)org'!CU$8:CU$75) -> 0 | DG11: =$G11*SUMIF('原単位リスト(multi)org'!$B$8:$B$75,$F11,'原単位リスト(multi)org'!CV$8:CV$75) -> 0 | DH11: =$G11*SUMIF('原単位リスト(multi)org'!$B$8:$B$75,$F11,'原単位リスト(multi)org'!CW$8:CW$75) -> 0 | DI11: =$G11*SUMIF('原単位リスト(multi)org'!$B$8:$B$75,$F11,'原単位リスト(multi)org'!CX$8:CX$75) -> 0 | DJ11: =$G11*SUMIF('原単位リスト(multi)org'!$B$8:$B$75,$F11,'原単位リスト(multi)org'!CY$8:CY$75) -> 0 | DK11: =$G11*SUMIF('原単位リスト(multi)org'!$B$8:$B$75,$F11,'原単位リスト(multi)org'!CZ$8:CZ$75) -> 0 | DL11: =$G11*SUMIF('原単位リスト(multi)org'!$B$8:$B$75,$F11,'原単位リスト(multi)org'!DA$8:DA$75) -> 0 | DM11: =$G11*SUMIF('原単位リスト(multi)org'!$B$8:$B$75,$F11,'原単位リスト(multi)org'!DB$8:DB$75) -> 0 | DN11: =$G11*SUMIF('原単位リスト(multi)org'!$B$8:$B$75,$F11,'原単位リスト(multi)org'!DC$8:DC$75) -> 0 | DO11: =$G11*SUMIF('原単位リスト(multi)org'!$B$8:$B$75,$F11,'原単位リスト(multi)org'!DD$8:DD$75) -> 0 | DP11: =$G11*SUMIF('原単位リスト(multi)org'!$B$8:$B$75,$F11,'原単位リスト(multi)org'!DE$8:DE$75) -> 0 | DQ11: =$G11*SUMIF('原単位リスト(multi)org'!$B$8:$B$75,$F11,'原単位リスト(multi)org'!DF$8:DF$75) -> 0 | DR11: =$G11*SUMIF('原単位リスト(multi)org'!$B$8:$B$75,$F11,'原単位リスト(multi)org'!DG$8:DG$75) -> 0 | DS11: =$G11*SUMIF('原単位リスト(multi)org'!$B$8:$B$75,$F11,'原単位リスト(multi)org'!DH$8:DH$75) -> 0 | DT11: =$G11*SUMIF('原単位リスト(multi)org'!$B$8:$B$75,$F11,'原単位リスト(multi)org'!DI$8:DI$75) -> 0 | DU11: =$G11*SUMIF('原単位リスト(multi)org'!$B$8:$B$75,$F11,'原単位リスト(multi)org'!DJ$8:DJ$75) -> 0 | DV11: =$G11*SUMIF('原単位リスト(multi)org'!$B$8:$B$75,$F11,'原単位リスト(multi)org'!DK$8:DK$75) -> 0 | DW11: =$G11*SUMIF('原単位リスト(multi)org'!$B$8:$B$75,$F11,'原単位リスト(multi)org'!DL$8:DL$75) -> 0 | DX11: =$G11*SUMIF('原単位リスト(multi)org'!$B$8:$B$75,$F11,'原単位リスト(multi)org'!DM$8:DM$75) -> 0 | DY11: =$G11*SUMIF('原単位リスト(multi)org'!$B$8:$B$75,$F11,'原単位リスト(multi)org'!DN$8:DN$75) -> 0 | DZ11: =$G11*SUMIF('原単位リスト(multi)org'!$B$8:$B$75,$F11,'原単位リスト(multi)org'!DO$8:DO$75) -> 0 | EA11: =$G11*SUMIF('原単位リスト(multi)org'!$B$8:$B$75,$F11,'原単位リスト(multi)org'!DP$8:DP$75) -> 0 | EB11: =$G11*SUMIF('原単位リスト(multi)org'!$B$8:$B$75,$F11,'原単位リスト(multi)org'!DQ$8:DQ$75) -> 0 | EC11: =$G11*SUMIF('原単位リスト(multi)org'!$B$8:$B$75,$F11,'原単位リスト(multi)org'!DR$8:DR$75) -> 0 | ED11: =$G11*SUMIF('原単位リスト(multi)org'!$B$8:$B$75,$F11,'原単位リスト(multi)org'!DS$8:DS$75) -> 0 | EE11: =$G11*SUMIF('原単位リスト(multi)org'!$B$8:$B$75,$F11,'原単位リスト(multi)org'!DT$8:DT$75) -> 0 | EF11: =$G11*SUMIF('原単位リスト(multi)org'!$B$8:$B$75,$F11,'原単位リスト(multi)org'!DU$8:DU$75) -> 0 | EG11: =$G11*SUMIF('原単位リスト(multi)org'!$B$8:$B$75,$F11,'原単位リスト(multi)org'!DV$8:DV$75) -> 0 | EH11: =$G11*SUMIF('原単位リスト(multi)org'!$B$8:$B$75,$F11,'原単位リスト(multi)org'!DW$8:DW$75) -> 0 | EI11: =$G11*SUMIF('原単位リスト(multi)org'!$B$8:$B$75,$F11,'原単位リスト(multi)org'!DX$8:DX$75) -> 0 | EJ11: =$G11*SUMIF('原単位リスト(multi)org'!$B$8:$B$75,$F11,'原単位リスト(multi)org'!DY$8:DY$75) -> 0 | EK11: =$G11*SUMIF('原単位リスト(multi)org'!$B$8:$B$75,$F11,'原単位リスト(multi)org'!DZ$8:DZ$75) -> 0 | EL11: =$G11*SUMIF('原単位リスト(multi)org'!$B$8:$B$75,$F11,'原単位リスト(multi)org'!EA$8:EA$75) -> 0 | EM11: =$G11*SUMIF('原単位リスト(multi)org'!$B$8:$B$75,$F11,'原単位リスト(multi)org'!EB$8:EB$75) -> 0 | EN11: =$G11*SUMIF('原単位リスト(multi)org'!$B$8:$B$75,$F11,'原単位リスト(multi)org'!EC$8:EC$75) -> 0 | EO11: =$G11*SUMIF('原単位リスト(multi)org'!$B$8:$B$75,$F11,'原単位リスト(multi)org'!ED$8:ED$75) -> 0 | EP11: =$G11*SUMIF('原単位リスト(multi)org'!$B$8:$B$75,$F11,'原単位リスト(multi)org'!EE$8:EE$75) -> 0 | EQ11: =$G11*SUMIF('原単位リスト(multi)org'!$B$8:$B$75,$F11,'原単位リスト(multi)org'!EF$8:EF$75) -> 0 | ER11: =$G11*SUMIF('原単位リスト(multi)org'!$B$8:$B$75,$F11,'原単位リスト(multi)org'!EG$8:EG$75) -> 0 | ES11: =$G11*SUMIF('原単位リスト(multi)org'!$B$8:$B$75,$F11,'原単位リスト(multi)org'!EH$8:EH$75) -> 0 | ET11: =$G11*SUMIF('原単位リスト(multi)org'!$B$8:$B$75,$F11,'原単位リスト(multi)org'!EI$8:EI$75) -> 0 | EU11: =$G11*SUMIF('原単位リスト(multi)org'!$B$8:$B$75,$F11,'原単位リスト(multi)org'!EJ$8:EJ$75) -> 0 | EV11: =$G11*SUMIF('原単位リスト(multi)org'!$B$8:$B$75,$F11,'原単位リスト(multi)org'!EK$8:EK$75) -> 0 | EW11: =$G11*SUMIF('原単位リスト(multi)org'!$B$8:$B$75,$F11,'原単位リスト(multi)org'!EL$8:EL$75) -> 0 | EX11: =$G11*SUMIF('原単位リスト(multi)org'!$B$8:$B$75,$F11,'原単位リスト(multi)org'!EM$8:EM$75) -> 0 | EY11: =$G11*SUMIF('原単位リスト(multi)org'!$B$8:$B$75,$F11,'原単位リスト(multi)org'!EN$8:EN$75) -> 0 | EZ11: =$G11*SUMIF('原単位リスト(multi)org'!$B$8:$B$75,$F11,'原単位リスト(multi)org'!EO$8:EO$75) -> 0 | FA11: =$G11*SUMIF('原単位リスト(multi)org'!$B$8:$B$75,$F11,'原単位リスト(multi)org'!EP$8:EP$75) -> 0 | FB11: =$G11*SUMIF('原単位リスト(multi)org'!$B$8:$B$75,$F11,'原単位リスト(multi)org'!EQ$8:EQ$75) -> 0 | FC11: =$G11*SUMIF('原単位リスト(multi)org'!$B$8:$B$75,$F11,'原単位リスト(multi)org'!ER$8:ER$75) -> 0 | FD11: =$G11*SUMIF('原単位リスト(multi)org'!$B$8:$B$75,$F11,'原単位リスト(multi)org'!ES$8:ES$75) -> 0 | FE11: =$G11*SUMIF('原単位リスト(multi)org'!$B$8:$B$75,$F11,'原単位リスト(multi)org'!ET$8:ET$75) -> 0 | FF11: =$G11*SUMIF('原単位リスト(multi)org'!$B$8:$B$75,$F11,'原単位リスト(multi)org'!EU$8:EU$75) -> 0 | FG11: =$G11*SUMIF('原単位リスト(multi)org'!$B$8:$B$75,$F11,'原単位リスト(multi)org'!EV$8:EV$75) -> 0 | FH11: =$G11*SUMIF('原単位リスト(multi)org'!$B$8:$B$75,$F11,'原単位リスト(multi)org'!EW$8:EW$75) -> 0 | FI11: =$G11*SUMIF('原単位リスト(multi)org'!$B$8:$B$75,$F11,'原単位リスト(multi)org'!EX$8:EX$75) -> 0 | FJ11: =$G11*SUMIF('原単位リスト(multi)org'!$B$8:$B$75,$F11,'原単位リスト(multi)org'!EY$8:EY$75) -> 0 | FK11: =$G11*SUMIF('原単位リスト(multi)org'!$B$8:$B$75,$F11,'原単位リスト(multi)org'!EZ$8:EZ$75) -> 0 | FL11: =$G11*SUMIF('原単位リスト(multi)org'!$B$8:$B$75,$F11,'原単位リスト(multi)org'!FA$8:FA$75) -> 0 | FM11: =$G11*SUMIF('原単位リスト(multi)org'!$B$8:$B$75,$F11,'原単位リスト(multi)org'!FB$8:FB$75) -> 0 | FN11: =$G11*SUMIF('原単位リスト(multi)org'!$B$8:$B$75,$F11,'原単位リスト(multi)org'!FC$8:FC$75) -> 0 | FO11: =$G11*SUMIF('原単位リスト(multi)org'!$B$8:$B$75,$F11,'原単位リスト(multi)org'!FD$8:FD$75) -> 0 | FP11: =$G11*SUMIF('原単位リスト(multi)org'!$B$8:$B$75,$F11,'原単位リスト(multi)org'!FE$8:FE$75) -> 0 | FQ11: =$G11*SUMIF('原単位リスト(multi)org'!$B$8:$B$75,$F11,'原単位リスト(multi)org'!FF$8:FF$75) -> 0 | FR11: =$G11*SUMIF('原単位リスト(multi)org'!$B$8:$B$75,$F11,'原単位リスト(multi)org'!FG$8:FG$75) -> 0 | FS11: =$G11*SUMIF('原単位リスト(multi)org'!$B$8:$B$75,$F11,'原単位リスト(multi)org'!FH$8:FH$75) -> 0 | FT11: =$G11*SUMIF('原単位リスト(multi)org'!$B$8:$B$75,$F11,'原単位リスト(multi)org'!FI$8:FI$75) -> 0 | FU11: =$G11*SUMIF('原単位リスト(multi)org'!$B$8:$B$75,$F11,'原単位リスト(multi)org'!FJ$8:FJ$75) -> 0 | FV11: =$G11*SUMIF('原単位リスト(multi)org'!$B$8:$B$75,$F11,'原単位リスト(multi)org'!FK$8:FK$75) -> 0 | FW11: =$G11*SUMIF('原単位リスト(multi)org'!$B$8:$B$75,$F11,'原単位リスト(multi)org'!FL$8:FL$75) -> 0 | FX11: =$G11*SUMIF('原単位リスト(multi)org'!$B$8:$B$75,$F11,'原単位リスト(multi)org'!FM$8:FM$75) -> 0 | FY11: =$G11*SUMIF('原単位リスト(multi)org'!$B$8:$B$75,$F11,'原単位リスト(multi)org'!FN$8:FN$75) -> 0 | FZ11: =$G11*SUMIF('原単位リスト(multi)org'!$B$8:$B$75,$F11,'原単位リスト(multi)org'!FO$8:FO$75) -> 0 | GA11: =$G11*SUMIF('原単位リスト(multi)org'!$B$8:$B$75,$F11,'原単位リスト(multi)org'!FP$8:FP$75) -> 0 | GB11: =$G11*SUMIF('原単位リスト(multi)org'!$B$8:$B$75,$F11,'原単位リスト(multi)org'!FQ$8:FQ$75) -> 0 | GC11: =$G11*SUMIF('原単位リスト(multi)org'!$B$8:$B$75,$F11,'原単位リスト(multi)org'!FR$8:FR$75) -> 0 | GD11: =$G11*SUMIF('原単位リスト(multi)org'!$B$8:$B$75,$F11,'原単位リスト(multi)org'!FS$8:FS$75) -> 0 | GE11: =$G11*SUMIF('原単位リスト(multi)org'!$B$8:$B$75,$F11,'原単位リスト(multi)org'!FT$8:FT$75) -> 0 | GF11: =$G11*SUMIF('原単位リスト(multi)org'!$B$8:$B$75,$F11,'原単位リスト(multi)org'!FU$8:FU$75) -> 0 | GG11: =$G11*SUMIF('原単位リスト(multi)org'!$B$8:$B$75,$F11,'原単位リスト(multi)org'!FV$8:FV$75) -> 0 | GH11: =$G11*SUMIF('原単位リスト(multi)org'!$B$8:$B$75,$F11,'原単位リスト(multi)org'!FW$8:FW$75) -> 0 | GI11: =$G11*SUMIF('原単位リスト(multi)org'!$B$8:$B$75,$F11,'原単位リスト(multi)org'!FX$8:FX$75) -> 0 | GJ11: =$G11*SUMIF('原単位リスト(multi)org'!$B$8:$B$75,$F11,'原単位リスト(multi)org'!FY$8:FY$75) -> 0 | GK11: =$G11*SUMIF('原単位リスト(multi)org'!$B$8:$B$75,$F11,'原単位リスト(multi)org'!FZ$8:FZ$75) -> 0 | GL11: =$G11*SUMIF('原単位リスト(multi)org'!$B$8:$B$75,$F11,'原単位リスト(multi)org'!GA$8:GA$75) -> 0 | GM11: =$G11*SUMIF('原単位リスト(multi)org'!$B$8:$B$75,$F11,'原単位リスト(multi)org'!GB$8:GB$75) -> 0 | GN11: =$G11*SUMIF('原単位リスト(multi)org'!$B$8:$B$75,$F11,'原単位リスト(multi)org'!GC$8:GC$75) -> 0 | GO11: =$G11*SUMIF('原単位リスト(multi)org'!$B$8:$B$75,$F11,'原単位リスト(multi)org'!GD$8:GD$75) -> 0 | GP11: =$G11*SUMIF('原単位リスト(multi)org'!$B$8:$B$75,$F11,'原単位リスト(multi)org'!GE$8:GE$75) -> 0 | GQ11: =$G11*SUMIF('原単位リスト(multi)org'!$B$8:$B$75,$F11,'原単位リスト(multi)org'!GF$8:GF$75) -> 0 | GR11: =$G11*SUMIF('原単位リスト(multi)org'!$B$8:$B$75,$F11,'原単位リスト(multi)org'!GG$8:GG$75) -> 0 | GS11: =$G11*SUMIF('原単位リスト(multi)org'!$B$8:$B$75,$F11,'原単位リスト(multi)org'!GH$8:GH$75) -> 0 | GT11: =$G11*SUMIF('原単位リスト(multi)org'!$B$8:$B$75,$F11,'原単位リスト(multi)org'!GI$8:GI$75) -> 0 | GU11: =$G11*SUMIF('原単位リスト(multi)org'!$B$8:$B$75,$F11,'原単位リスト(multi)org'!GJ$8:GJ$75) -> 0 | GV11: =$G11*SUMIF('原単位リスト(multi)org'!$B$8:$B$75,$F11,'原単位リスト(multi)org'!GK$8:GK$75) -> 0 | GW11: =$G11*SUMIF('原単位リスト(multi)org'!$B$8:$B$75,$F11,'原単位リスト(multi)org'!GL$8:GL$75) -> 0 | GX11: =$G11*SUMIF('原単位リスト(multi)org'!$B$8:$B$75,$F11,'原単位リスト(multi)org'!GM$8:GM$75) -> 0 | GY11: =$G11*SUMIF('原単位リスト(multi)org'!$B$8:$B$75,$F11,'原単位リスト(multi)org'!GN$8:GN$75) -> 0 | GZ11: =$G11*SUMIF('原単位リスト(multi)org'!$B$8:$B$75,$F11,'原単位リスト(multi)org'!GO$8:GO$75) -> 0 | HA11: =$G11*SUMIF('原単位リスト(multi)org'!$B$8:$B$75,$F11,'原単位リスト(multi)org'!GP$8:GP$75) -> 0 | HB11: =$G11*SUMIF('原単位リスト(multi)org'!$B$8:$B$75,$F11,'原単位リスト(multi)org'!GQ$8:GQ$75) -> 0 | HC11: =$G11*SUMIF('原単位リスト(multi)org'!$B$8:$B$75,$F11,'原単位リスト(multi)org'!GR$8:GR$75) -> 0 | HD11: =$G11*SUMIF('原単位リスト(multi)org'!$B$8:$B$75,$F11,'原単位リスト(multi)org'!GS$8:GS$75) -> 0 | HE11: =MMULT($R11:$HD11,特性化係数リスト!H$5:H$199) -> 0 | HF11: =MMULT($R11:$HD11,特性化係数リスト!I$5:I$199) -> 0 | HG11: =MMULT($R11:$HD11,特性化係数リスト!J$5:J$199) -> 0 | HH11: =MMULT($R11:$HD11,特性化係数リスト!K$5:K$199) -> 0 | HI11: =MMULT($R11:$HD11,特性化係数リスト!L$5:L$199) -> 0 | HJ11: =MMULT($R11:$HD11,特性化係数リスト!M$5:M$199) -> 0 | HK11: =MMULT($R11:$HD11,特性化係数リスト!N$5:N$199) -> 0 | HL11: =MMULT($R11:$HD11,特性化係数リスト!O$5:O$199) -> 0 | HM11: =MMULT($R11:$HD11,特性化係数リスト!P$5:P$199) -> 0 | HN11: =MMULT($R11:$HD11,特性化係数リスト!Q$5:Q$199) -> 0 | HO11: =MMULT($R11:$HD11,特性化係数リスト!R$5:R$199) -> 0 | HP11: =MMULT($R11:$HD11,特性化係数リスト!S$5:S$199) -> 0 | HQ11: =MMULT($R11:$HD11,特性化係数リスト!T$5:T$199) -> 0 | HR11: =MMULT($R11:$HD11,特性化係数リスト!U$5:U$199) -> 0 | HS11: =MMULT($R11:$HD11,特性化係数リスト!V$5:V$199) -> 0 | HT11: =MMULT($R11:$HD11,特性化係数リスト!W$5:W$199) -> 0 | HU11: =MMULT($R11:$HD11,特性化係数リスト!X$5:X$199) -> 0 | HV11: =MMULT($R11:$HD11,'被害係数リスト(人間健康)'!H$4:H$198) -> 0 | HW11: =MMULT($R11:$HD11,'被害係数リスト(人間健康)'!I$4:I$198) -> 0 | HX11: =MMULT($R11:$HD11,'被害係数リスト(人間健康)'!J$4:J$198) -> 0 | HY11: =MMULT($R11:$HD11,'被害係数リスト(人間健康)'!K$4:K$198) -> 0 | HZ11: =MMULT($R11:$HD11,'被害係数リスト(人間健康)'!L$4:L$198) -> 0 | IA11: 0 | IB11: =MMULT($R11:$HD11,'被害係数リスト(一次生産)'!H$4:H$198) -> 0 | IC11: =MMULT($R11:$HD11,'被害係数リスト(一次生産)'!I$4:I$198) -> 0 | ID11: =MMULT($R11:$HD11,'被害係数リスト(一次生産)'!J$4:J$198) -> 0 | IE11: =MMULT($R11:$HD11,'被害係数リスト(一次生産)'!K$4:K$198) -> 0 | IF11: 0 | IG11: =MMULT($R11:$HD11,'被害係数リスト(社会資産)'!H$4:H$198) -> 0 | IH11: =MMULT($R11:$HD11,'被害係数リスト(社会資産)'!I$4:I$198) -> 0 | II11: =MMULT($R11:$HD11,'被害係数リスト(社会資産)'!J$4:J$198) -> 0 | IJ11: =MMULT($R11:$HD11,'被害係数リスト(社会資産)'!K$4:K$198) -> 0 | IK11: =MMULT($R11:$HD11,'被害係数リスト(社会資産)'!L$4:L$198) -> 0 | IL11: =MMULT($R11:$HD11,'被害係数リスト(社会資産)'!M$4:M$198) -> 0 | IM11: 0 | IN11: =MMULT($R11:$HD11,'被害係数リスト(生物多様性)'!H$4:H$198) -> 0 | IO11: =MMULT($R11:$HD11,'被害係数リスト(生物多様性)'!I$4:I$198) -> 0 | IP11: =MMULT($R11:$HD11,'被害係数リスト(生物多様性)'!J$4:J$198) -> 0 | IQ11: =MMULT($R11:$HD11,'被害係数リスト(生物多様性)'!K$4:K$198) -> 0 | IR11: 0 | IS11: =MMULT($R11:$HD11,'統合化係数リスト(無次元)'!H$4:H$198) -> 0 | IT11: =MMULT($R11:$HD11,'統合化係数リスト(無次元)'!I$4:I$198) -> 0 | IU11: =MMULT($R11:$HD11,'統合化係数リスト(無次元)'!J$4:J$198) -> 0 | IV11: =MMULT($R11:$HD11,'統合化係数リスト(無次元)'!K$4:K$198) -> 0 | IW11: =MMULT($R11:$HD11,'統合化係数リスト(無次元)'!L$4:L$198) -> 0 | IX11: =MMULT($R11:$HD11,'統合化係数リスト(無次元)'!M$4:M$198) -> 0 | IY11: =MMULT($R11:$HD11,'統合化係数リスト(無次元)'!N$4:N$198) -> 0 | IZ11: =MMULT($R11:$HD11,'統合化係数リスト(無次元)'!O$4:O$198) -> 0 | JA11: =MMULT($R11:$HD11,'統合化係数リスト(無次元)'!P$4:P$198) -> 0 | JB11: =MMULT($R11:$HD11,'統合化係数リスト(無次元)'!Q$4:Q$198) -> 0 | JC11: =MMULT($R11:$HD11,'統合化係数リスト(無次元)'!R$4:R$198) -> 0 | JD11: 0
A12: 仮設工事 | B12: エネルギー消費分 | C12: 5 | D12: 鋼矢板－鋼矢板圧入 | E12: 機械組立・解体（補助） | F12: =仮設工事①!O9 -> 軽油 | G12: =仮設工事①!P9 -> 0 | H12: L | J12: 0 | K12: 0 | L12: 0 | M12: 0 | N12: 0 | O12: 0 | P12: 0 | Q12: 0 | R12: =$G12*SUMIF('原単位リスト(multi)org'!$B$8:$B$75,$F12,'原単位リスト(multi)org'!G$8:G$75) -> 0 | S12: =$G12*SUMIF('原単位リスト(multi)org'!$B$8:$B$75,$F12,'原単位リスト(multi)org'!H$8:H$75) -> 0 | T12: =$G12*SUMIF('原単位リスト(multi)org'!$B$8:$B$75,$F12,'原単位リスト(multi)org'!I$8:I$75) -> 0 | U12: =$G12*SUMIF('原単位リスト(multi)org'!$B$8:$B$75,$F12,'原単位リスト(multi)org'!J$8:J$75) -> 0 | V12: =$G12*SUMIF('原単位リスト(multi)org'!$B$8:$B$75,$F12,'原単位リスト(multi)org'!K$8:K$75) -> 0 | W12: =$G12*SUMIF('原単位リスト(multi)org'!$B$8:$B$75,$F12,'原単位リスト(multi)org'!L$8:L$75) -> 0 | X12: =$G12*SUMIF('原単位リスト(multi)org'!$B$8:$B$75,$F12,'原単位リスト(multi)org'!M$8:M$75) -> 0 | Y12: =$G12*SUMIF('原単位リスト(multi)org'!$B$8:$B$75,$F12,'原単位リスト(multi)org'!N$8:N$75) -> 0 | Z12: =$G12*SUMIF('原単位リスト(multi)org'!$B$8:$B$75,$F12,'原単位リスト(multi)org'!O$8:O$75) -> 0 | AA12: =$G12*SUMIF('原単位リスト(multi)org'!$B$8:$B$75,$F12,'原単位リスト(multi)org'!P$8:P$75) -> 0 | AB12: =$G12*SUMIF('原単位リスト(multi)org'!$B$8:$B$75,$F12,'原単位リスト(multi)org'!Q$8:Q$75) -> 0 | AC12: =$G12*SUMIF('原単位リスト(multi)org'!$B$8:$B$75,$F12,'原単位リスト(multi)org'!R$8:R$75) -> 0 | AD12: =$G12*SUMIF('原単位リスト(multi)org'!$B$8:$B$75,$F12,'原単位リスト(multi)org'!S$8:S$75) -> 0 | AE12: =$G12*SUMIF('原単位リスト(multi)org'!$B$8:$B$75,$F12,'原単位リスト(multi)org'!T$8:T$75) -> 0 | AF12: =$G12*SUMIF('原単位リスト(multi)org'!$B$8:$B$75,$F12,'原単位リスト(multi)org'!U$8:U$75) -> 0 | AG12: =$G12*SUMIF('原単位リスト(multi)org'!$B$8:$B$75,$F12,'原単位リスト(multi)org'!V$8:V$75) -> 0 | AH12: =$G12*SUMIF('原単位リスト(multi)org'!$B$8:$B$75,$F12,'原単位リスト(multi)org'!W$8:W$75) -> 0 | AI12: =$G12*SUMIF('原単位リスト(multi)org'!$B$8:$B$75,$F12,'原単位リスト(multi)org'!X$8:X$75) -> 0 | AJ12: =$G12*SUMIF('原単位リスト(multi)org'!$B$8:$B$75,$F12,'原単位リスト(multi)org'!Y$8:Y$75) -> 0 | AK12: =$G12*SUMIF('原単位リスト(multi)org'!$B$8:$B$75,$F12,'原単位リスト(multi)org'!Z$8:Z$75) -> 0 | AL12: =$G12*SUMIF('原単位リスト(multi)org'!$B$8:$B$75,$F12,'原単位リスト(multi)org'!AA$8:AA$75) -> 0 | AM12: =$G12*SUMIF('原単位リスト(multi)org'!$B$8:$B$75,$F12,'原単位リスト(multi)org'!AB$8:AB$75) -> 0 | AN12: =$G12*SUMIF('原単位リスト(multi)org'!$B$8:$B$75,$F12,'原単位リスト(multi)org'!AC$8:AC$75) -> 0 | AO12: =$G12*SUMIF('原単位リスト(multi)org'!$B$8:$B$75,$F12,'原単位リスト(multi)org'!AD$8:AD$75) -> 0 | AP12: =$G12*SUMIF('原単位リスト(multi)org'!$B$8:$B$75,$F12,'原単位リスト(multi)org'!AE$8:AE$75) -> 0 | AQ12: =$G12*SUMIF('原単位リスト(multi)org'!$B$8:$B$75,$F12,'原単位リスト(multi)org'!AF$8:AF$75) -> 0 | AR12: =$G12*SUMIF('原単位リスト(multi)org'!$B$8:$B$75,$F12,'原単位リスト(multi)org'!AG$8:AG$75) -> 0 | AS12: =$G12*SUMIF('原単位リスト(multi)org'!$B$8:$B$75,$F12,'原単位リスト(multi)org'!AH$8:AH$75) -> 0 | AT12: =$G12*SUMIF('原単位リスト(multi)org'!$B$8:$B$75,$F12,'原単位リスト(multi)org'!AI$8:AI$75) -> 0 | AU12: =$G12*SUMIF('原単位リスト(multi)org'!$B$8:$B$75,$F12,'原単位リスト(multi)org'!AJ$8:AJ$75) -> 0 | AV12: =$G12*SUMIF('原単位リスト(multi)org'!$B$8:$B$75,$F12,'原単位リスト(multi)org'!AK$8:AK$75) -> 0 | AW12: =$G12*SUMIF('原単位リスト(multi)org'!$B$8:$B$75,$F12,'原単位リスト(multi)org'!AL$8:AL$75) -> 0 | AX12: =$G12*SUMIF('原単位リスト(multi)org'!$B$8:$B$75,$F12,'原単位リスト(multi)org'!AM$8:AM$75) -> 0 | AY12: =$G12*SUMIF('原単位リスト(multi)org'!$B$8:$B$75,$F12,'原単位リスト(multi)org'!AN$8:AN$75) -> 0 | AZ12: =$G12*SUMIF('原単位リスト(multi)org'!$B$8:$B$75,$F12,'原単位リスト(multi)org'!AO$8:AO$75) -> 0 | BA12: =$G12*SUMIF('原単位リスト(multi)org'!$B$8:$B$75,$F12,'原単位リスト(multi)org'!AP$8:AP$75) -> 0 | BB12: =$G12*SUMIF('原単位リスト(multi)org'!$B$8:$B$75,$F12,'原単位リスト(multi)org'!AQ$8:AQ$75) -> 0 | BC12: =$G12*SUMIF('原単位リスト(multi)org'!$B$8:$B$75,$F12,'原単位リスト(multi)org'!AR$8:AR$75) -> 0 | BD12: =$G12*SUMIF('原単位リスト(multi)org'!$B$8:$B$75,$F12,'原単位リスト(multi)org'!AS$8:AS$75) -> 0 | BE12: =$G12*SUMIF('原単位リスト(multi)org'!$B$8:$B$75,$F12,'原単位リスト(multi)org'!AT$8:AT$75) -> 0 | BF12: =$G12*SUMIF('原単位リスト(multi)org'!$B$8:$B$75,$F12,'原単位リスト(multi)org'!AU$8:AU$75) -> 0 | BG12: =$G12*SUMIF('原単位リスト(multi)org'!$B$8:$B$75,$F12,'原単位リスト(multi)org'!AV$8:AV$75) -> 0 | BH12: =$G12*SUMIF('原単位リスト(multi)org'!$B$8:$B$75,$F12,'原単位リスト(multi)org'!AW$8:AW$75) -> 0 | BI12: =$G12*SUMIF('原単位リスト(multi)org'!$B$8:$B$75,$F12,'原単位リスト(multi)org'!AX$8:AX$75) -> 0 | BJ12: =$G12*SUMIF('原単位リスト(multi)org'!$B$8:$B$75,$F12,'原単位リスト(multi)org'!AY$8:AY$75) -> 0 | BK12: =$G12*SUMIF('原単位リスト(multi)org'!$B$8:$B$75,$F12,'原単位リスト(multi)org'!AZ$8:AZ$75) -> 0 | BL12: =$G12*SUMIF('原単位リスト(multi)org'!$B$8:$B$75,$F12,'原単位リスト(multi)org'!BA$8:BA$75) -> 0 | BM12: =$G12*SUMIF('原単位リスト(multi)org'!$B$8:$B$75,$F12,'原単位リスト(multi)org'!BB$8:BB$75) -> 0 | BN12: =$G12*SUMIF('原単位リスト(multi)org'!$B$8:$B$75,$F12,'原単位リスト(multi)org'!BC$8:BC$75) -> 0 | BO12: =$G12*SUMIF('原単位リスト(multi)org'!$B$8:$B$75,$F12,'原単位リスト(multi)org'!BD$8:BD$75) -> 0 | BP12: =$G12*SUMIF('原単位リスト(multi)org'!$B$8:$B$75,$F12,'原単位リスト(multi)org'!BE$8:BE$75) -> 0 | BQ12: =$G12*SUMIF('原単位リスト(multi)org'!$B$8:$B$75,$F12,'原単位リスト(multi)org'!BF$8:BF$75) -> 0 | BR12: =$G12*SUMIF('原単位リスト(multi)org'!$B$8:$B$75,$F12,'原単位リスト(multi)org'!BG$8:BG$75) -> 0 | BS12: =$G12*SUMIF('原単位リスト(multi)org'!$B$8:$B$75,$F12,'原単位リスト(multi)org'!BH$8:BH$75) -> 0 | BT12: =$G12*SUMIF('原単位リスト(multi)org'!$B$8:$B$75,$F12,'原単位リスト(multi)org'!BI$8:BI$75) -> 0 | BU12: =$G12*SUMIF('原単位リスト(multi)org'!$B$8:$B$75,$F12,'原単位リスト(multi)org'!BJ$8:BJ$75) -> 0 | BV12: =$G12*SUMIF('原単位リスト(multi)org'!$B$8:$B$75,$F12,'原単位リスト(multi)org'!BK$8:BK$75) -> 0 | BW12: =$G12*SUMIF('原単位リスト(multi)org'!$B$8:$B$75,$F12,'原単位リスト(multi)org'!BL$8:BL$75) -> 0 | BX12: =$G12*SUMIF('原単位リスト(multi)org'!$B$8:$B$75,$F12,'原単位リスト(multi)org'!BM$8:BM$75) -> 0 | BY12: =$G12*SUMIF('原単位リスト(multi)org'!$B$8:$B$75,$F12,'原単位リスト(multi)org'!BN$8:BN$75) -> 0 | BZ12: =$G12*SUMIF('原単位リスト(multi)org'!$B$8:$B$75,$F12,'原単位リスト(multi)org'!BO$8:BO$75) -> 0 | CA12: =$G12*SUMIF('原単位リスト(multi)org'!$B$8:$B$75,$F12,'原単位リスト(multi)org'!BP$8:BP$75) -> 0 | CB12: =$G12*SUMIF('原単位リスト(multi)org'!$B$8:$B$75,$F12,'原単位リスト(multi)org'!BQ$8:BQ$75) -> 0 | CC12: =$G12*SUMIF('原単位リスト(multi)org'!$B$8:$B$75,$F12,'原単位リスト(multi)org'!BR$8:BR$75) -> 0 | CD12: =$G12*SUMIF('原単位リスト(multi)org'!$B$8:$B$75,$F12,'原単位リスト(multi)org'!BS$8:BS$75) -> 0 | CE12: =$G12*SUMIF('原単位リスト(multi)org'!$B$8:$B$75,$F12,'原単位リスト(multi)org'!BT$8:BT$75) -> 0 | CF12: =$G12*SUMIF('原単位リスト(multi)org'!$B$8:$B$75,$F12,'原単位リスト(multi)org'!BU$8:BU$75) -> 0 | CG12: =$G12*SUMIF('原単位リスト(multi)org'!$B$8:$B$75,$F12,'原単位リスト(multi)org'!BV$8:BV$75) -> 0 | CH12: =$G12*SUMIF('原単位リスト(multi)org'!$B$8:$B$75,$F12,'原単位リスト(multi)org'!BW$8:BW$75) -> 0 | CI12: =$G12*SUMIF('原単位リスト(multi)org'!$B$8:$B$75,$F12,'原単位リスト(multi)org'!BX$8:BX$75) -> 0 | CJ12: =$G12*SUMIF('原単位リスト(multi)org'!$B$8:$B$75,$F12,'原単位リスト(multi)org'!BY$8:BY$75) -> 0 | CK12: =$G12*SUMIF('原単位リスト(multi)org'!$B$8:$B$75,$F12,'原単位リスト(multi)org'!BZ$8:BZ$75) -> 0 | CL12: =$G12*SUMIF('原単位リスト(multi)org'!$B$8:$B$75,$F12,'原単位リスト(multi)org'!CA$8:CA$75) -> 0 | CM12: =$G12*SUMIF('原単位リスト(multi)org'!$B$8:$B$75,$F12,'原単位リスト(multi)org'!CB$8:CB$75) -> 0 | CN12: =$G12*SUMIF('原単位リスト(multi)org'!$B$8:$B$75,$F12,'原単位リスト(multi)org'!CC$8:CC$75) -> 0 | CO12: =$G12*SUMIF('原単位リスト(multi)org'!$B$8:$B$75,$F12,'原単位リスト(multi)org'!CD$8:CD$75) -> 0 | CP12: =$G12*SUMIF('原単位リスト(multi)org'!$B$8:$B$75,$F12,'原単位リスト(multi)org'!CE$8:CE$75) -> 0 | CQ12: =$G12*SUMIF('原単位リスト(multi)org'!$B$8:$B$75,$F12,'原単位リスト(multi)org'!CF$8:CF$75) -> 0 | CR12: =$G12*SUMIF('原単位リスト(multi)org'!$B$8:$B$75,$F12,'原単位リスト(multi)org'!CG$8:CG$75) -> 0 | CS12: =$G12*SUMIF('原単位リスト(multi)org'!$B$8:$B$75,$F12,'原単位リスト(multi)org'!CH$8:CH$75) -> 0 | CT12: =$G12*SUMIF('原単位リスト(multi)org'!$B$8:$B$75,$F12,'原単位リスト(multi)org'!CI$8:CI$75) -> 0 | CU12: =$G12*SUMIF('原単位リスト(multi)org'!$B$8:$B$75,$F12,'原単位リスト(multi)org'!CJ$8:CJ$75) -> 0 | CV12: =$G12*SUMIF('原単位リスト(multi)org'!$B$8:$B$75,$F12,'原単位リスト(multi)org'!CK$8:CK$75) -> 0 | CW12: =$G12*SUMIF('原単位リスト(multi)org'!$B$8:$B$75,$F12,'原単位リスト(multi)org'!CL$8:CL$75) -> 0 | CX12: =$G12*SUMIF('原単位リスト(multi)org'!$B$8:$B$75,$F12,'原単位リスト(multi)org'!CM$8:CM$75) -> 0 | CY12: =$G12*SUMIF('原単位リスト(multi)org'!$B$8:$B$75,$F12,'原単位リスト(multi)org'!CN$8:CN$75) -> 0 | CZ12: =$G12*SUMIF('原単位リスト(multi)org'!$B$8:$B$75,$F12,'原単位リスト(multi)org'!CO$8:CO$75) -> 0 | DA12: =$G12*SUMIF('原単位リスト(multi)org'!$B$8:$B$75,$F12,'原単位リスト(multi)org'!CP$8:CP$75) -> 0 | DB12: =$G12*SUMIF('原単位リスト(multi)org'!$B$8:$B$75,$F12,'原単位リスト(multi)org'!CQ$8:CQ$75) -> 0 | DC12: =$G12*SUMIF('原単位リスト(multi)org'!$B$8:$B$75,$F12,'原単位リスト(multi)org'!CR$8:CR$75) -> 0 | DD12: =$G12*SUMIF('原単位リスト(multi)org'!$B$8:$B$75,$F12,'原単位リスト(multi)org'!CS$8:CS$75) -> 0 | DE12: =$G12*SUMIF('原単位リスト(multi)org'!$B$8:$B$75,$F12,'原単位リスト(multi)org'!CT$8:CT$75) -> 0 | DF12: =$G12*SUMIF('原単位リスト(multi)org'!$B$8:$B$75,$F12,'原単位リスト(multi)org'!CU$8:CU$75) -> 0 | DG12: =$G12*SUMIF('原単位リスト(multi)org'!$B$8:$B$75,$F12,'原単位リスト(multi)org'!CV$8:CV$75) -> 0 | DH12: =$G12*SUMIF('原単位リスト(multi)org'!$B$8:$B$75,$F12,'原単位リスト(multi)org'!CW$8:CW$75) -> 0 | DI12: =$G12*SUMIF('原単位リスト(multi)org'!$B$8:$B$75,$F12,'原単位リスト(multi)org'!CX$8:CX$75) -> 0 | DJ12: =$G12*SUMIF('原単位リスト(multi)org'!$B$8:$B$75,$F12,'原単位リスト(multi)org'!CY$8:CY$75) -> 0 | DK12: =$G12*SUMIF('原単位リスト(multi)org'!$B$8:$B$75,$F12,'原単位リスト(multi)org'!CZ$8:CZ$75) -> 0 | DL12: =$G12*SUMIF('原単位リスト(multi)org'!$B$8:$B$75,$F12,'原単位リスト(multi)org'!DA$8:DA$75) -> 0 | DM12: =$G12*SUMIF('原単位リスト(multi)org'!$B$8:$B$75,$F12,'原単位リスト(multi)org'!DB$8:DB$75) -> 0 | DN12: =$G12*SUMIF('原単位リスト(multi)org'!$B$8:$B$75,$F12,'原単位リスト(multi)org'!DC$8:DC$75) -> 0 | DO12: =$G12*SUMIF('原単位リスト(multi)org'!$B$8:$B$75,$F12,'原単位リスト(multi)org'!DD$8:DD$75) -> 0 | DP12: =$G12*SUMIF('原単位リスト(multi)org'!$B$8:$B$75,$F12,'原単位リスト(multi)org'!DE$8:DE$75) -> 0 | DQ12: =$G12*SUMIF('原単位リスト(multi)org'!$B$8:$B$75,$F12,'原単位リスト(multi)org'!DF$8:DF$75) -> 0 | DR12: =$G12*SUMIF('原単位リスト(multi)org'!$B$8:$B$75,$F12,'原単位リスト(multi)org'!DG$8:DG$75) -> 0 | DS12: =$G12*SUMIF('原単位リスト(multi)org'!$B$8:$B$75,$F12,'原単位リスト(multi)org'!DH$8:DH$75) -> 0 | DT12: =$G12*SUMIF('原単位リスト(multi)org'!$B$8:$B$75,$F12,'原単位リスト(multi)org'!DI$8:DI$75) -> 0 | DU12: =$G12*SUMIF('原単位リスト(multi)org'!$B$8:$B$75,$F12,'原単位リスト(multi)org'!DJ$8:DJ$75) -> 0 | DV12: =$G12*SUMIF('原単位リスト(multi)org'!$B$8:$B$75,$F12,'原単位リスト(multi)org'!DK$8:DK$75) -> 0 | DW12: =$G12*SUMIF('原単位リスト(multi)org'!$B$8:$B$75,$F12,'原単位リスト(multi)org'!DL$8:DL$75) -> 0 | DX12: =$G12*SUMIF('原単位リスト(multi)org'!$B$8:$B$75,$F12,'原単位リスト(multi)org'!DM$8:DM$75) -> 0 | DY12: =$G12*SUMIF('原単位リスト(multi)org'!$B$8:$B$75,$F12,'原単位リスト(multi)org'!DN$8:DN$75) -> 0 | DZ12: =$G12*SUMIF('原単位リスト(multi)org'!$B$8:$B$75,$F12,'原単位リスト(multi)org'!DO$8:DO$75) -> 0 | EA12: =$G12*SUMIF('原単位リスト(multi)org'!$B$8:$B$75,$F12,'原単位リスト(multi)org'!DP$8:DP$75) -> 0 | EB12: =$G12*SUMIF('原単位リスト(multi)org'!$B$8:$B$75,$F12,'原単位リスト(multi)org'!DQ$8:DQ$75) -> 0 | EC12: =$G12*SUMIF('原単位リスト(multi)org'!$B$8:$B$75,$F12,'原単位リスト(multi)org'!DR$8:DR$75) -> 0 | ED12: =$G12*SUMIF('原単位リスト(multi)org'!$B$8:$B$75,$F12,'原単位リスト(multi)org'!DS$8:DS$75) -> 0 | EE12: =$G12*SUMIF('原単位リスト(multi)org'!$B$8:$B$75,$F12,'原単位リスト(multi)org'!DT$8:DT$75) -> 0 | EF12: =$G12*SUMIF('原単位リスト(multi)org'!$B$8:$B$75,$F12,'原単位リスト(multi)org'!DU$8:DU$75) -> 0 | EG12: =$G12*SUMIF('原単位リスト(multi)org'!$B$8:$B$75,$F12,'原単位リスト(multi)org'!DV$8:DV$75) -> 0 | EH12: =$G12*SUMIF('原単位リスト(multi)org'!$B$8:$B$75,$F12,'原単位リスト(multi)org'!DW$8:DW$75) -> 0 | EI12: =$G12*SUMIF('原単位リスト(multi)org'!$B$8:$B$75,$F12,'原単位リスト(multi)org'!DX$8:DX$75) -> 0 | EJ12: =$G12*SUMIF('原単位リスト(multi)org'!$B$8:$B$75,$F12,'原単位リスト(multi)org'!DY$8:DY$75) -> 0 | EK12: =$G12*SUMIF('原単位リスト(multi)org'!$B$8:$B$75,$F12,'原単位リスト(multi)org'!DZ$8:DZ$75) -> 0 | EL12: =$G12*SUMIF('原単位リスト(multi)org'!$B$8:$B$75,$F12,'原単位リスト(multi)org'!EA$8:EA$75) -> 0 | EM12: =$G12*SUMIF('原単位リスト(multi)org'!$B$8:$B$75,$F12,'原単位リスト(multi)org'!EB$8:EB$75) -> 0 | EN12: =$G12*SUMIF('原単位リスト(multi)org'!$B$8:$B$75,$F12,'原単位リスト(multi)org'!EC$8:EC$75) -> 0 | EO12: =$G12*SUMIF('原単位リスト(multi)org'!$B$8:$B$75,$F12,'原単位リスト(multi)org'!ED$8:ED$75) -> 0 | EP12: =$G12*SUMIF('原単位リスト(multi)org'!$B$8:$B$75,$F12,'原単位リスト(multi)org'!EE$8:EE$75) -> 0 | EQ12: =$G12*SUMIF('原単位リスト(multi)org'!$B$8:$B$75,$F12,'原単位リスト(multi)org'!EF$8:EF$75) -> 0 | ER12: =$G12*SUMIF('原単位リスト(multi)org'!$B$8:$B$75,$F12,'原単位リスト(multi)org'!EG$8:EG$75) -> 0 | ES12: =$G12*SUMIF('原単位リスト(multi)org'!$B$8:$B$75,$F12,'原単位リスト(multi)org'!EH$8:EH$75) -> 0 | ET12: =$G12*SUMIF('原単位リスト(multi)org'!$B$8:$B$75,$F12,'原単位リスト(multi)org'!EI$8:EI$75) -> 0 | EU12: =$G12*SUMIF('原単位リスト(multi)org'!$B$8:$B$75,$F12,'原単位リスト(multi)org'!EJ$8:EJ$75) -> 0 | EV12: =$G12*SUMIF('原単位リスト(multi)org'!$B$8:$B$75,$F12,'原単位リスト(multi)org'!EK$8:EK$75) -> 0 | EW12: =$G12*SUMIF('原単位リスト(multi)org'!$B$8:$B$75,$F12,'原単位リスト(multi)org'!EL$8:EL$75) -> 0 | EX12: =$G12*SUMIF('原単位リスト(multi)org'!$B$8:$B$75,$F12,'原単位リスト(multi)org'!EM$8:EM$75) -> 0 | EY12: =$G12*SUMIF('原単位リスト(multi)org'!$B$8:$B$75,$F12,'原単位リスト(multi)org'!EN$8:EN$75) -> 0 | EZ12: =$G12*SUMIF('原単位リスト(multi)org'!$B$8:$B$75,$F12,'原単位リスト(multi)org'!EO$8:EO$75) -> 0 | FA12: =$G12*SUMIF('原単位リスト(multi)org'!$B$8:$B$75,$F12,'原単位リスト(multi)org'!EP$8:EP$75) -> 0 | FB12: =$G12*SUMIF('原単位リスト(multi)org'!$B$8:$B$75,$F12,'原単位リスト(multi)org'!EQ$8:EQ$75) -> 0 | FC12: =$G12*SUMIF('原単位リスト(multi)org'!$B$8:$B$75,$F12,'原単位リスト(multi)org'!ER$8:ER$75) -> 0 | FD12: =$G12*SUMIF('原単位リスト(multi)org'!$B$8:$B$75,$F12,'原単位リスト(multi)org'!ES$8:ES$75) -> 0 | FE12: =$G12*SUMIF('原単位リスト(multi)org'!$B$8:$B$75,$F12,'原単位リスト(multi)org'!ET$8:ET$75) -> 0 | FF12: =$G12*SUMIF('原単位リスト(multi)org'!$B$8:$B$75,$F12,'原単位リスト(multi)org'!EU$8:EU$75) -> 0 | FG12: =$G12*SUMIF('原単位リスト(multi)org'!$B$8:$B$75,$F12,'原単位リスト(multi)org'!EV$8:EV$75) -> 0 | FH12: =$G12*SUMIF('原単位リスト(multi)org'!$B$8:$B$75,$F12,'原単位リスト(multi)org'!EW$8:EW$75) -> 0 | FI12: =$G12*SUMIF('原単位リスト(multi)org'!$B$8:$B$75,$F12,'原単位リスト(multi)org'!EX$8:EX$75) -> 0 | FJ12: =$G12*SUMIF('原単位リスト(multi)org'!$B$8:$B$75,$F12,'原単位リスト(multi)org'!EY$8:EY$75) -> 0 | FK12: =$G12*SUMIF('原単位リスト(multi)org'!$B$8:$B$75,$F12,'原単位リスト(multi)org'!EZ$8:EZ$75) -> 0 | FL12: =$G12*SUMIF('原単位リスト(multi)org'!$B$8:$B$75,$F12,'原単位リスト(multi)org'!FA$8:FA$75) -> 0 | FM12: =$G12*SUMIF('原単位リスト(multi)org'!$B$8:$B$75,$F12,'原単位リスト(multi)org'!FB$8:FB$75) -> 0 | FN12: =$G12*SUMIF('原単位リスト(multi)org'!$B$8:$B$75,$F12,'原単位リスト(multi)org'!FC$8:FC$75) -> 0 | FO12: =$G12*SUMIF('原単位リスト(multi)org'!$B$8:$B$75,$F12,'原単位リスト(multi)org'!FD$8:FD$75) -> 0 | FP12: =$G12*SUMIF('原単位リスト(multi)org'!$B$8:$B$75,$F12,'原単位リスト(multi)org'!FE$8:FE$75) -> 0 | FQ12: =$G12*SUMIF('原単位リスト(multi)org'!$B$8:$B$75,$F12,'原単位リスト(multi)org'!FF$8:FF$75) -> 0 | FR12: =$G12*SUMIF('原単位リスト(multi)org'!$B$8:$B$75,$F12,'原単位リスト(multi)org'!FG$8:FG$75) -> 0 | FS12: =$G12*SUMIF('原単位リスト(multi)org'!$B$8:$B$75,$F12,'原単位リスト(multi)org'!FH$8:FH$75) -> 0 | FT12: =$G12*SUMIF('原単位リスト(multi)org'!$B$8:$B$75,$F12,'原単位リスト(multi)org'!FI$8:FI$75) -> 0 | FU12: =$G12*SUMIF('原単位リスト(multi)org'!$B$8:$B$75,$F12,'原単位リスト(multi)org'!FJ$8:FJ$75) -> 0 | FV12: =$G12*SUMIF('原単位リスト(multi)org'!$B$8:$B$75,$F12,'原単位リスト(multi)org'!FK$8:FK$75) -> 0 | FW12: =$G12*SUMIF('原単位リスト(multi)org'!$B$8:$B$75,$F12,'原単位リスト(multi)org'!FL$8:FL$75) -> 0 | FX12: =$G12*SUMIF('原単位リスト(multi)org'!$B$8:$B$75,$F12,'原単位リスト(multi)org'!FM$8:FM$75) -> 0 | FY12: =$G12*SUMIF('原単位リスト(multi)org'!$B$8:$B$75,$F12,'原単位リスト(multi)org'!FN$8:FN$75) -> 0 | FZ12: =$G12*SUMIF('原単位リスト(multi)org'!$B$8:$B$75,$F12,'原単位リスト(multi)org'!FO$8:FO$75) -> 0 | GA12: =$G12*SUMIF('原単位リスト(multi)org'!$B$8:$B$75,$F12,'原単位リスト(multi)org'!FP$8:FP$75) -> 0 | GB12: =$G12*SUMIF('原単位リスト(multi)org'!$B$8:$B$75,$F12,'原単位リスト(multi)org'!FQ$8:FQ$75) -> 0 | GC12: =$G12*SUMIF('原単位リスト(multi)org'!$B$8:$B$75,$F12,'原単位リスト(multi)org'!FR$8:FR$75) -> 0 | GD12: =$G12*SUMIF('原単位リスト(multi)org'!$B$8:$B$75,$F12,'原単位リスト(multi)org'!FS$8:FS$75) -> 0 | GE12: =$G12*SUMIF('原単位リスト(multi)org'!$B$8:$B$75,$F12,'原単位リスト(multi)org'!FT$8:FT$75) -> 0 | GF12: =$G12*SUMIF('原単位リスト(multi)org'!$B$8:$B$75,$F12,'原単位リスト(multi)org'!FU$8:FU$75) -> 0 | GG12: =$G12*SUMIF('原単位リスト(multi)org'!$B$8:$B$75,$F12,'原単位リスト(multi)org'!FV$8:FV$75) -> 0 | GH12: =$G12*SUMIF('原単位リスト(multi)org'!$B$8:$B$75,$F12,'原単位リスト(multi)org'!FW$8:FW$75) -> 0 | GI12: =$G12*SUMIF('原単位リスト(multi)org'!$B$8:$B$75,$F12,'原単位リスト(multi)org'!FX$8:FX$75) -> 0 | GJ12: =$G12*SUMIF('原単位リスト(multi)org'!$B$8:$B$75,$F12,'原単位リスト(multi)org'!FY$8:FY$75) -> 0 | GK12: =$G12*SUMIF('原単位リスト(multi)org'!$B$8:$B$75,$F12,'原単位リスト(multi)org'!FZ$8:FZ$75) -> 0 | GL12: =$G12*SUMIF('原単位リスト(multi)org'!$B$8:$B$75,$F12,'原単位リスト(multi)org'!GA$8:GA$75) -> 0 | GM12: =$G12*SUMIF('原単位リスト(multi)org'!$B$8:$B$75,$F12,'原単位リスト(multi)org'!GB$8:GB$75) -> 0 | GN12: =$G12*SUMIF('原単位リスト(multi)org'!$B$8:$B$75,$F12,'原単位リスト(multi)org'!GC$8:GC$75) -> 0 | GO12: =$G12*SUMIF('原単位リスト(multi)org'!$B$8:$B$75,$F12,'原単位リスト(multi)org'!GD$8:GD$75) -> 0 | GP12: =$G12*SUMIF('原単位リスト(multi)org'!$B$8:$B$75,$F12,'原単位リスト(multi)org'!GE$8:GE$75) -> 0 | GQ12: =$G12*SUMIF('原単位リスト(multi)org'!$B$8:$B$75,$F12,'原単位リスト(multi)org'!GF$8:GF$75) -> 0 | GR12: =$G12*SUMIF('原単位リスト(multi)org'!$B$8:$B$75,$F12,'原単位リスト(multi)org'!GG$8:GG$75) -> 0 | GS12: =$G12*SUMIF('原単位リスト(multi)org'!$B$8:$B$75,$F12,'原単位リスト(multi)org'!GH$8:GH$75) -> 0 | GT12: =$G12*SUMIF('原単位リスト(multi)org'!$B$8:$B$75,$F12,'原単位リスト(multi)org'!GI$8:GI$75) -> 0 | GU12: =$G12*SUMIF('原単位リスト(multi)org'!$B$8:$B$75,$F12,'原単位リスト(multi)org'!GJ$8:GJ$75) -> 0 | GV12: =$G12*SUMIF('原単位リスト(multi)org'!$B$8:$B$75,$F12,'原単位リスト(multi)org'!GK$8:GK$75) -> 0 | GW12: =$G12*SUMIF('原単位リスト(multi)org'!$B$8:$B$75,$F12,'原単位リスト(multi)org'!GL$8:GL$75) -> 0 | GX12: =$G12*SUMIF('原単位リスト(multi)org'!$B$8:$B$75,$F12,'原単位リスト(multi)org'!GM$8:GM$75) -> 0 | GY12: =$G12*SUMIF('原単位リスト(multi)org'!$B$8:$B$75,$F12,'原単位リスト(multi)org'!GN$8:GN$75) -> 0 | GZ12: =$G12*SUMIF('原単位リスト(multi)org'!$B$8:$B$75,$F12,'原単位リスト(multi)org'!GO$8:GO$75) -> 0 | HA12: =$G12*SUMIF('原単位リスト(multi)org'!$B$8:$B$75,$F12,'原単位リスト(multi)org'!GP$8:GP$75) -> 0 | HB12: =$G12*SUMIF('原単位リスト(multi)org'!$B$8:$B$75,$F12,'原単位リスト(multi)org'!GQ$8:GQ$75) -> 0 | HC12: =$G12*SUMIF('原単位リスト(multi)org'!$B$8:$B$75,$F12,'原単位リスト(multi)org'!GR$8:GR$75) -> 0 | HD12: =$G12*SUMIF('原単位リスト(multi)org'!$B$8:$B$75,$F12,'原単位リスト(multi)org'!GS$8:GS$75) -> 0 | HE12: =MMULT($R12:$HD12,特性化係数リスト!H$5:H$199) -> 0 | HF12: =MMULT($R12:$HD12,特性化係数リスト!I$5:I$199) -> 0 | HG12: =MMULT($R12:$HD12,特性化係数リスト!J$5:J$199) -> 0 | HH12: =MMULT($R12:$HD12,特性化係数リスト!K$5:K$199) -> 0 | HI12: =MMULT($R12:$HD12,特性化係数リスト!L$5:L$199) -> 0 | HJ12: =MMULT($R12:$HD12,特性化係数リスト!M$5:M$199) -> 0 | HK12: =MMULT($R12:$HD12,特性化係数リスト!N$5:N$199) -> 0 | HL12: =MMULT($R12:$HD12,特性化係数リスト!O$5:O$199) -> 0 | HM12: =MMULT($R12:$HD12,特性化係数リスト!P$5:P$199) -> 0 | HN12: =MMULT($R12:$HD12,特性化係数リスト!Q$5:Q$199) -> 0 | HO12: =MMULT($R12:$HD12,特性化係数リスト!R$5:R$199) -> 0 | HP12: =MMULT($R12:$HD12,特性化係数リスト!S$5:S$199) -> 0 | HQ12: =MMULT($R12:$HD12,特性化係数リスト!T$5:T$199) -> 0 | HR12: =MMULT($R12:$HD12,特性化係数リスト!U$5:U$199) -> 0 | HS12: =MMULT($R12:$HD12,特性化係数リスト!V$5:V$199) -> 0 | HT12: =MMULT($R12:$HD12,特性化係数リスト!W$5:W$199) -> 0 | HU12: =MMULT($R12:$HD12,特性化係数リスト!X$5:X$199) -> 0 | HV12: =MMULT($R12:$HD12,'被害係数リスト(人間健康)'!H$4:H$198) -> 0 | HW12: =MMULT($R12:$HD12,'被害係数リスト(人間健康)'!I$4:I$198) -> 0 | HX12: =MMULT($R12:$HD12,'被害係数リスト(人間健康)'!J$4:J$198) -> 0 | HY12: =MMULT($R12:$HD12,'被害係数リスト(人間健康)'!K$4:K$198) -> 0 | HZ12: =MMULT($R12:$HD12,'被害係数リスト(人間健康)'!L$4:L$198) -> 0 | IA12: 0 | IB12: =MMULT($R12:$HD12,'被害係数リスト(一次生産)'!H$4:H$198) -> 0 | IC12: =MMULT($R12:$HD12,'被害係数リスト(一次生産)'!I$4:I$198) -> 0 | ID12: =MMULT($R12:$HD12,'被害係数リスト(一次生産)'!J$4:J$198) -> 0 | IE12: =MMULT($R12:$HD12,'被害係数リスト(一次生産)'!K$4:K$198) -> 0 | IF12: 0 | IG12: =MMULT($R12:$HD12,'被害係数リスト(社会資産)'!H$4:H$198) -> 0 | IH12: =MMULT($R12:$HD12,'被害係数リスト(社会資産)'!I$4:I$198) -> 0 | II12: =MMULT($R12:$HD12,'被害係数リスト(社会資産)'!J$4:J$198) -> 0 | IJ12: =MMULT($R12:$HD12,'被害係数リスト(社会資産)'!K$4:K$198) -> 0 | IK12: =MMULT($R12:$HD12,'被害係数リスト(社会資産)'!L$4:L$198) -> 0 | IL12: =MMULT($R12:$HD12,'被害係数リスト(社会資産)'!M$4:M$198) -> 0 | IM12: 0 | IN12: =MMULT($R12:$HD12,'被害係数リスト(生物多様性)'!H$4:H$198) -> 0 | IO12: =MMULT($R12:$HD12,'被害係数リスト(生物多様性)'!I$4:I$198) -> 0 | IP12: =MMULT($R12:$HD12,'被害係数リスト(生物多様性)'!J$4:J$198) -> 0 | IQ12: =MMULT($R12:$HD12,'被害係数リスト(生物多様性)'!K$4:K$198) -> 0 | IR12: 0 | IS12: =MMULT($R12:$HD12,'統合化係数リスト(無次元)'!H$4:H$198) -> 0 | IT12: =MMULT($R12:$HD12,'統合化係数リスト(無次元)'!I$4:I$198) -> 0 | IU12: =MMULT($R12:$HD12,'統合化係数リスト(無次元)'!J$4:J$198) -> 0 | IV12: =MMULT($R12:$HD12,'統合化係数リスト(無次元)'!K$4:K$198) -> 0 | IW12: =MMULT($R12:$HD12,'統合化係数リスト(無次元)'!L$4:L$198) -> 0 | IX12: =MMULT($R12:$HD12,'統合化係数リスト(無次元)'!M$4:M$198) -> 0 | IY12: =MMULT($R12:$HD12,'統合化係数リスト(無次元)'!N$4:N$198) -> 0 | IZ12: =MMULT($R12:$HD12,'統合化係数リスト(無次元)'!O$4:O$198) -> 0 | JA12: =MMULT($R12:$HD12,'統合化係数リスト(無次元)'!P$4:P$198) -> 0 | JB12: =MMULT($R12:$HD12,'統合化係数リスト(無次元)'!Q$4:Q$198) -> 0 | JC12: =MMULT($R12:$HD12,'統合化係数リスト(無次元)'!R$4:R$198) -> 0 | JD12: 0
A13: 仮設工事 | B13: エネルギー消費分 | C13: 5 | D13: 鋼矢板－鋼矢板圧入 | E13: 圧入 | F13: =仮設工事①!O10 -> 軽油 | G13: =仮設工事①!P10 -> 0 | H13: L | J13: 0 | K13: 0 | L13: 0 | M13: 0 | N13: 0 | O13: 0 | P13: 0 | Q13: 0 | R13: =$G13*SUMIF('原単位リスト(multi)org'!$B$8:$B$75,$F13,'原単位リスト(multi)org'!G$8:G$75) -> 0 | S13: =$G13*SUMIF('原単位リスト(multi)org'!$B$8:$B$75,$F13,'原単位リスト(multi)org'!H$8:H$75) -> 0 | T13: =$G13*SUMIF('原単位リスト(multi)org'!$B$8:$B$75,$F13,'原単位リスト(multi)org'!I$8:I$75) -> 0 | U13: =$G13*SUMIF('原単位リスト(multi)org'!$B$8:$B$75,$F13,'原単位リスト(multi)org'!J$8:J$75) -> 0 | V13: =$G13*SUMIF('原単位リスト(multi)org'!$B$8:$B$75,$F13,'原単位リスト(multi)org'!K$8:K$75) -> 0 | W13: =$G13*SUMIF('原単位リスト(multi)org'!$B$8:$B$75,$F13,'原単位リスト(multi)org'!L$8:L$75) -> 0 | X13: =$G13*SUMIF('原単位リスト(multi)org'!$B$8:$B$75,$F13,'原単位リスト(multi)org'!M$8:M$75) -> 0 | Y13: =$G13*SUMIF('原単位リスト(multi)org'!$B$8:$B$75,$F13,'原単位リスト(multi)org'!N$8:N$75) -> 0 | Z13: =$G13*SUMIF('原単位リスト(multi)org'!$B$8:$B$75,$F13,'原単位リスト(multi)org'!O$8:O$75) -> 0 | AA13: =$G13*SUMIF('原単位リスト(multi)org'!$B$8:$B$75,$F13,'原単位リスト(multi)org'!P$8:P$75) -> 0 | AB13: =$G13*SUMIF('原単位リスト(multi)org'!$B$8:$B$75,$F13,'原単位リスト(multi)org'!Q$8:Q$75) -> 0 | AC13: =$G13*SUMIF('原単位リスト(multi)org'!$B$8:$B$75,$F13,'原単位リスト(multi)org'!R$8:R$75) -> 0 | AD13: =$G13*SUMIF('原単位リスト(multi)org'!$B$8:$B$75,$F13,'原単位リスト(multi)org'!S$8:S$75) -> 0 | AE13: =$G13*SUMIF('原単位リスト(multi)org'!$B$8:$B$75,$F13,'原単位リスト(multi)org'!T$8:T$75) -> 0 | AF13: =$G13*SUMIF('原単位リスト(multi)org'!$B$8:$B$75,$F13,'原単位リスト(multi)org'!U$8:U$75) -> 0 | AG13: =$G13*SUMIF('原単位リスト(multi)org'!$B$8:$B$75,$F13,'原単位リスト(multi)org'!V$8:V$75) -> 0 | AH13: =$G13*SUMIF('原単位リスト(multi)org'!$B$8:$B$75,$F13,'原単位リスト(multi)org'!W$8:W$75) -> 0 | AI13: =$G13*SUMIF('原単位リスト(multi)org'!$B$8:$B$75,$F13,'原単位リスト(multi)org'!X$8:X$75) -> 0 | AJ13: =$G13*SUMIF('原単位リスト(multi)org'!$B$8:$B$75,$F13,'原単位リスト(multi)org'!Y$8:Y$75) -> 0 | AK13: =$G13*SUMIF('原単位リスト(multi)org'!$B$8:$B$75,$F13,'原単位リスト(multi)org'!Z$8:Z$75) -> 0 | AL13: =$G13*SUMIF('原単位リスト(multi)org'!$B$8:$B$75,$F13,'原単位リスト(multi)org'!AA$8:AA$75) -> 0 | AM13: =$G13*SUMIF('原単位リスト(multi)org'!$B$8:$B$75,$F13,'原単位リスト(multi)org'!AB$8:AB$75) -> 0 | AN13: =$G13*SUMIF('原単位リスト(multi)org'!$B$8:$B$75,$F13,'原単位リスト(multi)org'!AC$8:AC$75) -> 0 | AO13: =$G13*SUMIF('原単位リスト(multi)org'!$B$8:$B$75,$F13,'原単位リスト(multi)org'!AD$8:AD$75) -> 0 | AP13: =$G13*SUMIF('原単位リスト(multi)org'!$B$8:$B$75,$F13,'原単位リスト(multi)org'!AE$8:AE$75) -> 0 | AQ13: =$G13*SUMIF('原単位リスト(multi)org'!$B$8:$B$75,$F13,'原単位リスト(multi)org'!AF$8:AF$75) -> 0 | AR13: =$G13*SUMIF('原単位リスト(multi)org'!$B$8:$B$75,$F13,'原単位リスト(multi)org'!AG$8:AG$75) -> 0 | AS13: =$G13*SUMIF('原単位リスト(multi)org'!$B$8:$B$75,$F13,'原単位リスト(multi)org'!AH$8:AH$75) -> 0 | AT13: =$G13*SUMIF('原単位リスト(multi)org'!$B$8:$B$75,$F13,'原単位リスト(multi)org'!AI$8:AI$75) -> 0 | AU13: =$G13*SUMIF('原単位リスト(multi)org'!$B$8:$B$75,$F13,'原単位リスト(multi)org'!AJ$8:AJ$75) -> 0 | AV13: =$G13*SUMIF('原単位リスト(multi)org'!$B$8:$B$75,$F13,'原単位リスト(multi)org'!AK$8:AK$75) -> 0 | AW13: =$G13*SUMIF('原単位リスト(multi)org'!$B$8:$B$75,$F13,'原単位リスト(multi)org'!AL$8:AL$75) -> 0 | AX13: =$G13*SUMIF('原単位リスト(multi)org'!$B$8:$B$75,$F13,'原単位リスト(multi)org'!AM$8:AM$75) -> 0 | AY13: =$G13*SUMIF('原単位リスト(multi)org'!$B$8:$B$75,$F13,'原単位リスト(multi)org'!AN$8:AN$75) -> 0 | AZ13: =$G13*SUMIF('原単位リスト(multi)org'!$B$8:$B$75,$F13,'原単位リスト(multi)org'!AO$8:AO$75) -> 0 | BA13: =$G13*SUMIF('原単位リスト(multi)org'!$B$8:$B$75,$F13,'原単位リスト(multi)org'!AP$8:AP$75) -> 0 | BB13: =$G13*SUMIF('原単位リスト(multi)org'!$B$8:$B$75,$F13,'原単位リスト(multi)org'!AQ$8:AQ$75) -> 0 | BC13: =$G13*SUMIF('原単位リスト(multi)org'!$B$8:$B$75,$F13,'原単位リスト(multi)org'!AR$8:AR$75) -> 0 | BD13: =$G13*SUMIF('原単位リスト(multi)org'!$B$8:$B$75,$F13,'原単位リスト(multi)org'!AS$8:AS$75) -> 0 | BE13: =$G13*SUMIF('原単位リスト(multi)org'!$B$8:$B$75,$F13,'原単位リスト(multi)org'!AT$8:AT$75) -> 0 | BF13: =$G13*SUMIF('原単位リスト(multi)org'!$B$8:$B$75,$F13,'原単位リスト(multi)org'!AU$8:AU$75) -> 0 | BG13: =$G13*SUMIF('原単位リスト(multi)org'!$B$8:$B$75,$F13,'原単位リスト(multi)org'!AV$8:AV$75) -> 0 | BH13: =$G13*SUMIF('原単位リスト(multi)org'!$B$8:$B$75,$F13,'原単位リスト(multi)org'!AW$8:AW$75) -> 0 | BI13: =$G13*SUMIF('原単位リスト(multi)org'!$B$8:$B$75,$F13,'原単位リスト(multi)org'!AX$8:AX$75) -> 0 | BJ13: =$G13*SUMIF('原単位リスト(multi)org'!$B$8:$B$75,$F13,'原単位リスト(multi)org'!AY$8:AY$75) -> 0 | BK13: =$G13*SUMIF('原単位リスト(multi)org'!$B$8:$B$75,$F13,'原単位リスト(multi)org'!AZ$8:AZ$75) -> 0 | BL13: =$G13*SUMIF('原単位リスト(multi)org'!$B$8:$B$75,$F13,'原単位リスト(multi)org'!BA$8:BA$75) -> 0 | BM13: =$G13*SUMIF('原単位リスト(multi)org'!$B$8:$B$75,$F13,'原単位リスト(multi)org'!BB$8:BB$75) -> 0 | BN13: =$G13*SUMIF('原単位リスト(multi)org'!$B$8:$B$75,$F13,'原単位リスト(multi)org'!BC$8:BC$75) -> 0 | BO13: =$G13*SUMIF('原単位リスト(multi)org'!$B$8:$B$75,$F13,'原単位リスト(multi)org'!BD$8:BD$75) -> 0 | BP13: =$G13*SUMIF('原単位リスト(multi)org'!$B$8:$B$75,$F13,'原単位リスト(multi)org'!BE$8:BE$75) -> 0 | BQ13: =$G13*SUMIF('原単位リスト(multi)org'!$B$8:$B$75,$F13,'原単位リスト(multi)org'!BF$8:BF$75) -> 0 | BR13: =$G13*SUMIF('原単位リスト(multi)org'!$B$8:$B$75,$F13,'原単位リスト(multi)org'!BG$8:BG$75) -> 0 | BS13: =$G13*SUMIF('原単位リスト(multi)org'!$B$8:$B$75,$F13,'原単位リスト(multi)org'!BH$8:BH$75) -> 0 | BT13: =$G13*SUMIF('原単位リスト(multi)org'!$B$8:$B$75,$F13,'原単位リスト(multi)org'!BI$8:BI$75) -> 0 | BU13: =$G13*SUMIF('原単位リスト(multi)org'!$B$8:$B$75,$F13,'原単位リスト(multi)org'!BJ$8:BJ$75) -> 0 | BV13: =$G13*SUMIF('原単位リスト(multi)org'!$B$8:$B$75,$F13,'原単位リスト(multi)org'!BK$8:BK$75) -> 0 | BW13: =$G13*SUMIF('原単位リスト(multi)org'!$B$8:$B$75,$F13,'原単位リスト(multi)org'!BL$8:BL$75) -> 0 | BX13: =$G13*SUMIF('原単位リスト(multi)org'!$B$8:$B$75,$F13,'原単位リスト(multi)org'!BM$8:BM$75) -> 0 | BY13: =$G13*SUMIF('原単位リスト(multi)org'!$B$8:$B$75,$F13,'原単位リスト(multi)org'!BN$8:BN$75) -> 0 | BZ13: =$G13*SUMIF('原単位リスト(multi)org'!$B$8:$B$75,$F13,'原単位リスト(multi)org'!BO$8:BO$75) -> 0 | CA13: =$G13*SUMIF('原単位リスト(multi)org'!$B$8:$B$75,$F13,'原単位リスト(multi)org'!BP$8:BP$75) -> 0 | CB13: =$G13*SUMIF('原単位リスト(multi)org'!$B$8:$B$75,$F13,'原単位リスト(multi)org'!BQ$8:BQ$75) -> 0 | CC13: =$G13*SUMIF('原単位リスト(multi)org'!$B$8:$B$75,$F13,'原単位リスト(multi)org'!BR$8:BR$75) -> 0 | CD13: =$G13*SUMIF('原単位リスト(multi)org'!$B$8:$B$75,$F13,'原単位リスト(multi)org'!BS$8:BS$75) -> 0 | CE13: =$G13*SUMIF('原単位リスト(multi)org'!$B$8:$B$75,$F13,'原単位リスト(multi)org'!BT$8:BT$75) -> 0 | CF13: =$G13*SUMIF('原単位リスト(multi)org'!$B$8:$B$75,$F13,'原単位リスト(multi)org'!BU$8:BU$75) -> 0 | CG13: =$G13*SUMIF('原単位リスト(multi)org'!$B$8:$B$75,$F13,'原単位リスト(multi)org'!BV$8:BV$75) -> 0 | CH13: =$G13*SUMIF('原単位リスト(multi)org'!$B$8:$B$75,$F13,'原単位リスト(multi)org'!BW$8:BW$75) -> 0 | CI13: =$G13*SUMIF('原単位リスト(multi)org'!$B$8:$B$75,$F13,'原単位リスト(multi)org'!BX$8:BX$75) -> 0 | CJ13: =$G13*SUMIF('原単位リスト(multi)org'!$B$8:$B$75,$F13,'原単位リスト(multi)org'!BY$8:BY$75) -> 0 | CK13: =$G13*SUMIF('原単位リスト(multi)org'!$B$8:$B$75,$F13,'原単位リスト(multi)org'!BZ$8:BZ$75) -> 0 | CL13: =$G13*SUMIF('原単位リスト(multi)org'!$B$8:$B$75,$F13,'原単位リスト(multi)org'!CA$8:CA$75) -> 0 | CM13: =$G13*SUMIF('原単位リスト(multi)org'!$B$8:$B$75,$F13,'原単位リスト(multi)org'!CB$8:CB$75) -> 0 | CN13: =$G13*SUMIF('原単位リスト(multi)org'!$B$8:$B$75,$F13,'原単位リスト(multi)org'!CC$8:CC$75) -> 0 | CO13: =$G13*SUMIF('原単位リスト(multi)org'!$B$8:$B$75,$F13,'原単位リスト(multi)org'!CD$8:CD$75) -> 0 | CP13: =$G13*SUMIF('原単位リスト(multi)org'!$B$8:$B$75,$F13,'原単位リスト(multi)org'!CE$8:CE$75) -> 0 | CQ13: =$G13*SUMIF('原単位リスト(multi)org'!$B$8:$B$75,$F13,'原単位リスト(multi)org'!CF$8:CF$75) -> 0 | CR13: =$G13*SUMIF('原単位リスト(multi)org'!$B$8:$B$75,$F13,'原単位リスト(multi)org'!CG$8:CG$75) -> 0 | CS13: =$G13*SUMIF('原単位リスト(multi)org'!$B$8:$B$75,$F13,'原単位リスト(multi)org'!CH$8:CH$75) -> 0 | CT13: =$G13*SUMIF('原単位リスト(multi)org'!$B$8:$B$75,$F13,'原単位リスト(multi)org'!CI$8:CI$75) -> 0 | CU13: =$G13*SUMIF('原単位リスト(multi)org'!$B$8:$B$75,$F13,'原単位リスト(multi)org'!CJ$8:CJ$75) -> 0 | CV13: =$G13*SUMIF('原単位リスト(multi)org'!$B$8:$B$75,$F13,'原単位リスト(multi)org'!CK$8:CK$75) -> 0 | CW13: =$G13*SUMIF('原単位リスト(multi)org'!$B$8:$B$75,$F13,'原単位リスト(multi)org'!CL$8:CL$75) -> 0 | CX13: =$G13*SUMIF('原単位リスト(multi)org'!$B$8:$B$75,$F13,'原単位リスト(multi)org'!CM$8:CM$75) -> 0 | CY13: =$G13*SUMIF('原単位リスト(multi)org'!$B$8:$B$75,$F13,'原単位リスト(multi)org'!CN$8:CN$75) -> 0 | CZ13: =$G13*SUMIF('原単位リスト(multi)org'!$B$8:$B$75,$F13,'原単位リスト(multi)org'!CO$8:CO$75) -> 0 | DA13: =$G13*SUMIF('原単位リスト(multi)org'!$B$8:$B$75,$F13,'原単位リスト(multi)org'!CP$8:CP$75) -> 0 | DB13: =$G13*SUMIF('原単位リスト(multi)org'!$B$8:$B$75,$F13,'原単位リスト(multi)org'!CQ$8:CQ$75) -> 0 | DC13: =$G13*SUMIF('原単位リスト(multi)org'!$B$8:$B$75,$F13,'原単位リスト(multi)org'!CR$8:CR$75) -> 0 | DD13: =$G13*SUMIF('原単位リスト(multi)org'!$B$8:$B$75,$F13,'原単位リスト(multi)org'!CS$8:CS$75) -> 0 | DE13: =$G13*SUMIF('原単位リスト(multi)org'!$B$8:$B$75,$F13,'原単位リスト(multi)org'!CT$8:CT$75) -> 0 | DF13: =$G13*SUMIF('原単位リスト(multi)org'!$B$8:$B$75,$F13,'原単位リスト(multi)org'!CU$8:CU$75) -> 0 | DG13: =$G13*SUMIF('原単位リスト(multi)org'!$B$8:$B$75,$F13,'原単位リスト(multi)org'!CV$8:CV$75) -> 0 | DH13: =$G13*SUMIF('原単位リスト(multi)org'!$B$8:$B$75,$F13,'原単位リスト(multi)org'!CW$8:CW$75) -> 0 | DI13: =$G13*SUMIF('原単位リスト(multi)org'!$B$8:$B$75,$F13,'原単位リスト(multi)org'!CX$8:CX$75) -> 0 | DJ13: =$G13*SUMIF('原単位リスト(multi)org'!$B$8:$B$75,$F13,'原単位リスト(multi)org'!CY$8:CY$75) -> 0 | DK13: =$G13*SUMIF('原単位リスト(multi)org'!$B$8:$B$75,$F13,'原単位リスト(multi)org'!CZ$8:CZ$75) -> 0 | DL13: =$G13*SUMIF('原単位リスト(multi)org'!$B$8:$B$75,$F13,'原単位リスト(multi)org'!DA$8:DA$75) -> 0 | DM13: =$G13*SUMIF('原単位リスト(multi)org'!$B$8:$B$75,$F13,'原単位リスト(multi)org'!DB$8:DB$75) -> 0 | DN13: =$G13*SUMIF('原単位リスト(multi)org'!$B$8:$B$75,$F13,'原単位リスト(multi)org'!DC$8:DC$75) -> 0 | DO13: =$G13*SUMIF('原単位リスト(multi)org'!$B$8:$B$75,$F13,'原単位リスト(multi)org'!DD$8:DD$75) -> 0 | DP13: =$G13*SUMIF('原単位リスト(multi)org'!$B$8:$B$75,$F13,'原単位リスト(multi)org'!DE$8:DE$75) -> 0 | DQ13: =$G13*SUMIF('原単位リスト(multi)org'!$B$8:$B$75,$F13,'原単位リスト(multi)org'!DF$8:DF$75) -> 0 | DR13: =$G13*SUMIF('原単位リスト(multi)org'!$B$8:$B$75,$F13,'原単位リスト(multi)org'!DG$8:DG$75) -> 0 | DS13: =$G13*SUMIF('原単位リスト(multi)org'!$B$8:$B$75,$F13,'原単位リスト(multi)org'!DH$8:DH$75) -> 0 | DT13: =$G13*SUMIF('原単位リスト(multi)org'!$B$8:$B$75,$F13,'原単位リスト(multi)org'!DI$8:DI$75) -> 0 | DU13: =$G13*SUMIF('原単位リスト(multi)org'!$B$8:$B$75,$F13,'原単位リスト(multi)org'!DJ$8:DJ$75) -> 0 | DV13: =$G13*SUMIF('原単位リスト(multi)org'!$B$8:$B$75,$F13,'原単位リスト(multi)org'!DK$8:DK$75) -> 0 | DW13: =$G13*SUMIF('原単位リスト(multi)org'!$B$8:$B$75,$F13,'原単位リスト(multi)org'!DL$8:DL$75) -> 0 | DX13: =$G13*SUMIF('原単位リスト(multi)org'!$B$8:$B$75,$F13,'原単位リスト(multi)org'!DM$8:DM$75) -> 0 | DY13: =$G13*SUMIF('原単位リスト(multi)org'!$B$8:$B$75,$F13,'原単位リスト(multi)org'!DN$8:DN$75) -> 0 | DZ13: =$G13*SUMIF('原単位リスト(multi)org'!$B$8:$B$75,$F13,'原単位リスト(multi)org'!DO$8:DO$75) -> 0 | EA13: =$G13*SUMIF('原単位リスト(multi)org'!$B$8:$B$75,$F13,'原単位リスト(multi)org'!DP$8:DP$75) -> 0 | EB13: =$G13*SUMIF('原単位リスト(multi)org'!$B$8:$B$75,$F13,'原単位リスト(multi)org'!DQ$8:DQ$75) -> 0 | EC13: =$G13*SUMIF('原単位リスト(multi)org'!$B$8:$B$75,$F13,'原単位リスト(multi)org'!DR$8:DR$75) -> 0 | ED13: =$G13*SUMIF('原単位リスト(multi)org'!$B$8:$B$75,$F13,'原単位リスト(multi)org'!DS$8:DS$75) -> 0 | EE13: =$G13*SUMIF('原単位リスト(multi)org'!$B$8:$B$75,$F13,'原単位リスト(multi)org'!DT$8:DT$75) -> 0 | EF13: =$G13*SUMIF('原単位リスト(multi)org'!$B$8:$B$75,$F13,'原単位リスト(multi)org'!DU$8:DU$75) -> 0 | EG13: =$G13*SUMIF('原単位リスト(multi)org'!$B$8:$B$75,$F13,'原単位リスト(multi)org'!DV$8:DV$75) -> 0 | EH13: =$G13*SUMIF('原単位リスト(multi)org'!$B$8:$B$75,$F13,'原単位リスト(multi)org'!DW$8:DW$75) -> 0 | EI13: =$G13*SUMIF('原単位リスト(multi)org'!$B$8:$B$75,$F13,'原単位リスト(multi)org'!DX$8:DX$75) -> 0 | EJ13: =$G13*SUMIF('原単位リスト(multi)org'!$B$8:$B$75,$F13,'原単位リスト(multi)org'!DY$8:DY$75) -> 0 | EK13: =$G13*SUMIF('原単位リスト(multi)org'!$B$8:$B$75,$F13,'原単位リスト(multi)org'!DZ$8:DZ$75) -> 0 | EL13: =$G13*SUMIF('原単位リスト(multi)org'!$B$8:$B$75,$F13,'原単位リスト(multi)org'!EA$8:EA$75) -> 0 | EM13: =$G13*SUMIF('原単位リスト(multi)org'!$B$8:$B$75,$F13,'原単位リスト(multi)org'!EB$8:EB$75) -> 0 | EN13: =$G13*SUMIF('原単位リスト(multi)org'!$B$8:$B$75,$F13,'原単位リスト(multi)org'!EC$8:EC$75) -> 0 | EO13: =$G13*SUMIF('原単位リスト(multi)org'!$B$8:$B$75,$F13,'原単位リスト(multi)org'!ED$8:ED$75) -> 0 | EP13: =$G13*SUMIF('原単位リスト(multi)org'!$B$8:$B$75,$F13,'原単位リスト(multi)org'!EE$8:EE$75) -> 0 | EQ13: =$G13*SUMIF('原単位リスト(multi)org'!$B$8:$B$75,$F13,'原単位リスト(multi)org'!EF$8:EF$75) -> 0 | ER13: =$G13*SUMIF('原単位リスト(multi)org'!$B$8:$B$75,$F13,'原単位リスト(multi)org'!EG$8:EG$75) -> 0 | ES13: =$G13*SUMIF('原単位リスト(multi)org'!$B$8:$B$75,$F13,'原単位リスト(multi)org'!EH$8:EH$75) -> 0 | ET13: =$G13*SUMIF('原単位リスト(multi)org'!$B$8:$B$75,$F13,'原単位リスト(multi)org'!EI$8:EI$75) -> 0 | EU13: =$G13*SUMIF('原単位リスト(multi)org'!$B$8:$B$75,$F13,'原単位リスト(multi)org'!EJ$8:EJ$75) -> 0 | EV13: =$G13*SUMIF('原単位リスト(multi)org'!$B$8:$B$75,$F13,'原単位リスト(multi)org'!EK$8:EK$75) -> 0 | EW13: =$G13*SUMIF('原単位リスト(multi)org'!$B$8:$B$75,$F13,'原単位リスト(multi)org'!EL$8:EL$75) -> 0 | EX13: =$G13*SUMIF('原単位リスト(multi)org'!$B$8:$B$75,$F13,'原単位リスト(multi)org'!EM$8:EM$75) -> 0 | EY13: =$G13*SUMIF('原単位リスト(multi)org'!$B$8:$B$75,$F13,'原単位リスト(multi)org'!EN$8:EN$75) -> 0 | EZ13: =$G13*SUMIF('原単位リスト(multi)org'!$B$8:$B$75,$F13,'原単位リスト(multi)org'!EO$8:EO$75) -> 0 | FA13: =$G13*SUMIF('原単位リスト(multi)org'!$B$8:$B$75,$F13,'原単位リスト(multi)org'!EP$8:EP$75) -> 0 | FB13: =$G13*SUMIF('原単位リスト(multi)org'!$B$8:$B$75,$F13,'原単位リスト(multi)org'!EQ$8:EQ$75) -> 0 | FC13: =$G13*SUMIF('原単位リスト(multi)org'!$B$8:$B$75,$F13,'原単位リスト(multi)org'!ER$8:ER$75) -> 0 | FD13: =$G13*SUMIF('原単位リスト(multi)org'!$B$8:$B$75,$F13,'原単位リスト(multi)org'!ES$8:ES$75) -> 0 | FE13: =$G13*SUMIF('原単位リスト(multi)org'!$B$8:$B$75,$F13,'原単位リスト(multi)org'!ET$8:ET$75) -> 0 | FF13: =$G13*SUMIF('原単位リスト(multi)org'!$B$8:$B$75,$F13,'原単位リスト(multi)org'!EU$8:EU$75) -> 0 | FG13: =$G13*SUMIF('原単位リスト(multi)org'!$B$8:$B$75,$F13,'原単位リスト(multi)org'!EV$8:EV$75) -> 0 | FH13: =$G13*SUMIF('原単位リスト(multi)org'!$B$8:$B$75,$F13,'原単位リスト(multi)org'!EW$8:EW$75) -> 0 | FI13: =$G13*SUMIF('原単位リスト(multi)org'!$B$8:$B$75,$F13,'原単位リスト(multi)org'!EX$8:EX$75) -> 0 | FJ13: =$G13*SUMIF('原単位リスト(multi)org'!$B$8:$B$75,$F13,'原単位リスト(multi)org'!EY$8:EY$75) -> 0 | FK13: =$G13*SUMIF('原単位リスト(multi)org'!$B$8:$B$75,$F13,'原単位リスト(multi)org'!EZ$8:EZ$75) -> 0 | FL13: =$G13*SUMIF('原単位リスト(multi)org'!$B$8:$B$75,$F13,'原単位リスト(multi)org'!FA$8:FA$75) -> 0 | FM13: =$G13*SUMIF('原単位リスト(multi)org'!$B$8:$B$75,$F13,'原単位リスト(multi)org'!FB$8:FB$75) -> 0 | FN13: =$G13*SUMIF('原単位リスト(multi)org'!$B$8:$B$75,$F13,'原単位リスト(multi)org'!FC$8:FC$75) -> 0 | FO13: =$G13*SUMIF('原単位リスト(multi)org'!$B$8:$B$75,$F13,'原単位リスト(multi)org'!FD$8:FD$75) -> 0 | FP13: =$G13*SUMIF('原単位リスト(multi)org'!$B$8:$B$75,$F13,'原単位リスト(multi)org'!FE$8:FE$75) -> 0 | FQ13: =$G13*SUMIF('原単位リスト(multi)org'!$B$8:$B$75,$F13,'原単位リスト(multi)org'!FF$8:FF$75) -> 0 | FR13: =$G13*SUMIF('原単位リスト(multi)org'!$B$8:$B$75,$F13,'原単位リスト(multi)org'!FG$8:FG$75) -> 0 | FS13: =$G13*SUMIF('原単位リスト(multi)org'!$B$8:$B$75,$F13,'原単位リスト(multi)org'!FH$8:FH$75) -> 0 | FT13: =$G13*SUMIF('原単位リスト(multi)org'!$B$8:$B$75,$F13,'原単位リスト(multi)org'!FI$8:FI$75) -> 0 | FU13: =$G13*SUMIF('原単位リスト(multi)org'!$B$8:$B$75,$F13,'原単位リスト(multi)org'!FJ$8:FJ$75) -> 0 | FV13: =$G13*SUMIF('原単位リスト(multi)org'!$B$8:$B$75,$F13,'原単位リスト(multi)org'!FK$8:FK$75) -> 0 | FW13: =$G13*SUMIF('原単位リスト(multi)org'!$B$8:$B$75,$F13,'原単位リスト(multi)org'!FL$8:FL$75) -> 0 | FX13: =$G13*SUMIF('原単位リスト(multi)org'!$B$8:$B$75,$F13,'原単位リスト(multi)org'!FM$8:FM$75) -> 0 | FY13: =$G13*SUMIF('原単位リスト(multi)org'!$B$8:$B$75,$F13,'原単位リスト(multi)org'!FN$8:FN$75) -> 0 | FZ13: =$G13*SUMIF('原単位リスト(multi)org'!$B$8:$B$75,$F13,'原単位リスト(multi)org'!FO$8:FO$75) -> 0 | GA13: =$G13*SUMIF('原単位リスト(multi)org'!$B$8:$B$75,$F13,'原単位リスト(multi)org'!FP$8:FP$75) -> 0 | GB13: =$G13*SUMIF('原単位リスト(multi)org'!$B$8:$B$75,$F13,'原単位リスト(multi)org'!FQ$8:FQ$75) -> 0 | GC13: =$G13*SUMIF('原単位リスト(multi)org'!$B$8:$B$75,$F13,'原単位リスト(multi)org'!FR$8:FR$75) -> 0 | GD13: =$G13*SUMIF('原単位リスト(multi)org'!$B$8:$B$75,$F13,'原単位リスト(multi)org'!FS$8:FS$75) -> 0 | GE13: =$G13*SUMIF('原単位リスト(multi)org'!$B$8:$B$75,$F13,'原単位リスト(multi)org'!FT$8:FT$75) -> 0 | GF13: =$G13*SUMIF('原単位リスト(multi)org'!$B$8:$B$75,$F13,'原単位リスト(multi)org'!FU$8:FU$75) -> 0 | GG13: =$G13*SUMIF('原単位リスト(multi)org'!$B$8:$B$75,$F13,'原単位リスト(multi)org'!FV$8:FV$75) -> 0 | GH13: =$G13*SUMIF('原単位リスト(multi)org'!$B$8:$B$75,$F13,'原単位リスト(multi)org'!FW$8:FW$75) -> 0 | GI13: =$G13*SUMIF('原単位リスト(multi)org'!$B$8:$B$75,$F13,'原単位リスト(multi)org'!FX$8:FX$75) -> 0 | GJ13: =$G13*SUMIF('原単位リスト(multi)org'!$B$8:$B$75,$F13,'原単位リスト(multi)org'!FY$8:FY$75) -> 0 | GK13: =$G13*SUMIF('原単位リスト(multi)org'!$B$8:$B$75,$F13,'原単位リスト(multi)org'!FZ$8:FZ$75) -> 0 | GL13: =$G13*SUMIF('原単位リスト(multi)org'!$B$8:$B$75,$F13,'原単位リスト(multi)org'!GA$8:GA$75) -> 0 | GM13: =$G13*SUMIF('原単位リスト(multi)org'!$B$8:$B$75,$F13,'原単位リスト(multi)org'!GB$8:GB$75) -> 0 | GN13: =$G13*SUMIF('原単位リスト(multi)org'!$B$8:$B$75,$F13,'原単位リスト(multi)org'!GC$8:GC$75) -> 0 | GO13: =$G13*SUMIF('原単位リスト(multi)org'!$B$8:$B$75,$F13,'原単位リスト(multi)org'!GD$8:GD$75) -> 0 | GP13: =$G13*SUMIF('原単位リスト(multi)org'!$B$8:$B$75,$F13,'原単位リスト(multi)org'!GE$8:GE$75) -> 0 | GQ13: =$G13*SUMIF('原単位リスト(multi)org'!$B$8:$B$75,$F13,'原単位リスト(multi)org'!GF$8:GF$75) -> 0 | GR13: =$G13*SUMIF('原単位リスト(multi)org'!$B$8:$B$75,$F13,'原単位リスト(multi)org'!GG$8:GG$75) -> 0 | GS13: =$G13*SUMIF('原単位リスト(multi)org'!$B$8:$B$75,$F13,'原単位リスト(multi)org'!GH$8:GH$75) -> 0 | GT13: =$G13*SUMIF('原単位リスト(multi)org'!$B$8:$B$75,$F13,'原単位リスト(multi)org'!GI$8:GI$75) -> 0 | GU13: =$G13*SUMIF('原単位リスト(multi)org'!$B$8:$B$75,$F13,'原単位リスト(multi)org'!GJ$8:GJ$75) -> 0 | GV13: =$G13*SUMIF('原単位リスト(multi)org'!$B$8:$B$75,$F13,'原単位リスト(multi)org'!GK$8:GK$75) -> 0 | GW13: =$G13*SUMIF('原単位リスト(multi)org'!$B$8:$B$75,$F13,'原単位リスト(multi)org'!GL$8:GL$75) -> 0 | GX13: =$G13*SUMIF('原単位リスト(multi)org'!$B$8:$B$75,$F13,'原単位リスト(multi)org'!GM$8:GM$75) -> 0 | GY13: =$G13*SUMIF('原単位リスト(multi)org'!$B$8:$B$75,$F13,'原単位リスト(multi)org'!GN$8:GN$75) -> 0 | GZ13: =$G13*SUMIF('原単位リスト(multi)org'!$B$8:$B$75,$F13,'原単位リスト(multi)org'!GO$8:GO$75) -> 0 | HA13: =$G13*SUMIF('原単位リスト(multi)org'!$B$8:$B$75,$F13,'原単位リスト(multi)org'!GP$8:GP$75) -> 0 | HB13: =$G13*SUMIF('原単位リスト(multi)org'!$B$8:$B$75,$F13,'原単位リスト(multi)org'!GQ$8:GQ$75) -> 0 | HC13: =$G13*SUMIF('原単位リスト(multi)org'!$B$8:$B$75,$F13,'原単位リスト(multi)org'!GR$8:GR$75) -> 0 | HD13: =$G13*SUMIF('原単位リスト(multi)org'!$B$8:$B$75,$F13,'原単位リスト(multi)org'!GS$8:GS$75) -> 0 | HE13: =MMULT($R13:$HD13,特性化係数リスト!H$5:H$199) -> 0 | HF13: =MMULT($R13:$HD13,特性化係数リスト!I$5:I$199) -> 0 | HG13: =MMULT($R13:$HD13,特性化係数リスト!J$5:J$199) -> 0 | HH13: =MMULT($R13:$HD13,特性化係数リスト!K$5:K$199) -> 0 | HI13: =MMULT($R13:$HD13,特性化係数リスト!L$5:L$199) -> 0 | HJ13: =MMULT($R13:$HD13,特性化係数リスト!M$5:M$199) -> 0 | HK13: =MMULT($R13:$HD13,特性化係数リスト!N$5:N$199) -> 0 | HL13: =MMULT($R13:$HD13,特性化係数リスト!O$5:O$199) -> 0 | HM13: =MMULT($R13:$HD13,特性化係数リスト!P$5:P$199) -> 0 | HN13: =MMULT($R13:$HD13,特性化係数リスト!Q$5:Q$199) -> 0 | HO13: =MMULT($R13:$HD13,特性化係数リスト!R$5:R$199) -> 0 | HP13: =MMULT($R13:$HD13,特性化係数リスト!S$5:S$199) -> 0 | HQ13: =MMULT($R13:$HD13,特性化係数リスト!T$5:T$199) -> 0 | HR13: =MMULT($R13:$HD13,特性化係数リスト!U$5:U$199) -> 0 | HS13: =MMULT($R13:$HD13,特性化係数リスト!V$5:V$199) -> 0 | HT13: =MMULT($R13:$HD13,特性化係数リスト!W$5:W$199) -> 0 | HU13: =MMULT($R13:$HD13,特性化係数リスト!X$5:X$199) -> 0 | HV13: =MMULT($R13:$HD13,'被害係数リスト(人間健康)'!H$4:H$198) -> 0 | HW13: =MMULT($R13:$HD13,'被害係数リスト(人間健康)'!I$4:I$198) -> 0 | HX13: =MMULT($R13:$HD13,'被害係数リスト(人間健康)'!J$4:J$198) -> 0 | HY13: =MMULT($R13:$HD13,'被害係数リスト(人間健康)'!K$4:K$198) -> 0 | HZ13: =MMULT($R13:$HD13,'被害係数リスト(人間健康)'!L$4:L$198) -> 0 | IA13: 0 | IB13: =MMULT($R13:$HD13,'被害係数リスト(一次生産)'!H$4:H$198) -> 0 | IC13: =MMULT($R13:$HD13,'被害係数リスト(一次生産)'!I$4:I$198) -> 0 | ID13: =MMULT($R13:$HD13,'被害係数リスト(一次生産)'!J$4:J$198) -> 0 | IE13: =MMULT($R13:$HD13,'被害係数リスト(一次生産)'!K$4:K$198) -> 0 | IF13: 0 | IG13: =MMULT($R13:$HD13,'被害係数リスト(社会資産)'!H$4:H$198) -> 0 | IH13: =MMULT($R13:$HD13,'被害係数リスト(社会資産)'!I$4:I$198) -> 0 | II13: =MMULT($R13:$HD13,'被害係数リスト(社会資産)'!J$4:J$198) -> 0 | IJ13: =MMULT($R13:$HD13,'被害係数リスト(社会資産)'!K$4:K$198) -> 0 | IK13: =MMULT($R13:$HD13,'被害係数リスト(社会資産)'!L$4:L$198) -> 0 | IL13: =MMULT($R13:$HD13,'被害係数リスト(社会資産)'!M$4:M$198) -> 0 | IM13: 0 | IN13: =MMULT($R13:$HD13,'被害係数リスト(生物多様性)'!H$4:H$198) -> 0 | IO13: =MMULT($R13:$HD13,'被害係数リスト(生物多様性)'!I$4:I$198) -> 0 | IP13: =MMULT($R13:$HD13,'被害係数リスト(生物多様性)'!J$4:J$198) -> 0 | IQ13: =MMULT($R13:$HD13,'被害係数リスト(生物多様性)'!K$4:K$198) -> 0 | IR13: 0 | IS13: =MMULT($R13:$HD13,'統合化係数リスト(無次元)'!H$4:H$198) -> 0 | IT13: =MMULT($R13:$HD13,'統合化係数リスト(無次元)'!I$4:I$198) -> 0 | IU13: =MMULT($R13:$HD13,'統合化係数リスト(無次元)'!J$4:J$198) -> 0 | IV13: =MMULT($R13:$HD13,'統合化係数リスト(無次元)'!K$4:K$198) -> 0 | IW13: =MMULT($R13:$HD13,'統合化係数リスト(無次元)'!L$4:L$198) -> 0 | IX13: =MMULT($R13:$HD13,'統合化係数リスト(無次元)'!M$4:M$198) -> 0 | IY13: =MMULT($R13:$HD13,'統合化係数リスト(無次元)'!N$4:N$198) -> 0 | IZ13: =MMULT($R13:$HD13,'統合化係数リスト(無次元)'!O$4:O$198) -> 0 | JA13: =MMULT($R13:$HD13,'統合化係数リスト(無次元)'!P$4:P$198) -> 0 | JB13: =MMULT($R13:$HD13,'統合化係数リスト(無次元)'!Q$4:Q$198) -> 0 | JC13: =MMULT($R13:$HD13,'統合化係数リスト(無次元)'!R$4:R$198) -> 0 | JD13: 0
A14: 仮設工事 | B14: エネルギー消費分 | C14: 5 | D14: 鋼矢板－鋼矢板圧入 | E14: 圧入（補助） | F14: =仮設工事①!O11 -> 軽油 | G14: =仮設工事①!P11 -> 0 | H14: L | J14: 0 | K14: 0 | L14: 0 | M14: 0 | N14: 0 | O14: 0 | P14: 0 | Q14: 0 | R14: =$G14*SUMIF('原単位リスト(multi)org'!$B$8:$B$75,$F14,'原単位リスト(multi)org'!G$8:G$75) -> 0 | S14: =$G14*SUMIF('原単位リスト(multi)org'!$B$8:$B$75,$F14,'原単位リスト(multi)org'!H$8:H$75) -> 0 | T14: =$G14*SUMIF('原単位リスト(multi)org'!$B$8:$B$75,$F14,'原単位リスト(multi)org'!I$8:I$75) -> 0 | U14: =$G14*SUMIF('原単位リスト(multi)org'!$B$8:$B$75,$F14,'原単位リスト(multi)org'!J$8:J$75) -> 0 | V14: =$G14*SUMIF('原単位リスト(multi)org'!$B$8:$B$75,$F14,'原単位リスト(multi)org'!K$8:K$75) -> 0 | W14: =$G14*SUMIF('原単位リスト(multi)org'!$B$8:$B$75,$F14,'原単位リスト(multi)org'!L$8:L$75) -> 0 | X14: =$G14*SUMIF('原単位リスト(multi)org'!$B$8:$B$75,$F14,'原単位リスト(multi)org'!M$8:M$75) -> 0 | Y14: =$G14*SUMIF('原単位リスト(multi)org'!$B$8:$B$75,$F14,'原単位リスト(multi)org'!N$8:N$75) -> 0 | Z14: =$G14*SUMIF('原単位リスト(multi)org'!$B$8:$B$75,$F14,'原単位リスト(multi)org'!O$8:O$75) -> 0 | AA14: =$G14*SUMIF('原単位リスト(multi)org'!$B$8:$B$75,$F14,'原単位リスト(multi)org'!P$8:P$75) -> 0 | AB14: =$G14*SUMIF('原単位リスト(multi)org'!$B$8:$B$75,$F14,'原単位リスト(multi)org'!Q$8:Q$75) -> 0 | AC14: =$G14*SUMIF('原単位リスト(multi)org'!$B$8:$B$75,$F14,'原単位リスト(multi)org'!R$8:R$75) -> 0 | AD14: =$G14*SUMIF('原単位リスト(multi)org'!$B$8:$B$75,$F14,'原単位リスト(multi)org'!S$8:S$75) -> 0 | AE14: =$G14*SUMIF('原単位リスト(multi)org'!$B$8:$B$75,$F14,'原単位リスト(multi)org'!T$8:T$75) -> 0 | AF14: =$G14*SUMIF('原単位リスト(multi)org'!$B$8:$B$75,$F14,'原単位リスト(multi)org'!U$8:U$75) -> 0 | AG14: =$G14*SUMIF('原単位リスト(multi)org'!$B$8:$B$75,$F14,'原単位リスト(multi)org'!V$8:V$75) -> 0 | AH14: =$G14*SUMIF('原単位リスト(multi)org'!$B$8:$B$75,$F14,'原単位リスト(multi)org'!W$8:W$75) -> 0 | AI14: =$G14*SUMIF('原単位リスト(multi)org'!$B$8:$B$75,$F14,'原単位リスト(multi)org'!X$8:X$75) -> 0 | AJ14: =$G14*SUMIF('原単位リスト(multi)org'!$B$8:$B$75,$F14,'原単位リスト(multi)org'!Y$8:Y$75) -> 0 | AK14: =$G14*SUMIF('原単位リスト(multi)org'!$B$8:$B$75,$F14,'原単位リスト(multi)org'!Z$8:Z$75) -> 0 | AL14: =$G14*SUMIF('原単位リスト(multi)org'!$B$8:$B$75,$F14,'原単位リスト(multi)org'!AA$8:AA$75) -> 0 | AM14: =$G14*SUMIF('原単位リスト(multi)org'!$B$8:$B$75,$F14,'原単位リスト(multi)org'!AB$8:AB$75) -> 0 | AN14: =$G14*SUMIF('原単位リスト(multi)org'!$B$8:$B$75,$F14,'原単位リスト(multi)org'!AC$8:AC$75) -> 0 | AO14: =$G14*SUMIF('原単位リスト(multi)org'!$B$8:$B$75,$F14,'原単位リスト(multi)org'!AD$8:AD$75) -> 0 | AP14: =$G14*SUMIF('原単位リスト(multi)org'!$B$8:$B$75,$F14,'原単位リスト(multi)org'!AE$8:AE$75) -> 0 | AQ14: =$G14*SUMIF('原単位リスト(multi)org'!$B$8:$B$75,$F14,'原単位リスト(multi)org'!AF$8:AF$75) -> 0 | AR14: =$G14*SUMIF('原単位リスト(multi)org'!$B$8:$B$75,$F14,'原単位リスト(multi)org'!AG$8:AG$75) -> 0 | AS14: =$G14*SUMIF('原単位リスト(multi)org'!$B$8:$B$75,$F14,'原単位リスト(multi)org'!AH$8:AH$75) -> 0 | AT14: =$G14*SUMIF('原単位リスト(multi)org'!$B$8:$B$75,$F14,'原単位リスト(multi)org'!AI$8:AI$75) -> 0 | AU14: =$G14*SUMIF('原単位リスト(multi)org'!$B$8:$B$75,$F14,'原単位リスト(multi)org'!AJ$8:AJ$75) -> 0 | AV14: =$G14*SUMIF('原単位リスト(multi)org'!$B$8:$B$75,$F14,'原単位リスト(multi)org'!AK$8:AK$75) -> 0 | AW14: =$G14*SUMIF('原単位リスト(multi)org'!$B$8:$B$75,$F14,'原単位リスト(multi)org'!AL$8:AL$75) -> 0 | AX14: =$G14*SUMIF('原単位リスト(multi)org'!$B$8:$B$75,$F14,'原単位リスト(multi)org'!AM$8:AM$75) -> 0 | AY14: =$G14*SUMIF('原単位リスト(multi)org'!$B$8:$B$75,$F14,'原単位リスト(multi)org'!AN$8:AN$75) -> 0 | AZ14: =$G14*SUMIF('原単位リスト(multi)org'!$B$8:$B$75,$F14,'原単位リスト(multi)org'!AO$8:AO$75) -> 0 | BA14: =$G14*SUMIF('原単位リスト(multi)org'!$B$8:$B$75,$F14,'原単位リスト(multi)org'!AP$8:AP$75) -> 0 | BB14: =$G14*SUMIF('原単位リスト(multi)org'!$B$8:$B$75,$F14,'原単位リスト(multi)org'!AQ$8:AQ$75) -> 0 | BC14: =$G14*SUMIF('原単位リスト(multi)org'!$B$8:$B$75,$F14,'原単位リスト(multi)org'!AR$8:AR$75) -> 0 | BD14: =$G14*SUMIF('原単位リスト(multi)org'!$B$8:$B$75,$F14,'原単位リスト(multi)org'!AS$8:AS$75) -> 0 | BE14: =$G14*SUMIF('原単位リスト(multi)org'!$B$8:$B$75,$F14,'原単位リスト(multi)org'!AT$8:AT$75) -> 0 | BF14: =$G14*SUMIF('原単位リスト(multi)org'!$B$8:$B$75,$F14,'原単位リスト(multi)org'!AU$8:AU$75) -> 0 | BG14: =$G14*SUMIF('原単位リスト(multi)org'!$B$8:$B$75,$F14,'原単位リスト(multi)org'!AV$8:AV$75) -> 0 | BH14: =$G14*SUMIF('原単位リスト(multi)org'!$B$8:$B$75,$F14,'原単位リスト(multi)org'!AW$8:AW$75) -> 0 | BI14: =$G14*SUMIF('原単位リスト(multi)org'!$B$8:$B$75,$F14,'原単位リスト(multi)org'!AX$8:AX$75) -> 0 | BJ14: =$G14*SUMIF('原単位リスト(multi)org'!$B$8:$B$75,$F14,'原単位リスト(multi)org'!AY$8:AY$75) -> 0 | BK14: =$G14*SUMIF('原単位リスト(multi)org'!$B$8:$B$75,$F14,'原単位リスト(multi)org'!AZ$8:AZ$75) -> 0 | BL14: =$G14*SUMIF('原単位リスト(multi)org'!$B$8:$B$75,$F14,'原単位リスト(multi)org'!BA$8:BA$75) -> 0 | BM14: =$G14*SUMIF('原単位リスト(multi)org'!$B$8:$B$75,$F14,'原単位リスト(multi)org'!BB$8:BB$75) -> 0 | BN14: =$G14*SUMIF('原単位リスト(multi)org'!$B$8:$B$75,$F14,'原単位リスト(multi)org'!BC$8:BC$75) -> 0 | BO14: =$G14*SUMIF('原単位リスト(multi)org'!$B$8:$B$75,$F14,'原単位リスト(multi)org'!BD$8:BD$75) -> 0 | BP14: =$G14*SUMIF('原単位リスト(multi)org'!$B$8:$B$75,$F14,'原単位リスト(multi)org'!BE$8:BE$75) -> 0 | BQ14: =$G14*SUMIF('原単位リスト(multi)org'!$B$8:$B$75,$F14,'原単位リスト(multi)org'!BF$8:BF$75) -> 0 | BR14: =$G14*SUMIF('原単位リスト(multi)org'!$B$8:$B$75,$F14,'原単位リスト(multi)org'!BG$8:BG$75) -> 0 | BS14: =$G14*SUMIF('原単位リスト(multi)org'!$B$8:$B$75,$F14,'原単位リスト(multi)org'!BH$8:BH$75) -> 0 | BT14: =$G14*SUMIF('原単位リスト(multi)org'!$B$8:$B$75,$F14,'原単位リスト(multi)org'!BI$8:BI$75) -> 0 | BU14: =$G14*SUMIF('原単位リスト(multi)org'!$B$8:$B$75,$F14,'原単位リスト(multi)org'!BJ$8:BJ$75) -> 0 | BV14: =$G14*SUMIF('原単位リスト(multi)org'!$B$8:$B$75,$F14,'原単位リスト(multi)org'!BK$8:BK$75) -> 0 | BW14: =$G14*SUMIF('原単位リスト(multi)org'!$B$8:$B$75,$F14,'原単位リスト(multi)org'!BL$8:BL$75) -> 0 | BX14: =$G14*SUMIF('原単位リスト(multi)org'!$B$8:$B$75,$F14,'原単位リスト(multi)org'!BM$8:BM$75) -> 0 | BY14: =$G14*SUMIF('原単位リスト(multi)org'!$B$8:$B$75,$F14,'原単位リスト(multi)org'!BN$8:BN$75) -> 0 | BZ14: =$G14*SUMIF('原単位リスト(multi)org'!$B$8:$B$75,$F14,'原単位リスト(multi)org'!BO$8:BO$75) -> 0 | CA14: =$G14*SUMIF('原単位リスト(multi)org'!$B$8:$B$75,$F14,'原単位リスト(multi)org'!BP$8:BP$75) -> 0 | CB14: =$G14*SUMIF('原単位リスト(multi)org'!$B$8:$B$75,$F14,'原単位リスト(multi)org'!BQ$8:BQ$75) -> 0 | CC14: =$G14*SUMIF('原単位リスト(multi)org'!$B$8:$B$75,$F14,'原単位リスト(multi)org'!BR$8:BR$75) -> 0 | CD14: =$G14*SUMIF('原単位リスト(multi)org'!$B$8:$B$75,$F14,'原単位リスト(multi)org'!BS$8:BS$75) -> 0 | CE14: =$G14*SUMIF('原単位リスト(multi)org'!$B$8:$B$75,$F14,'原単位リスト(multi)org'!BT$8:BT$75) -> 0 | CF14: =$G14*SUMIF('原単位リスト(multi)org'!$B$8:$B$75,$F14,'原単位リスト(multi)org'!BU$8:BU$75) -> 0 | CG14: =$G14*SUMIF('原単位リスト(multi)org'!$B$8:$B$75,$F14,'原単位リスト(multi)org'!BV$8:BV$75) -> 0 | CH14: =$G14*SUMIF('原単位リスト(multi)org'!$B$8:$B$75,$F14,'原単位リスト(multi)org'!BW$8:BW$75) -> 0 | CI14: =$G14*SUMIF('原単位リスト(multi)org'!$B$8:$B$75,$F14,'原単位リスト(multi)org'!BX$8:BX$75) -> 0 | CJ14: =$G14*SUMIF('原単位リスト(multi)org'!$B$8:$B$75,$F14,'原単位リスト(multi)org'!BY$8:BY$75) -> 0 | CK14: =$G14*SUMIF('原単位リスト(multi)org'!$B$8:$B$75,$F14,'原単位リスト(multi)org'!BZ$8:BZ$75) -> 0 | CL14: =$G14*SUMIF('原単位リスト(multi)org'!$B$8:$B$75,$F14,'原単位リスト(multi)org'!CA$8:CA$75) -> 0 | CM14: =$G14*SUMIF('原単位リスト(multi)org'!$B$8:$B$75,$F14,'原単位リスト(multi)org'!CB$8:CB$75) -> 0 | CN14: =$G14*SUMIF('原単位リスト(multi)org'!$B$8:$B$75,$F14,'原単位リスト(multi)org'!CC$8:CC$75) -> 0 | CO14: =$G14*SUMIF('原単位リスト(multi)org'!$B$8:$B$75,$F14,'原単位リスト(multi)org'!CD$8:CD$75) -> 0 | CP14: =$G14*SUMIF('原単位リスト(multi)org'!$B$8:$B$75,$F14,'原単位リスト(multi)org'!CE$8:CE$75) -> 0 | CQ14: =$G14*SUMIF('原単位リスト(multi)org'!$B$8:$B$75,$F14,'原単位リスト(multi)org'!CF$8:CF$75) -> 0 | CR14: =$G14*SUMIF('原単位リスト(multi)org'!$B$8:$B$75,$F14,'原単位リスト(multi)org'!CG$8:CG$75) -> 0 | CS14: =$G14*SUMIF('原単位リスト(multi)org'!$B$8:$B$75,$F14,'原単位リスト(multi)org'!CH$8:CH$75) -> 0 | CT14: =$G14*SUMIF('原単位リスト(multi)org'!$B$8:$B$75,$F14,'原単位リスト(multi)org'!CI$8:CI$75) -> 0 | CU14: =$G14*SUMIF('原単位リスト(multi)org'!$B$8:$B$75,$F14,'原単位リスト(multi)org'!CJ$8:CJ$75) -> 0 | CV14: =$G14*SUMIF('原単位リスト(multi)org'!$B$8:$B$75,$F14,'原単位リスト(multi)org'!CK$8:CK$75) -> 0 | CW14: =$G14*SUMIF('原単位リスト(multi)org'!$B$8:$B$75,$F14,'原単位リスト(multi)org'!CL$8:CL$75) -> 0 | CX14: =$G14*SUMIF('原単位リスト(multi)org'!$B$8:$B$75,$F14,'原単位リスト(multi)org'!CM$8:CM$75) -> 0 | CY14: =$G14*SUMIF('原単位リスト(multi)org'!$B$8:$B$75,$F14,'原単位リスト(multi)org'!CN$8:CN$75) -> 0 | CZ14: =$G14*SUMIF('原単位リスト(multi)org'!$B$8:$B$75,$F14,'原単位リスト(multi)org'!CO$8:CO$75) -> 0 | DA14: =$G14*SUMIF('原単位リスト(multi)org'!$B$8:$B$75,$F14,'原単位リスト(multi)org'!CP$8:CP$75) -> 0 | DB14: =$G14*SUMIF('原単位リスト(multi)org'!$B$8:$B$75,$F14,'原単位リスト(multi)org'!CQ$8:CQ$75) -> 0 | DC14: =$G14*SUMIF('原単位リスト(multi)org'!$B$8:$B$75,$F14,'原単位リスト(multi)org'!CR$8:CR$75) -> 0 | DD14: =$G14*SUMIF('原単位リスト(multi)org'!$B$8:$B$75,$F14,'原単位リスト(multi)org'!CS$8:CS$75) -> 0 | DE14: =$G14*SUMIF('原単位リスト(multi)org'!$B$8:$B$75,$F14,'原単位リスト(multi)org'!CT$8:CT$75) -> 0 | DF14: =$G14*SUMIF('原単位リスト(multi)org'!$B$8:$B$75,$F14,'原単位リスト(multi)org'!CU$8:CU$75) -> 0 | DG14: =$G14*SUMIF('原単位リスト(multi)org'!$B$8:$B$75,$F14,'原単位リスト(multi)org'!CV$8:CV$75) -> 0 | DH14: =$G14*SUMIF('原単位リスト(multi)org'!$B$8:$B$75,$F14,'原単位リスト(multi)org'!CW$8:CW$75) -> 0 | DI14: =$G14*SUMIF('原単位リスト(multi)org'!$B$8:$B$75,$F14,'原単位リスト(multi)org'!CX$8:CX$75) -> 0 | DJ14: =$G14*SUMIF('原単位リスト(multi)org'!$B$8:$B$75,$F14,'原単位リスト(multi)org'!CY$8:CY$75) -> 0 | DK14: =$G14*SUMIF('原単位リスト(multi)org'!$B$8:$B$75,$F14,'原単位リスト(multi)org'!CZ$8:CZ$75) -> 0 | DL14: =$G14*SUMIF('原単位リスト(multi)org'!$B$8:$B$75,$F14,'原単位リスト(multi)org'!DA$8:DA$75) -> 0 | DM14: =$G14*SUMIF('原単位リスト(multi)org'!$B$8:$B$75,$F14,'原単位リスト(multi)org'!DB$8:DB$75) -> 0 | DN14: =$G14*SUMIF('原単位リスト(multi)org'!$B$8:$B$75,$F14,'原単位リスト(multi)org'!DC$8:DC$75) -> 0 | DO14: =$G14*SUMIF('原単位リスト(multi)org'!$B$8:$B$75,$F14,'原単位リスト(multi)org'!DD$8:DD$75) -> 0 | DP14: =$G14*SUMIF('原単位リスト(multi)org'!$B$8:$B$75,$F14,'原単位リスト(multi)org'!DE$8:DE$75) -> 0 | DQ14: =$G14*SUMIF('原単位リスト(multi)org'!$B$8:$B$75,$F14,'原単位リスト(multi)org'!DF$8:DF$75) -> 0 | DR14: =$G14*SUMIF('原単位リスト(multi)org'!$B$8:$B$75,$F14,'原単位リスト(multi)org'!DG$8:DG$75) -> 0 | DS14: =$G14*SUMIF('原単位リスト(multi)org'!$B$8:$B$75,$F14,'原単位リスト(multi)org'!DH$8:DH$75) -> 0 | DT14: =$G14*SUMIF('原単位リスト(multi)org'!$B$8:$B$75,$F14,'原単位リスト(multi)org'!DI$8:DI$75) -> 0 | DU14: =$G14*SUMIF('原単位リスト(multi)org'!$B$8:$B$75,$F14,'原単位リスト(multi)org'!DJ$8:DJ$75) -> 0 | DV14: =$G14*SUMIF('原単位リスト(multi)org'!$B$8:$B$75,$F14,'原単位リスト(multi)org'!DK$8:DK$75) -> 0 | DW14: =$G14*SUMIF('原単位リスト(multi)org'!$B$8:$B$75,$F14,'原単位リスト(multi)org'!DL$8:DL$75) -> 0 | DX14: =$G14*SUMIF('原単位リスト(multi)org'!$B$8:$B$75,$F14,'原単位リスト(multi)org'!DM$8:DM$75) -> 0 | DY14: =$G14*SUMIF('原単位リスト(multi)org'!$B$8:$B$75,$F14,'原単位リスト(multi)org'!DN$8:DN$75) -> 0 | DZ14: =$G14*SUMIF('原単位リスト(multi)org'!$B$8:$B$75,$F14,'原単位リスト(multi)org'!DO$8:DO$75) -> 0 | EA14: =$G14*SUMIF('原単位リスト(multi)org'!$B$8:$B$75,$F14,'原単位リスト(multi)org'!DP$8:DP$75) -> 0 | EB14: =$G14*SUMIF('原単位リスト(multi)org'!$B$8:$B$75,$F14,'原単位リスト(multi)org'!DQ$8:DQ$75) -> 0 | EC14: =$G14*SUMIF('原単位リスト(multi)org'!$B$8:$B$75,$F14,'原単位リスト(multi)org'!DR$8:DR$75) -> 0 | ED14: =$G14*SUMIF('原単位リスト(multi)org'!$B$8:$B$75,$F14,'原単位リスト(multi)org'!DS$8:DS$75) -> 0 | EE14: =$G14*SUMIF('原単位リスト(multi)org'!$B$8:$B$75,$F14,'原単位リスト(multi)org'!DT$8:DT$75) -> 0 | EF14: =$G14*SUMIF('原単位リスト(multi)org'!$B$8:$B$75,$F14,'原単位リスト(multi)org'!DU$8:DU$75) -> 0 | EG14: =$G14*SUMIF('原単位リスト(multi)org'!$B$8:$B$75,$F14,'原単位リスト(multi)org'!DV$8:DV$75) -> 0 | EH14: =$G14*SUMIF('原単位リスト(multi)org'!$B$8:$B$75,$F14,'原単位リスト(multi)org'!DW$8:DW$75) -> 0 | EI14: =$G14*SUMIF('原単位リスト(multi)org'!$B$8:$B$75,$F14,'原単位リスト(multi)org'!DX$8:DX$75) -> 0 | EJ14: =$G14*SUMIF('原単位リスト(multi)org'!$B$8:$B$75,$F14,'原単位リスト(multi)org'!DY$8:DY$75) -> 0 | EK14: =$G14*SUMIF('原単位リスト(multi)org'!$B$8:$B$75,$F14,'原単位リスト(multi)org'!DZ$8:DZ$75) -> 0 | EL14: =$G14*SUMIF('原単位リスト(multi)org'!$B$8:$B$75,$F14,'原単位リスト(multi)org'!EA$8:EA$75) -> 0 | EM14: =$G14*SUMIF('原単位リスト(multi)org'!$B$8:$B$75,$F14,'原単位リスト(multi)org'!EB$8:EB$75) -> 0 | EN14: =$G14*SUMIF('原単位リスト(multi)org'!$B$8:$B$75,$F14,'原単位リスト(multi)org'!EC$8:EC$75) -> 0 | EO14: =$G14*SUMIF('原単位リスト(multi)org'!$B$8:$B$75,$F14,'原単位リスト(multi)org'!ED$8:ED$75) -> 0 | EP14: =$G14*SUMIF('原単位リスト(multi)org'!$B$8:$B$75,$F14,'原単位リスト(multi)org'!EE$8:EE$75) -> 0 | EQ14: =$G14*SUMIF('原単位リスト(multi)org'!$B$8:$B$75,$F14,'原単位リスト(multi)org'!EF$8:EF$75) -> 0 | ER14: =$G14*SUMIF('原単位リスト(multi)org'!$B$8:$B$75,$F14,'原単位リスト(multi)org'!EG$8:EG$75) -> 0 | ES14: =$G14*SUMIF('原単位リスト(multi)org'!$B$8:$B$75,$F14,'原単位リスト(multi)org'!EH$8:EH$75) -> 0 | ET14: =$G14*SUMIF('原単位リスト(multi)org'!$B$8:$B$75,$F14,'原単位リスト(multi)org'!EI$8:EI$75) -> 0 | EU14: =$G14*SUMIF('原単位リスト(multi)org'!$B$8:$B$75,$F14,'原単位リスト(multi)org'!EJ$8:EJ$75) -> 0 | EV14: =$G14*SUMIF('原単位リスト(multi)org'!$B$8:$B$75,$F14,'原単位リスト(multi)org'!EK$8:EK$75) -> 0 | EW14: =$G14*SUMIF('原単位リスト(multi)org'!$B$8:$B$75,$F14,'原単位リスト(multi)org'!EL$8:EL$75) -> 0 | EX14: =$G14*SUMIF('原単位リスト(multi)org'!$B$8:$B$75,$F14,'原単位リスト(multi)org'!EM$8:EM$75) -> 0 | EY14: =$G14*SUMIF('原単位リスト(multi)org'!$B$8:$B$75,$F14,'原単位リスト(multi)org'!EN$8:EN$75) -> 0 | EZ14: =$G14*SUMIF('原単位リスト(multi)org'!$B$8:$B$75,$F14,'原単位リスト(multi)org'!EO$8:EO$75) -> 0 | FA14: =$G14*SUMIF('原単位リスト(multi)org'!$B$8:$B$75,$F14,'原単位リスト(multi)org'!EP$8:EP$75) -> 0 | FB14: =$G14*SUMIF('原単位リスト(multi)org'!$B$8:$B$75,$F14,'原単位リスト(multi)org'!EQ$8:EQ$75) -> 0 | FC14: =$G14*SUMIF('原単位リスト(multi)org'!$B$8:$B$75,$F14,'原単位リスト(multi)org'!ER$8:ER$75) -> 0 | FD14: =$G14*SUMIF('原単位リスト(multi)org'!$B$8:$B$75,$F14,'原単位リスト(multi)org'!ES$8:ES$75) -> 0 | FE14: =$G14*SUMIF('原単位リスト(multi)org'!$B$8:$B$75,$F14,'原単位リスト(multi)org'!ET$8:ET$75) -> 0 | FF14: =$G14*SUMIF('原単位リスト(multi)org'!$B$8:$B$75,$F14,'原単位リスト(multi)org'!EU$8:EU$75) -> 0 | FG14: =$G14*SUMIF('原単位リスト(multi)org'!$B$8:$B$75,$F14,'原単位リスト(multi)org'!EV$8:EV$75) -> 0 | FH14: =$G14*SUMIF('原単位リスト(multi)org'!$B$8:$B$75,$F14,'原単位リスト(multi)org'!EW$8:EW$75) -> 0 | FI14: =$G14*SUMIF('原単位リスト(multi)org'!$B$8:$B$75,$F14,'原単位リスト(multi)org'!EX$8:EX$75) -> 0 | FJ14: =$G14*SUMIF('原単位リスト(multi)org'!$B$8:$B$75,$F14,'原単位リスト(multi)org'!EY$8:EY$75) -> 0 | FK14: =$G14*SUMIF('原単位リスト(multi)org'!$B$8:$B$75,$F14,'原単位リスト(multi)org'!EZ$8:EZ$75) -> 0 | FL14: =$G14*SUMIF('原単位リスト(multi)org'!$B$8:$B$75,$F14,'原単位リスト(multi)org'!FA$8:FA$75) -> 0 | FM14: =$G14*SUMIF('原単位リスト(multi)org'!$B$8:$B$75,$F14,'原単位リスト(multi)org'!FB$8:FB$75) -> 0 | FN14: =$G14*SUMIF('原単位リスト(multi)org'!$B$8:$B$75,$F14,'原単位リスト(multi)org'!FC$8:FC$75) -> 0 | FO14: =$G14*SUMIF('原単位リスト(multi)org'!$B$8:$B$75,$F14,'原単位リスト(multi)org'!FD$8:FD$75) -> 0 | FP14: =$G14*SUMIF('原単位リスト(multi)org'!$B$8:$B$75,$F14,'原単位リスト(multi)org'!FE$8:FE$75) -> 0 | FQ14: =$G14*SUMIF('原単位リスト(multi)org'!$B$8:$B$75,$F14,'原単位リスト(multi)org'!FF$8:FF$75) -> 0 | FR14: =$G14*SUMIF('原単位リスト(multi)org'!$B$8:$B$75,$F14,'原単位リスト(multi)org'!FG$8:FG$75) -> 0 | FS14: =$G14*SUMIF('原単位リスト(multi)org'!$B$8:$B$75,$F14,'原単位リスト(multi)org'!FH$8:FH$75) -> 0 | FT14: =$G14*SUMIF('原単位リスト(multi)org'!$B$8:$B$75,$F14,'原単位リスト(multi)org'!FI$8:FI$75) -> 0 | FU14: =$G14*SUMIF('原単位リスト(multi)org'!$B$8:$B$75,$F14,'原単位リスト(multi)org'!FJ$8:FJ$75) -> 0 | FV14: =$G14*SUMIF('原単位リスト(multi)org'!$B$8:$B$75,$F14,'原単位リスト(multi)org'!FK$8:FK$75) -> 0 | FW14: =$G14*SUMIF('原単位リスト(multi)org'!$B$8:$B$75,$F14,'原単位リスト(multi)org'!FL$8:FL$75) -> 0 | FX14: =$G14*SUMIF('原単位リスト(multi)org'!$B$8:$B$75,$F14,'原単位リスト(multi)org'!FM$8:FM$75) -> 0 | FY14: =$G14*SUMIF('原単位リスト(multi)org'!$B$8:$B$75,$F14,'原単位リスト(multi)org'!FN$8:FN$75) -> 0 | FZ14: =$G14*SUMIF('原単位リスト(multi)org'!$B$8:$B$75,$F14,'原単位リスト(multi)org'!FO$8:FO$75) -> 0 | GA14: =$G14*SUMIF('原単位リスト(multi)org'!$B$8:$B$75,$F14,'原単位リスト(multi)org'!FP$8:FP$75) -> 0 | GB14: =$G14*SUMIF('原単位リスト(multi)org'!$B$8:$B$75,$F14,'原単位リスト(multi)org'!FQ$8:FQ$75) -> 0 | GC14: =$G14*SUMIF('原単位リスト(multi)org'!$B$8:$B$75,$F14,'原単位リスト(multi)org'!FR$8:FR$75) -> 0 | GD14: =$G14*SUMIF('原単位リスト(multi)org'!$B$8:$B$75,$F14,'原単位リスト(multi)org'!FS$8:FS$75) -> 0 | GE14: =$G14*SUMIF('原単位リスト(multi)org'!$B$8:$B$75,$F14,'原単位リスト(multi)org'!FT$8:FT$75) -> 0 | GF14: =$G14*SUMIF('原単位リスト(multi)org'!$B$8:$B$75,$F14,'原単位リスト(multi)org'!FU$8:FU$75) -> 0 | GG14: =$G14*SUMIF('原単位リスト(multi)org'!$B$8:$B$75,$F14,'原単位リスト(multi)org'!FV$8:FV$75) -> 0 | GH14: =$G14*SUMIF('原単位リスト(multi)org'!$B$8:$B$75,$F14,'原単位リスト(multi)org'!FW$8:FW$75) -> 0 | GI14: =$G14*SUMIF('原単位リスト(multi)org'!$B$8:$B$75,$F14,'原単位リスト(multi)org'!FX$8:FX$75) -> 0 | GJ14: =$G14*SUMIF('原単位リスト(multi)org'!$B$8:$B$75,$F14,'原単位リスト(multi)org'!FY$8:FY$75) -> 0 | GK14: =$G14*SUMIF('原単位リスト(multi)org'!$B$8:$B$75,$F14,'原単位リスト(multi)org'!FZ$8:FZ$75) -> 0 | GL14: =$G14*SUMIF('原単位リスト(multi)org'!$B$8:$B$75,$F14,'原単位リスト(multi)org'!GA$8:GA$75) -> 0 | GM14: =$G14*SUMIF('原単位リスト(multi)org'!$B$8:$B$75,$F14,'原単位リスト(multi)org'!GB$8:GB$75) -> 0 | GN14: =$G14*SUMIF('原単位リスト(multi)org'!$B$8:$B$75,$F14,'原単位リスト(multi)org'!GC$8:GC$75) -> 0 | GO14: =$G14*SUMIF('原単位リスト(multi)org'!$B$8:$B$75,$F14,'原単位リスト(multi)org'!GD$8:GD$75) -> 0 | GP14: =$G14*SUMIF('原単位リスト(multi)org'!$B$8:$B$75,$F14,'原単位リスト(multi)org'!GE$8:GE$75) -> 0 | GQ14: =$G14*SUMIF('原単位リスト(multi)org'!$B$8:$B$75,$F14,'原単位リスト(multi)org'!GF$8:GF$75) -> 0 | GR14: =$G14*SUMIF('原単位リスト(multi)org'!$B$8:$B$75,$F14,'原単位リスト(multi)org'!GG$8:GG$75) -> 0 | GS14: =$G14*SUMIF('原単位リスト(multi)org'!$B$8:$B$75,$F14,'原単位リスト(multi)org'!GH$8:GH$75) -> 0 | GT14: =$G14*SUMIF('原単位リスト(multi)org'!$B$8:$B$75,$F14,'原単位リスト(multi)org'!GI$8:GI$75) -> 0 | GU14: =$G14*SUMIF('原単位リスト(multi)org'!$B$8:$B$75,$F14,'原単位リスト(multi)org'!GJ$8:GJ$75) -> 0 | GV14: =$G14*SUMIF('原単位リスト(multi)org'!$B$8:$B$75,$F14,'原単位リスト(multi)org'!GK$8:GK$75) -> 0 | GW14: =$G14*SUMIF('原単位リスト(multi)org'!$B$8:$B$75,$F14,'原単位リスト(multi)org'!GL$8:GL$75) -> 0 | GX14: =$G14*SUMIF('原単位リスト(multi)org'!$B$8:$B$75,$F14,'原単位リスト(multi)org'!GM$8:GM$75) -> 0 | GY14: =$G14*SUMIF('原単位リスト(multi)org'!$B$8:$B$75,$F14,'原単位リスト(multi)org'!GN$8:GN$75) -> 0 | GZ14: =$G14*SUMIF('原単位リスト(multi)org'!$B$8:$B$75,$F14,'原単位リスト(multi)org'!GO$8:GO$75) -> 0 | HA14: =$G14*SUMIF('原単位リスト(multi)org'!$B$8:$B$75,$F14,'原単位リスト(multi)org'!GP$8:GP$75) -> 0 | HB14: =$G14*SUMIF('原単位リスト(multi)org'!$B$8:$B$75,$F14,'原単位リスト(multi)org'!GQ$8:GQ$75) -> 0 | HC14: =$G14*SUMIF('原単位リスト(multi)org'!$B$8:$B$75,$F14,'原単位リスト(multi)org'!GR$8:GR$75) -> 0 | HD14: =$G14*SUMIF('原単位リスト(multi)org'!$B$8:$B$75,$F14,'原単位リスト(multi)org'!GS$8:GS$75) -> 0 | HE14: =MMULT($R14:$HD14,特性化係数リスト!H$5:H$199) -> 0 | HF14: =MMULT($R14:$HD14,特性化係数リスト!I$5:I$199) -> 0 | HG14: =MMULT($R14:$HD14,特性化係数リスト!J$5:J$199) -> 0 | HH14: =MMULT($R14:$HD14,特性化係数リスト!K$5:K$199) -> 0 | HI14: =MMULT($R14:$HD14,特性化係数リスト!L$5:L$199) -> 0 | HJ14: =MMULT($R14:$HD14,特性化係数リスト!M$5:M$199) -> 0 | HK14: =MMULT($R14:$HD14,特性化係数リスト!N$5:N$199) -> 0 | HL14: =MMULT($R14:$HD14,特性化係数リスト!O$5:O$199) -> 0 | HM14: =MMULT($R14:$HD14,特性化係数リスト!P$5:P$199) -> 0 | HN14: =MMULT($R14:$HD14,特性化係数リスト!Q$5:Q$199) -> 0 | HO14: =MMULT($R14:$HD14,特性化係数リスト!R$5:R$199) -> 0 | HP14: =MMULT($R14:$HD14,特性化係数リスト!S$5:S$199) -> 0 | HQ14: =MMULT($R14:$HD14,特性化係数リスト!T$5:T$199) -> 0 | HR14: =MMULT($R14:$HD14,特性化係数リスト!U$5:U$199) -> 0 | HS14: =MMULT($R14:$HD14,特性化係数リスト!V$5:V$199) -> 0 | HT14: =MMULT($R14:$HD14,特性化係数リスト!W$5:W$199) -> 0 | HU14: =MMULT($R14:$HD14,特性化係数リスト!X$5:X$199) -> 0 | HV14: =MMULT($R14:$HD14,'被害係数リスト(人間健康)'!H$4:H$198) -> 0 | HW14: =MMULT($R14:$HD14,'被害係数リスト(人間健康)'!I$4:I$198) -> 0 | HX14: =MMULT($R14:$HD14,'被害係数リスト(人間健康)'!J$4:J$198) -> 0 | HY14: =MMULT($R14:$HD14,'被害係数リスト(人間健康)'!K$4:K$198) -> 0 | HZ14: =MMULT($R14:$HD14,'被害係数リスト(人間健康)'!L$4:L$198) -> 0 | IA14: 0 | IB14: =MMULT($R14:$HD14,'被害係数リスト(一次生産)'!H$4:H$198) -> 0 | IC14: =MMULT($R14:$HD14,'被害係数リスト(一次生産)'!I$4:I$198) -> 0 | ID14: =MMULT($R14:$HD14,'被害係数リスト(一次生産)'!J$4:J$198) -> 0 | IE14: =MMULT($R14:$HD14,'被害係数リスト(一次生産)'!K$4:K$198) -> 0 | IF14: 0 | IG14: =MMULT($R14:$HD14,'被害係数リスト(社会資産)'!H$4:H$198) -> 0 | IH14: =MMULT($R14:$HD14,'被害係数リスト(社会資産)'!I$4:I$198) -> 0 | II14: =MMULT($R14:$HD14,'被害係数リスト(社会資産)'!J$4:J$198) -> 0 | IJ14: =MMULT($R14:$HD14,'被害係数リスト(社会資産)'!K$4:K$198) -> 0 | IK14: =MMULT($R14:$HD14,'被害係数リスト(社会資産)'!L$4:L$198) -> 0 | IL14: =MMULT($R14:$HD14,'被害係数リスト(社会資産)'!M$4:M$198) -> 0 | IM14: 0 | IN14: =MMULT($R14:$HD14,'被害係数リスト(生物多様性)'!H$4:H$198) -> 0 | IO14: =MMULT($R14:$HD14,'被害係数リスト(生物多様性)'!I$4:I$198) -> 0 | IP14: =MMULT($R14:$HD14,'被害係数リスト(生物多様性)'!J$4:J$198) -> 0 | IQ14: =MMULT($R14:$HD14,'被害係数リスト(生物多様性)'!K$4:K$198) -> 0 | IR14: 0 | IS14: =MMULT($R14:$HD14,'統合化係数リスト(無次元)'!H$4:H$198) -> 0 | IT14: =MMULT($R14:$HD14,'統合化係数リスト(無次元)'!I$4:I$198) -> 0 | IU14: =MMULT($R14:$HD14,'統合化係数リスト(無次元)'!J$4:J$198) -> 0 | IV14: =MMULT($R14:$HD14,'統合化係数リスト(無次元)'!K$4:K$198) -> 0 | IW14: =MMULT($R14:$HD14,'統合化係数リスト(無次元)'!L$4:L$198) -> 0 | IX14: =MMULT($R14:$HD14,'統合化係数リスト(無次元)'!M$4:M$198) -> 0 | IY14: =MMULT($R14:$HD14,'統合化係数リスト(無次元)'!N$4:N$198) -> 0 | IZ14: =MMULT($R14:$HD14,'統合化係数リスト(無次元)'!O$4:O$198) -> 0 | JA14: =MMULT($R14:$HD14,'統合化係数リスト(無次元)'!P$4:P$198) -> 0 | JB14: =MMULT($R14:$HD14,'統合化係数リスト(無次元)'!Q$4:Q$198) -> 0 | JC14: =MMULT($R14:$HD14,'統合化係数リスト(無次元)'!R$4:R$198) -> 0 | JD14: 0
A15: 仮設工事 | B15: エネルギー消費分 | C15: 5 | D15: 鋼矢板－鋼矢板引抜き | E15: 機械組立・解体 | F15: =仮設工事①!O12 -> 軽油 | G15: =仮設工事①!P12 -> 0 | H15: L | J15: 0 | K15: 0 | L15: 0 | M15: 0 | N15: 0 | O15: 0 | P15: 0 | Q15: 0 | R15: =$G15*SUMIF('原単位リスト(multi)org'!$B$8:$B$75,$F15,'原単位リスト(multi)org'!G$8:G$75) -> 0 | S15: =$G15*SUMIF('原単位リスト(multi)org'!$B$8:$B$75,$F15,'原単位リスト(multi)org'!H$8:H$75) -> 0 | T15: =$G15*SUMIF('原単位リスト(multi)org'!$B$8:$B$75,$F15,'原単位リスト(multi)org'!I$8:I$75) -> 0 | U15: =$G15*SUMIF('原単位リスト(multi)org'!$B$8:$B$75,$F15,'原単位リスト(multi)org'!J$8:J$75) -> 0 | V15: =$G15*SUMIF('原単位リスト(multi)org'!$B$8:$B$75,$F15,'原単位リスト(multi)org'!K$8:K$75) -> 0 | W15: =$G15*SUMIF('原単位リスト(multi)org'!$B$8:$B$75,$F15,'原単位リスト(multi)org'!L$8:L$75) -> 0 | X15: =$G15*SUMIF('原単位リスト(multi)org'!$B$8:$B$75,$F15,'原単位リスト(multi)org'!M$8:M$75) -> 0 | Y15: =$G15*SUMIF('原単位リスト(multi)org'!$B$8:$B$75,$F15,'原単位リスト(multi)org'!N$8:N$75) -> 0 | Z15: =$G15*SUMIF('原単位リスト(multi)org'!$B$8:$B$75,$F15,'原単位リスト(multi)org'!O$8:O$75) -> 0 | AA15: =$G15*SUMIF('原単位リスト(multi)org'!$B$8:$B$75,$F15,'原単位リスト(multi)org'!P$8:P$75) -> 0 | AB15: =$G15*SUMIF('原単位リスト(multi)org'!$B$8:$B$75,$F15,'原単位リスト(multi)org'!Q$8:Q$75) -> 0 | AC15: =$G15*SUMIF('原単位リスト(multi)org'!$B$8:$B$75,$F15,'原単位リスト(multi)org'!R$8:R$75) -> 0 | AD15: =$G15*SUMIF('原単位リスト(multi)org'!$B$8:$B$75,$F15,'原単位リスト(multi)org'!S$8:S$75) -> 0 | AE15: =$G15*SUMIF('原単位リスト(multi)org'!$B$8:$B$75,$F15,'原単位リスト(multi)org'!T$8:T$75) -> 0 | AF15: =$G15*SUMIF('原単位リスト(multi)org'!$B$8:$B$75,$F15,'原単位リスト(multi)org'!U$8:U$75) -> 0 | AG15: =$G15*SUMIF('原単位リスト(multi)org'!$B$8:$B$75,$F15,'原単位リスト(multi)org'!V$8:V$75) -> 0 | AH15: =$G15*SUMIF('原単位リスト(multi)org'!$B$8:$B$75,$F15,'原単位リスト(multi)org'!W$8:W$75) -> 0 | AI15: =$G15*SUMIF('原単位リスト(multi)org'!$B$8:$B$75,$F15,'原単位リスト(multi)org'!X$8:X$75) -> 0 | AJ15: =$G15*SUMIF('原単位リスト(multi)org'!$B$8:$B$75,$F15,'原単位リスト(multi)org'!Y$8:Y$75) -> 0 | AK15: =$G15*SUMIF('原単位リスト(multi)org'!$B$8:$B$75,$F15,'原単位リスト(multi)org'!Z$8:Z$75) -> 0 | AL15: =$G15*SUMIF('原単位リスト(multi)org'!$B$8:$B$75,$F15,'原単位リスト(multi)org'!AA$8:AA$75) -> 0 | AM15: =$G15*SUMIF('原単位リスト(multi)org'!$B$8:$B$75,$F15,'原単位リスト(multi)org'!AB$8:AB$75) -> 0 | AN15: =$G15*SUMIF('原単位リスト(multi)org'!$B$8:$B$75,$F15,'原単位リスト(multi)org'!AC$8:AC$75) -> 0 | AO15: =$G15*SUMIF('原単位リスト(multi)org'!$B$8:$B$75,$F15,'原単位リスト(multi)org'!AD$8:AD$75) -> 0 | AP15: =$G15*SUMIF('原単位リスト(multi)org'!$B$8:$B$75,$F15,'原単位リスト(multi)org'!AE$8:AE$75) -> 0 | AQ15: =$G15*SUMIF('原単位リスト(multi)org'!$B$8:$B$75,$F15,'原単位リスト(multi)org'!AF$8:AF$75) -> 0 | AR15: =$G15*SUMIF('原単位リスト(multi)org'!$B$8:$B$75,$F15,'原単位リスト(multi)org'!AG$8:AG$75) -> 0 | AS15: =$G15*SUMIF('原単位リスト(multi)org'!$B$8:$B$75,$F15,'原単位リスト(multi)org'!AH$8:AH$75) -> 0 | AT15: =$G15*SUMIF('原単位リスト(multi)org'!$B$8:$B$75,$F15,'原単位リスト(multi)org'!AI$8:AI$75) -> 0 | AU15: =$G15*SUMIF('原単位リスト(multi)org'!$B$8:$B$75,$F15,'原単位リスト(multi)org'!AJ$8:AJ$75) -> 0 | AV15: =$G15*SUMIF('原単位リスト(multi)org'!$B$8:$B$75,$F15,'原単位リスト(multi)org'!AK$8:AK$75) -> 0 | AW15: =$G15*SUMIF('原単位リスト(multi)org'!$B$8:$B$75,$F15,'原単位リスト(multi)org'!AL$8:AL$75) -> 0 | AX15: =$G15*SUMIF('原単位リスト(multi)org'!$B$8:$B$75,$F15,'原単位リスト(multi)org'!AM$8:AM$75) -> 0 | AY15: =$G15*SUMIF('原単位リスト(multi)org'!$B$8:$B$75,$F15,'原単位リスト(multi)org'!AN$8:AN$75) -> 0 | AZ15: =$G15*SUMIF('原単位リスト(multi)org'!$B$8:$B$75,$F15,'原単位リスト(multi)org'!AO$8:AO$75) -> 0 | BA15: =$G15*SUMIF('原単位リスト(multi)org'!$B$8:$B$75,$F15,'原単位リスト(multi)org'!AP$8:AP$75) -> 0 | BB15: =$G15*SUMIF('原単位リスト(multi)org'!$B$8:$B$75,$F15,'原単位リスト(multi)org'!AQ$8:AQ$75) -> 0 | BC15: =$G15*SUMIF('原単位リスト(multi)org'!$B$8:$B$75,$F15,'原単位リスト(multi)org'!AR$8:AR$75) -> 0 | BD15: =$G15*SUMIF('原単位リスト(multi)org'!$B$8:$B$75,$F15,'原単位リスト(multi)org'!AS$8:AS$75) -> 0 | BE15: =$G15*SUMIF('原単位リスト(multi)org'!$B$8:$B$75,$F15,'原単位リスト(multi)org'!AT$8:AT$75) -> 0 | BF15: =$G15*SUMIF('原単位リスト(multi)org'!$B$8:$B$75,$F15,'原単位リスト(multi)org'!AU$8:AU$75) -> 0 | BG15: =$G15*SUMIF('原単位リスト(multi)org'!$B$8:$B$75,$F15,'原単位リスト(multi)org'!AV$8:AV$75) -> 0 | BH15: =$G15*SUMIF('原単位リスト(multi)org'!$B$8:$B$75,$F15,'原単位リスト(multi)org'!AW$8:AW$75) -> 0 | BI15: =$G15*SUMIF('原単位リスト(multi)org'!$B$8:$B$75,$F15,'原単位リスト(multi)org'!AX$8:AX$75) -> 0 | BJ15: =$G15*SUMIF('原単位リスト(multi)org'!$B$8:$B$75,$F15,'原単位リスト(multi)org'!AY$8:AY$75) -> 0 | BK15: =$G15*SUMIF('原単位リスト(multi)org'!$B$8:$B$75,$F15,'原単位リスト(multi)org'!AZ$8:AZ$75) -> 0 | BL15: =$G15*SUMIF('原単位リスト(multi)org'!$B$8:$B$75,$F15,'原単位リスト(multi)org'!BA$8:BA$75) -> 0 | BM15: =$G15*SUMIF('原単位リスト(multi)org'!$B$8:$B$75,$F15,'原単位リスト(multi)org'!BB$8:BB$75) -> 0 | BN15: =$G15*SUMIF('原単位リスト(multi)org'!$B$8:$B$75,$F15,'原単位リスト(multi)org'!BC$8:BC$75) -> 0 | BO15: =$G15*SUMIF('原単位リスト(multi)org'!$B$8:$B$75,$F15,'原単位リスト(multi)org'!BD$8:BD$75) -> 0 | BP15: =$G15*SUMIF('原単位リスト(multi)org'!$B$8:$B$75,$F15,'原単位リスト(multi)org'!BE$8:BE$75) -> 0 | BQ15: =$G15*SUMIF('原単位リスト(multi)org'!$B$8:$B$75,$F15,'原単位リスト(multi)org'!BF$8:BF$75) -> 0 | BR15: =$G15*SUMIF('原単位リスト(multi)org'!$B$8:$B$75,$F15,'原単位リスト(multi)org'!BG$8:BG$75) -> 0 | BS15: =$G15*SUMIF('原単位リスト(multi)org'!$B$8:$B$75,$F15,'原単位リスト(multi)org'!BH$8:BH$75) -> 0 | BT15: =$G15*SUMIF('原単位リスト(multi)org'!$B$8:$B$75,$F15,'原単位リスト(multi)org'!BI$8:BI$75) -> 0 | BU15: =$G15*SUMIF('原単位リスト(multi)org'!$B$8:$B$75,$F15,'原単位リスト(multi)org'!BJ$8:BJ$75) -> 0 | BV15: =$G15*SUMIF('原単位リスト(multi)org'!$B$8:$B$75,$F15,'原単位リスト(multi)org'!BK$8:BK$75) -> 0 | BW15: =$G15*SUMIF('原単位リスト(multi)org'!$B$8:$B$75,$F15,'原単位リスト(multi)org'!BL$8:BL$75) -> 0 | BX15: =$G15*SUMIF('原単位リスト(multi)org'!$B$8:$B$75,$F15,'原単位リスト(multi)org'!BM$8:BM$75) -> 0 | BY15: =$G15*SUMIF('原単位リスト(multi)org'!$B$8:$B$75,$F15,'原単位リスト(multi)org'!BN$8:BN$75) -> 0 | BZ15: =$G15*SUMIF('原単位リスト(multi)org'!$B$8:$B$75,$F15,'原単位リスト(multi)org'!BO$8:BO$75) -> 0 | CA15: =$G15*SUMIF('原単位リスト(multi)org'!$B$8:$B$75,$F15,'原単位リスト(multi)org'!BP$8:BP$75) -> 0 | CB15: =$G15*SUMIF('原単位リスト(multi)org'!$B$8:$B$75,$F15,'原単位リスト(multi)org'!BQ$8:BQ$75) -> 0 | CC15: =$G15*SUMIF('原単位リスト(multi)org'!$B$8:$B$75,$F15,'原単位リスト(multi)org'!BR$8:BR$75) -> 0 | CD15: =$G15*SUMIF('原単位リスト(multi)org'!$B$8:$B$75,$F15,'原単位リスト(multi)org'!BS$8:BS$75) -> 0 | CE15: =$G15*SUMIF('原単位リスト(multi)org'!$B$8:$B$75,$F15,'原単位リスト(multi)org'!BT$8:BT$75) -> 0 | CF15: =$G15*SUMIF('原単位リスト(multi)org'!$B$8:$B$75,$F15,'原単位リスト(multi)org'!BU$8:BU$75) -> 0 | CG15: =$G15*SUMIF('原単位リスト(multi)org'!$B$8:$B$75,$F15,'原単位リスト(multi)org'!BV$8:BV$75) -> 0 | CH15: =$G15*SUMIF('原単位リスト(multi)org'!$B$8:$B$75,$F15,'原単位リスト(multi)org'!BW$8:BW$75) -> 0 | CI15: =$G15*SUMIF('原単位リスト(multi)org'!$B$8:$B$75,$F15,'原単位リスト(multi)org'!BX$8:BX$75) -> 0 | CJ15: =$G15*SUMIF('原単位リスト(multi)org'!$B$8:$B$75,$F15,'原単位リスト(multi)org'!BY$8:BY$75) -> 0 | CK15: =$G15*SUMIF('原単位リスト(multi)org'!$B$8:$B$75,$F15,'原単位リスト(multi)org'!BZ$8:BZ$75) -> 0 | CL15: =$G15*SUMIF('原単位リスト(multi)org'!$B$8:$B$75,$F15,'原単位リスト(multi)org'!CA$8:CA$75) -> 0 | CM15: =$G15*SUMIF('原単位リスト(multi)org'!$B$8:$B$75,$F15,'原単位リスト(multi)org'!CB$8:CB$75) -> 0 | CN15: =$G15*SUMIF('原単位リスト(multi)org'!$B$8:$B$75,$F15,'原単位リスト(multi)org'!CC$8:CC$75) -> 0 | CO15: =$G15*SUMIF('原単位リスト(multi)org'!$B$8:$B$75,$F15,'原単位リスト(multi)org'!CD$8:CD$75) -> 0 | CP15: =$G15*SUMIF('原単位リスト(multi)org'!$B$8:$B$75,$F15,'原単位リスト(multi)org'!CE$8:CE$75) -> 0 | CQ15: =$G15*SUMIF('原単位リスト(multi)org'!$B$8:$B$75,$F15,'原単位リスト(multi)org'!CF$8:CF$75) -> 0 | CR15: =$G15*SUMIF('原単位リスト(multi)org'!$B$8:$B$75,$F15,'原単位リスト(multi)org'!CG$8:CG$75) -> 0 | CS15: =$G15*SUMIF('原単位リスト(multi)org'!$B$8:$B$75,$F15,'原単位リスト(multi)org'!CH$8:CH$75) -> 0 | CT15: =$G15*SUMIF('原単位リスト(multi)org'!$B$8:$B$75,$F15,'原単位リスト(multi)org'!CI$8:CI$75) -> 0 | CU15: =$G15*SUMIF('原単位リスト(multi)org'!$B$8:$B$75,$F15,'原単位リスト(multi)org'!CJ$8:CJ$75) -> 0 | CV15: =$G15*SUMIF('原単位リスト(multi)org'!$B$8:$B$75,$F15,'原単位リスト(multi)org'!CK$8:CK$75) -> 0 | CW15: =$G15*SUMIF('原単位リスト(multi)org'!$B$8:$B$75,$F15,'原単位リスト(multi)org'!CL$8:CL$75) -> 0 | CX15: =$G15*SUMIF('原単位リスト(multi)org'!$B$8:$B$75,$F15,'原単位リスト(multi)org'!CM$8:CM$75) -> 0 | CY15: =$G15*SUMIF('原単位リスト(multi)org'!$B$8:$B$75,$F15,'原単位リスト(multi)org'!CN$8:CN$75) -> 0 | CZ15: =$G15*SUMIF('原単位リスト(multi)org'!$B$8:$B$75,$F15,'原単位リスト(multi)org'!CO$8:CO$75) -> 0 | DA15: =$G15*SUMIF('原単位リスト(multi)org'!$B$8:$B$75,$F15,'原単位リスト(multi)org'!CP$8:CP$75) -> 0 | DB15: =$G15*SUMIF('原単位リスト(multi)org'!$B$8:$B$75,$F15,'原単位リスト(multi)org'!CQ$8:CQ$75) -> 0 | DC15: =$G15*SUMIF('原単位リスト(multi)org'!$B$8:$B$75,$F15,'原単位リスト(multi)org'!CR$8:CR$75) -> 0 | DD15: =$G15*SUMIF('原単位リスト(multi)org'!$B$8:$B$75,$F15,'原単位リスト(multi)org'!CS$8:CS$75) -> 0 | DE15: =$G15*SUMIF('原単位リスト(multi)org'!$B$8:$B$75,$F15,'原単位リスト(multi)org'!CT$8:CT$75) -> 0 | DF15: =$G15*SUMIF('原単位リスト(multi)org'!$B$8:$B$75,$F15,'原単位リスト(multi)org'!CU$8:CU$75) -> 0 | DG15: =$G15*SUMIF('原単位リスト(multi)org'!$B$8:$B$75,$F15,'原単位リスト(multi)org'!CV$8:CV$75) -> 0 | DH15: =$G15*SUMIF('原単位リスト(multi)org'!$B$8:$B$75,$F15,'原単位リスト(multi)org'!CW$8:CW$75) -> 0 | DI15: =$G15*SUMIF('原単位リスト(multi)org'!$B$8:$B$75,$F15,'原単位リスト(multi)org'!CX$8:CX$75) -> 0 | DJ15: =$G15*SUMIF('原単位リスト(multi)org'!$B$8:$B$75,$F15,'原単位リスト(multi)org'!CY$8:CY$75) -> 0 | DK15: =$G15*SUMIF('原単位リスト(multi)org'!$B$8:$B$75,$F15,'原単位リスト(multi)org'!CZ$8:CZ$75) -> 0 | DL15: =$G15*SUMIF('原単位リスト(multi)org'!$B$8:$B$75,$F15,'原単位リスト(multi)org'!DA$8:DA$75) -> 0 | DM15: =$G15*SUMIF('原単位リスト(multi)org'!$B$8:$B$75,$F15,'原単位リスト(multi)org'!DB$8:DB$75) -> 0 | DN15: =$G15*SUMIF('原単位リスト(multi)org'!$B$8:$B$75,$F15,'原単位リスト(multi)org'!DC$8:DC$75) -> 0 | DO15: =$G15*SUMIF('原単位リスト(multi)org'!$B$8:$B$75,$F15,'原単位リスト(multi)org'!DD$8:DD$75) -> 0 | DP15: =$G15*SUMIF('原単位リスト(multi)org'!$B$8:$B$75,$F15,'原単位リスト(multi)org'!DE$8:DE$75) -> 0 | DQ15: =$G15*SUMIF('原単位リスト(multi)org'!$B$8:$B$75,$F15,'原単位リスト(multi)org'!DF$8:DF$75) -> 0 | DR15: =$G15*SUMIF('原単位リスト(multi)org'!$B$8:$B$75,$F15,'原単位リスト(multi)org'!DG$8:DG$75) -> 0 | DS15: =$G15*SUMIF('原単位リスト(multi)org'!$B$8:$B$75,$F15,'原単位リスト(multi)org'!DH$8:DH$75) -> 0 | DT15: =$G15*SUMIF('原単位リスト(multi)org'!$B$8:$B$75,$F15,'原単位リスト(multi)org'!DI$8:DI$75) -> 0 | DU15: =$G15*SUMIF('原単位リスト(multi)org'!$B$8:$B$75,$F15,'原単位リスト(multi)org'!DJ$8:DJ$75) -> 0 | DV15: =$G15*SUMIF('原単位リスト(multi)org'!$B$8:$B$75,$F15,'原単位リスト(multi)org'!DK$8:DK$75) -> 0 | DW15: =$G15*SUMIF('原単位リスト(multi)org'!$B$8:$B$75,$F15,'原単位リスト(multi)org'!DL$8:DL$75) -> 0 | DX15: =$G15*SUMIF('原単位リスト(multi)org'!$B$8:$B$75,$F15,'原単位リスト(multi)org'!DM$8:DM$75) -> 0 | DY15: =$G15*SUMIF('原単位リスト(multi)org'!$B$8:$B$75,$F15,'原単位リスト(multi)org'!DN$8:DN$75) -> 0 | DZ15: =$G15*SUMIF('原単位リスト(multi)org'!$B$8:$B$75,$F15,'原単位リスト(multi)org'!DO$8:DO$75) -> 0 | EA15: =$G15*SUMIF('原単位リスト(multi)org'!$B$8:$B$75,$F15,'原単位リスト(multi)org'!DP$8:DP$75) -> 0 | EB15: =$G15*SUMIF('原単位リスト(multi)org'!$B$8:$B$75,$F15,'原単位リスト(multi)org'!DQ$8:DQ$75) -> 0 | EC15: =$G15*SUMIF('原単位リスト(multi)org'!$B$8:$B$75,$F15,'原単位リスト(multi)org'!DR$8:DR$75) -> 0 | ED15: =$G15*SUMIF('原単位リスト(multi)org'!$B$8:$B$75,$F15,'原単位リスト(multi)org'!DS$8:DS$75) -> 0 | EE15: =$G15*SUMIF('原単位リスト(multi)org'!$B$8:$B$75,$F15,'原単位リスト(multi)org'!DT$8:DT$75) -> 0 | EF15: =$G15*SUMIF('原単位リスト(multi)org'!$B$8:$B$75,$F15,'原単位リスト(multi)org'!DU$8:DU$75) -> 0 | EG15: =$G15*SUMIF('原単位リスト(multi)org'!$B$8:$B$75,$F15,'原単位リスト(multi)org'!DV$8:DV$75) -> 0 | EH15: =$G15*SUMIF('原単位リスト(multi)org'!$B$8:$B$75,$F15,'原単位リスト(multi)org'!DW$8:DW$75) -> 0 | EI15: =$G15*SUMIF('原単位リスト(multi)org'!$B$8:$B$75,$F15,'原単位リスト(multi)org'!DX$8:DX$75) -> 0 | EJ15: =$G15*SUMIF('原単位リスト(multi)org'!$B$8:$B$75,$F15,'原単位リスト(multi)org'!DY$8:DY$75) -> 0 | EK15: =$G15*SUMIF('原単位リスト(multi)org'!$B$8:$B$75,$F15,'原単位リスト(multi)org'!DZ$8:DZ$75) -> 0 | EL15: =$G15*SUMIF('原単位リスト(multi)org'!$B$8:$B$75,$F15,'原単位リスト(multi)org'!EA$8:EA$75) -> 0 | EM15: =$G15*SUMIF('原単位リスト(multi)org'!$B$8:$B$75,$F15,'原単位リスト(multi)org'!EB$8:EB$75) -> 0 | EN15: =$G15*SUMIF('原単位リスト(multi)org'!$B$8:$B$75,$F15,'原単位リスト(multi)org'!EC$8:EC$75) -> 0 | EO15: =$G15*SUMIF('原単位リスト(multi)org'!$B$8:$B$75,$F15,'原単位リスト(multi)org'!ED$8:ED$75) -> 0 | EP15: =$G15*SUMIF('原単位リスト(multi)org'!$B$8:$B$75,$F15,'原単位リスト(multi)org'!EE$8:EE$75) -> 0 | EQ15: =$G15*SUMIF('原単位リスト(multi)org'!$B$8:$B$75,$F15,'原単位リスト(multi)org'!EF$8:EF$75) -> 0 | ER15: =$G15*SUMIF('原単位リスト(multi)org'!$B$8:$B$75,$F15,'原単位リスト(multi)org'!EG$8:EG$75) -> 0 | ES15: =$G15*SUMIF('原単位リスト(multi)org'!$B$8:$B$75,$F15,'原単位リスト(multi)org'!EH$8:EH$75) -> 0 | ET15: =$G15*SUMIF('原単位リスト(multi)org'!$B$8:$B$75,$F15,'原単位リスト(multi)org'!EI$8:EI$75) -> 0 | EU15: =$G15*SUMIF('原単位リスト(multi)org'!$B$8:$B$75,$F15,'原単位リスト(multi)org'!EJ$8:EJ$75) -> 0 | EV15: =$G15*SUMIF('原単位リスト(multi)org'!$B$8:$B$75,$F15,'原単位リスト(multi)org'!EK$8:EK$75) -> 0 | EW15: =$G15*SUMIF('原単位リスト(multi)org'!$B$8:$B$75,$F15,'原単位リスト(multi)org'!EL$8:EL$75) -> 0 | EX15: =$G15*SUMIF('原単位リスト(multi)org'!$B$8:$B$75,$F15,'原単位リスト(multi)org'!EM$8:EM$75) -> 0 | EY15: =$G15*SUMIF('原単位リスト(multi)org'!$B$8:$B$75,$F15,'原単位リスト(multi)org'!EN$8:EN$75) -> 0 | EZ15: =$G15*SUMIF('原単位リスト(multi)org'!$B$8:$B$75,$F15,'原単位リスト(multi)org'!EO$8:EO$75) -> 0 | FA15: =$G15*SUMIF('原単位リスト(multi)org'!$B$8:$B$75,$F15,'原単位リスト(multi)org'!EP$8:EP$75) -> 0 | FB15: =$G15*SUMIF('原単位リスト(multi)org'!$B$8:$B$75,$F15,'原単位リスト(multi)org'!EQ$8:EQ$75) -> 0 | FC15: =$G15*SUMIF('原単位リスト(multi)org'!$B$8:$B$75,$F15,'原単位リスト(multi)org'!ER$8:ER$75) -> 0 | FD15: =$G15*SUMIF('原単位リスト(multi)org'!$B$8:$B$75,$F15,'原単位リスト(multi)org'!ES$8:ES$75) -> 0 | FE15: =$G15*SUMIF('原単位リスト(multi)org'!$B$8:$B$75,$F15,'原単位リスト(multi)org'!ET$8:ET$75) -> 0 | FF15: =$G15*SUMIF('原単位リスト(multi)org'!$B$8:$B$75,$F15,'原単位リスト(multi)org'!EU$8:EU$75) -> 0 | FG15: =$G15*SUMIF('原単位リスト(multi)org'!$B$8:$B$75,$F15,'原単位リスト(multi)org'!EV$8:EV$75) -> 0 | FH15: =$G15*SUMIF('原単位リスト(multi)org'!$B$8:$B$75,$F15,'原単位リスト(multi)org'!EW$8:EW$75) -> 0 | FI15: =$G15*SUMIF('原単位リスト(multi)org'!$B$8:$B$75,$F15,'原単位リスト(multi)org'!EX$8:EX$75) -> 0 | FJ15: =$G15*SUMIF('原単位リスト(multi)org'!$B$8:$B$75,$F15,'原単位リスト(multi)org'!EY$8:EY$75) -> 0 | FK15: =$G15*SUMIF('原単位リスト(multi)org'!$B$8:$B$75,$F15,'原単位リスト(multi)org'!EZ$8:EZ$75) -> 0 | FL15: =$G15*SUMIF('原単位リスト(multi)org'!$B$8:$B$75,$F15,'原単位リスト(multi)org'!FA$8:FA$75) -> 0 | FM15: =$G15*SUMIF('原単位リスト(multi)org'!$B$8:$B$75,$F15,'原単位リスト(multi)org'!FB$8:FB$75) -> 0 | FN15: =$G15*SUMIF('原単位リスト(multi)org'!$B$8:$B$75,$F15,'原単位リスト(multi)org'!FC$8:FC$75) -> 0 | FO15: =$G15*SUMIF('原単位リスト(multi)org'!$B$8:$B$75,$F15,'原単位リスト(multi)org'!FD$8:FD$75) -> 0 | FP15: =$G15*SUMIF('原単位リスト(multi)org'!$B$8:$B$75,$F15,'原単位リスト(multi)org'!FE$8:FE$75) -> 0 | FQ15: =$G15*SUMIF('原単位リスト(multi)org'!$B$8:$B$75,$F15,'原単位リスト(multi)org'!FF$8:FF$75) -> 0 | FR15: =$G15*SUMIF('原単位リスト(multi)org'!$B$8:$B$75,$F15,'原単位リスト(multi)org'!FG$8:FG$75) -> 0 | FS15: =$G15*SUMIF('原単位リスト(multi)org'!$B$8:$B$75,$F15,'原単位リスト(multi)org'!FH$8:FH$75) -> 0 | FT15: =$G15*SUMIF('原単位リスト(multi)org'!$B$8:$B$75,$F15,'原単位リスト(multi)org'!FI$8:FI$75) -> 0 | FU15: =$G15*SUMIF('原単位リスト(multi)org'!$B$8:$B$75,$F15,'原単位リスト(multi)org'!FJ$8:FJ$75) -> 0 | FV15: =$G15*SUMIF('原単位リスト(multi)org'!$B$8:$B$75,$F15,'原単位リスト(multi)org'!FK$8:FK$75) -> 0 | FW15: =$G15*SUMIF('原単位リスト(multi)org'!$B$8:$B$75,$F15,'原単位リスト(multi)org'!FL$8:FL$75) -> 0 | FX15: =$G15*SUMIF('原単位リスト(multi)org'!$B$8:$B$75,$F15,'原単位リスト(multi)org'!FM$8:FM$75) -> 0 | FY15: =$G15*SUMIF('原単位リスト(multi)org'!$B$8:$B$75,$F15,'原単位リスト(multi)org'!FN$8:FN$75) -> 0 | FZ15: =$G15*SUMIF('原単位リスト(multi)org'!$B$8:$B$75,$F15,'原単位リスト(multi)org'!FO$8:FO$75) -> 0 | GA15: =$G15*SUMIF('原単位リスト(multi)org'!$B$8:$B$75,$F15,'原単位リスト(multi)org'!FP$8:FP$75) -> 0 | GB15: =$G15*SUMIF('原単位リスト(multi)org'!$B$8:$B$75,$F15,'原単位リスト(multi)org'!FQ$8:FQ$75) -> 0 | GC15: =$G15*SUMIF('原単位リスト(multi)org'!$B$8:$B$75,$F15,'原単位リスト(multi)org'!FR$8:FR$75) -> 0 | GD15: =$G15*SUMIF('原単位リスト(multi)org'!$B$8:$B$75,$F15,'原単位リスト(multi)org'!FS$8:FS$75) -> 0 | GE15: =$G15*SUMIF('原単位リスト(multi)org'!$B$8:$B$75,$F15,'原単位リスト(multi)org'!FT$8:FT$75) -> 0 | GF15: =$G15*SUMIF('原単位リスト(multi)org'!$B$8:$B$75,$F15,'原単位リスト(multi)org'!FU$8:FU$75) -> 0 | GG15: =$G15*SUMIF('原単位リスト(multi)org'!$B$8:$B$75,$F15,'原単位リスト(multi)org'!FV$8:FV$75) -> 0 | GH15: =$G15*SUMIF('原単位リスト(multi)org'!$B$8:$B$75,$F15,'原単位リスト(multi)org'!FW$8:FW$75) -> 0 | GI15: =$G15*SUMIF('原単位リスト(multi)org'!$B$8:$B$75,$F15,'原単位リスト(multi)org'!FX$8:FX$75) -> 0 | GJ15: =$G15*SUMIF('原単位リスト(multi)org'!$B$8:$B$75,$F15,'原単位リスト(multi)org'!FY$8:FY$75) -> 0 | GK15: =$G15*SUMIF('原単位リスト(multi)org'!$B$8:$B$75,$F15,'原単位リスト(multi)org'!FZ$8:FZ$75) -> 0 | GL15: =$G15*SUMIF('原単位リスト(multi)org'!$B$8:$B$75,$F15,'原単位リスト(multi)org'!GA$8:GA$75) -> 0 | GM15: =$G15*SUMIF('原単位リスト(multi)org'!$B$8:$B$75,$F15,'原単位リスト(multi)org'!GB$8:GB$75) -> 0 | GN15: =$G15*SUMIF('原単位リスト(multi)org'!$B$8:$B$75,$F15,'原単位リスト(multi)org'!GC$8:GC$75) -> 0 | GO15: =$G15*SUMIF('原単位リスト(multi)org'!$B$8:$B$75,$F15,'原単位リスト(multi)org'!GD$8:GD$75) -> 0 | GP15: =$G15*SUMIF('原単位リスト(multi)org'!$B$8:$B$75,$F15,'原単位リスト(multi)org'!GE$8:GE$75) -> 0 | GQ15: =$G15*SUMIF('原単位リスト(multi)org'!$B$8:$B$75,$F15,'原単位リスト(multi)org'!GF$8:GF$75) -> 0 | GR15: =$G15*SUMIF('原単位リスト(multi)org'!$B$8:$B$75,$F15,'原単位リスト(multi)org'!GG$8:GG$75) -> 0 | GS15: =$G15*SUMIF('原単位リスト(multi)org'!$B$8:$B$75,$F15,'原単位リスト(multi)org'!GH$8:GH$75) -> 0 | GT15: =$G15*SUMIF('原単位リスト(multi)org'!$B$8:$B$75,$F15,'原単位リスト(multi)org'!GI$8:GI$75) -> 0 | GU15: =$G15*SUMIF('原単位リスト(multi)org'!$B$8:$B$75,$F15,'原単位リスト(multi)org'!GJ$8:GJ$75) -> 0 | GV15: =$G15*SUMIF('原単位リスト(multi)org'!$B$8:$B$75,$F15,'原単位リスト(multi)org'!GK$8:GK$75) -> 0 | GW15: =$G15*SUMIF('原単位リスト(multi)org'!$B$8:$B$75,$F15,'原単位リスト(multi)org'!GL$8:GL$75) -> 0 | GX15: =$G15*SUMIF('原単位リスト(multi)org'!$B$8:$B$75,$F15,'原単位リスト(multi)org'!GM$8:GM$75) -> 0 | GY15: =$G15*SUMIF('原単位リスト(multi)org'!$B$8:$B$75,$F15,'原単位リスト(multi)org'!GN$8:GN$75) -> 0 | GZ15: =$G15*SUMIF('原単位リスト(multi)org'!$B$8:$B$75,$F15,'原単位リスト(multi)org'!GO$8:GO$75) -> 0 | HA15: =$G15*SUMIF('原単位リスト(multi)org'!$B$8:$B$75,$F15,'原単位リスト(multi)org'!GP$8:GP$75) -> 0 | HB15: =$G15*SUMIF('原単位リスト(multi)org'!$B$8:$B$75,$F15,'原単位リスト(multi)org'!GQ$8:GQ$75) -> 0 | HC15: =$G15*SUMIF('原単位リスト(multi)org'!$B$8:$B$75,$F15,'原単位リスト(multi)org'!GR$8:GR$75) -> 0 | HD15: =$G15*SUMIF('原単位リスト(multi)org'!$B$8:$B$75,$F15,'原単位リスト(multi)org'!GS$8:GS$75) -> 0 | HE15: =MMULT($R15:$HD15,特性化係数リスト!H$5:H$199) -> 0 | HF15: =MMULT($R15:$HD15,特性化係数リスト!I$5:I$199) -> 0 | HG15: =MMULT($R15:$HD15,特性化係数リスト!J$5:J$199) -> 0 | HH15: =MMULT($R15:$HD15,特性化係数リスト!K$5:K$199) -> 0 | HI15: =MMULT($R15:$HD15,特性化係数リスト!L$5:L$199) -> 0 | HJ15: =MMULT($R15:$HD15,特性化係数リスト!M$5:M$199) -> 0 | HK15: =MMULT($R15:$HD15,特性化係数リスト!N$5:N$199) -> 0 | HL15: =MMULT($R15:$HD15,特性化係数リスト!O$5:O$199) -> 0 | HM15: =MMULT($R15:$HD15,特性化係数リスト!P$5:P$199) -> 0 | HN15: =MMULT($R15:$HD15,特性化係数リスト!Q$5:Q$199) -> 0 | HO15: =MMULT($R15:$HD15,特性化係数リスト!R$5:R$199) -> 0 | HP15: =MMULT($R15:$HD15,特性化係数リスト!S$5:S$199) -> 0 | HQ15: =MMULT($R15:$HD15,特性化係数リスト!T$5:T$199) -> 0 | HR15: =MMULT($R15:$HD15,特性化係数リスト!U$5:U$199) -> 0 | HS15: =MMULT($R15:$HD15,特性化係数リスト!V$5:V$199) -> 0 | HT15: =MMULT($R15:$HD15,特性化係数リスト!W$5:W$199) -> 0 | HU15: =MMULT($R15:$HD15,特性化係数リスト!X$5:X$199) -> 0 | HV15: =MMULT($R15:$HD15,'被害係数リスト(人間健康)'!H$4:H$198) -> 0 | HW15: =MMULT($R15:$HD15,'被害係数リスト(人間健康)'!I$4:I$198) -> 0 | HX15: =MMULT($R15:$HD15,'被害係数リスト(人間健康)'!J$4:J$198) -> 0 | HY15: =MMULT($R15:$HD15,'被害係数リスト(人間健康)'!K$4:K$198) -> 0 | HZ15: =MMULT($R15:$HD15,'被害係数リスト(人間健康)'!L$4:L$198) -> 0 | IA15: 0 | IB15: =MMULT($R15:$HD15,'被害係数リスト(一次生産)'!H$4:H$198) -> 0 | IC15: =MMULT($R15:$HD15,'被害係数リスト(一次生産)'!I$4:I$198) -> 0 | ID15: =MMULT($R15:$HD15,'被害係数リスト(一次生産)'!J$4:J$198) -> 0 | IE15: =MMULT($R15:$HD15,'被害係数リスト(一次生産)'!K$4:K$198) -> 0 | IF15: 0 | IG15: =MMULT($R15:$HD15,'被害係数リスト(社会資産)'!H$4:H$198) -> 0 | IH15: =MMULT($R15:$HD15,'被害係数リスト(社会資産)'!I$4:I$198) -> 0 | II15: =MMULT($R15:$HD15,'被害係数リスト(社会資産)'!J$4:J$198) -> 0 | IJ15: =MMULT($R15:$HD15,'被害係数リスト(社会資産)'!K$4:K$198) -> 0 | IK15: =MMULT($R15:$HD15,'被害係数リスト(社会資産)'!L$4:L$198) -> 0 | IL15: =MMULT($R15:$HD15,'被害係数リスト(社会資産)'!M$4:M$198) -> 0 | IM15: 0 | IN15: =MMULT($R15:$HD15,'被害係数リスト(生物多様性)'!H$4:H$198) -> 0 | IO15: =MMULT($R15:$HD15,'被害係数リスト(生物多様性)'!I$4:I$198) -> 0 | IP15: =MMULT($R15:$HD15,'被害係数リスト(生物多様性)'!J$4:J$198) -> 0 | IQ15: =MMULT($R15:$HD15,'被害係数リスト(生物多様性)'!K$4:K$198) -> 0 | IR15: 0 | IS15: =MMULT($R15:$HD15,'統合化係数リスト(無次元)'!H$4:H$198) -> 0 | IT15: =MMULT($R15:$HD15,'統合化係数リスト(無次元)'!I$4:I$198) -> 0 | IU15: =MMULT($R15:$HD15,'統合化係数リスト(無次元)'!J$4:J$198) -> 0 | IV15: =MMULT($R15:$HD15,'統合化係数リスト(無次元)'!K$4:K$198) -> 0 | IW15: =MMULT($R15:$HD15,'統合化係数リスト(無次元)'!L$4:L$198) -> 0 | IX15: =MMULT($R15:$HD15,'統合化係数リスト(無次元)'!M$4:M$198) -> 0 | IY15: =MMULT($R15:$HD15,'統合化係数リスト(無次元)'!N$4:N$198) -> 0 | IZ15: =MMULT($R15:$HD15,'統合化係数リスト(無次元)'!O$4:O$198) -> 0 | JA15: =MMULT($R15:$HD15,'統合化係数リスト(無次元)'!P$4:P$198) -> 0 | JB15: =MMULT($R15:$HD15,'統合化係数リスト(無次元)'!Q$4:Q$198) -> 0 | JC15: =MMULT($R15:$HD15,'統合化係数リスト(無次元)'!R$4:R$198) -> 0 | JD15: 0
... 18 more rows

Sheet 環境負荷②掘削除去(埋立)
A1: 評価結果に戻る
A2: モジュール | B2: 算出区分 | C2: 分類 | D2: 種目1 | E2: 種目3 | F2: 燃料種類/素材 | G2: 活動量 | H2: 活動量 | I2: a | J2: 代表的な8項目 | R2: 入力フロー | S2: 入力フロー | T2: 入力フロー | U2: 入力フロー | V2: 入力フロー | W2: 入力フロー | X2: 入力フロー | Y2: 入力フロー | Z2: 入力フロー | AA2: 入力フロー | AB2: 入力フロー | AC2: 入力フロー | AD2: 入力フロー | AE2: 入力フロー | AF2: 入力フロー | AG2: 入力フロー | AH2: 入力フロー | AI2: 入力フロー | AJ2: 入力フロー | AK2: 入力フロー | AL2: 入力フロー | AM2: 入力フロー | AN2: 入力フロー | AO2: 入力フロー | AP2: 入力フロー | AQ2: 入力フロー | AR2: 入力フロー | AS2: 入力フロー | AT2: 入力フロー | AU2: 入力フロー | AV2: 入力フロー | AW2: 入力フロー | AX2: 入力フロー | AY2: 入力フロー | AZ2: 入力フロー | BA2: 入力フロー | BB2: 入力フロー | BC2: 入力フロー | BD2: 入力フロー | BE2: 入力フロー | BF2: 入力フロー | BG2: 入力フロー | BH2: 入力フロー | BI2: 入力フロー | BJ2: 入力フロー | BK2: 入力フロー | BL2: 入力フロー | BM2: 入力フロー | BN2: 入力フロー | BO2: 入力フロー | BP2: 入力フロー | BQ2: 入力フロー | BR2: 入力フロー | BS2: 入力フロー | BT2: 入力フロー | BU2: 入力フロー | BV2: 入力フロー | BW2: 入力フロー | BX2: 入力フロー | BY2: 入力フロー | BZ2: 入力フロー | CA2: 入力フロー | CB2: 入力フロー | CC2: 入力フロー | CD2: 入力フロー | CE2: 入力フロー | CF2: 入力フロー | CG2: 入力フロー | CH2: 入力フロー | CI2: 入力フロー | CJ2: 入力フロー | CK2: 入力フロー | CL2: 入力フロー | CM2: 入力フロー | CN2: 入力フロー | CO2: 入力フロー | CP2: 入力フロー | CQ2: 入力フロー | CR2: 入力フロー | CS2: 入力フロー | CT2: 入力フロー | CU2: 入力フロー | CV2: 入力フロー | CW2: 入力フロー | CX2: 入力フロー | CY2: 入力フロー | CZ2: 出力フロー | DA2: 出力フロー | DB2: 出力フロー | DC2: 出力フロー | DD2: 出力フロー | DE2: 出力フロー | DF2: 出力フロー | DG2: 出力フロー | DH2: 出力フロー | DI2: 出力フロー | DJ2: 出力フロー | DK2: 出力フロー | DL2: 出力フロー | DM2: 出力フロー | DN2: 出力フロー | DO2: 出力フロー | DP2: 出力フロー | DQ2: 出力フロー | DR2: 出力フロー | DS2: 出力フロー | DT2: 出力フロー | DU2: 出力フロー | DV2: 出力フロー | DW2: 出力フロー | DX2: 出力フロー | DY2: 出力フロー | DZ2: 出力フロー | EA2: 出力フロー | EB2: 出力フロー | EC2: 出力フロー | ED2: 出力フロー | EE2: 出力フロー | EF2: 出力フロー | EG2: 出力フロー | EH2: 出力フロー | EI2: 出力フロー | EJ2: 出力フロー | EK2: 出力フロー | EL2: 出力フロー | EM2: 出力フロー | EN2: 出力フロー | EO2: 出力フロー | EP2: 出力フロー | EQ2: 出力フロー | ER2: 出力フロー | ES2: 出力フロー | ET2: 出力フロー | EU2: 出力フロー | EV2: 出力フロー | EW2: 出力フロー | EX2: 出力フロー | EY2: 出力フロー | EZ2: 出力フロー | FA2: 出力フロー | FB2: 出力フロー | FC2: 出力フロー | FD2: 出力フロー | FE2: 出力フロー | FF2: 出力フロー | FG2: 出力フロー | FH2: 出力フロー | FI2: 出力フロー | FJ2: 出力フロー | FK2: 出力フロー | FL2: 出力フロー | FM2: 出力フロー | FN2: 出力フロー | FO2: 出力フロー | FP2: 出力フロー | FQ2: 出力フロー | FR2: 出力フロー | FS2: 出力フロー | FT2: 出力フロー | FU2: 出力フロー | FV2: 出力フロー | FW2: 出力フロー | FX2: 出力フロー | FY2: 出力フロー | FZ2: 出力フロー | GA2: 出力フロー | GB2: 出力フロー | GC2: 出力フロー | GD2: 出力フロー | GE2: 出力フロー | GF2: 出力フロー | GG2: 出力フロー | GH2: 出力フロー | GI2: 出力フロー | GJ2: 出力フロー | GK2: 出力フロー | GL2: 出力フロー | GM2: 出力フロー | GN2: 出力フロー | GO2: 出力フロー | GP2: 出力フロー | GQ2: 出力フロー | GR2: 出力フロー | GS2: 出力フロー | GT2: 出力フロー | GU2: 出力フロー | GV2: 出力フロー | GW2: 出力フロー | GX2: 出力フロー | GY2: 出力フロー | GZ2: 出力フロー | HA2: 出力フロー | HB2: 出力フロー | HC2: 出力フロー | HD2: 出力フロー | HE2: 特性化 | HF2: 特性化 | HG2: 特性化 | HH2: 特性化 | HI2: 特性化 | HJ2: 特性化 | HK2: 特性化 | HL2: 特性化 | HM2: 特性化 | HN2: 特性化 | HO2: 特性化 | HP2: 特性化 | HQ2: 特性化 | HR2: 特性化 | HS2: 特性化 | HT2: 特性化 | HU2: 特性化 | HV2: 被害評価 | HW2: 被害評価 | HX2: 被害評価 | HY2: 被害評価 | HZ2: 被害評価 | IA2: 被害評価 | IB2: 被害評価 | IC2: 被害評価 | ID2: 被害評価 | IE2: 被害評価 | IF2: 被害評価 | IG2: 被害評価 | IH2: 被害評価 | II2: 被害評価 | IJ2: 被害評価 | IK2: 被害評価 | IL2: 被害評価 | IM2: 被害評価 | IN2: 被害評価 | IO2: 被害評価 | IP2: 被害評価 | IQ2: 被害評価 | IR2: 被害評価 | IS2: 統合化 | IT2: 統合化 | IU2: 統合化 | IV2: 統合化 | IW2: 統合化 | IX2: 統合化 | IY2: 統合化 | IZ2: 統合化 | JA2: 統合化 | JB2: 統合化 | JC2: 統合化 | JD2: 統合化
C3: 番号 | G3: 数値 | H3: 単位 | I3: b | J3: 大気 | N3: エネルギー | O3: マテリアル | Q3: 廃棄物 | R3: 基本フロー | S3: 基本フロー | T3: 基本フロー | U3: 基本フロー | V3: 基本フロー | W3: 基本フロー | X3: 基本フロー | Y3: 基本フロー | Z3: 基本フロー | AA3: 基本フロー | AB3: 基本フロー | AC3: 基本フロー | AD3: 基本フロー | AE3: 基本フロー | AF3: 基本フロー | AG3: 基本フロー | AH3: 基本フロー | AI3: 基本フロー | AJ3: 基本フロー | AK3: 基本フロー | AL3: 基本フロー | AM3: 基本フロー | AN3: 基本フロー | AO3: 基本フロー | AP3: 基本フロー | AQ3: 基本フロー | AR3: 基本フロー | AS3: 基本フロー | AT3: 基本フロー | AU3: 基本フロー | AV3: 基本フロー | AW3: 基本フロー | AX3: 基本フロー | AY3: 基本フロー | AZ3: 基本フロー | BA3: 基本フロー | BB3: 基本フロー | BC3: 基本フロー | BD3: 基本フロー | BE3: 基本フロー | BF3: 基本フロー | BG3: 基本フロー | BH3: 基本フロー | BI3: 基本フロー | BJ3: 基本フロー | BK3: 基本フロー | BL3: 基本フロー | BM3: 基本フロー | BN3: 基本フロー | BO3: 基本フロー | BP3: 基本フロー | BQ3: 基本フロー | BR3: 基本フロー | BS3: 基本フロー | BT3: 中間フロー | BU3: 中間フロー | BV3: 中間フロー | BW3: 中間フロー | BX3: 中間フロー | BY3: 中間フロー | BZ3: 中間フロー | CA3: 中間フロー | CB3: 中間フロー | CC3: 中間フロー | CD3: 中間フロー | CE3: 中間フロー | CF3: 中間フロー | CG3: 中間フロー | CH3: 中間フロー | CI3: 中間フロー | CJ3: 中間フロー | CK3: 中間フロー | CL3: 中間フロー | CM3: 中間フロー | CN3: 中間フロー | CO3: 中間フロー | CP3: 中間フロー | CQ3: 中間フロー | CR3: 中間フロー | CS3: 中間フロー | CT3: 中間フロー | CU3: 中間フロー | CV3: 中間フロー | CW3: 中間フロー | CX3: 中間フロー | CY3: 中間フロー | CZ3: 基本フロー | DA3: 基本フロー | DB3: 基本フロー | DC3: 基本フロー | DD3: 基本フロー | DE3: 基本フロー | DF3: 基本フロー | DG3: 基本フロー | DH3: 基本フロー | DI3: 基本フロー | DJ3: 基本フロー | DK3: 基本フロー | DL3: 基本フロー | DM3: 基本フロー | DN3: 基本フロー | DO3: 基本フロー | DP3: 基本フロー | DQ3: 基本フロー | DR3: 基本フロー | DS3: 基本フロー | DT3: 基本フロー | DU3: 基本フロー | DV3: 基本フロー | DW3: 基本フロー | DX3: 基本フロー | DY3: 基本フロー | DZ3: 基本フロー | EA3: 基本フロー | EB3: 基本フロー | EC3: 基本フロー | ED3: 基本フロー | EE3: 基本フロー | EF3: 基本フロー | EG3: 基本フロー | EH3: 基本フロー | EI3: 基本フロー | EJ3: 基本フロー | EK3: 基本フロー | EL3: 基本フロー | EM3: 基本フロー | EN3: 基本フロー | EO3: 基本フロー | EP3: 基本フロー | EQ3: 基本フロー | ER3: 基本フロー | ES3: 基本フロー | ET3: 基本フロー | EU3: 基本フロー | EV3: 基本フロー | EW3: 基本フロー | EX3: 基本フロー | EY3: 基本フロー | EZ3: 基本フロー | FA3: 基本フロー | FB3: 基本フロー | FC3: 基本フロー | FD3: 基本フロー | FE3: 基本フロー | FF3: 基本フロー | FG3: 基本フロー | FH3: 基本フロー | FI3: 基本フロー | FJ3: 基本フロー | FK3: 基本フロー | FL3: 基本フロー | FM3: 基本フロー | FN3: 基本フロー | FO3: 基本フロー | FP3: 基本フロー | FQ3: 基本フロー | FR3: 基本フロー | FS3: 基本フロー | FT3: 基本フロー | FU3: 中間フロー | FV3: 中間フロー | FW3: 中間フロー | FX3: 中間フロー | FY3: 中間フロー | FZ3: 中間フロー | GA3: 中間フロー | GB3: 中間フロー | GC3: 中間フロー | GD3: 中間フロー | GE3: 中間フロー | GF3: 中間フロー | GG3: 中間フロー | GH3: 中間フロー | GI3: 中間フロー | GJ3: 中間フロー | GK3: 中間フロー | GL3: 中間フロー | GM3: 中間フロー | GN3: 中間フロー | GO3: 中間フロー | GP3: 中間フロー | GQ3: 中間フロー | GR3: 中間フロー | GS3: 中間フロー | GT3: 中間フロー | GU3: 中間フロー | GV3: 中間フロー | GW3: 中間フロー | GX3: 中間フロー | GY3: 中間フロー | GZ3: 中間フロー | HA3: 中間フロー | HB3: 中間フロー | HC3: 中間フロー | HD3: 中間フロー | HE3: － | HF3: － | HG3: － | HH3: － | HI3: － | HJ3: － | HK3: － | HL3: － | HM3: － | HN3: － | HO3: － | HP3: － | HQ3: － | HR3: － | HS3: － | HT3: － | HU3: － | HV3: 人間健康 | HW3: 人間健康 | HX3: 人間健康 | HY3: 人間健康 | HZ3: 人間健康 | IA3: 人間健康 | IB3: 一次生産 | IC3: 一次生産 | ID3: 一次生産 | IE3: 一次生産 | IF3: 一次生産 | IG3: 社会資産 | IH3: 社会資産 | II3: 社会資産 | IJ3: 社会資産 | IK3: 社会資産 | IL3: 社会資産 | IM3: 社会資産 | IN3: 生物多様性 | IO3: 生物多様性 | IP3: 生物多様性 | IQ3: 生物多様性 | IR3: 生物多様性 | IS3: 経済換算 | IT3: 経済換算 | IU3: 経済換算 | IV3: 経済換算 | IW3: 経済換算 | IX3: 経済換算 | IY3: 経済換算 | IZ3: 経済換算 | JA3: 経済換算 | JB3: 経済換算 | JC3: 経済換算 | JD3: 経済換算
I4: c | J4: CO2 | K4: PM10 | L4: SOX | M4: NOX | N4: 原油, 44.7MJ/kg | O4: 鉄 | P4: 砂 | Q4: 廃棄物 | R4: 一般炭, 25.7MJ/kg | S4: 原油, 44.7MJ/kg | T4: 原料炭, 29.0MJ/kg | U4: 天然ガス, 54.6MJ/kg | V4: 天然ガス液, 46.5MJ/kg | W4: ウラン,U3O8 | X4: アンチモン | Y4: クロム | Z4: コバルト | AA4: タングステン | AB4: チタン | AC4: ニッケル | AD4: バナジウム | AE4: バリウム | AF4: ビスマス | AG4: ホウ素 | AH4: マンガン | AI4: モリブデン | AJ4: リチウム | AK4: リン | AL4: 亜鉛 | AM4: 鉛 | AN4: 金 | AO4: 銀 | AP4: 砂 | AQ4: 大理石 | AR4: 鉄 | AS4: 銅 | AT4: 白金 | AU4: 硫黄 | AV4: カオリン | AW4: ケイ砂 | AX4: タルク | AY4: ドロマイト | AZ4: ベントナイト | BA4: ボーキサイト | BB4: 塩化ナトリウム | BC4: 珪石 | BD4: 珪藻岩 | BE4: 蛍石 | BF4: 黒鉛鉱 | BG4: 蛇紋岩 | BH4: 石灰石 | BI4: 長石 | BJ4: 粘土 | BK4: 一次エネルギー(地熱) | BL4: フィールドラテックス | BM4: 一次エネルギー(水力) | BN4: かん水 | BO4: 海水 | BP4: 地下水 | BQ4: 地表水 | BR4: 一次エネルギー(太陽光) | BS4: 空気 | BT4: アルミニウムくず | BU4: オフガス | BV4: ガラスくず・陶磁器くず, 再生利用品 | BW4: コークス炉ガス | BX4: ばいじん, 再生利用品 | BY4: パルプ黒液(用水分を除く) | BZ4: 一廃（特定せず） | CA4: 汚泥, 再生利用品 | CB4: 古紙 | CC4: 鉱さい（スラグ), 再生利用品 | CD4: 鋼くず | CE4: 高炉ガス | CF4: 使用済みガラスびん | CG4: 使用済ゴム, 再生利用品 | CH4: 使用済みペットボトル | CI4: 繊維くず, 再生利用品 | CJ4: 銑くず | CK4: 転炉ガス(LDG) | CL4: 電気炉ガス(EFG) | CM4: 動植物性残さ, 再生利用品 | CN4: 銅くず | CO4: 二酸化硫黄,再生利用品 | CP4: 熱エネルギー | CQ4: 廃アルカリ, 再生利用品 | CR4: 廃タイヤ | CS4: 廃プラスチック類, 再生利用品 | CT4: 廃酸, 再生利用品 | CU4: 廃油,再生利用品 | CV4: 非鉄金属くず,再生利用品 | CW4: 木くず, 再生利用品 | CX4: その他の使用済み製品 | CY4: その他の地中からの鉱物資源 | CZ4: 2,3,7,8-テトラクロロジベンゾジオキシン | DA4: CH4(発生源不特定） | DB4: CH4（化石資源由来） | DC4: CO | DD4: CO | DE4: CO2(化石資源由来） | DF4: CO2(化石資源由来） | DG4: CO2(生物由来） | DH4: N2O | DI4: N2O | DJ4: NH3 | DK4: NO2 | DL4: NOx | DM4: NOx | DN4: PM10 | DO4: PM10 | DP4: SF6 | DQ4: SO2 | DR4: SO2 | DS4: SOx | DT4: SOx | DU4: カドミウム | DV4: クロム | DW4: コバルト | DX4: ニッケル | DY4: パーフルオロメタン | DZ4: ばいじん(> PM10） | EA4: バナジウム | EB4: ヒ素 | EC4: フッ化水素 | ED4: 亜鉛 | EE4: 鉛 | EF4: 塩化水素 | EG4: 塩素 | EH4: 揮発性有機化合物 | EI4: 水銀 | EJ4: 水蒸気 | EK4: 炭化水素 | EL4: 炭化水素 | EM4: 銅 | EN4: 非メタン炭化水素 | EO4: 硫化水素 | EP4: 硫酸 | EQ4: acid (as H+) | ER4: BOD | ES4: C6 アルキルベンゼン | ET4: COD | EU4: アンモニウムイオン | EV4: カドミウム | EW4: クロム | EX4: コバルト | EY4: ニッケル | EZ4: ニッケル化合物 | FA4: ヒ素 | FB4: フェノール | FC4: フッ化水素 | FD4: ホウ素 | FE4: マンガン | FF4: 亜鉛 | FG4: 鉛 | FH4: 処理済水 | FI4: 水銀 | FJ4: 全リン | FK4: 全窒素 | FL4: 炭化水素 | FM4: 銅 | FN4: 浮遊物質(SS) | FO4: 硫酸 | FP4: 汚泥(埋立) | FQ4: 金属くず(埋立) | FR4: 鉱さい(埋立) | FS4: 低レベル放射性廃棄物 | FT4: 土砂(埋立) | FU4: アルミニウムくず | FV4: ガラスくず・陶磁器くず, 再生利用品 | FW4: がれき類, 再生利用品 | FX4: コークス炉ガス | FY4: スラグ、ドロス等 | FZ4: にがり | GA4: ばいじん, 再生利用品 | GB4: 汚泥, 再生利用品 | GC4: 金属くず, 再生利用品 | GD4: 鉱さい（スラグ), 再生利用品 | GE4: 鋼くず | GF4: 高炉ガス | GG4: 産廃(特定せず) | GH4: 使用済ゴム, 再生利用品 | GI4: 紙くず, 再生利用品 | GJ4: 蒸気 | GK4: 水素 | GL4: 繊維くず, 再生利用品 | GM4: 銑くず | GN4: 粗製コールタール | GO4: 転炉ガス(LDG) | GP4: 電気炉ガス(EFG) | GQ4: 動植物性残さ, 再生利用品 | GR4: 銅くず | GS4: 二酸化硫黄,再生利用品 | GT4: 燃え殻, 再生利用品 | GU4: 廃アルカリ, 再生利用品 | GV4: 廃プラスチック類, 再生利用品 | GW4: 廃酸, 再生利用品 | GX4: 廃油,再生利用品 | GY4: 非鉄金属くず,再生利用品 | GZ4: 木くず, 再生利用品 | HA4: 硫化ナトリウム（副製品） | HB4: 硫酸,100%換算,副生品 | HC4: その他の産業廃棄物 | HD4: その他の土壌排出物 | HE4: 地球温暖化 | HF4: 酸性化 | HG4: 都市域大気汚染 | HH4: 光化学オキシダント | HI4: 有害化学物質 | HJ4: 有害化学物質 | HK4: 有害化学物質 | HL4: 有害化学物質 | HM4: 水生生態毒性、陸生生態毒性 | HN4: 水生生態毒性、陸生生態毒性 | HO4: 水生生態毒性、陸生生態毒性 | HP4: 水生生態毒性、陸生生態毒性 | HQ4: 富栄養化 | HR4: 資源消費 | HS4: 資源消費 | HT4: 資源消費 | HU4: 廃棄物 | HV4: 地球温暖化 | HW4: 都市域大気汚染 | HX4: 光化学オキシダント | HY4: 有害化学物質 | HZ4: 有害化学物質 | IA4: 合計 | IB4: 酸性化 | IC4: 光化学オキシダント | ID4: 資源消費 | IE4: 廃棄物 | IF4: 合計 | IG4: 地球温暖化 | IH4: 酸性化 | II4: 光化学オキシダント | IJ4: 富栄養化 | IK4: 資源消費 | IL4: 廃棄物 | IM4: 合計 | IN4: 水生生態毒性、陸生生態毒性 | IO4: 水生生態毒性、陸生生態毒性 | IP4: 資源消費 | IQ4: 廃棄物 | IR4: 合計 | IS4: 地球温暖化 | IT4: 酸性化 | IU4: 都市域大気汚染 | IV4: 光化学オキシダント | IW4: 有害化学物質 | IX4: 有害化学物質 | IY4: 水生生態毒性、陸生生態毒性 | IZ4: 水生生態毒性、陸生生態毒性 | JA4: 富栄養化 | JB4: 資源消費 | JC4: 廃棄物 | JD4: 合計
I5: d | J5: 排出物 | K5: 排出物 | L5: 排出物 | M5: 排出物 | N5: 資源 | O5: 資源 | P5: =AP5 -> 資源 | Q5: 排出物 | R5: 資源 | S5: 資源 | T5: 資源 | U5: 資源 | V5: 資源 | W5: 資源 | X5: 資源 | Y5: 資源 | Z5: 資源 | AA5: 資源 | AB5: 資源 | AC5: 資源 | AD5: 資源 | AE5: 資源 | AF5: 資源 | AG5: 資源 | AH5: 資源 | AI5: 資源 | AJ5: 資源 | AK5: 資源 | AL5: 資源 | AM5: 資源 | AN5: 資源 | AO5: 資源 | AP5: 資源 | AQ5: 資源 | AR5: 資源 | AS5: 資源 | AT5: 資源 | AU5: 資源 | AV5: 資源 | AW5: 資源 | AX5: 資源 | AY5: 資源 | AZ5: 資源 | BA5: 資源 | BB5: 資源 | BC5: 資源 | BD5: 資源 | BE5: 資源 | BF5: 資源 | BG5: 資源 | BH5: 資源 | BI5: 資源 | BJ5: 資源 | BK5: 資源 | BL5: 資源 | BM5: 資源 | BN5: 資源 | BO5: 資源 | BP5: 資源 | BQ5: 資源 | BR5: 資源 | BS5: 資源 | BT5: - | BU5: - | BV5: - | BW5: - | BX5: - | BY5: - | BZ5: - | CA5: - | CB5: - | CC5: - | CD5: - | CE5: - | CF5: - | CG5: - | CH5: - | CI5: - | CJ5: - | CK5: - | CL5: - | CM5: - | CN5: - | CO5: - | CP5: - | CQ5: - | CR5: - | CS5: - | CT5: - | CU5: - | CV5: - | CW5: - | CX5: - | CY5: - | CZ5: 排出物 | DA5: 排出物 | DB5: 排出物 | DC5: 排出物 | DD5: 排出物 | DE5: 排出物 | DF5: 排出物 | DG5: 排出物 | DH5: 排出物 | DI5: 排出物 | DJ5: 排出物 | DK5: 排出物 | DL5: 排出物 | DM5: 排出物 | DN5: 排出物 | DO5: 排出物 | DP5: 排出物 | DQ5: 排出物 | DR5: 排出物 | DS5: 排出物 | DT5: 排出物 | DU5: 排出物 | DV5: 排出物 | DW5: 排出物 | DX5: 排出物 | DY5: 排出物 | DZ5: 排出物 | EA5: 排出物 | EB5: 排出物 | EC5: 排出物 | ED5: 排出物 | EE5: 排出物 | EF5: 排出物 | EG5: 排出物 | EH5: 排出物 | EI5: 排出物 | EJ5: 排出物 | EK5: 排出物 | EL5: 排出物 | EM5: 排出物 | EN5: 排出物 | EO5: 排出物 | EP5: 排出物 | EQ5: 排出物 | ER5: 排出物 | ES5: 排出物 | ET5: 排出物 | EU5: 排出物 | EV5: 排出物 | EW5: 排出物 | EX5: 排出物 | EY5: 排出物 | EZ5: 排出物 | FA5: 排出物 | FB5: 排出物 | FC5: 排出物 | FD5: 排出物 | FE5: 排出物 | FF5: 排出物 | FG5: 排出物 | FH5: 排出物 | FI5: 排出物 | FJ5: 排出物 | FK5: 排出物 | FL5: 排出物 | FM5: 排出物 | FN5: 排出物 | FO5: 排出物 | FP5: 排出物 | FQ5: 排出物 | FR5: 排出物 | FS5: 排出物 | FT5: 排出物 | FU5: - | FV5: - | FW5: - | FX5: - | FY5: - | FZ5: - | GA5: - | GB5: - | GC5: - | GD5: - | GE5: - | GF5: - | GG5: - | GH5: - | GI5: - | GJ5: - | GK5: - | GL5: - | GM5: - | GN5: - | GO5: - | GP5: - | GQ5: - | GR5: - | GS5: - | GT5: - | GU5: - | GV5: - | GW5: - | GX5: - | GY5: - | GZ5: - | HA5: - | HB5: - | HC5: - | HD5: - | HE5: － | HF5: － | HG5: － | HH5: － | HI5: HTP cancer | HJ5: HTP cancer | HK5: HTP chronic disease | HL5: HTP chronic disease | HM5: 大気への排出 | HN5: 大気への排出 | HO5: 水相への排出 | HP5: 水相への排出 | HQ5: － | HR5: 1/R（可採埋蔵量ベース） | HS5: 1/R（可採埋蔵量ベース） | HT5: 発熱量 | HU5: 重量体積換算係数 | HV5: － | HW5: － | HX5: － | HY5: 大気排出 | HZ5: 水域排出 | IA5: － | IB5: － | IC5: － | ID5: － | IE5: － | IF5: － | IG5: － | IH5: － | II5: － | IJ5: － | IK5: － | IL5: － | IM5: － | IN5: 大気への排出 | IO5: 水相への排出 | IP5: － | IQ5: － | IR5: － | IS5: － | IT5: － | IU5: － | IV5: － | IW5: 大気排出 | IX5: 水域排出 | IY5: 大気への排出 | IZ5: 水相への排出 | JA5: － | JB5: － | JC5: － | JD5: －
I6: e | J6: 大気 | K6: 大気 | L6: 大気 | M6: 大気 | N6: 陸域 | O6: 陸域 | P6: 陸域 | Q6: 陸域 | R6: 陸域 | S6: 陸域 | T6: 陸域 | U6: 陸域 | V6: 陸域 | W6: 陸域 | X6: 陸域 | Y6: 陸域 | Z6: 陸域 | AA6: 陸域 | AB6: 陸域 | AC6: 陸域 | AD6: 陸域 | AE6: 陸域 | AF6: 陸域 | AG6: 陸域 | AH6: 陸域 | AI6: 陸域 | AJ6: 陸域 | AK6: 陸域 | AL6: 陸域 | AM6: 陸域 | AN6: 陸域 | AO6: 陸域 | AP6: 陸域 | AQ6: 陸域 | AR6: 陸域 | AS6: 陸域 | AT6: 陸域 | AU6: 陸域 | AV6: 陸域 | AW6: 陸域 | AX6: 陸域 | AY6: 陸域 | AZ6: 陸域 | BA6: 陸域 | BB6: 陸域 | BC6: 陸域 | BD6: 陸域 | BE6: 陸域 | BF6: 陸域 | BG6: 陸域 | BH6: 陸域 | BI6: 陸域 | BJ6: 陸域 | BK6: 陸域 | BL6: 陸域 | BM6: 水圏 | BN6: 水圏 | BO6: 水圏 | BP6: 水圏 | BQ6: 水圏 | BR6: 大気 | BS6: 大気 | BT6: - | BU6: - | BV6: - | BW6: - | BX6: - | BY6: - | BZ6: - | CA6: - | CB6: - | CC6: - | CD6: - | CE6: - | CF6: - | CG6: - | CH6: - | CI6: - | CJ6: - | CK6: - | CL6: - | CM6: - | CN6: - | CO6: - | CP6: - | CQ6: - | CR6: - | CS6: - | CT6: - | CU6: - | CV6: - | CW6: - | CX6: - | CY6: - | CZ6: 大気 | DA6: 大気 | DB6: 大気 | DC6: 大気 | DD6: 大気 | DE6: 大気 | DF6: 大気 | DG6: 大気 | DH6: 大気 | DI6: 大気 | DJ6: 大気 | DK6: 大気 | DL6: 大気 | DM6: 大気 | DN6: 大気 | DO6: 大気 | DP6: 大気 | DQ6: 大気 | DR6: 大気 | DS6: 大気 | DT6: 大気 | DU6: 大気 | DV6: 大気 | DW6: 大気 | DX6: 大気 | DY6: 大気 | DZ6: 大気 | EA6: 大気 | EB6: 大気 | EC6: 大気 | ED6: 大気 | EE6: 大気 | EF6: 大気 | EG6: 大気 | EH6: 大気 | EI6: 大気 | EJ6: 大気 | EK6: 大気 | EL6: 大気 | EM6: 大気 | EN6: 大気 | EO6: 大気 | EP6: 大気 | EQ6: 水圏 | ER6: 水圏 | ES6: 水圏 | ET6: 水圏 | EU6: 水圏 | EV6: 水圏 | EW6: 水圏 | EX6: 水圏 | EY6: 水圏 | EZ6: 水圏 | FA6: 水圏 | FB6: 水圏 | FC6: 水圏 | FD6: 水圏 | FE6: 水圏 | FF6: 水圏 | FG6: 水圏 | FH6: 水圏 | FI6: 水圏 | FJ6: 水圏 | FK6: 水圏 | FL6: 水圏 | FM6: 水圏 | FN6: 水圏 | FO6: 水圏 | FP6: 陸域 | FQ6: 陸域 | FR6: 陸域 | FS6: 陸域 | FT6: 陸域 | FU6: - | FV6: - | FW6: - | FX6: - | FY6: - | FZ6: - | GA6: - | GB6: - | GC6: - | GD6: - | GE6: - | GF6: - | GG6: - | GH6: - | GI6: - | GJ6: - | GK6: - | GL6: - | GM6: - | GN6: - | GO6: - | GP6: - | GQ6: - | GR6: - | GS6: - | GT6: - | GU6: - | GV6: - | GW6: - | GX6: - | GY6: - | GZ6: - | HA6: - | HB6: - | HC6: - | HD6: - | HE6: － | HF6: － | HG6: － | HH6: － | HI6: 大気排出 | HJ6: 水域排出 | HK6: 大気排出 | HL6: 水域排出 | HM6: AETP | HN6: TETP | HO6: AETP | HP6: TETP | HQ6: － | HR6: Sb equiv. | HS6: Sb正規化前 | HT6: － | HU6: － | HV6: － | HW6: － | HX6: － | HY6: － | HZ6: － | IA6: － | IB6: － | IC6: － | ID6: － | IE6: － | IF6: － | IG6: － | IH6: － | II6: － | IJ6: － | IK6: － | IL6: － | IM6: － | IN6: － | IO6: － | IP6: － | IQ6: － | IR6: － | IS6: － | IT6: － | IU6: － | IV6: － | IW6: － | IX6: － | IY6: － | IZ6: － | JA6: － | JB6: － | JC6: － | JD6: －
I7: f | J7: ― | K7: ― | L7: ― | M7: ― | N7: 非再生可能エネルギー | O7: 非再生可能元素 | P7: 非再生可能元素 | Q7: 管理域内 | R7: 非再生可能エネルギー | S7: 非再生可能エネルギー | T7: 非再生可能エネルギー | U7: 非再生可能エネルギー | V7: 非再生可能エネルギー | W7: 非再生可能エネルギー | X7: 非再生可能元素 | Y7: 非再生可能元素 | Z7: 非再生可能元素 | AA7: 非再生可能元素 | AB7: 非再生可能元素 | AC7: 非再生可能元素 | AD7: 非再生可能元素 | AE7: 非再生可能元素 | AF7: 非再生可能元素 | AG7: 非再生可能元素 | AH7: 非再生可能元素 | AI7: 非再生可能元素 | AJ7: 非再生可能元素 | AK7: 非再生可能元素 | AL7: 非再生可能元素 | AM7: 非再生可能元素 | AN7: 非再生可能元素 | AO7: 非再生可能元素 | AP7: 非再生可能元素 | AQ7: 非再生可能元素 | AR7: 非再生可能元素 | AS7: 非再生可能元素 | AT7: 非再生可能元素 | AU7: 非再生可能元素 | AV7: 非再生材料 | AW7: 非再生材料 | AX7: 非再生材料 | AY7: 非再生材料 | AZ7: 非再生材料 | BA7: 非再生材料 | BB7: 非再生材料 | BC7: 非再生材料 | BD7: 非再生材料 | BE7: 非再生材料 | BF7: 非再生材料 | BG7: 非再生材料 | BH7: 非再生材料 | BI7: 非再生材料 | BJ7: 非再生材料 | BK7: 再生可能エネルギー | BL7: 再生可能材料 | BM7: 再生可能エネルギー | BN7: 再生可能材料 | BO7: 再生可能材料 | BP7: 再生可能材料 | BQ7: 再生可能材料 | BR7: 再生可能エネルギー | BS7: 再生可能材料 | BT7: - | BU7: - | BV7: - | BW7: - | BX7: - | BY7: - | BZ7: - | CA7: - | CB7: - | CC7: - | CD7: - | CE7: - | CF7: - | CG7: - | CH7: - | CI7: - | CJ7: - | CK7: - | CL7: - | CM7: - | CN7: - | CO7: - | CP7: - | CQ7: - | CR7: - | CS7: - | CT7: - | CU7: - | CV7: - | CW7: - | CX7: - | CY7: - | CZ7: 不特定 | DA7: 不特定 | DB7: 都市域（地表付近） | DC7: 不特定 | DD7: 都市域（地表付近） | DE7: 不特定 | DF7: 都市域（地表付近） | DG7: 不特定 | DH7: 不特定 | DI7: 都市域（地表付近） | DJ7: 不特定 | DK7: 都市域（地表付近） | DL7: 不特定 | DM7: 都市域（地表付近） | DN7: 不特定 | DO7: 都市域（地表付近） | DP7: 不特定 | DQ7: 不特定 | DR7: 都市域（地表付近） | DS7: 不特定 | DT7: 都市域（地表付近） | DU7: 不特定 | DV7: 不特定 | DW7: 不特定 | DX7: 不特定 | DY7: 不特定 | DZ7: 不特定 | EA7: 不特定 | EB7: 不特定 | EC7: 不特定 | ED7: 不特定 | EE7: 不特定 | EF7: 不特定 | EG7: 不特定 | EH7: 不特定 | EI7: 不特定 | EJ7: 対流圏 | EK7: 不特定 | EL7: 都市域（地表付近） | EM7: 不特定 | EN7: 不特定 | EO7: 不特定 | EP7: 不特定 | EQ7: 不特定 | ER7: 不特定 | ES7: 不特定 | ET7: 不特定 | EU7: 不特定 | EV7: 不特定 | EW7: 不特定 | EX7: 不特定 | EY7: 不特定 | EZ7: 不特定 | FA7: 不特定 | FB7: 不特定 | FC7: 不特定 | FD7: 不特定 | FE7: 不特定 | FF7: 不特定 | FG7: 不特定 | FH7: 不特定 | FI7: 不特定 | FJ7: 不特定 | FK7: 不特定 | FL7: 不特定 | FM7: 不特定 | FN7: 不特定 | FO7: 不特定 | FP7: 管理域内 | FQ7: 管理域内 | FR7: 管理域内 | FS7: 管理域内 | FT7: 管理域内 | FU7: - | FV7: - | FW7: - | FX7: - | FY7: - | FZ7: - | GA7: - | GB7: - | GC7: - | GD7: - | GE7: - | GF7: - | GG7: - | GH7: - | GI7: - | GJ7: - | GK7: - | GL7: - | GM7: - | GN7: - | GO7: - | GP7: - | GQ7: - | GR7: - | GS7: - | GT7: - | GU7: - | GV7: - | GW7: - | GX7: - | GY7: - | GZ7: - | HA7: - | HB7: - | HC7: - | HD7: - | HE7: － | HF7: － | HG7: － | HH7: － | HI7: － | HJ7: － | HK7: － | HL7: － | HM7: － | HN7: － | HO7: － | HP7: － | HQ7: － | HR7: － | HS7: － | HT7: － | HV7: － | HW7: － | HX7: － | HY7: － | HZ7: － | IA7: － | IB7: － | IC7: － | ID7: － | IE7: － | IF7: － | IG7: － | IH7: － | II7: － | IJ7: － | IK7: － | IL7: － | IM7: － | IN7: － | IO7: － | IP7: － | IQ7: － | IR7: － | IS7: － | IT7: － | IU7: － | IV7: － | IW7: － | IX7: － | IY7: － | IZ7: － | JA7: － | JB7: － | JC7: － | JD7: －
I8: g | J8: kg | K8: kg | L8: kg | M8: kg | N8: kg | O8: kg | P8: kg | Q8: kg | R8: kg | S8: kg | T8: kg | U8: kg | V8: kg | W8: kg | X8: kg | Y8: kg | Z8: kg | AA8: kg | AB8: kg | AC8: kg | AD8: kg | AE8: kg | AF8: kg | AG8: kg | AH8: kg | AI8: kg | AJ8: kg | AK8: kg | AL8: kg | AM8: kg | AN8: kg | AO8: kg | AP8: kg | AQ8: kg | AR8: kg | AS8: kg | AT8: kg | AU8: kg | AV8: kg | AW8: kg | AX8: kg | AY8: kg | AZ8: kg | BA8: kg | BB8: kg | BC8: kg | BD8: kg | BE8: kg | BF8: kg | BG8: kg | BH8: kg | BI8: kg | BJ8: kg | BK8: MJ | BL8: kg | BM8: MJ | BN8: kg | BO8: kg | BP8: kg | BQ8: kg | BR8: MJ | BS8: kg | BT8: kg | BU8: Nm3 | BV8: kg | BW8: Nm3 | BX8: kg | BY8: 絶乾kg | BZ8: kg | CA8: kg | CB8: kg | CC8: kg | CD8: kg | CE8: Nm3 | CF8: kg | CG8: kg | CH8: kg | CI8: kg | CJ8: kg | CK8: Nm3 | CL8: Nm3 | CM8: kg | CN8: kg | CO8: kg | CP8: MJ | CQ8: kg | CR8: kg | CS8: kg | CT8: kg | CU8: kg | CV8: kg | CW8: kg | CX8: kg | CY8: kg | CZ8: kg | DA8: kg | DB8: kg | DC8: kg | DD8: kg | DE8: kg | DF8: kg | DG8: kg | DH8: kg | DI8: kg | DJ8: kg | DK8: kg | DL8: kg | DM8: kg | DN8: kg | DO8: kg | DP8: kg | DQ8: kg | DR8: kg | DS8: kg | DT8: kg | DU8: kg | DV8: kg | DW8: kg | DX8: kg | DY8: kg | DZ8: kg | EA8: kg | EB8: kg | EC8: kg | ED8: kg | EE8: kg | EF8: kg | EG8: kg | EH8: kg | EI8: kg | EJ8: kg | EK8: kg | EL8: kg | EM8: kg | EN8: kg | EO8: kg | EP8: kg | EQ8: kg | ER8: kg | ES8: kg | ET8: kg | EU8: kg | EV8: kg | EW8: kg | EX8: kg | EY8: kg | EZ8: kg | FA8: kg | FB8: kg | FC8: kg | FD8: kg | FE8: kg | FF8: kg | FG8: kg | FH8: kg | FI8: kg | FJ8: kg | FK8: kg | FL8: kg | FM8: kg | FN8: kg | FO8: kg | FP8: kg | FQ8: kg | FR8: kg | FS8: kg | FT8: kg | FU8: kg | FV8: kg | FW8: kg | FX8: Nm3 | FY8: kg | FZ8: L | GA8: kg | GB8: kg | GC8: kg | GD8: kg | GE8: kg | GF8: Nm3 | GG8: kg | GH8: kg | GI8: kg | GJ8: kg | GK8: Nm3 | GL8: kg | GM8: kg | GN8: kg | GO8: Nm3 | GP8: Nm3 | GQ8: kg | GR8: kg | GS8: kg | GT8: kg | GU8: kg | GV8: kg | GW8: kg | GX8: kg | GY8: kg | GZ8: kg | HA8: kg | HB8: kg | HC8: kg | HD8: kg | HE8: kg-CO2 eq | HF8: kg-SO2 eq | HG8: kg-SO2 eq | HH8: kg-ethylene eq | HI8: kg-benzene (air) eq | HJ8: kg-benzene (air) eq | HK8: kg-benzene (air) eq | HL8: kg-benzene (air) eq | HM8: kg-benzene (water, soil) eq | HN8: kg-benzene (water, soil) eq | HO8: kg-benzene (water, soil) eq | HP8: kg-benzene (water, soil) eq | HQ8: kg-phosphate eq | HR8: kg Sb eq | HS8: － | HT8: MJ | HU8: m3 | HV8: DALY | HW8: DALY | HX8: DALY | HY8: DALY | HZ8: DALY | IA8: DALY | IB8: kg-NPP | IC8: kg-NPP | ID8: kg-NPP | IE8: kg-NPP | IF8: kg-NPP | IG8: 円 | IH8: 円 | II8: 円 | IJ8: 円 | IK8: 円 | IL8: 円 | IM8: 円 | IN8: EINES | IO8: EINES | IP8: EINES | IQ8: EINES | IR8: EINES | IS8: 円 | IT8: 円 | IU8: 円 | IV8: 円 | IW8: 円 | IX8: 円 | IY8: 円 | IZ8: 円 | JA8: 円 | JB8: 円 | JC8: 円 | JD8: 円
A9: 仮設工事 | B9: エネルギー消費分 | C9: 3 | D9: 鋼矢板－建設機械・資材搬入・搬出 | E9: 機械搬入・搬出(油圧式圧入引抜機) | F9: =仮設工事②!O6 -> 軽油 | G9: =仮設工事②!P6 -> 0 | H9: L | J9: =DE9+DF9+DG9 -> 0 | K9: =DN9+DO9 -> 0 | L9: =DS9+DT9 -> 0 | M9: =DL9+DM9 -> 0 | N9: =S9 -> 0 | O9: =AR9 -> 0 | P9: =AP9 -> 0 | Q9: =FP9+FQ9+FR9+FT9 -> 0 | R9: =$G9*SUMIF('原単位リスト(multi)org'!$B$8:$B$75,$F9,'原単位リスト(multi)org'!G$8:G$75) -> 0 | S9: =$G9*SUMIF('原単位リスト(multi)org'!$B$8:$B$75,$F9,'原単位リスト(multi)org'!H$8:H$75) -> 0 | T9: =$G9*SUMIF('原単位リスト(multi)org'!$B$8:$B$75,$F9,'原単位リスト(multi)org'!I$8:I$75) -> 0 | U9: =$G9*SUMIF('原単位リスト(multi)org'!$B$8:$B$75,$F9,'原単位リスト(multi)org'!J$8:J$75) -> 0 | V9: =$G9*SUMIF('原単位リスト(multi)org'!$B$8:$B$75,$F9,'原単位リスト(multi)org'!K$8:K$75) -> 0 | W9: =$G9*SUMIF('原単位リスト(multi)org'!$B$8:$B$75,$F9,'原単位リスト(multi)org'!L$8:L$75) -> 0 | X9: =$G9*SUMIF('原単位リスト(multi)org'!$B$8:$B$75,$F9,'原単位リスト(multi)org'!M$8:M$75) -> 0 | Y9: =$G9*SUMIF('原単位リスト(multi)org'!$B$8:$B$75,$F9,'原単位リスト(multi)org'!N$8:N$75) -> 0 | Z9: =$G9*SUMIF('原単位リスト(multi)org'!$B$8:$B$75,$F9,'原単位リスト(multi)org'!O$8:O$75) -> 0 | AA9: =$G9*SUMIF('原単位リスト(multi)org'!$B$8:$B$75,$F9,'原単位リスト(multi)org'!P$8:P$75) -> 0 | AB9: =$G9*SUMIF('原単位リスト(multi)org'!$B$8:$B$75,$F9,'原単位リスト(multi)org'!Q$8:Q$75) -> 0 | AC9: =$G9*SUMIF('原単位リスト(multi)org'!$B$8:$B$75,$F9,'原単位リスト(multi)org'!R$8:R$75) -> 0 | AD9: =$G9*SUMIF('原単位リスト(multi)org'!$B$8:$B$75,$F9,'原単位リスト(multi)org'!S$8:S$75) -> 0 | AE9: =$G9*SUMIF('原単位リスト(multi)org'!$B$8:$B$75,$F9,'原単位リスト(multi)org'!T$8:T$75) -> 0 | AF9: =$G9*SUMIF('原単位リスト(multi)org'!$B$8:$B$75,$F9,'原単位リスト(multi)org'!U$8:U$75) -> 0 | AG9: =$G9*SUMIF('原単位リスト(multi)org'!$B$8:$B$75,$F9,'原単位リスト(multi)org'!V$8:V$75) -> 0 | AH9: =$G9*SUMIF('原単位リスト(multi)org'!$B$8:$B$75,$F9,'原単位リスト(multi)org'!W$8:W$75) -> 0 | AI9: =$G9*SUMIF('原単位リスト(multi)org'!$B$8:$B$75,$F9,'原単位リスト(multi)org'!X$8:X$75) -> 0 | AJ9: =$G9*SUMIF('原単位リスト(multi)org'!$B$8:$B$75,$F9,'原単位リスト(multi)org'!Y$8:Y$75) -> 0 | AK9: =$G9*SUMIF('原単位リスト(multi)org'!$B$8:$B$75,$F9,'原単位リスト(multi)org'!Z$8:Z$75) -> 0 | AL9: =$G9*SUMIF('原単位リスト(multi)org'!$B$8:$B$75,$F9,'原単位リスト(multi)org'!AA$8:AA$75) -> 0 | AM9: =$G9*SUMIF('原単位リスト(multi)org'!$B$8:$B$75,$F9,'原単位リスト(multi)org'!AB$8:AB$75) -> 0 | AN9: =$G9*SUMIF('原単位リスト(multi)org'!$B$8:$B$75,$F9,'原単位リスト(multi)org'!AC$8:AC$75) -> 0 | AO9: =$G9*SUMIF('原単位リスト(multi)org'!$B$8:$B$75,$F9,'原単位リスト(multi)org'!AD$8:AD$75) -> 0 | AP9: =$G9*SUMIF('原単位リスト(multi)org'!$B$8:$B$75,$F9,'原単位リスト(multi)org'!AE$8:AE$75) -> 0 | AQ9: =$G9*SUMIF('原単位リスト(multi)org'!$B$8:$B$75,$F9,'原単位リスト(multi)org'!AF$8:AF$75) -> 0 | AR9: =$G9*SUMIF('原単位リスト(multi)org'!$B$8:$B$75,$F9,'原単位リスト(multi)org'!AG$8:AG$75) -> 0 | AS9: =$G9*SUMIF('原単位リスト(multi)org'!$B$8:$B$75,$F9,'原単位リスト(multi)org'!AH$8:AH$75) -> 0 | AT9: =$G9*SUMIF('原単位リスト(multi)org'!$B$8:$B$75,$F9,'原単位リスト(multi)org'!AI$8:AI$75) -> 0 | AU9: =$G9*SUMIF('原単位リスト(multi)org'!$B$8:$B$75,$F9,'原単位リスト(multi)org'!AJ$8:AJ$75) -> 0 | AV9: =$G9*SUMIF('原単位リスト(multi)org'!$B$8:$B$75,$F9,'原単位リスト(multi)org'!AK$8:AK$75) -> 0 | AW9: =$G9*SUMIF('原単位リスト(multi)org'!$B$8:$B$75,$F9,'原単位リスト(multi)org'!AL$8:AL$75) -> 0 | AX9: =$G9*SUMIF('原単位リスト(multi)org'!$B$8:$B$75,$F9,'原単位リスト(multi)org'!AM$8:AM$75) -> 0 | AY9: =$G9*SUMIF('原単位リスト(multi)org'!$B$8:$B$75,$F9,'原単位リスト(multi)org'!AN$8:AN$75) -> 0 | AZ9: =$G9*SUMIF('原単位リスト(multi)org'!$B$8:$B$75,$F9,'原単位リスト(multi)org'!AO$8:AO$75) -> 0 | BA9: =$G9*SUMIF('原単位リスト(multi)org'!$B$8:$B$75,$F9,'原単位リスト(multi)org'!AP$8:AP$75) -> 0 | BB9: =$G9*SUMIF('原単位リスト(multi)org'!$B$8:$B$75,$F9,'原単位リスト(multi)org'!AQ$8:AQ$75) -> 0 | BC9: =$G9*SUMIF('原単位リスト(multi)org'!$B$8:$B$75,$F9,'原単位リスト(multi)org'!AR$8:AR$75) -> 0 | BD9: =$G9*SUMIF('原単位リスト(multi)org'!$B$8:$B$75,$F9,'原単位リスト(multi)org'!AS$8:AS$75) -> 0 | BE9: =$G9*SUMIF('原単位リスト(multi)org'!$B$8:$B$75,$F9,'原単位リスト(multi)org'!AT$8:AT$75) -> 0 | BF9: =$G9*SUMIF('原単位リスト(multi)org'!$B$8:$B$75,$F9,'原単位リスト(multi)org'!AU$8:AU$75) -> 0 | BG9: =$G9*SUMIF('原単位リスト(multi)org'!$B$8:$B$75,$F9,'原単位リスト(multi)org'!AV$8:AV$75) -> 0 | BH9: =$G9*SUMIF('原単位リスト(multi)org'!$B$8:$B$75,$F9,'原単位リスト(multi)org'!AW$8:AW$75) -> 0 | BI9: =$G9*SUMIF('原単位リスト(multi)org'!$B$8:$B$75,$F9,'原単位リスト(multi)org'!AX$8:AX$75) -> 0 | BJ9: =$G9*SUMIF('原単位リスト(multi)org'!$B$8:$B$75,$F9,'原単位リスト(multi)org'!AY$8:AY$75) -> 0 | BK9: =$G9*SUMIF('原単位リスト(multi)org'!$B$8:$B$75,$F9,'原単位リスト(multi)org'!AZ$8:AZ$75) -> 0 | BL9: =$G9*SUMIF('原単位リスト(multi)org'!$B$8:$B$75,$F9,'原単位リスト(multi)org'!BA$8:BA$75) -> 0 | BM9: =$G9*SUMIF('原単位リスト(multi)org'!$B$8:$B$75,$F9,'原単位リスト(multi)org'!BB$8:BB$75) -> 0 | BN9: =$G9*SUMIF('原単位リスト(multi)org'!$B$8:$B$75,$F9,'原単位リスト(multi)org'!BC$8:BC$75) -> 0 | BO9: =$G9*SUMIF('原単位リスト(multi)org'!$B$8:$B$75,$F9,'原単位リスト(multi)org'!BD$8:BD$75) -> 0 | BP9: =$G9*SUMIF('原単位リスト(multi)org'!$B$8:$B$75,$F9,'原単位リスト(multi)org'!BE$8:BE$75) -> 0 | BQ9: =$G9*SUMIF('原単位リスト(multi)org'!$B$8:$B$75,$F9,'原単位リスト(multi)org'!BF$8:BF$75) -> 0 | BR9: =$G9*SUMIF('原単位リスト(multi)org'!$B$8:$B$75,$F9,'原単位リスト(multi)org'!BG$8:BG$75) -> 0 | BS9: =$G9*SUMIF('原単位リスト(multi)org'!$B$8:$B$75,$F9,'原単位リスト(multi)org'!BH$8:BH$75) -> 0 | BT9: =$G9*SUMIF('原単位リスト(multi)org'!$B$8:$B$75,$F9,'原単位リスト(multi)org'!BI$8:BI$75) -> 0 | BU9: =$G9*SUMIF('原単位リスト(multi)org'!$B$8:$B$75,$F9,'原単位リスト(multi)org'!BJ$8:BJ$75) -> 0 | BV9: =$G9*SUMIF('原単位リスト(multi)org'!$B$8:$B$75,$F9,'原単位リスト(multi)org'!BK$8:BK$75) -> 0 | BW9: =$G9*SUMIF('原単位リスト(multi)org'!$B$8:$B$75,$F9,'原単位リスト(multi)org'!BL$8:BL$75) -> 0 | BX9: =$G9*SUMIF('原単位リスト(multi)org'!$B$8:$B$75,$F9,'原単位リスト(multi)org'!BM$8:BM$75) -> 0 | BY9: =$G9*SUMIF('原単位リスト(multi)org'!$B$8:$B$75,$F9,'原単位リスト(multi)org'!BN$8:BN$75) -> 0 | BZ9: =$G9*SUMIF('原単位リスト(multi)org'!$B$8:$B$75,$F9,'原単位リスト(multi)org'!BO$8:BO$75) -> 0 | CA9: =$G9*SUMIF('原単位リスト(multi)org'!$B$8:$B$75,$F9,'原単位リスト(multi)org'!BP$8:BP$75) -> 0 | CB9: =$G9*SUMIF('原単位リスト(multi)org'!$B$8:$B$75,$F9,'原単位リスト(multi)org'!BQ$8:BQ$75) -> 0 | CC9: =$G9*SUMIF('原単位リスト(multi)org'!$B$8:$B$75,$F9,'原単位リスト(multi)org'!BR$8:BR$75) -> 0 | CD9: =$G9*SUMIF('原単位リスト(multi)org'!$B$8:$B$75,$F9,'原単位リスト(multi)org'!BS$8:BS$75) -> 0 | CE9: =$G9*SUMIF('原単位リスト(multi)org'!$B$8:$B$75,$F9,'原単位リスト(multi)org'!BT$8:BT$75) -> 0 | CF9: =$G9*SUMIF('原単位リスト(multi)org'!$B$8:$B$75,$F9,'原単位リスト(multi)org'!BU$8:BU$75) -> 0 | CG9: =$G9*SUMIF('原単位リスト(multi)org'!$B$8:$B$75,$F9,'原単位リスト(multi)org'!BV$8:BV$75) -> 0 | CH9: =$G9*SUMIF('原単位リスト(multi)org'!$B$8:$B$75,$F9,'原単位リスト(multi)org'!BW$8:BW$75) -> 0 | CI9: =$G9*SUMIF('原単位リスト(multi)org'!$B$8:$B$75,$F9,'原単位リスト(multi)org'!BX$8:BX$75) -> 0 | CJ9: =$G9*SUMIF('原単位リスト(multi)org'!$B$8:$B$75,$F9,'原単位リスト(multi)org'!BY$8:BY$75) -> 0 | CK9: =$G9*SUMIF('原単位リスト(multi)org'!$B$8:$B$75,$F9,'原単位リスト(multi)org'!BZ$8:BZ$75) -> 0 | CL9: =$G9*SUMIF('原単位リスト(multi)org'!$B$8:$B$75,$F9,'原単位リスト(multi)org'!CA$8:CA$75) -> 0 | CM9: =$G9*SUMIF('原単位リスト(multi)org'!$B$8:$B$75,$F9,'原単位リスト(multi)org'!CB$8:CB$75) -> 0 | CN9: =$G9*SUMIF('原単位リスト(multi)org'!$B$8:$B$75,$F9,'原単位リスト(multi)org'!CC$8:CC$75) -> 0 | CO9: =$G9*SUMIF('原単位リスト(multi)org'!$B$8:$B$75,$F9,'原単位リスト(multi)org'!CD$8:CD$75) -> 0 | CP9: =$G9*SUMIF('原単位リスト(multi)org'!$B$8:$B$75,$F9,'原単位リスト(multi)org'!CE$8:CE$75) -> 0 | CQ9: =$G9*SUMIF('原単位リスト(multi)org'!$B$8:$B$75,$F9,'原単位リスト(multi)org'!CF$8:CF$75) -> 0 | CR9: =$G9*SUMIF('原単位リスト(multi)org'!$B$8:$B$75,$F9,'原単位リスト(multi)org'!CG$8:CG$75) -> 0 | CS9: =$G9*SUMIF('原単位リスト(multi)org'!$B$8:$B$75,$F9,'原単位リスト(multi)org'!CH$8:CH$75) -> 0 | CT9: =$G9*SUMIF('原単位リスト(multi)org'!$B$8:$B$75,$F9,'原単位リスト(multi)org'!CI$8:CI$75) -> 0 | CU9: =$G9*SUMIF('原単位リスト(multi)org'!$B$8:$B$75,$F9,'原単位リスト(multi)org'!CJ$8:CJ$75) -> 0 | CV9: =$G9*SUMIF('原単位リスト(multi)org'!$B$8:$B$75,$F9,'原単位リスト(multi)org'!CK$8:CK$75) -> 0 | CW9: =$G9*SUMIF('原単位リスト(multi)org'!$B$8:$B$75,$F9,'原単位リスト(multi)org'!CL$8:CL$75) -> 0 | CX9: =$G9*SUMIF('原単位リスト(multi)org'!$B$8:$B$75,$F9,'原単位リスト(multi)org'!CM$8:CM$75) -> 0 | CY9: =$G9*SUMIF('原単位リスト(multi)org'!$B$8:$B$75,$F9,'原単位リスト(multi)org'!CN$8:CN$75) -> 0 | CZ9: =$G9*SUMIF('原単位リスト(multi)org'!$B$8:$B$75,$F9,'原単位リスト(multi)org'!CO$8:CO$75) -> 0 | DA9: =$G9*SUMIF('原単位リスト(multi)org'!$B$8:$B$75,$F9,'原単位リスト(multi)org'!CP$8:CP$75) -> 0 | DB9: =$G9*SUMIF('原単位リスト(multi)org'!$B$8:$B$75,$F9,'原単位リスト(multi)org'!CQ$8:CQ$75) -> 0 | DC9: =$G9*SUMIF('原単位リスト(multi)org'!$B$8:$B$75,$F9,'原単位リスト(multi)org'!CR$8:CR$75) -> 0 | DD9: =$G9*SUMIF('原単位リスト(multi)org'!$B$8:$B$75,$F9,'原単位リスト(multi)org'!CS$8:CS$75) -> 0 | DE9: =$G9*SUMIF('原単位リスト(multi)org'!$B$8:$B$75,$F9,'原単位リスト(multi)org'!CT$8:CT$75) -> 0 | DF9: =$G9*SUMIF('原単位リスト(multi)org'!$B$8:$B$75,$F9,'原単位リスト(multi)org'!CU$8:CU$75) -> 0 | DG9: =$G9*SUMIF('原単位リスト(multi)org'!$B$8:$B$75,$F9,'原単位リスト(multi)org'!CV$8:CV$75) -> 0 | DH9: =$G9*SUMIF('原単位リスト(multi)org'!$B$8:$B$75,$F9,'原単位リスト(multi)org'!CW$8:CW$75) -> 0 | DI9: =$G9*SUMIF('原単位リスト(multi)org'!$B$8:$B$75,$F9,'原単位リスト(multi)org'!CX$8:CX$75) -> 0 | DJ9: =$G9*SUMIF('原単位リスト(multi)org'!$B$8:$B$75,$F9,'原単位リスト(multi)org'!CY$8:CY$75) -> 0 | DK9: =$G9*SUMIF('原単位リスト(multi)org'!$B$8:$B$75,$F9,'原単位リスト(multi)org'!CZ$8:CZ$75) -> 0 | DL9: =$G9*SUMIF('原単位リスト(multi)org'!$B$8:$B$75,$F9,'原単位リスト(multi)org'!DA$8:DA$75) -> 0 | DM9: =$G9*SUMIF('原単位リスト(multi)org'!$B$8:$B$75,$F9,'原単位リスト(multi)org'!DB$8:DB$75) -> 0 | DN9: =$G9*SUMIF('原単位リスト(multi)org'!$B$8:$B$75,$F9,'原単位リスト(multi)org'!DC$8:DC$75) -> 0 | DO9: =$G9*SUMIF('原単位リスト(multi)org'!$B$8:$B$75,$F9,'原単位リスト(multi)org'!DD$8:DD$75) -> 0 | DP9: =$G9*SUMIF('原単位リスト(multi)org'!$B$8:$B$75,$F9,'原単位リスト(multi)org'!DE$8:DE$75) -> 0 | DQ9: =$G9*SUMIF('原単位リスト(multi)org'!$B$8:$B$75,$F9,'原単位リスト(multi)org'!DF$8:DF$75) -> 0 | DR9: =$G9*SUMIF('原単位リスト(multi)org'!$B$8:$B$75,$F9,'原単位リスト(multi)org'!DG$8:DG$75) -> 0 | DS9: =$G9*SUMIF('原単位リスト(multi)org'!$B$8:$B$75,$F9,'原単位リスト(multi)org'!DH$8:DH$75) -> 0 | DT9: =$G9*SUMIF('原単位リスト(multi)org'!$B$8:$B$75,$F9,'原単位リスト(multi)org'!DI$8:DI$75) -> 0 | DU9: =$G9*SUMIF('原単位リスト(multi)org'!$B$8:$B$75,$F9,'原単位リスト(multi)org'!DJ$8:DJ$75) -> 0 | DV9: =$G9*SUMIF('原単位リスト(multi)org'!$B$8:$B$75,$F9,'原単位リスト(multi)org'!DK$8:DK$75) -> 0 | DW9: =$G9*SUMIF('原単位リスト(multi)org'!$B$8:$B$75,$F9,'原単位リスト(multi)org'!DL$8:DL$75) -> 0 | DX9: =$G9*SUMIF('原単位リスト(multi)org'!$B$8:$B$75,$F9,'原単位リスト(multi)org'!DM$8:DM$75) -> 0 | DY9: =$G9*SUMIF('原単位リスト(multi)org'!$B$8:$B$75,$F9,'原単位リスト(multi)org'!DN$8:DN$75) -> 0 | DZ9: =$G9*SUMIF('原単位リスト(multi)org'!$B$8:$B$75,$F9,'原単位リスト(multi)org'!DO$8:DO$75) -> 0 | EA9: =$G9*SUMIF('原単位リスト(multi)org'!$B$8:$B$75,$F9,'原単位リスト(multi)org'!DP$8:DP$75) -> 0 | EB9: =$G9*SUMIF('原単位リスト(multi)org'!$B$8:$B$75,$F9,'原単位リスト(multi)org'!DQ$8:DQ$75) -> 0 | EC9: =$G9*SUMIF('原単位リスト(multi)org'!$B$8:$B$75,$F9,'原単位リスト(multi)org'!DR$8:DR$75) -> 0 | ED9: =$G9*SUMIF('原単位リスト(multi)org'!$B$8:$B$75,$F9,'原単位リスト(multi)org'!DS$8:DS$75) -> 0 | EE9: =$G9*SUMIF('原単位リスト(multi)org'!$B$8:$B$75,$F9,'原単位リスト(multi)org'!DT$8:DT$75) -> 0 | EF9: =$G9*SUMIF('原単位リスト(multi)org'!$B$8:$B$75,$F9,'原単位リスト(multi)org'!DU$8:DU$75) -> 0 | EG9: =$G9*SUMIF('原単位リスト(multi)org'!$B$8:$B$75,$F9,'原単位リスト(multi)org'!DV$8:DV$75) -> 0 | EH9: =$G9*SUMIF('原単位リスト(multi)org'!$B$8:$B$75,$F9,'原単位リスト(multi)org'!DW$8:DW$75) -> 0 | EI9: =$G9*SUMIF('原単位リスト(multi)org'!$B$8:$B$75,$F9,'原単位リスト(multi)org'!DX$8:DX$75) -> 0 | EJ9: =$G9*SUMIF('原単位リスト(multi)org'!$B$8:$B$75,$F9,'原単位リスト(multi)org'!DY$8:DY$75) -> 0 | EK9: =$G9*SUMIF('原単位リスト(multi)org'!$B$8:$B$75,$F9,'原単位リスト(multi)org'!DZ$8:DZ$75) -> 0 | EL9: =$G9*SUMIF('原単位リスト(multi)org'!$B$8:$B$75,$F9,'原単位リスト(multi)org'!EA$8:EA$75) -> 0 | EM9: =$G9*SUMIF('原単位リスト(multi)org'!$B$8:$B$75,$F9,'原単位リスト(multi)org'!EB$8:EB$75) -> 0 | EN9: =$G9*SUMIF('原単位リスト(multi)org'!$B$8:$B$75,$F9,'原単位リスト(multi)org'!EC$8:EC$75) -> 0 | EO9: =$G9*SUMIF('原単位リスト(multi)org'!$B$8:$B$75,$F9,'原単位リスト(multi)org'!ED$8:ED$75) -> 0 | EP9: =$G9*SUMIF('原単位リスト(multi)org'!$B$8:$B$75,$F9,'原単位リスト(multi)org'!EE$8:EE$75) -> 0 | EQ9: =$G9*SUMIF('原単位リスト(multi)org'!$B$8:$B$75,$F9,'原単位リスト(multi)org'!EF$8:EF$75) -> 0 | ER9: =$G9*SUMIF('原単位リスト(multi)org'!$B$8:$B$75,$F9,'原単位リスト(multi)org'!EG$8:EG$75) -> 0 | ES9: =$G9*SUMIF('原単位リスト(multi)org'!$B$8:$B$75,$F9,'原単位リスト(multi)org'!EH$8:EH$75) -> 0 | ET9: =$G9*SUMIF('原単位リスト(multi)org'!$B$8:$B$75,$F9,'原単位リスト(multi)org'!EI$8:EI$75) -> 0 | EU9: =$G9*SUMIF('原単位リスト(multi)org'!$B$8:$B$75,$F9,'原単位リスト(multi)org'!EJ$8:EJ$75) -> 0 | EV9: =$G9*SUMIF('原単位リスト(multi)org'!$B$8:$B$75,$F9,'原単位リスト(multi)org'!EK$8:EK$75) -> 0 | EW9: =$G9*SUMIF('原単位リスト(multi)org'!$B$8:$B$75,$F9,'原単位リスト(multi)org'!EL$8:EL$75) -> 0 | EX9: =$G9*SUMIF('原単位リスト(multi)org'!$B$8:$B$75,$F9,'原単位リスト(multi)org'!EM$8:EM$75) -> 0 | EY9: =$G9*SUMIF('原単位リスト(multi)org'!$B$8:$B$75,$F9,'原単位リスト(multi)org'!EN$8:EN$75) -> 0 | EZ9: =$G9*SUMIF('原単位リスト(multi)org'!$B$8:$B$75,$F9,'原単位リスト(multi)org'!EO$8:EO$75) -> 0 | FA9: =$G9*SUMIF('原単位リスト(multi)org'!$B$8:$B$75,$F9,'原単位リスト(multi)org'!EP$8:EP$75) -> 0 | FB9: =$G9*SUMIF('原単位リスト(multi)org'!$B$8:$B$75,$F9,'原単位リスト(multi)org'!EQ$8:EQ$75) -> 0 | FC9: =$G9*SUMIF('原単位リスト(multi)org'!$B$8:$B$75,$F9,'原単位リスト(multi)org'!ER$8:ER$75) -> 0 | FD9: =$G9*SUMIF('原単位リスト(multi)org'!$B$8:$B$75,$F9,'原単位リスト(multi)org'!ES$8:ES$75) -> 0 | FE9: =$G9*SUMIF('原単位リスト(multi)org'!$B$8:$B$75,$F9,'原単位リスト(multi)org'!ET$8:ET$75) -> 0 | FF9: =$G9*SUMIF('原単位リスト(multi)org'!$B$8:$B$75,$F9,'原単位リスト(multi)org'!EU$8:EU$75) -> 0 | FG9: =$G9*SUMIF('原単位リスト(multi)org'!$B$8:$B$75,$F9,'原単位リスト(multi)org'!EV$8:EV$75) -> 0 | FH9: =$G9*SUMIF('原単位リスト(multi)org'!$B$8:$B$75,$F9,'原単位リスト(multi)org'!EW$8:EW$75) -> 0 | FI9: =$G9*SUMIF('原単位リスト(multi)org'!$B$8:$B$75,$F9,'原単位リスト(multi)org'!EX$8:EX$75) -> 0 | FJ9: =$G9*SUMIF('原単位リスト(multi)org'!$B$8:$B$75,$F9,'原単位リスト(multi)org'!EY$8:EY$75) -> 0 | FK9: =$G9*SUMIF('原単位リスト(multi)org'!$B$8:$B$75,$F9,'原単位リスト(multi)org'!EZ$8:EZ$75) -> 0 | FL9: =$G9*SUMIF('原単位リスト(multi)org'!$B$8:$B$75,$F9,'原単位リスト(multi)org'!FA$8:FA$75) -> 0 | FM9: =$G9*SUMIF('原単位リスト(multi)org'!$B$8:$B$75,$F9,'原単位リスト(multi)org'!FB$8:FB$75) -> 0 | FN9: =$G9*SUMIF('原単位リスト(multi)org'!$B$8:$B$75,$F9,'原単位リスト(multi)org'!FC$8:FC$75) -> 0 | FO9: =$G9*SUMIF('原単位リスト(multi)org'!$B$8:$B$75,$F9,'原単位リスト(multi)org'!FD$8:FD$75) -> 0 | FP9: =$G9*SUMIF('原単位リスト(multi)org'!$B$8:$B$75,$F9,'原単位リスト(multi)org'!FE$8:FE$75) -> 0 | FQ9: =$G9*SUMIF('原単位リスト(multi)org'!$B$8:$B$75,$F9,'原単位リスト(multi)org'!FF$8:FF$75) -> 0 | FR9: =$G9*SUMIF('原単位リスト(multi)org'!$B$8:$B$75,$F9,'原単位リスト(multi)org'!FG$8:FG$75) -> 0 | FS9: =$G9*SUMIF('原単位リスト(multi)org'!$B$8:$B$75,$F9,'原単位リスト(multi)org'!FH$8:FH$75) -> 0 | FT9: =$G9*SUMIF('原単位リスト(multi)org'!$B$8:$B$75,$F9,'原単位リスト(multi)org'!FI$8:FI$75) -> 0 | FU9: =$G9*SUMIF('原単位リスト(multi)org'!$B$8:$B$75,$F9,'原単位リスト(multi)org'!FJ$8:FJ$75) -> 0 | FV9: =$G9*SUMIF('原単位リスト(multi)org'!$B$8:$B$75,$F9,'原単位リスト(multi)org'!FK$8:FK$75) -> 0 | FW9: =$G9*SUMIF('原単位リスト(multi)org'!$B$8:$B$75,$F9,'原単位リスト(multi)org'!FL$8:FL$75) -> 0 | FX9: =$G9*SUMIF('原単位リスト(multi)org'!$B$8:$B$75,$F9,'原単位リスト(multi)org'!FM$8:FM$75) -> 0 | FY9: =$G9*SUMIF('原単位リスト(multi)org'!$B$8:$B$75,$F9,'原単位リスト(multi)org'!FN$8:FN$75) -> 0 | FZ9: =$G9*SUMIF('原単位リスト(multi)org'!$B$8:$B$75,$F9,'原単位リスト(multi)org'!FO$8:FO$75) -> 0 | GA9: =$G9*SUMIF('原単位リスト(multi)org'!$B$8:$B$75,$F9,'原単位リスト(multi)org'!FP$8:FP$75) -> 0 | GB9: =$G9*SUMIF('原単位リスト(multi)org'!$B$8:$B$75,$F9,'原単位リスト(multi)org'!FQ$8:FQ$75) -> 0 | GC9: =$G9*SUMIF('原単位リスト(multi)org'!$B$8:$B$75,$F9,'原単位リスト(multi)org'!FR$8:FR$75) -> 0 | GD9: =$G9*SUMIF('原単位リスト(multi)org'!$B$8:$B$75,$F9,'原単位リスト(multi)org'!FS$8:FS$75) -> 0 | GE9: =$G9*SUMIF('原単位リスト(multi)org'!$B$8:$B$75,$F9,'原単位リスト(multi)org'!FT$8:FT$75) -> 0 | GF9: =$G9*SUMIF('原単位リスト(multi)org'!$B$8:$B$75,$F9,'原単位リスト(multi)org'!FU$8:FU$75) -> 0 | GG9: =$G9*SUMIF('原単位リスト(multi)org'!$B$8:$B$75,$F9,'原単位リスト(multi)org'!FV$8:FV$75) -> 0 | GH9: =$G9*SUMIF('原単位リスト(multi)org'!$B$8:$B$75,$F9,'原単位リスト(multi)org'!FW$8:FW$75) -> 0 | GI9: =$G9*SUMIF('原単位リスト(multi)org'!$B$8:$B$75,$F9,'原単位リスト(multi)org'!FX$8:FX$75) -> 0 | GJ9: =$G9*SUMIF('原単位リスト(multi)org'!$B$8:$B$75,$F9,'原単位リスト(multi)org'!FY$8:FY$75) -> 0 | GK9: =$G9*SUMIF('原単位リスト(multi)org'!$B$8:$B$75,$F9,'原単位リスト(multi)org'!FZ$8:FZ$75) -> 0 | GL9: =$G9*SUMIF('原単位リスト(multi)org'!$B$8:$B$75,$F9,'原単位リスト(multi)org'!GA$8:GA$75) -> 0 | GM9: =$G9*SUMIF('原単位リスト(multi)org'!$B$8:$B$75,$F9,'原単位リスト(multi)org'!GB$8:GB$75) -> 0 | GN9: =$G9*SUMIF('原単位リスト(multi)org'!$B$8:$B$75,$F9,'原単位リスト(multi)org'!GC$8:GC$75) -> 0 | GO9: =$G9*SUMIF('原単位リスト(multi)org'!$B$8:$B$75,$F9,'原単位リスト(multi)org'!GD$8:GD$75) -> 0 | GP9: =$G9*SUMIF('原単位リスト(multi)org'!$B$8:$B$75,$F9,'原単位リスト(multi)org'!GE$8:GE$75) -> 0 | GQ9: =$G9*SUMIF('原単位リスト(multi)org'!$B$8:$B$75,$F9,'原単位リスト(multi)org'!GF$8:GF$75) -> 0 | GR9: =$G9*SUMIF('原単位リスト(multi)org'!$B$8:$B$75,$F9,'原単位リスト(multi)org'!GG$8:GG$75) -> 0 | GS9: =$G9*SUMIF('原単位リスト(multi)org'!$B$8:$B$75,$F9,'原単位リスト(multi)org'!GH$8:GH$75) -> 0 | GT9: =$G9*SUMIF('原単位リスト(multi)org'!$B$8:$B$75,$F9,'原単位リスト(multi)org'!GI$8:GI$75) -> 0 | GU9: =$G9*SUMIF('原単位リスト(multi)org'!$B$8:$B$75,$F9,'原単位リスト(multi)org'!GJ$8:GJ$75) -> 0 | GV9: =$G9*SUMIF('原単位リスト(multi)org'!$B$8:$B$75,$F9,'原単位リスト(multi)org'!GK$8:GK$75) -> 0 | GW9: =$G9*SUMIF('原単位リスト(multi)org'!$B$8:$B$75,$F9,'原単位リスト(multi)org'!GL$8:GL$75) -> 0 | GX9: =$G9*SUMIF('原単位リスト(multi)org'!$B$8:$B$75,$F9,'原単位リスト(multi)org'!GM$8:GM$75) -> 0 | GY9: =$G9*SUMIF('原単位リスト(multi)org'!$B$8:$B$75,$F9,'原単位リスト(multi)org'!GN$8:GN$75) -> 0 | GZ9: =$G9*SUMIF('原単位リスト(multi)org'!$B$8:$B$75,$F9,'原単位リスト(multi)org'!GO$8:GO$75) -> 0 | HA9: =$G9*SUMIF('原単位リスト(multi)org'!$B$8:$B$75,$F9,'原単位リスト(multi)org'!GP$8:GP$75) -> 0 | HB9: =$G9*SUMIF('原単位リスト(multi)org'!$B$8:$B$75,$F9,'原単位リスト(multi)org'!GQ$8:GQ$75) -> 0 | HC9: =$G9*SUMIF('原単位リスト(multi)org'!$B$8:$B$75,$F9,'原単位リスト(multi)org'!GR$8:GR$75) -> 0 | HD9: =$G9*SUMIF('原単位リスト(multi)org'!$B$8:$B$75,$F9,'原単位リスト(multi)org'!GS$8:GS$75) -> 0 | HE9: =MMULT($R9:$HD9,特性化係数リスト!H$5:H$199) -> 0 | HF9: =MMULT($R9:$HD9,特性化係数リスト!I$5:I$199) -> 0 | HG9: =MMULT($R9:$HD9,特性化係数リスト!J$5:J$199) -> 0 | HH9: =MMULT($R9:$HD9,特性化係数リスト!K$5:K$199) -> 0 | HI9: =MMULT($R9:$HD9,特性化係数リスト!L$5:L$199) -> 0 | HJ9: =MMULT($R9:$HD9,特性化係数リスト!M$5:M$199) -> 0 | HK9: =MMULT($R9:$HD9,特性化係数リスト!N$5:N$199) -> 0 | HL9: =MMULT($R9:$HD9,特性化係数リスト!O$5:O$199) -> 0 | HM9: =MMULT($R9:$HD9,特性化係数リスト!P$5:P$199) -> 0 | HN9: =MMULT($R9:$HD9,特性化係数リスト!Q$5:Q$199) -> 0 | HO9: =MMULT($R9:$HD9,特性化係数リスト!R$5:R$199) -> 0 | HP9: =MMULT($R9:$HD9,特性化係数リスト!S$5:S$199) -> 0 | HQ9: =MMULT($R9:$HD9,特性化係数リスト!T$5:T$199) -> 0 | HR9: =MMULT($R9:$HD9,特性化係数リスト!U$5:U$199) -> 0 | HS9: =MMULT($R9:$HD9,特性化係数リスト!V$5:V$199) -> 0 | HT9: =MMULT($R9:$HD9,特性化係数リスト!W$5:W$199) -> 0 | HU9: =MMULT($R9:$HD9,特性化係数リスト!X$5:X$199) -> 0 | HV9: =MMULT($R9:$HD9,'被害係数リスト(人間健康)'!H$4:H$198) -> 0 | HW9: =MMULT($R9:$HD9,'被害係数リスト(人間健康)'!I$4:I$198) -> 0 | HX9: =MMULT($R9:$HD9,'被害係数リスト(人間健康)'!J$4:J$198) -> 0 | HY9: =MMULT($R9:$HD9,'被害係数リスト(人間健康)'!K$4:K$198) -> 0 | HZ9: =MMULT($R9:$HD9,'被害係数リスト(人間健康)'!L$4:L$198) -> 0 | IA9: =SUM(HV9:HZ9) -> 0 | IB9: =MMULT($R9:$HD9,'被害係数リスト(一次生産)'!H$4:H$198) -> 0 | IC9: =MMULT($R9:$HD9,'被害係数リスト(一次生産)'!I$4:I$198) -> 0 | ID9: =MMULT($R9:$HD9,'被害係数リスト(一次生産)'!J$4:J$198) -> 0 | IE9: =MMULT($R9:$HD9,'被害係数リスト(一次生産)'!K$4:K$198) -> 0 | IF9: =SUM(IB9:IE9) -> 0 | IG9: =MMULT($R9:$HD9,'被害係数リスト(社会資産)'!H$4:H$198) -> 0 | IH9: =MMULT($R9:$HD9,'被害係数リスト(社会資産)'!I$4:I$198) -> 0 | II9: =MMULT($R9:$HD9,'被害係数リスト(社会資産)'!J$4:J$198) -> 0 | IJ9: =MMULT($R9:$HD9,'被害係数リスト(社会資産)'!K$4:K$198) -> 0 | IK9: =MMULT($R9:$HD9,'被害係数リスト(社会資産)'!L$4:L$198) -> 0 | IL9: =MMULT($R9:$HD9,'被害係数リスト(社会資産)'!M$4:M$198) -> 0 | IM9: =SUM(IG9:IL9) -> 0 | IN9: =MMULT($R9:$HD9,'被害係数リスト(生物多様性)'!H$4:H$198) -> 0 | IO9: =MMULT($R9:$HD9,'被害係数リスト(生物多様性)'!I$4:I$198) -> 0 | IP9: =MMULT($R9:$HD9,'被害係数リスト(生物多様性)'!J$4:J$198) -> 0 | IQ9: =MMULT($R9:$HD9,'被害係数リスト(生物多様性)'!K$4:K$198) -> 0 | IR9: =SUM(IN9:IQ9) -> 0 | IS9: =MMULT($R9:$HD9,'統合化係数リスト(無次元)'!H$4:H$198) -> 0 | IT9: =MMULT($R9:$HD9,'統合化係数リスト(無次元)'!I$4:I$198) -> 0 | IU9: =MMULT($R9:$HD9,'統合化係数リスト(無次元)'!J$4:J$198) -> 0 | IV9: =MMULT($R9:$HD9,'統合化係数リスト(無次元)'!K$4:K$198) -> 0 | IW9: =MMULT($R9:$HD9,'統合化係数リスト(無次元)'!L$4:L$198) -> 0 | IX9: =MMULT($R9:$HD9,'統合化係数リスト(無次元)'!M$4:M$198) -> 0 | IY9: =MMULT($R9:$HD9,'統合化係数リスト(無次元)'!N$4:N$198) -> 0 | IZ9: =MMULT($R9:$HD9,'統合化係数リスト(無次元)'!O$4:O$198) -> 0 | JA9: =MMULT($R9:$HD9,'統合化係数リスト(無次元)'!P$4:P$198) -> 0 | JB9: =MMULT($R9:$HD9,'統合化係数リスト(無次元)'!Q$4:Q$198) -> 0 | JC9: =MMULT($R9:$HD9,'統合化係数リスト(無次元)'!R$4:R$198) -> 0 | JD9: =SUM(IS9:JC9) -> 0
